Workbook

Sheet Menu
Z1: 2
Z4: 2
A6: Panhandle Extension District - 1
D8: Budgets
D11: Forage Crops
D13: =+AlfalfaEstablish!A3 -> Alfalfa Establishment, Sprinkler Irrigated (NG), Fall Seeding Only
D14: =AlfalfaHay!A3 -> Alfalfa, Sprinkler Irrigated (NG)
D15: =CornSilage!A3 -> Corn Silage, Bt, Sprinkler Irrigated (NG)
D16: =SudangrassDryland!A3 -> Sorghum Sudangrass, Dryland, Grazing
D17: =SudangrassSprinkler!A3 -> Sorghum Sudangrass, Sprinkler Irrigated (NG), Grazing
B18: Comparative Returns | D18: =SorghumSilage!A3 -> Sorghum Silage, Sprinkler Irrigated
D19: =TriticaleSilage!A3 -> Triticale Silage, Sprinkler Irrigated (NG)
B20: Links
D21: Field Crops - Irrigated
D23: =CornSprinkler!A3 -> Bt Corn for Grain, Sprinkler Irrigated (NG)
D24: =CornStripTill!A3 -> Bt Corn for Grain, Strip Till
D25: =PepperNoMulch!A3 -> Jalapeño Pepper, Drip Irrigated
D26: =PepperMulch!A3 -> Jalapeño Pepper, Plastic Mulch, Drip Irrigated
D27: =SunflowersConfectionary!A3 -> Confectionary Sunflowers, Sprinkler Irrigated, Strip Tillage
D28: =SorghumSprinkler!A3 -> Continuous Sorghum, Sprinkler Irrigated (NG)
D29: =WheatSprinkler!A3 -> Continuous Wheat, Sprinkler Irrigated (NG)
D30: =CottonIrrigated!A3 -> Cotton, Sprinkler Irrigated (Roundup Ready Flex)
D31: =SunflowersOilseed!A3 -> Oilseed Sunflowers, Sprinkler Irrigated, Strip Tillage
D32: =Peanuts!A3 -> Peanuts, Runner, Sprinkler Irrigated
D33: =CanolaIrrigated!A3 -> Roundup Ready Canola, Sprinkler Irrigated (NG)
D34: =SeedSorghum!A3 -> Seed Sorghum, Sprinkler Irrigated (NG)
D35: =SoybeansSprinkler!A3 -> Soybeans, Roundup Ready, Sprinkler Irrigated (NG)
D36: =SweetCornMulch!A3 -> Sweet Corn, Plastic Mulch, Drip Irrigated
D37: =SweetCornNoMulch!A3 -> Sweet Corn, Drip Irrigated
D38: =TomatoNoMulch!A3 -> Tomato, Drip Irrigated
D39: =TomatoMulch!A3 -> Tomato, Plastic Mulch, Drip Irrigated
D41: Field Crops - Dryland
D43: =CottonDryland!A3 -> Cotton, Dryland (Roundup Ready Flex)
D44: =SorghumRotation!A3 -> Rotation, Sorghum-Fallow-Wheat, Minimum Till, Sorghum
D45: =FallowRotation!A3 -> Rotation, Sorghum-Fallow-Wheat, Minimum Till, Fallow
D46: =WheatRotation!A3 -> Rotation, Sorghum-Fallow-Wheat, Minimum Till, Wheat with Grazing
D47: =SorghumDryland!A3 -> Sorghum, Dryland, Continuous, Minimum Tillage
D48: =SunflowersDryland!A3 -> Oilseed Sunflowers, Dryland, Strip Tillage
D49: =WheatDryland!A3 -> Continuous Wheat, Dryland, Grazed
D50: =CanolaDryland!A3 -> Roundup Ready Canola, Dryland
D52: Livestock
D54: =+CowCalf!A3 -> Cow-Calf Budget
D55: =+StockersSummer!A3 -> Summer Stocker Calf Budget
D56: =StockerWinter!A3 -> Winter Stocker Calf Budget
D58: Other Budgets
D60: ='Livestock Budget'!A3 -> Livestock Budget
D61: ='Crop Budget'!A3 -> Crop Enterprise
A75: Developed by Justin Benavidez, Assistant Professor, Texas A&M AgriLife Extension, 806-677-5600.

Sheet Links
B2: Texas Crop and Livestock Budgets
B3: A Program of the Texas A&M AgriLife Extension Service
B4: Agricultural Economics Department, The Texas A&M University System
B6: Developed by Texas A&M AgriLife Extension Service Economists and Other Specialists
B8: Contact Us | G8: Clickable Logos
B10: Resources
B12: Decision Aids (includes Machinery Cost Estimator)
B14: Custom Rate Survey
B16: Basis Data
B18: Master Marketer
B20: Extension Ag Economics
B22: Department of Agricultural Economics
B24: Menu Page
B26: Links last checked 4/17/2020

Sheet TomatoMulch
A1: Projections for Planning Purposes Only -- Not to be Used without Updating
A2: 2021 Estimated Costs and Returns per Acre
A3: Tomato, Plastic Mulch, Drip Irrigated
A4: Enter your name for this budget in the cell above.
A5: Enter Your Values in the cells highlighed in MAROON.
E6: Your Acres | R6: Your
C7: Crop Acres | D7: 1 | L7: Your | Q7: Enterprise | R7: Enterprise
E8: Your | H8: Your | I8: Cash | J8: Your | K8: Landlord | L8: Landlord | N8: Your | P8: Your | Q8: Total | R8: Total
A9: REVENUE | D9: Quantity | E9: Quantity | F9: Units | G9: $/Unit | H9: $/Unit | I9: Total | J9: Total | K9: Share | L9: Share | M9: Landlord | N9: Landlord | O9: Tenant | P9: Tenant | Q9: (1 acres) | R9: ="(" & E7 & " acres)" -> ( acres)
B10: Tomato | D10: 334.4 | F10: CWT | G10: 25.5 | I10: 8527.2 | J10: =E10*H10 -> 0 | K10: 0 | M10: 0 | N10: =J10*L10 -> 0 | O10: 8527.2 | P10: =+J10-N10 -> 0 | Q10: 8527.2 | R10: =+J10*E$7 -> 0
D11: 0 | G11: 0 | I11: 0 | J11: 0 | K11: 0 | M11: 0 | N11: 0 | O11: 0 | P11: =+J11-N11 -> 0 | Q11: 0 | R11: 0
D12: 0 | G12: 0 | I12: 0 | J12: 0 | K12: 0 | M12: 0 | N12: 0 | O12: 0 | P12: 0 | Q12: 0 | R12: 0
A13: Total Revenue | I13: 8527.2 | J13: =SUM(J10:J12) -> 0 | M13: 0 | N13: =SUM(N10:N12) -> 0 | O13: 8527.2 | P13: =SUM(P10:P12) -> 0 | Q13: 8527.2 | R13: =SUM(R10:R12) -> 0
Q14: Enterprise | R14: Enterprise
A15: VARIABLE COSTS | D15: Quantity | E15: Quantity | F15: Units | G15: $/Unit | H15: $/Unit | I15: Total | J15: Total | K15: Share | L15: Share | M15: Landlord | N15: Landlord | O15: Tenant | P15: Tenant | Q15: Total | R15: Total
A16: Production Costs
B17: Seed
C18: Transplants - Tomato | D18: 5796 | F18: Plants | G18: 0.18 | I18: 1043.28 | J18: =E18*H18 -> 0 | K18: 0 | M18: 0 | N18: =J18*L18 -> 0 | O18: 1043.28 | P18: =+J18-N18 -> 0 | Q18: 1043.28 | R18: =+J18*E$7 -> 0
C19: Seed - Tomato | D19: 0 | F19: Bag | G19: 120 | I19: 0 | J19: 0 | K19: 0 | M19: 0 | N19: 0 | O19: 0 | P19: 0 | Q19: 0 | R19: 0
B20: Fertilizer
C21: Fertilizer (N) - Dry | D21: 150 | F21: Pound | G21: 0.4 | I21: 60 | J21: 0 | K21: 0 | M21: 0 | N21: 0 | O21: 60 | P21: 0 | Q21: 60 | R21: 0
C22: Fertilizer Application | D22: 1 | F22: Acre | G22: 5.350467785 | I22: 5.350467785 | J22: 0 | K22: 0 | M22: 0 | N22: 0 | O22: 5.350467785 | P22: 0 | Q22: 5.350467785 | R22: 0
B23: Herbicide
C24: Metolachlor | D24: 1.33 | F24: Pint | G24: 5 | I24: 6.65 | J24: 0 | K24: 0 | M24: 0 | N24: 0 | O24: 6.65 | P24: 0 | Q24: 6.65 | R24: 0
C25: Treflan | D25: 1.33 | F25: Pint | G25: 5 | I25: 6.65 | J25: 0 | K25: 0 | M25: 0 | N25: 0 | O25: 6.65 | P25: 0 | Q25: 6.65 | R25: 0
C26: Herbicide Application | D26: 2 | F26: Acre | G26: 5.350467785 | I26: 10.70093557 | J26: 0 | K26: 0 | M26: 0 | N26: 0 | O26: 10.70093557 | P26: 0 | Q26: 10.70093557 | R26: 0
B27: Insecticide
C28: Sevin Insecticide - Vegetables | D28: 0.17 | F28: Gallon | G28: 87.99 | I28: 14.9583 | J28: 0 | K28: 0 | M28: 0 | N28: 0 | O28: 14.9583 | P28: 0 | Q28: 14.9583 | R28: 0
C29: Insecticide Application | D29: 1 | F29: Acre | G29: 5.35360301 | I29: 5.35360301 | J29: 0 | K29: 0 | M29: 0 | N29: 0 | O29: 5.35360301 | P29: 0 | Q29: 5.35360301 | R29: 0
B30: Miscellaneous
C31: Toro 15mil Drip Tape - 12" drip emitter spacing | D31: 2.2 | F31: Roll | G31: 150 | I31: 330 | J31: 0 | K31: 0 | M31: 0 | N31: 0 | O31: 330 | P31: 0 | Q31: 330 | R31: 0
C32: Drip Tape Fittings | D32: 527 | F32: Unit | G32: 1.6 | I32: 843.2 | J32: 0 | K32: 0 | M32: 0 | N32: 0 | O32: 843.2 | P32: 0 | Q32: 843.2 | R32: 0
C33: Black Plastic Mulch | D33: 2.2 | F33: Roll | G33: 177 | I33: 389.4 | J33: 0 | K33: 0 | M33: 0 | N33: 0 | O33: 389.4 | P33: 0 | Q33: 389.4 | R33: 0
C34: Tomato Trellis Twine, 7000ft | D34: 2.5 | F34: Roll | G34: 7 | I34: 17.5 | J34: 0 | K34: 0 | M34: 0 | N34: 0 | O34: 17.5 | P34: 0 | Q34: 17.5 | R34: 0
C35: Unallocated Labor | D35: 9.7 | F35: Hour | G35: 13.42825235 | I35: 130.2540478 | J35: 0 | K35: 0 | M35: 0 | N35: 0 | O35: 130.2540478 | P35: 0 | Q35: 130.2540478 | R35: 0
B36: Custom
C37: Harvest, Pack & Count Vegetables | D37: 334.4 | F37: CWT | G37: 10.45013239 | I37: 3494.524272 | J37: 0 | K37: 0 | M37: 0 | N37: 0 | O37: 3494.524272 | P37: 0 | Q37: 3494.524272 | R37: 0
C38: Hand Weeding - Vegetables | D38: 90 | F38: Hour | G38: 8.5 | I38: 765 | J38: 0 | K38: 0 | M38: 0 | N38: 0 | O38: 765 | P38: 0 | Q38: 765 | R38: 0
D39: 0 | G39: 0 | I39: 0 | J39: 0 | K39: 0 | M39: 0 | N39: 0 | O39: 0 | P39: 0 | Q39: 0 | R39: 0
D40: 0 | G40: 0 | I40: 0 | J40: 0 | K40: 0 | M40: 0 | N40: 0 | O40: 0 | P40: 0 | Q40: 0 | R40: 0
D41: 0 | G41: 0 | I41: 0 | J41: =E41*H41 -> 0 | K41: 0 | M41: 0 | N41: =J41*L41 -> 0 | O41: 0 | P41: =+J41-N41 -> 0 | Q41: 0 | R41: =+J41*E$7 -> 0
B42: Irrigation
C43: Energy Cost | D43: 11 | F43: AcreInch | G43: 3.35 | I43: 36.85 | J43: =E43*H43 -> 0 | K43: 0 | M43: 0 | N43: =J43*L43 -> 0 | O43: 36.85 | P43: =+J43-N43 -> 0 | Q43: 36.85 | R43: =+J43*E$7 -> 0
C44: Irrigation Labor | D44: 0.198 | F44: Hour | G44: 13.65 | I44: 2.7027 | J44: 0 | K44: 0 | M44: 0 | N44: 0 | O44: 2.7027 | P44: 0 | Q44: 2.7027 | R44: 0
B45: Machinery Labor
C46: Tractors/Self-Propelled | D46: 0.98 | F46: Hour | G46: 13.43 | I46: 13.1614 | J46: =E46*H46 -> 0 | K46: 0 | M46: 0 | N46: =J46*L46 -> 0 | O46: 13.1614 | P46: =+J46-N46 -> 0 | Q46: 13.1614 | R46: =+J46*E$7 -> 0
C47: Other Labor | D47: 1.79 | F47: Hour | G47: 13.43 | I47: 24.0397 | J47: =E47*H47 -> 0 | K47: 0 | M47: 0 | N47: =J47*L47 -> 0 | O47: 24.0397 | P47: =+J47-N47 -> 0 | Q47: 24.0397 | R47: =+J47*E$7 -> 0
B49: Diesel Fuel
C50: Pickup/General Use Equipment | D50: 1 | F50: Acre | G50: 0 | I50: 0 | J50: =E50*H50 -> 0 | K50: 0 | M50: 0 | N50: =J50*L50 -> 0 | O50: 0 | P50: =+J50-N50 -> 0 | Q50: 0 | R50: =+J50*E$7 -> 0
C51: Tractors/Self-Propelled | D51: 2.19 | F51: Gallon | G51: 2.1902 | I51: 4.796538 | J51: =E51*H51 -> 0 | K51: 0 | M51: 0 | N51: =J51*L51 -> 0 | O51: 4.796538 | P51: =+J51-N51 -> 0 | Q51: 4.796538 | R51: =+J51*E$7 -> 0
B53: Gasoline
C54: Pickup/General Use Equipment | D54: 1 | F54: Acre | G54: 126.9 | I54: 126.9 | J54: =E54*H54 -> 0 | K54: 0 | M54: 0 | N54: =J54*L54 -> 0 | O54: 126.9 | P54: =+J54-N54 -> 0 | Q54: 126.9 | R54: =+J54*E$7 -> 0
C55: Tractors/Self-Propelled | D55: 0 | F55: Gallon | G55: 2.538 | I55: 0 | J55: =E55*H55 -> 0 | K55: 0 | M55: 0 | N55: =J55*L55 -> 0 | O55: 0 | P55: =+J55-N55 -> 0 | Q55: 0 | R55: =+J55*E$7 -> 0
B57: Repairs & Maintenance
C58: Pickup/General Use Equipment | D58: 1 | F58: Acre | G58: 68.228 | I58: 68.228 | J58: =E58*H58 -> 0 | K58: 0 | M58: 0 | N58: =J58*L58 -> 0 | O58: 68.228 | P58: =+J58-N58 -> 0 | Q58: 68.228 | R58: =+J58*E$7 -> 0
C59: Irrigation Equipment | D59: 1 | F59: Acre | G59: 33 | I59: 33 | J59: 0 | K59: 0 | M59: 0 | N59: 0 | O59: 33 | P59: 0 | Q59: 33 | R59: 0
C60: Tractors/Self-Propelled | D60: 1 | F60: Acre | G60: 3.965357087 | I60: 3.965357087 | J60: 0 | K60: 0 | M60: 0 | N60: 0 | O60: 3.965357087 | P60: 0 | Q60: 3.965357087 | R60: 0
C61: Implements | D61: 1 | F61: Acre | G61: 1.333261002 | I61: 1.333261002 | J61: 0 | K61: 0 | M61: 0 | N61: 0 | O61: 1.333261002 | P61: 0 | Q61: 1.333261002 | R61: 0
I62: 0 | J62: 0 | K62: 0 | M62: 0 | N62: 0 | O62: 0 | P62: 0 | Q62: 0 | R62: 0
I63: 0 | J63: 0 | K63: 0 | M63: 0 | N63: 0 | O63: 0 | P63: 0 | Q63: 0 | R63: 0
B64: Interest on Credit Line | G64: 0.0625 | I64: 91.27384011 | J64: =+SUM(J17:J63)/2*H64 -> 0 | M64: 0 | N64: =+SUM(N17:N63)/2*L64 -> 0 | O64: 91.27384011 | P64: =+SUM(P17:P63)/2*L64 -> 0 | Q64: 91.27384011 | R64: =+J64*E$7 -> 0
A65: Total Variable Costs | I65: 7529.072422 | J65: =SUM(J18:J64) -> 0 | M65: 0 | N65: =SUM(N18:N64) -> 0 | O65: 7529.072422 | P65: =SUM(P18:P64) -> 0 | Q65: 7529.072422 | R65: =SUM(R18:R64) -> 0
A66: Planned Returns Above Variable Costs: | I66: 998.1275778 | J66: =+J13-J65 -> 0 | M66: 0 | N66: =+N13-N65 -> 0 | O66: 998.1275778 | P66: =+P13-P65 -> 0 | Q66: 998.1275778 | R66: =+R13-R65 -> 0
B67: Breakeven Price to Cover Variable Costs | G67: 22.51516873 | H67: =IF(E10=0,"n/a",(YVarExp-(YTotExp+YTotRet-J10))/E10) -> n/a | I67: CWT
Q68: Enterprise | R68: Enterprise
A69: FIXED COSTS | D69: Quantity | E69: Quantity | F69: Units | G69: $/Unit | H69: $/Unit | I69: Total | J69: Total | K69: Share | L69: Share | M69: Landlord | N69: Landlord | O69: Tenant | P69: Tenant | Q69: Total | R69: Total
B70: Machinery Depreciation
C71: Pickup/General Use Equipment | D71: 1 | F71: Acre | G71: 503.56 | I71: 503.56 | J71: =E71*H71 -> 0 | K71: 0 | M71: 0 | N71: =J71*L71 -> 0 | O71: 503.56 | P71: =+J71-N71 -> 0 | Q71: 503.56 | R71: =+J71*E$7 -> 0
C72: Tractors/Self-Propelled | D72: 1 | F72: Acre | G72: 3.278028525 | I72: 3.278028525 | J72: 0 | K72: 0 | M72: 0 | N72: =J72*L72 -> 0 | O72: 3.278028525 | P72: 0 | Q72: 3.278028525 | R72: 0
C73: Implements | D73: 1 | F73: Acre | G73: 1.536591521 | I73: 1.536591521 | J73: 0 | K73: 0 | M73: 0 | N73: =J73*L73 -> 0 | O73: 1.536591521 | P73: 0 | Q73: 1.536591521 | R73: 0
B74: Equipment Investment
C75: Pickup/General Use Equipment | D75: 3519.7 | F75: Dollars | G75: 0.0625 | I75: 219.98125 | J75: =E75*H75 -> 0 | K75: 0 | M75: 0 | N75: =J75*L75 -> 0 | O75: 219.98125 | P75: =+J75-N75 -> 0 | Q75: 219.98125 | R75: =+J75*E$7 -> 0
C76: Tractors/Self-Propelled | D76: 25.53689964 | F76: Dollars | G76: 0.0625 | I76: 1.596056227 | J76: 0 | K76: 0 | M76: 0 | N76: =J76*L76 -> 0 | O76: 1.596056227 | P76: 0 | Q76: 1.596056227 | R76: 0
C77: Implements | D77: 8.007514696 | F77: Dollars | G77: 0.0625 | I77: 0.5004696685 | J77: 0 | K77: 0 | M77: 0 | N77: =J77*L77 -> 0 | O77: 0.5004696685 | P77: 0 | Q77: 0.5004696685 | R77: 0
B78: Salaried Labor | D78: 1 | F78: Acre | G78: 0 | I78: 0 | J78: 0 | K78: 0 | M78: 0 | N78: =J78*L78 -> 0 | O78: 0 | P78: =+J78-N78 -> 0 | Q78: 0 | R78: =+J78*E$7 -> 0
B79: Management Fee, Owner/Operator Labor | D79: 1 | F79: Acre | G79: 0 | I79: 0 | J79: 0 | K79: 0 | M79: 0 | N79: 0 | O79: 0 | P79: 0 | Q79: 0 | R79: 0
B80: Allocated Establishment Cost | D80: 1 | F80: Acre | G80: 0 | I80: 0 | J80: 0 | K80: 0 | M80: 0 | N80: 0 | O80: 0 | P80: 0 | Q80: 0 | R80: 0
B81: Cash Rent - Irrigated | D81: 1 | F81: Acre | G81: 100 | I81: 100 | J81: 0 | K81: 0 | M81: 0 | N81: 0 | O81: 100 | P81: 0 | Q81: 100 | R81: 0
B82: Property Taxes | D82: 1 | F82: Acre | G82: 0 | I82: 0 | J82: 0 | K82: 0 | M82: 0 | N82: 0 | O82: 0 | P82: 0 | Q82: 0 | R82: 0
B83: Whole Farm Insurance | D83: 1 | F83: Acre | G83: 0 | I83: 0 | J83: 0 | K83: 0 | M83: 0 | N83: 0 | O83: 0 | P83: 0 | Q83: 0 | R83: 0
D84: 1 | G84: 0 | I84: 0 | J84: 0 | K84: 0 | M84: 0 | N84: 0 | O84: 0 | P84: 0 | Q84: 0 | R84: 0
D85: 1 | G85: 0 | I85: 0 | J85: =E85*H85 -> 0 | K85: 0 | M85: 0 | N85: 0 | O85: 0 | P85: 0 | Q85: 0 | R85: 0
A86: Total Fixed Costs | I86: 830.4523959 | J86: =+SUM(J71:J85) -> 0 | M86: 0 | N86: =+SUM(N71:N85) -> 0 | O86: 830.4523959 | P86: =+SUM(P71:P85) -> 0 | Q86: 830.4523959 | R86: =+SUM(R71:R85) -> 0
A87: Total Specified Costs | I87: 8359.524818 | J87: =+J65+J86 -> 0 | M87: 0 | N87: =+N65+N86 -> 0 | O87: 8359.524818 | P87: =+P65+P86 -> 0 | Q87: 8359.524818 | R87: =+R65+R86 -> 0
A89: Returns Above Specified Costs | I89: 167.6751818 | J89: =+J13-J87 -> 0 | M89: 0 | N89: =+N13-N87 -> 0 | O89: 167.6751818 | P89: =+P13-P87 -> 0 | Q89: 167.6751818 | R89: =+R13-R87 -> 0
A91: Breakeven Price to Cover Total Costs | G91: 24.998579 | H91: =IF(E10=0,"n/a",(YTotExp-(YTotExp+YTotRet-J10))/E10) -> n/a | I91: CWT
D93: Example Breakeven Prices
B94: Example | C94: Example | D94: To Cover | G94: To Cover
B95: Yield | C95: Yield | D95: Variable | G95: Total
B96: Percent | C96: CWT | D96: Costs | G96: Costs
B97: 0.75 | C97: 250.8 | D97: 30.02022497 | G97: 33.33143867
B98: 0.9 | C98: 300.96 | D98: 25.01685414 | G98: 27.77619889
B99: 1 | C99: 334.4 | D99: 22.51516873 | G99: 24.998579
B100: 1.1 | C100: 367.84 | D100: 20.46833521 | G100: 22.72598091
B101: 1.25 | C101: 418 | D101: 18.01213498 | G101: 19.9988632
A103: Developed by Justin Benavidez, Assistant Professor, Texas A&M AgriLife Extension, 806-677-5600.
A104: DeDe Jones, Extension Risk Management Specialist IV, Texas A&M AgriLife Extension
A105: Information presented is prepared solely as a general guide and not intended to recognize or predict the costs and returns from any one operation. Brand names are mentioned only as examples and imply no endorsement.

Sheet PepperMulch
A1: Projections for Planning Purposes Only -- Not to be Used without Updating
A2: 2021 Estimated Costs and Returns per Acre
A3: Jalapeño Pepper, Plastic Mulch, Drip Irrigated
A4: Enter your name for this budget in the cell above.
A5: Enter Your Values in the cells highlighed in MAROON.
E6: Your Acres | R6: Your
C7: Crop Acres | D7: 1 | L7: Your | Q7: Enterprise | R7: Enterprise
E8: Your | H8: Your | I8: Cash | J8: Your | K8: Landlord | L8: Landlord | N8: Your | P8: Your | Q8: Total | R8: Total
A9: REVENUE | D9: Quantity | E9: Quantity | F9: Units | G9: $/Unit | H9: $/Unit | I9: Total | J9: Total | K9: Share | L9: Share | M9: Landlord | N9: Landlord | O9: Tenant | P9: Tenant | Q9: (1 acres) | R9: ="(" & E7 & " acres)" -> ( acres)
B10: Jalapeño Pepper | D10: 325.1 | F10: CWT | G10: 20.54 | I10: 6677.554 | J10: =E10*H10 -> 0 | K10: 0 | M10: 0 | N10: =J10*L10 -> 0 | O10: 6677.554 | P10: =+J10-N10 -> 0 | Q10: 6677.554 | R10: =+J10*E$7 -> 0
D11: 0 | G11: 0 | I11: 0 | J11: 0 | K11: 0 | M11: 0 | N11: 0 | O11: 0 | P11: =+J11-N11 -> 0 | Q11: 0 | R11: 0
D12: 0 | G12: 0 | I12: 0 | J12: 0 | K12: 0 | M12: 0 | N12: 0 | O12: 0 | P12: 0 | Q12: 0 | R12: 0
A13: Total Revenue | I13: 6677.554 | J13: =SUM(J10:J12) -> 0 | M13: 0 | N13: =SUM(N10:N12) -> 0 | O13: 6677.554 | P13: =SUM(P10:P12) -> 0 | Q13: 6677.554 | R13: =SUM(R10:R12) -> 0
Q14: Enterprise | R14: Enterprise
A15: VARIABLE COSTS | D15: Quantity | E15: Quantity | F15: Units | G15: $/Unit | H15: $/Unit | I15: Total | J15: Total | K15: Share | L15: Share | M15: Landlord | N15: Landlord | O15: Tenant | P15: Tenant | Q15: Total | R15: Total
A16: Production Costs
B17: Seed
C18: Transplants - Pepper | D18: 11591 | F18: Plants | G18: 0.18 | I18: 2086.38 | J18: =E18*H18 -> 0 | K18: 0 | M18: 0 | N18: =J18*L18 -> 0 | O18: 2086.38 | P18: =+J18-N18 -> 0 | Q18: 2086.38 | R18: =+J18*E$7 -> 0
C19: Seed - Pepper | D19: 0 | F19: Bag | G19: 186 | I19: 0 | J19: 0 | K19: 0 | M19: 0 | N19: 0 | O19: 0 | P19: 0 | Q19: 0 | R19: 0
B20: Fertilizer
C21: Fertilizer (N) - Dry | D21: 150 | F21: Pound | G21: 0.4 | I21: 60 | J21: 0 | K21: 0 | M21: 0 | N21: 0 | O21: 60 | P21: 0 | Q21: 60 | R21: 0
C22: Fertilizer Application | D22: 1 | F22: Acre | G22: 5.350467785 | I22: 5.350467785 | J22: 0 | K22: 0 | M22: 0 | N22: 0 | O22: 5.350467785 | P22: 0 | Q22: 5.350467785 | R22: 0
B23: Herbicide
C24: Metolachlor | D24: 1.33 | F24: Pint | G24: 5 | I24: 6.65 | J24: 0 | K24: 0 | M24: 0 | N24: 0 | O24: 6.65 | P24: 0 | Q24: 6.65 | R24: 0
C25: Treflan | D25: 1.33 | F25: Pint | G25: 5 | I25: 6.65 | J25: 0 | K25: 0 | M25: 0 | N25: 0 | O25: 6.65 | P25: 0 | Q25: 6.65 | R25: 0
C26: Herbicide Application | D26: 2 | F26: Acre | G26: 5.350467785 | I26: 10.70093557 | J26: 0 | K26: 0 | M26: 0 | N26: 0 | O26: 10.70093557 | P26: 0 | Q26: 10.70093557 | R26: 0
B27: Insecticide
C28: Sevin Insecticide - Vegetables | D28: 0.17 | F28: Gallon | G28: 87.99 | I28: 14.9583 | J28: 0 | K28: 0 | M28: 0 | N28: 0 | O28: 14.9583 | P28: 0 | Q28: 14.9583 | R28: 0
C29: Insecticide Application | D29: 1 | F29: Acre | G29: 5.35360301 | I29: 5.35360301 | J29: 0 | K29: 0 | M29: 0 | N29: 0 | O29: 5.35360301 | P29: 0 | Q29: 5.35360301 | R29: 0
B30: Miscellaneous
C31: Toro 15mil Drip Tape - 12" drip emitter spacing | D31: 2.2 | F31: Roll | G31: 150 | I31: 330 | J31: 0 | K31: 0 | M31: 0 | N31: 0 | O31: 330 | P31: 0 | Q31: 330 | R31: 0
C32: Drip Tape Fittings | D32: 527 | F32: Unit | G32: 1.6 | I32: 843.2 | J32: 0 | K32: 0 | M32: 0 | N32: 0 | O32: 843.2 | P32: 0 | Q32: 843.2 | R32: 0
C33: Black Plastic Mulch | D33: 2.2 | F33: Roll | G33: 177 | I33: 389.4 | J33: 0 | K33: 0 | M33: 0 | N33: 0 | O33: 389.4 | P33: 0 | Q33: 389.4 | R33: 0
B34: Custom
C35: Harvest, Pack & Count Vegetables | D35: 325.1 | F35: CWT | G35: 10.45013239 | I35: 3397.338041 | J35: 0 | K35: 0 | M35: 0 | N35: 0 | O35: 3397.338041 | P35: 0 | Q35: 3397.338041 | R35: 0
C36: Hand Weeding - Vegetables | D36: 90 | F36: Hour | G36: 8.5 | I36: 765 | J36: 0 | K36: 0 | M36: 0 | N36: 0 | O36: 765 | P36: 0 | Q36: 765 | R36: 0
D37: 0 | G37: 0 | I37: 0 | J37: 0 | K37: 0 | M37: 0 | N37: 0 | O37: 0 | P37: 0 | Q37: 0 | R37: 0
D38: 0 | G38: 0 | I38: 0 | J38: 0 | K38: 0 | M38: 0 | N38: 0 | O38: 0 | P38: 0 | Q38: 0 | R38: 0
D39: 0 | G39: 0 | I39: 0 | J39: =E39*H39 -> 0 | K39: 0 | M39: 0 | N39: =J39*L39 -> 0 | O39: 0 | P39: =+J39-N39 -> 0 | Q39: 0 | R39: =+J39*E$7 -> 0
B40: Irrigation
C41: Energy Cost | D41: 11 | F41: AcreInch | G41: 3.35 | I41: 36.85 | J41: =E41*H41 -> 0 | K41: 0 | M41: 0 | N41: =J41*L41 -> 0 | O41: 36.85 | P41: =+J41-N41 -> 0 | Q41: 36.85 | R41: =+J41*E$7 -> 0
C42: Irrigation Labor | D42: 0.198 | F42: Hour | G42: 13.65 | I42: 2.7027 | J42: 0 | K42: 0 | M42: 0 | N42: 0 | O42: 2.7027 | P42: 0 | Q42: 2.7027 | R42: 0
B43: Machinery Labor
C44: Tractors/Self-Propelled | D44: 0.98 | F44: Hour | G44: 13.43 | I44: 13.1614 | J44: =E44*H44 -> 0 | K44: 0 | M44: 0 | N44: =J44*L44 -> 0 | O44: 13.1614 | P44: =+J44-N44 -> 0 | Q44: 13.1614 | R44: =+J44*E$7 -> 0
C45: Other Labor | D45: 1.79 | F45: Hour | G45: 13.43 | I45: 24.0397 | J45: =E45*H45 -> 0 | K45: 0 | M45: 0 | N45: =J45*L45 -> 0 | O45: 24.0397 | P45: =+J45-N45 -> 0 | Q45: 24.0397 | R45: =+J45*E$7 -> 0
B47: Diesel Fuel
C48: Pickup/General Use Equipment | D48: 1 | F48: Acre | G48: 0 | I48: 0 | J48: =E48*H48 -> 0 | K48: 0 | M48: 0 | N48: =J48*L48 -> 0 | O48: 0 | P48: =+J48-N48 -> 0 | Q48: 0 | R48: =+J48*E$7 -> 0
C49: Tractors/Self-Propelled | D49: 2.19 | F49: Gallon | G49: 2.1902 | I49: 4.796538 | J49: =E49*H49 -> 0 | K49: 0 | M49: 0 | N49: =J49*L49 -> 0 | O49: 4.796538 | P49: =+J49-N49 -> 0 | Q49: 4.796538 | R49: =+J49*E$7 -> 0
B51: Gasoline
C52: Pickup/General Use Equipment | D52: 1 | F52: Acre | G52: 126.9 | I52: 126.9 | J52: =E52*H52 -> 0 | K52: 0 | M52: 0 | N52: =J52*L52 -> 0 | O52: 126.9 | P52: =+J52-N52 -> 0 | Q52: 126.9 | R52: =+J52*E$7 -> 0
C53: Tractors/Self-Propelled | D53: 0 | F53: Gallon | G53: 2.538 | I53: 0 | J53: =E53*H53 -> 0 | K53: 0 | M53: 0 | N53: =J53*L53 -> 0 | O53: 0 | P53: =+J53-N53 -> 0 | Q53: 0 | R53: =+J53*E$7 -> 0
B55: Repairs & Maintenance
C56: Pickup/General Use Equipment | D56: 1 | F56: Acre | G56: 61.2 | I56: 61.2 | J56: =E56*H56 -> 0 | K56: 0 | M56: 0 | N56: =J56*L56 -> 0 | O56: 61.2 | P56: =+J56-N56 -> 0 | Q56: 61.2 | R56: =+J56*E$7 -> 0
C57: Irrigation Equipment | D57: 1 | F57: Acre | G57: 33 | I57: 33 | J57: 0 | K57: 0 | M57: 0 | N57: 0 | O57: 33 | P57: 0 | Q57: 33 | R57: 0
C58: Tractors/Self-Propelled | D58: 1 | F58: Acre | G58: 3.965357087 | I58: 3.965357087 | J58: 0 | K58: 0 | M58: 0 | N58: 0 | O58: 3.965357087 | P58: 0 | Q58: 3.965357087 | R58: 0
C59: Implements | D59: 1 | F59: Acre | G59: 1.333261002 | I59: 1.333261002 | J59: 0 | K59: 0 | M59: 0 | N59: 0 | O59: 1.333261002 | P59: 0 | Q59: 1.333261002 | R59: 0
I60: 0 | J60: 0 | K60: 0 | M60: 0 | N60: 0 | O60: 0 | P60: 0 | Q60: 0 | R60: 0
I61: 0 | J61: 0 | K61: 0 | M61: 0 | N61: 0 | O61: 0 | P61: 0 | Q61: 0 | R61: 0
B62: Interest on Credit Line | G62: 0.0625 | I62: 108.0879433 | J62: =+SUM(J17:J61)/2*H62 -> 0 | M62: 0 | N62: =+SUM(N17:N61)/2*L62 -> 0 | O62: 108.0879433 | P62: =+SUM(P17:P61)/2*L62 -> 0 | Q62: 108.0879433 | R62: =+J62*E$7 -> 0
A63: Total Variable Costs | I63: 8337.018246 | J63: =SUM(J18:J62) -> 0 | M63: 0 | N63: =SUM(N18:N62) -> 0 | O63: 8337.018246 | P63: =SUM(P18:P62) -> 0 | Q63: 8337.018246 | R63: =SUM(R18:R62) -> 0
A64: Planned Returns Above Variable Costs: | I64: -1659.464246 | J64: =+J13-J63 -> 0 | M64: 0 | N64: =+N13-N63 -> 0 | O64: -1659.464246 | P64: =+P13-P63 -> 0 | Q64: -1659.464246 | R64: =+R13-R63 -> 0
B65: Breakeven Price to Cover Variable Costs | G65: 25.64447323 | H65: =IF(E10=0,"n/a",(YVarExp-(YTotExp+YTotRet-J10))/E10) -> n/a | I65: CWT
Q66: Enterprise | R66: Enterprise
A67: FIXED COSTS | D67: Quantity | E67: Quantity | F67: Units | G67: $/Unit | H67: $/Unit | I67: Total | J67: Total | K67: Share | L67: Share | M67: Landlord | N67: Landlord | O67: Tenant | P67: Tenant | Q67: Total | R67: Total
B68: Machinery Depreciation
C69: Pickup/General Use Equipment | D69: 1 | F69: Acre | G69: 64.26 | I69: 64.26 | J69: =E69*H69 -> 0 | K69: 0 | M69: 0 | N69: =J69*L69 -> 0 | O69: 64.26 | P69: =+J69-N69 -> 0 | Q69: 64.26 | R69: =+J69*E$7 -> 0
C70: Tractors/Self-Propelled | D70: 1 | F70: Acre | G70: 3.278028525 | I70: 3.278028525 | J70: 0 | K70: 0 | M70: 0 | N70: =J70*L70 -> 0 | O70: 3.278028525 | P70: 0 | Q70: 3.278028525 | R70: 0
C71: Implements | D71: 1 | F71: Acre | G71: 1.536591521 | I71: 1.536591521 | J71: 0 | K71: 0 | M71: 0 | N71: =J71*L71 -> 0 | O71: 1.536591521 | P71: 0 | Q71: 1.536591521 | R71: 0
B72: Equipment Investment
C73: Pickup/General Use Equipment | D73: 443.7 | F73: Dollars | G73: 0.0625 | I73: 27.73125 | J73: =E73*H73 -> 0 | K73: 0 | M73: 0 | N73: =J73*L73 -> 0 | O73: 27.73125 | P73: =+J73-N73 -> 0 | Q73: 27.73125 | R73: =+J73*E$7 -> 0
C74: Tractors/Self-Propelled | D74: 25.53689964 | F74: Dollars | G74: 0.0625 | I74: 1.596056227 | J74: 0 | K74: 0 | M74: 0 | N74: =J74*L74 -> 0 | O74: 1.596056227 | P74: 0 | Q74: 1.596056227 | R74: 0
C75: Implements | D75: 8.007514696 | F75: Dollars | G75: 0.0625 | I75: 0.5004696685 | J75: 0 | K75: 0 | M75: 0 | N75: =J75*L75 -> 0 | O75: 0.5004696685 | P75: 0 | Q75: 0.5004696685 | R75: 0
B76: Salaried Labor | D76: 1 | F76: Acre | G76: 0 | I76: 0 | J76: 0 | K76: 0 | M76: 0 | N76: =J76*L76 -> 0 | O76: 0 | P76: =+J76-N76 -> 0 | Q76: 0 | R76: =+J76*E$7 -> 0
B77: Management Fee, Owner/Operator Labor | D77: 1 | F77: Acre | G77: 0 | I77: 0 | J77: 0 | K77: 0 | M77: 0 | N77: 0 | O77: 0 | P77: 0 | Q77: 0 | R77: 0
B78: Allocated Establishment Cost | D78: 1 | F78: Acre | G78: 0 | I78: 0 | J78: 0 | K78: 0 | M78: 0 | N78: 0 | O78: 0 | P78: 0 | Q78: 0 | R78: 0
B79: Cash Rent - Irrigated | D79: 1 | F79: Acre | G79: 100 | I79: 100 | J79: 0 | K79: 0 | M79: 0 | N79: 0 | O79: 100 | P79: 0 | Q79: 100 | R79: 0
B80: Property Taxes | D80: 1 | F80: Acre | G80: 0 | I80: 0 | J80: 0 | K80: 0 | M80: 0 | N80: 0 | O80: 0 | P80: 0 | Q80: 0 | R80: 0
B81: Whole Farm Insurance | D81: 1 | F81: Acre | G81: 0 | I81: 0 | J81: 0 | K81: 0 | M81: 0 | N81: 0 | O81: 0 | P81: 0 | Q81: 0 | R81: 0
D82: 1 | G82: 0 | I82: 0 | J82: 0 | K82: 0 | M82: 0 | N82: 0 | O82: 0 | P82: 0 | Q82: 0 | R82: 0
D83: 1 | G83: 0 | I83: 0 | J83: =E83*H83 -> 0 | K83: 0 | M83: 0 | N83: 0 | O83: 0 | P83: 0 | Q83: 0 | R83: 0
A84: Total Fixed Costs | I84: 198.9023959 | J84: =+SUM(J69:J83) -> 0 | M84: 0 | N84: =+SUM(N69:N83) -> 0 | O84: 198.9023959 | P84: =+SUM(P69:P83) -> 0 | Q84: 198.9023959 | R84: =+SUM(R69:R83) -> 0
A85: Total Specified Costs | I85: 8535.920642 | J85: =+J63+J84 -> 0 | M85: 0 | N85: =+N63+N84 -> 0 | O85: 8535.920642 | P85: =+P63+P84 -> 0 | Q85: 8535.920642 | R85: =+R63+R84 -> 0
A87: Returns Above Specified Costs | I87: -1858.366642 | J87: =+J13-J85 -> 0 | M87: 0 | N87: =+N13-N85 -> 0 | O87: -1858.366642 | P87: =+P13-P85 -> 0 | Q87: -1858.366642 | R87: =+R13-R85 -> 0
A89: Breakeven Price to Cover Total Costs | G89: 26.25629235 | H89: =IF(E10=0,"n/a",(YTotExp-(YTotExp+YTotRet-J10))/E10) -> n/a | I89: CWT
D91: Example Breakeven Prices
B92: Example | C92: Example | D92: To Cover | G92: To Cover
B93: Yield | C93: Yield | D93: Variable | G93: Total
B94: Percent | C94: CWT | D94: Costs | G94: Costs
B95: 0.75 | C95: 243.825 | D95: 34.19263097 | G95: 35.0083898
B96: 0.9 | C96: 292.59 | D96: 28.49385914 | G96: 29.17365816
B97: 1 | C97: 325.1 | D97: 25.64447323 | G97: 26.25629235
B98: 1.1 | C98: 357.61 | D98: 23.31315748 | G98: 23.86935668
B99: 1.25 | C99: 406.375 | D99: 20.51557858 | G99: 21.00503388
A101: Developed by Justin Benavidez, Assistant Professor, Texas A&M AgriLife Extension, 806-677-5600.
A102: DeDe Jones, Extension Risk Management Specialist IV, Texas A&M AgriLife Extension
A103: Information presented is prepared solely as a general guide and not intended to recognize or predict the costs and returns from any one operation. Brand names are mentioned only as examples and imply no endorsement.

Sheet SweetCornMulch
A1: Projections for Planning Purposes Only -- Not to be Used without Updating
A2: 2021 Estimated Costs and Returns per Acre
A3: Sweet Corn, Plastic Mulch, Drip Irrigated
A4: Enter your name for this budget in the cell above.
A5: Enter Your Values in the cells highlighed in MAROON.
E6: Your Acres | R6: Your
C7: Crop Acres | D7: 1 | L7: Your | Q7: Enterprise | R7: Enterprise
E8: Your | H8: Your | I8: Cash | J8: Your | K8: Landlord | L8: Landlord | N8: Your | P8: Your | Q8: Total | R8: Total
A9: REVENUE | D9: Quantity | E9: Quantity | F9: Units | G9: $/Unit | H9: $/Unit | I9: Total | J9: Total | K9: Share | L9: Share | M9: Landlord | N9: Landlord | O9: Tenant | P9: Tenant | Q9: (1 acres) | R9: ="(" & E7 & " acres)" -> ( acres)
B10: Sweet Corn | D10: 87.6 | F10: CWT | G10: 12.025 | I10: 1053.39 | J10: =E10*H10 -> 0 | K10: 0 | M10: 0 | N10: =J10*L10 -> 0 | O10: 1053.39 | P10: =+J10-N10 -> 0 | Q10: 1053.39 | R10: =+J10*E$7 -> 0
D11: 0 | G11: 0 | I11: 0 | J11: 0 | K11: 0 | M11: 0 | N11: 0 | O11: 0 | P11: =+J11-N11 -> 0 | Q11: 0 | R11: 0
D12: 0 | G12: 0 | I12: 0 | J12: 0 | K12: 0 | M12: 0 | N12: 0 | O12: 0 | P12: 0 | Q12: 0 | R12: 0
A13: Total Revenue | I13: 1053.39 | J13: =SUM(J10:J12) -> 0 | M13: 0 | N13: =SUM(N10:N12) -> 0 | O13: 1053.39 | P13: =SUM(P10:P12) -> 0 | Q13: 1053.39 | R13: =SUM(R10:R12) -> 0
Q14: Enterprise | R14: Enterprise
A15: VARIABLE COSTS | D15: Quantity | E15: Quantity | F15: Units | G15: $/Unit | H15: $/Unit | I15: Total | J15: Total | K15: Share | L15: Share | M15: Landlord | N15: Landlord | O15: Tenant | P15: Tenant | Q15: Total | R15: Total
A16: Production Costs
B17: Seed
C18: Seed - Corn, Sweet | D18: 7.47 | F18: Bag | G18: 275 | I18: 2054.25 | J18: =E18*H18 -> 0 | K18: 0 | M18: 0 | N18: =J18*L18 -> 0 | O18: 2054.25 | P18: =+J18-N18 -> 0 | Q18: 2054.25 | R18: =+J18*E$7 -> 0
B19: Fertilizer
C20: Fertilizer (N) - Dry | D20: 150 | F20: Pound | G20: 0.4 | I20: 60 | J20: 0 | K20: 0 | M20: 0 | N20: 0 | O20: 60 | P20: 0 | Q20: 60 | R20: 0
C21: Fertilizer Application | D21: 1 | F21: Acre | G21: 5.350467785 | I21: 5.350467785 | J21: 0 | K21: 0 | M21: 0 | N21: 0 | O21: 5.350467785 | P21: 0 | Q21: 5.350467785 | R21: 0
B22: Herbicide
C23: Metolachlor | D23: 1.33 | F23: Pint | G23: 5 | I23: 6.65 | J23: 0 | K23: 0 | M23: 0 | N23: 0 | O23: 6.65 | P23: 0 | Q23: 6.65 | R23: 0
C24: Treflan | D24: 1.33 | F24: Pint | G24: 5 | I24: 6.65 | J24: 0 | K24: 0 | M24: 0 | N24: 0 | O24: 6.65 | P24: 0 | Q24: 6.65 | R24: 0
C25: Herbicide Application | D25: 2 | F25: Acre | G25: 5.350467785 | I25: 10.70093557 | J25: 0 | K25: 0 | M25: 0 | N25: 0 | O25: 10.70093557 | P25: 0 | Q25: 10.70093557 | R25: 0
B26: Insecticide
C27: Sevin Insecticide - Vegetables | D27: 0.17 | F27: Gallon | G27: 87.99 | I27: 14.9583 | J27: 0 | K27: 0 | M27: 0 | N27: 0 | O27: 14.9583 | P27: 0 | Q27: 14.9583 | R27: 0
C28: Insecticide Application | D28: 1 | F28: Acre | G28: 5.35360301 | I28: 5.35360301 | J28: 0 | K28: 0 | M28: 0 | N28: 0 | O28: 5.35360301 | P28: 0 | Q28: 5.35360301 | R28: 0
B29: Miscellaneous
C30: Toro 15mil Drip Tape - 12" drip emitter spacing | D30: 2.2 | F30: Roll | G30: 150 | I30: 330 | J30: 0 | K30: 0 | M30: 0 | N30: 0 | O30: 330 | P30: 0 | Q30: 330 | R30: 0
C31: Drip Tape Fittings | D31: 527 | F31: Unit | G31: 1.6 | I31: 843.2 | J31: 0 | K31: 0 | M31: 0 | N31: 0 | O31: 843.2 | P31: 0 | Q31: 843.2 | R31: 0
C32: Black Plastic Mulch | D32: 2.2 | F32: Roll | G32: 177 | I32: 389.4 | J32: 0 | K32: 0 | M32: 0 | N32: 0 | O32: 389.4 | P32: 0 | Q32: 389.4 | R32: 0
B33: Custom
C34: Harvest, Pack & Count Vegetables | D34: 87.6 | F34: CWT | G34: 10.45013239 | I34: 915.4315975 | J34: 0 | K34: 0 | M34: 0 | N34: 0 | O34: 915.4315975 | P34: 0 | Q34: 915.4315975 | R34: 0
D35: 0 | G35: 0 | I35: 0 | J35: 0 | K35: 0 | M35: 0 | N35: 0 | O35: 0 | P35: 0 | Q35: 0 | R35: 0
D36: 0 | G36: 0 | I36: 0 | J36: 0 | K36: 0 | M36: 0 | N36: 0 | O36: 0 | P36: 0 | Q36: 0 | R36: 0
D37: 0 | G37: 0 | I37: 0 | J37: =E37*H37 -> 0 | K37: 0 | M37: 0 | N37: =J37*L37 -> 0 | O37: 0 | P37: =+J37-N37 -> 0 | Q37: 0 | R37: =+J37*E$7 -> 0
B38: Irrigation
C39: Energy Cost | D39: 10.2186 | F39: AcreInch | G39: 3.35 | I39: 34.23231 | J39: =E39*H39 -> 0 | K39: 0 | M39: 0 | N39: =J39*L39 -> 0 | O39: 34.23231 | P39: =+J39-N39 -> 0 | Q39: 34.23231 | R39: =+J39*E$7 -> 0
C40: Irrigation Labor | D40: 0.189 | F40: Hour | G40: 13.65 | I40: 2.57985 | J40: 0 | K40: 0 | M40: 0 | N40: 0 | O40: 2.57985 | P40: 0 | Q40: 2.57985 | R40: 0
B41: Machinery Labor
C42: Tractors/Self-Propelled | D42: 0.88 | F42: Hour | G42: 13.43 | I42: 11.8184 | J42: =E42*H42 -> 0 | K42: 0 | M42: 0 | N42: =J42*L42 -> 0 | O42: 11.8184 | P42: =+J42-N42 -> 0 | Q42: 11.8184 | R42: =+J42*E$7 -> 0
C43: Other Labor | D43: 1.47 | F43: Hour | G43: 13.43 | I43: 19.7421 | J43: =E43*H43 -> 0 | K43: 0 | M43: 0 | N43: =J43*L43 -> 0 | O43: 19.7421 | P43: =+J43-N43 -> 0 | Q43: 19.7421 | R43: =+J43*E$7 -> 0
B45: Diesel Fuel
C46: Pickup/General Use Equipment | D46: 1 | F46: Acre | G46: 0 | I46: 0 | J46: =E46*H46 -> 0 | K46: 0 | M46: 0 | N46: =J46*L46 -> 0 | O46: 0 | P46: =+J46-N46 -> 0 | Q46: 0 | R46: =+J46*E$7 -> 0
C47: Tractors/Self-Propelled | D47: 2.07 | F47: Gallon | G47: 2.1902 | I47: 4.533714 | J47: =E47*H47 -> 0 | K47: 0 | M47: 0 | N47: =J47*L47 -> 0 | O47: 4.533714 | P47: =+J47-N47 -> 0 | Q47: 4.533714 | R47: =+J47*E$7 -> 0
B49: Gasoline
C50: Pickup/General Use Equipment | D50: 1 | F50: Acre | G50: 126.9 | I50: 126.9 | J50: =E50*H50 -> 0 | K50: 0 | M50: 0 | N50: =J50*L50 -> 0 | O50: 126.9 | P50: =+J50-N50 -> 0 | Q50: 126.9 | R50: =+J50*E$7 -> 0
C51: Tractors/Self-Propelled | D51: 0 | F51: Gallon | G51: 2.538 | I51: 0 | J51: =E51*H51 -> 0 | K51: 0 | M51: 0 | N51: =J51*L51 -> 0 | O51: 0 | P51: =+J51-N51 -> 0 | Q51: 0 | R51: =+J51*E$7 -> 0
B53: Repairs & Maintenance
C54: Pickup/General Use Equipment | D54: 1 | F54: Acre | G54: 61.2 | I54: 61.2 | J54: =E54*H54 -> 0 | K54: 0 | M54: 0 | N54: =J54*L54 -> 0 | O54: 61.2 | P54: =+J54-N54 -> 0 | Q54: 61.2 | R54: =+J54*E$7 -> 0
C55: Irrigation Equipment | D55: 1 | F55: Acre | G55: 30.6558 | I55: 30.6558 | J55: 0 | K55: 0 | M55: 0 | N55: 0 | O55: 30.6558 | P55: 0 | Q55: 30.6558 | R55: 0
C56: Tractors/Self-Propelled | D56: 1 | F56: Acre | G56: 3.756423548 | I56: 3.756423548 | J56: 0 | K56: 0 | M56: 0 | N56: 0 | O56: 3.756423548 | P56: 0 | Q56: 3.756423548 | R56: 0
C57: Implements | D57: 1 | F57: Acre | G57: 2.142677171 | I57: 2.142677171 | J57: 0 | K57: 0 | M57: 0 | N57: 0 | O57: 2.142677171 | P57: 0 | Q57: 2.142677171 | R57: 0
I58: 0 | J58: 0 | K58: 0 | M58: 0 | N58: 0 | O58: 0 | P58: 0 | Q58: 0 | R58: 0
I59: 0 | J59: 0 | K59: 0 | M59: 0 | N59: 0 | O59: 0 | P59: 0 | Q59: 0 | R59: 0
B60: Interest on Credit Line | G60: 0.0625 | I60: 68.98601027 | J60: =+SUM(J17:J59)/2*H60 -> 0 | M60: 0 | N60: =+SUM(N17:N59)/2*L60 -> 0 | O60: 68.98601027 | P60: =+SUM(P17:P59)/2*L60 -> 0 | Q60: 68.98601027 | R60: =+J60*E$7 -> 0
A61: Total Variable Costs | I61: 5008.492189 | J61: =SUM(J18:J60) -> 0 | M61: 0 | N61: =SUM(N18:N60) -> 0 | O61: 5008.492189 | P61: =SUM(P18:P60) -> 0 | Q61: 5008.492189 | R61: =SUM(R18:R60) -> 0
A62: Planned Returns Above Variable Costs: | I62: -3955.102189 | J62: =+J13-J61 -> 0 | M62: 0 | N62: =+N13-N61 -> 0 | O62: -3955.102189 | P62: =+P13-P61 -> 0 | Q62: -3955.102189 | R62: =+R13-R61 -> 0
B63: Breakeven Price to Cover Variable Costs | G63: 57.17456837 | H63: =IF(E10=0,"n/a",(YVarExp-(YTotExp+YTotRet-J10))/E10) -> n/a | I63: CWT
Q64: Enterprise | R64: Enterprise
A65: FIXED COSTS | D65: Quantity | E65: Quantity | F65: Units | G65: $/Unit | H65: $/Unit | I65: Total | J65: Total | K65: Share | L65: Share | M65: Landlord | N65: Landlord | O65: Tenant | P65: Tenant | Q65: Total | R65: Total
B66: Machinery Depreciation
C67: Pickup/General Use Equipment | D67: 1 | F67: Acre | G67: 64.26 | I67: 64.26 | J67: =E67*H67 -> 0 | K67: 0 | M67: 0 | N67: =J67*L67 -> 0 | O67: 64.26 | P67: =+J67-N67 -> 0 | Q67: 64.26 | R67: =+J67*E$7 -> 0
C68: Tractors/Self-Propelled | D68: 1 | F68: Acre | G68: 3.105310133 | I68: 3.105310133 | J68: 0 | K68: 0 | M68: 0 | N68: =J68*L68 -> 0 | O68: 3.105310133 | P68: 0 | Q68: 3.105310133 | R68: 0
C69: Implements | D69: 1 | F69: Acre | G69: 2.577269453 | I69: 2.577269453 | J69: 0 | K69: 0 | M69: 0 | N69: =J69*L69 -> 0 | O69: 2.577269453 | P69: 0 | Q69: 2.577269453 | R69: 0
B70: Equipment Investment
C71: Pickup/General Use Equipment | D71: 443.7 | F71: Dollars | G71: 0.0625 | I71: 27.73125 | J71: =E71*H71 -> 0 | K71: 0 | M71: 0 | N71: =J71*L71 -> 0 | O71: 27.73125 | P71: =+J71-N71 -> 0 | Q71: 27.73125 | R71: =+J71*E$7 -> 0
C72: Tractors/Self-Propelled | D72: 24.19136765 | F72: Dollars | G72: 0.0625 | I72: 1.511960478 | J72: 0 | K72: 0 | M72: 0 | N72: =J72*L72 -> 0 | O72: 1.511960478 | P72: 0 | Q72: 1.511960478 | R72: 0
C73: Implements | D73: 15.30992963 | F73: Dollars | G73: 0.0625 | I73: 0.9568706021 | J73: 0 | K73: 0 | M73: 0 | N73: =J73*L73 -> 0 | O73: 0.9568706021 | P73: 0 | Q73: 0.9568706021 | R73: 0
B74: Salaried Labor | D74: 1 | F74: Acre | G74: 0 | I74: 0 | J74: 0 | K74: 0 | M74: 0 | N74: =J74*L74 -> 0 | O74: 0 | P74: =+J74-N74 -> 0 | Q74: 0 | R74: =+J74*E$7 -> 0
B75: Management Fee, Owner/Operator Labor | D75: 1 | F75: Acre | G75: 0 | I75: 0 | J75: 0 | K75: 0 | M75: 0 | N75: 0 | O75: 0 | P75: 0 | Q75: 0 | R75: 0
B76: Allocated Establishment Cost | D76: 1 | F76: Acre | G76: 0 | I76: 0 | J76: 0 | K76: 0 | M76: 0 | N76: 0 | O76: 0 | P76: 0 | Q76: 0 | R76: 0
B77: Cash Rent - Irrigated | D77: 1 | F77: Acre | G77: 100 | I77: 100 | J77: 0 | K77: 0 | M77: 0 | N77: 0 | O77: 100 | P77: 0 | Q77: 100 | R77: 0
B78: Property Taxes | D78: 1 | F78: Acre | G78: 0 | I78: 0 | J78: 0 | K78: 0 | M78: 0 | N78: 0 | O78: 0 | P78: 0 | Q78: 0 | R78: 0
B79: Whole Farm Insurance | D79: 1 | F79: Acre | G79: 0 | I79: 0 | J79: 0 | K79: 0 | M79: 0 | N79: 0 | O79: 0 | P79: 0 | Q79: 0 | R79: 0
D80: 1 | G80: 0 | I80: 0 | J80: 0 | K80: 0 | M80: 0 | N80: 0 | O80: 0 | P80: 0 | Q80: 0 | R80: 0
D81: 1 | G81: 0 | I81: 0 | J81: =E81*H81 -> 0 | K81: 0 | M81: 0 | N81: 0 | O81: 0 | P81: 0 | Q81: 0 | R81: 0
A82: Total Fixed Costs | I82: 200.1426607 | J82: =+SUM(J67:J81) -> 0 | M82: 0 | N82: =+SUM(N67:N81) -> 0 | O82: 200.1426607 | P82: =+SUM(P67:P81) -> 0 | Q82: 200.1426607 | R82: =+SUM(R67:R81) -> 0
A83: Total Specified Costs | I83: 5208.63485 | J83: =+J61+J82 -> 0 | M83: 0 | N83: =+N61+N82 -> 0 | O83: 5208.63485 | P83: =+P61+P82 -> 0 | Q83: 5208.63485 | R83: =+R61+R82 -> 0
A85: Returns Above Specified Costs | I85: -4155.24485 | J85: =+J13-J83 -> 0 | M85: 0 | N85: =+N13-N83 -> 0 | O85: -4155.24485 | P85: =+P13-P83 -> 0 | Q85: -4155.24485 | R85: =+R13-R83 -> 0
A87: Breakeven Price to Cover Total Costs | G87: 59.45930194 | H87: =IF(E10=0,"n/a",(YTotExp-(YTotExp+YTotRet-J10))/E10) -> n/a | I87: CWT
D89: Example Breakeven Prices
B90: Example | C90: Example | D90: To Cover | G90: To Cover
B91: Yield | C91: Yield | D91: Variable | G91: Total
B92: Percent | C92: CWT | D92: Costs | G92: Costs
B93: 0.75 | C93: 65.7 | D93: 76.23275782 | G93: 79.27906925
B94: 0.9 | C94: 78.84 | D94: 63.52729818 | G94: 66.06589104
B95: 1 | C95: 87.6 | D95: 57.17456837 | G95: 59.45930194
B96: 1.1 | C96: 96.36 | D96: 51.97688033 | G96: 54.05391085
B97: 1.25 | C97: 109.5 | D97: 45.73965469 | G97: 47.56744155
A99: Developed by Justin Benavidez, Assistant Professor, Texas A&M AgriLife Extension, 806-677-5600.
A100: DeDe Jones, Extension Risk Management Specialist IV, Texas A&M AgriLife Extension
A101: Information presented is prepared solely as a general guide and not intended to recognize or predict the costs and returns from any one operation. Brand names are mentioned only as examples and imply no endorsement.

Sheet TomatoNoMulch
A1: Projections for Planning Purposes Only -- Not to be Used without Updating
A2: 2021 Estimated Costs and Returns per Acre
A3: Tomato, Drip Irrigated
A4: Enter your name for this budget in the cell above.
A5: Enter Your Values in the cells highlighed in MAROON.
E6: Your Acres | R6: Your
C7: Crop Acres | D7: 1 | L7: Your | Q7: Enterprise | R7: Enterprise
E8: Your | H8: Your | I8: Cash | J8: Your | K8: Landlord | L8: Landlord | N8: Your | P8: Your | Q8: Total | R8: Total
A9: REVENUE | D9: Quantity | E9: Quantity | F9: Units | G9: $/Unit | H9: $/Unit | I9: Total | J9: Total | K9: Share | L9: Share | M9: Landlord | N9: Landlord | O9: Tenant | P9: Tenant | Q9: (1 acres) | R9: ="(" & E7 & " acres)" -> ( acres)
B10: Tomato | D10: 259.6 | F10: CWT | G10: 25.5 | I10: 6619.8 | J10: =E10*H10 -> 0 | K10: 0 | M10: 0 | N10: =J10*L10 -> 0 | O10: 6619.8 | P10: =+J10-N10 -> 0 | Q10: 6619.8 | R10: =+J10*E$7 -> 0
D11: 0 | G11: 0 | I11: 0 | J11: 0 | K11: 0 | M11: 0 | N11: 0 | O11: 0 | P11: =+J11-N11 -> 0 | Q11: 0 | R11: 0
D12: 0 | G12: 0 | I12: 0 | J12: 0 | K12: 0 | M12: 0 | N12: 0 | O12: 0 | P12: 0 | Q12: 0 | R12: 0
A13: Total Revenue | I13: 6619.8 | J13: =SUM(J10:J12) -> 0 | M13: 0 | N13: =SUM(N10:N12) -> 0 | O13: 6619.8 | P13: =SUM(P10:P12) -> 0 | Q13: 6619.8 | R13: =SUM(R10:R12) -> 0
Q14: Enterprise | R14: Enterprise
A15: VARIABLE COSTS | D15: Quantity | E15: Quantity | F15: Units | G15: $/Unit | H15: $/Unit | I15: Total | J15: Total | K15: Share | L15: Share | M15: Landlord | N15: Landlord | O15: Tenant | P15: Tenant | Q15: Total | R15: Total
A16: Production Costs
B17: Seed
C18: Transplants - Tomato | D18: 5796 | F18: Plants | G18: 0.18 | I18: 1043.28 | J18: =E18*H18 -> 0 | K18: 0 | M18: 0 | N18: =J18*L18 -> 0 | O18: 1043.28 | P18: =+J18-N18 -> 0 | Q18: 1043.28 | R18: =+J18*E$7 -> 0
C19: Seed - Tomato | D19: 0 | F19: Bag | G19: 120 | I19: 0 | J19: 0 | K19: 0 | M19: 0 | N19: 0 | O19: 0 | P19: 0 | Q19: 0 | R19: 0
B20: Fertilizer
C21: Fertilizer (N) - Dry | D21: 150 | F21: Pound | G21: 0.4 | I21: 60 | J21: 0 | K21: 0 | M21: 0 | N21: 0 | O21: 60 | P21: 0 | Q21: 60 | R21: 0
C22: Fertilizer Application | D22: 1 | F22: Acre | G22: 5.350467785 | I22: 5.350467785 | J22: 0 | K22: 0 | M22: 0 | N22: 0 | O22: 5.350467785 | P22: 0 | Q22: 5.350467785 | R22: 0
B23: Herbicide
C24: Metolachlor | D24: 1.33 | F24: Pint | G24: 5 | I24: 6.65 | J24: 0 | K24: 0 | M24: 0 | N24: 0 | O24: 6.65 | P24: 0 | Q24: 6.65 | R24: 0
C25: Treflan | D25: 1.33 | F25: Pint | G25: 5 | I25: 6.65 | J25: 0 | K25: 0 | M25: 0 | N25: 0 | O25: 6.65 | P25: 0 | Q25: 6.65 | R25: 0
C26: Herbicide Application | D26: 2 | F26: Acre | G26: 5.350467785 | I26: 10.70093557 | J26: 0 | K26: 0 | M26: 0 | N26: 0 | O26: 10.70093557 | P26: 0 | Q26: 10.70093557 | R26: 0
B27: Insecticide
C28: Sevin Insecticide - Vegetables | D28: 0.17 | F28: Gallon | G28: 87.99 | I28: 14.9583 | J28: 0 | K28: 0 | M28: 0 | N28: 0 | O28: 14.9583 | P28: 0 | Q28: 14.9583 | R28: 0
C29: Insecticide Application | D29: 1 | F29: Acre | G29: 5.35360301 | I29: 5.35360301 | J29: 0 | K29: 0 | M29: 0 | N29: 0 | O29: 5.35360301 | P29: 0 | Q29: 5.35360301 | R29: 0
B30: Miscellaneous
C31: Toro 15mil Drip Tape - 12" drip emitter spacing | D31: 2.2 | F31: Roll | G31: 150 | I31: 330 | J31: 0 | K31: 0 | M31: 0 | N31: 0 | O31: 330 | P31: 0 | Q31: 330 | R31: 0
C32: Drip Tape Fittings | D32: 527 | F32: Unit | G32: 1.6 | I32: 843.2 | J32: 0 | K32: 0 | M32: 0 | N32: 0 | O32: 843.2 | P32: 0 | Q32: 843.2 | R32: 0
C33: Tomato Trellis Twine, 7000ft | D33: 2.5 | F33: Roll | G33: 7 | I33: 17.5 | J33: 0 | K33: 0 | M33: 0 | N33: 0 | O33: 17.5 | P33: 0 | Q33: 17.5 | R33: 0
C34: Unallocated Labor | D34: 9.7 | F34: Hour | G34: 13.42825235 | I34: 130.2540478 | J34: 0 | K34: 0 | M34: 0 | N34: 0 | O34: 130.2540478 | P34: 0 | Q34: 130.2540478 | R34: 0
B35: Custom
C36: Harvest, Pack & Count Vegetables | D36: 259.6 | F36: CWT | G36: 10.45013239 | I36: 2712.854369 | J36: 0 | K36: 0 | M36: 0 | N36: 0 | O36: 2712.854369 | P36: 0 | Q36: 2712.854369 | R36: 0
C37: Hand Weeding - Vegetables | D37: 220 | F37: Hour | G37: 8.5 | I37: 1870 | J37: 0 | K37: 0 | M37: 0 | N37: 0 | O37: 1870 | P37: 0 | Q37: 1870 | R37: 0
D38: 0 | G38: 0 | I38: 0 | J38: 0 | K38: 0 | M38: 0 | N38: 0 | O38: 0 | P38: 0 | Q38: 0 | R38: 0
D39: 0 | G39: 0 | I39: 0 | J39: 0 | K39: 0 | M39: 0 | N39: 0 | O39: 0 | P39: 0 | Q39: 0 | R39: 0
D40: 0 | G40: 0 | I40: 0 | J40: =E40*H40 -> 0 | K40: 0 | M40: 0 | N40: =J40*L40 -> 0 | O40: 0 | P40: =+J40-N40 -> 0 | Q40: 0 | R40: =+J40*E$7 -> 0
B41: Irrigation
C42: Energy Cost | D42: 11 | F42: AcreInch | G42: 3.35 | I42: 36.85 | J42: =E42*H42 -> 0 | K42: 0 | M42: 0 | N42: =J42*L42 -> 0 | O42: 36.85 | P42: =+J42-N42 -> 0 | Q42: 36.85 | R42: =+J42*E$7 -> 0
C43: Irrigation Labor | D43: 0.198 | F43: Hour | G43: 13.65 | I43: 2.7027 | J43: 0 | K43: 0 | M43: 0 | N43: 0 | O43: 2.7027 | P43: 0 | Q43: 2.7027 | R43: 0
B44: Machinery Labor
C45: Tractors/Self-Propelled | D45: 0.98 | F45: Hour | G45: 13.43 | I45: 13.1614 | J45: =E45*H45 -> 0 | K45: 0 | M45: 0 | N45: =J45*L45 -> 0 | O45: 13.1614 | P45: =+J45-N45 -> 0 | Q45: 13.1614 | R45: =+J45*E$7 -> 0
C46: Other Labor | D46: 1.79 | F46: Hour | G46: 13.43 | I46: 24.0397 | J46: =E46*H46 -> 0 | K46: 0 | M46: 0 | N46: =J46*L46 -> 0 | O46: 24.0397 | P46: =+J46-N46 -> 0 | Q46: 24.0397 | R46: =+J46*E$7 -> 0
B48: Diesel Fuel
C49: Pickup/General Use Equipment | D49: 1 | F49: Acre | G49: 0 | I49: 0 | J49: =E49*H49 -> 0 | K49: 0 | M49: 0 | N49: =J49*L49 -> 0 | O49: 0 | P49: =+J49-N49 -> 0 | Q49: 0 | R49: =+J49*E$7 -> 0
C50: Tractors/Self-Propelled | D50: 2.19 | F50: Gallon | G50: 2.1902 | I50: 4.796538 | J50: =E50*H50 -> 0 | K50: 0 | M50: 0 | N50: =J50*L50 -> 0 | O50: 4.796538 | P50: =+J50-N50 -> 0 | Q50: 4.796538 | R50: =+J50*E$7 -> 0
B52: Gasoline
C53: Pickup/General Use Equipment | D53: 1 | F53: Acre | G53: 126.9 | I53: 126.9 | J53: =E53*H53 -> 0 | K53: 0 | M53: 0 | N53: =J53*L53 -> 0 | O53: 126.9 | P53: =+J53-N53 -> 0 | Q53: 126.9 | R53: =+J53*E$7 -> 0
C54: Tractors/Self-Propelled | D54: 0 | F54: Gallon | G54: 2.538 | I54: 0 | J54: =E54*H54 -> 0 | K54: 0 | M54: 0 | N54: =J54*L54 -> 0 | O54: 0 | P54: =+J54-N54 -> 0 | Q54: 0 | R54: =+J54*E$7 -> 0
B56: Repairs & Maintenance
C57: Pickup/General Use Equipment | D57: 1 | F57: Acre | G57: 68.228 | I57: 68.228 | J57: =E57*H57 -> 0 | K57: 0 | M57: 0 | N57: =J57*L57 -> 0 | O57: 68.228 | P57: =+J57-N57 -> 0 | Q57: 68.228 | R57: =+J57*E$7 -> 0
C58: Irrigation Equipment | D58: 1 | F58: Acre | G58: 33 | I58: 33 | J58: 0 | K58: 0 | M58: 0 | N58: 0 | O58: 33 | P58: 0 | Q58: 33 | R58: 0
C59: Tractors/Self-Propelled | D59: 1 | F59: Acre | G59: 3.965357087 | I59: 3.965357087 | J59: 0 | K59: 0 | M59: 0 | N59: 0 | O59: 3.965357087 | P59: 0 | Q59: 3.965357087 | R59: 0
C60: Implements | D60: 1 | F60: Acre | G60: 1.333261002 | I60: 1.333261002 | J60: 0 | K60: 0 | M60: 0 | N60: 0 | O60: 1.333261002 | P60: 0 | Q60: 1.333261002 | R60: 0
I61: 0 | J61: 0 | K61: 0 | M61: 0 | N61: 0 | O61: 0 | P61: 0 | Q61: 0 | R61: 0
I62: 0 | J62: 0 | K62: 0 | M62: 0 | N62: 0 | O62: 0 | P62: 0 | Q62: 0 | R62: 0
B63: Interest on Credit Line | G63: 0.0625 | I63: 94.40622041 | J63: =+SUM(J17:J62)/2*H63 -> 0 | M63: 0 | N63: =+SUM(N17:N62)/2*L63 -> 0 | O63: 94.40622041 | P63: =+SUM(P17:P62)/2*L63 -> 0 | Q63: 94.40622041 | R63: =+J63*E$7 -> 0
A64: Total Variable Costs | I64: 7466.1349 | J64: =SUM(J18:J63) -> 0 | M64: 0 | N64: =SUM(N18:N63) -> 0 | O64: 7466.1349 | P64: =SUM(P18:P63) -> 0 | Q64: 7466.1349 | R64: =SUM(R18:R63) -> 0
A65: Planned Returns Above Variable Costs: | I65: -846.3348996 | J65: =+J13-J64 -> 0 | M65: 0 | N65: =+N13-N64 -> 0 | O65: -846.3348996 | P65: =+P13-P64 -> 0 | Q65: -846.3348996 | R65: =+R13-R64 -> 0
B66: Breakeven Price to Cover Variable Costs | G66: 28.76014984 | H66: =IF(E10=0,"n/a",(YVarExp-(YTotExp+YTotRet-J10))/E10) -> n/a | I66: CWT
Q67: Enterprise | R67: Enterprise
A68: FIXED COSTS | D68: Quantity | E68: Quantity | F68: Units | G68: $/Unit | H68: $/Unit | I68: Total | J68: Total | K68: Share | L68: Share | M68: Landlord | N68: Landlord | O68: Tenant | P68: Tenant | Q68: Total | R68: Total
B69: Machinery Depreciation
C70: Pickup/General Use Equipment | D70: 1 | F70: Acre | G70: 503.56 | I70: 503.56 | J70: =E70*H70 -> 0 | K70: 0 | M70: 0 | N70: =J70*L70 -> 0 | O70: 503.56 | P70: =+J70-N70 -> 0 | Q70: 503.56 | R70: =+J70*E$7 -> 0
C71: Tractors/Self-Propelled | D71: 1 | F71: Acre | G71: 3.278028525 | I71: 3.278028525 | J71: 0 | K71: 0 | M71: 0 | N71: =J71*L71 -> 0 | O71: 3.278028525 | P71: 0 | Q71: 3.278028525 | R71: 0
C72: Implements | D72: 1 | F72: Acre | G72: 1.536591521 | I72: 1.536591521 | J72: 0 | K72: 0 | M72: 0 | N72: =J72*L72 -> 0 | O72: 1.536591521 | P72: 0 | Q72: 1.536591521 | R72: 0
B73: Equipment Investment
C74: Pickup/General Use Equipment | D74: 3519.7 | F74: Dollars | G74: 0.0625 | I74: 219.98125 | J74: =E74*H74 -> 0 | K74: 0 | M74: 0 | N74: =J74*L74 -> 0 | O74: 219.98125 | P74: =+J74-N74 -> 0 | Q74: 219.98125 | R74: =+J74*E$7 -> 0
C75: Tractors/Self-Propelled | D75: 25.53689964 | F75: Dollars | G75: 0.0625 | I75: 1.596056227 | J75: 0 | K75: 0 | M75: 0 | N75: =J75*L75 -> 0 | O75: 1.596056227 | P75: 0 | Q75: 1.596056227 | R75: 0
C76: Implements | D76: 8.007514696 | F76: Dollars | G76: 0.0625 | I76: 0.5004696685 | J76: 0 | K76: 0 | M76: 0 | N76: =J76*L76 -> 0 | O76: 0.5004696685 | P76: 0 | Q76: 0.5004696685 | R76: 0
B77: Salaried Labor | D77: 1 | F77: Acre | G77: 0 | I77: 0 | J77: 0 | K77: 0 | M77: 0 | N77: =J77*L77 -> 0 | O77: 0 | P77: =+J77-N77 -> 0 | Q77: 0 | R77: =+J77*E$7 -> 0
B78: Management Fee, Owner/Operator Labor | D78: 1 | F78: Acre | G78: 0 | I78: 0 | J78: 0 | K78: 0 | M78: 0 | N78: 0 | O78: 0 | P78: 0 | Q78: 0 | R78: 0
B79: Allocated Establishment Cost | D79: 1 | F79: Acre | G79: 0 | I79: 0 | J79: 0 | K79: 0 | M79: 0 | N79: 0 | O79: 0 | P79: 0 | Q79: 0 | R79: 0
B80: Cash Rent - Irrigated | D80: 1 | F80: Acre | G80: 100 | I80: 100 | J80: 0 | K80: 0 | M80: 0 | N80: 0 | O80: 100 | P80: 0 | Q80: 100 | R80: 0
B81: Property Taxes | D81: 1 | F81: Acre | G81: 0 | I81: 0 | J81: 0 | K81: 0 | M81: 0 | N81: 0 | O81: 0 | P81: 0 | Q81: 0 | R81: 0
B82: Whole Farm Insurance | D82: 1 | F82: Acre | G82: 0 | I82: 0 | J82: 0 | K82: 0 | M82: 0 | N82: 0 | O82: 0 | P82: 0 | Q82: 0 | R82: 0
D83: 1 | G83: 0 | I83: 0 | J83: 0 | K83: 0 | M83: 0 | N83: 0 | O83: 0 | P83: 0 | Q83: 0 | R83: 0
D84: 1 | G84: 0 | I84: 0 | J84: =E84*H84 -> 0 | K84: 0 | M84: 0 | N84: 0 | O84: 0 | P84: 0 | Q84: 0 | R84: 0
A85: Total Fixed Costs | I85: 830.4523959 | J85: =+SUM(J70:J84) -> 0 | M85: 0 | N85: =+SUM(N70:N84) -> 0 | O85: 830.4523959 | P85: =+SUM(P70:P84) -> 0 | Q85: 830.4523959 | R85: =+SUM(R70:R84) -> 0
A86: Total Specified Costs | I86: 8296.587296 | J86: =+J64+J85 -> 0 | M86: 0 | N86: =+N64+N85 -> 0 | O86: 8296.587296 | P86: =+P64+P85 -> 0 | Q86: 8296.587296 | R86: =+R64+R85 -> 0
A88: Returns Above Specified Costs | I88: -1676.787296 | J88: =+J13-J86 -> 0 | M88: 0 | N88: =+N13-N86 -> 0 | O88: -1676.787296 | P88: =+P13-P86 -> 0 | Q88: -1676.787296 | R88: =+R13-R86 -> 0
A90: Breakeven Price to Cover Total Costs | G90: 31.95911901 | H90: =IF(E10=0,"n/a",(YTotExp-(YTotExp+YTotRet-J10))/E10) -> n/a | I90: CWT
D92: Example Breakeven Prices
B93: Example | C93: Example | D93: To Cover | G93: To Cover
B94: Yield | C94: Yield | D94: Variable | G94: Total
B95: Percent | C95: CWT | D95: Costs | G95: Costs
B96: 0.75 | C96: 194.7 | D96: 38.34686646 | G96: 42.61215868
B97: 0.9 | C97: 233.64 | D97: 31.95572205 | G97: 35.51013224
B98: 1 | C98: 259.6 | D98: 28.76014984 | G98: 31.95911901
B99: 1.1 | C99: 285.56 | D99: 26.14559077 | G99: 29.05374456
B100: 1.25 | C100: 324.5 | D100: 23.00811988 | G100: 25.56729521
A102: Developed by Justin Benavidez, Assistant Professor, Texas A&M AgriLife Extension, 806-677-5600.
A103: DeDe Jones, Extension Risk Management Specialist IV, Texas A&M AgriLife Extension
A104: Information presented is prepared solely as a general guide and not intended to recognize or predict the costs and returns from any one operation. Brand names are mentioned only as examples and imply no endorsement.

Sheet PepperNoMulch
A1: Projections for Planning Purposes Only -- Not to be Used without Updating
A2: 2021 Estimated Costs and Returns per Acre
A3: Jalapeño Pepper, Drip Irrigated
A4: Enter your name for this budget in the cell above.
A5: Enter Your Values in the cells highlighed in MAROON.
E6: Your Acres | R6: Your
C7: Crop Acres | D7: 1 | L7: Your | Q7: Enterprise | R7: Enterprise
E8: Your | H8: Your | I8: Cash | J8: Your | K8: Landlord | L8: Landlord | N8: Your | P8: Your | Q8: Total | R8: Total
A9: REVENUE | D9: Quantity | E9: Quantity | F9: Units | G9: $/Unit | H9: $/Unit | I9: Total | J9: Total | K9: Share | L9: Share | M9: Landlord | N9: Landlord | O9: Tenant | P9: Tenant | Q9: (1 acres) | R9: ="(" & E7 & " acres)" -> ( acres)
B10: Jalapeño Pepper | D10: 235.9 | F10: CWT | G10: 20.54 | I10: 4845.386 | J10: =E10*H10 -> 0 | K10: 0 | M10: 0 | N10: =J10*L10 -> 0 | O10: 4845.386 | P10: =+J10-N10 -> 0 | Q10: 4845.386 | R10: =+J10*E$7 -> 0
D11: 0 | G11: 0 | I11: 0 | J11: 0 | K11: 0 | M11: 0 | N11: 0 | O11: 0 | P11: =+J11-N11 -> 0 | Q11: 0 | R11: 0
D12: 0 | G12: 0 | I12: 0 | J12: 0 | K12: 0 | M12: 0 | N12: 0 | O12: 0 | P12: 0 | Q12: 0 | R12: 0
A13: Total Revenue | I13: 4845.386 | J13: =SUM(J10:J12) -> 0 | M13: 0 | N13: =SUM(N10:N12) -> 0 | O13: 4845.386 | P13: =SUM(P10:P12) -> 0 | Q13: 4845.386 | R13: =SUM(R10:R12) -> 0
Q14: Enterprise | R14: Enterprise
A15: VARIABLE COSTS | D15: Quantity | E15: Quantity | F15: Units | G15: $/Unit | H15: $/Unit | I15: Total | J15: Total | K15: Share | L15: Share | M15: Landlord | N15: Landlord | O15: Tenant | P15: Tenant | Q15: Total | R15: Total
A16: Production Costs
B17: Seed
C18: Transplants - Pepper | D18: 11591 | F18: Plants | G18: 0.18 | I18: 2086.38 | J18: =E18*H18 -> 0 | K18: 0 | M18: 0 | N18: =J18*L18 -> 0 | O18: 2086.38 | P18: =+J18-N18 -> 0 | Q18: 2086.38 | R18: =+J18*E$7 -> 0
C19: Seed - Pepper | D19: 0 | F19: Bag | G19: 186 | I19: 0 | J19: 0 | K19: 0 | M19: 0 | N19: 0 | O19: 0 | P19: 0 | Q19: 0 | R19: 0
B20: Fertilizer
C21: Fertilizer (N) - Dry | D21: 150 | F21: Pound | G21: 0.4 | I21: 60 | J21: 0 | K21: 0 | M21: 0 | N21: 0 | O21: 60 | P21: 0 | Q21: 60 | R21: 0
C22: Fertilizer Application | D22: 1 | F22: Acre | G22: 5.350467785 | I22: 5.350467785 | J22: 0 | K22: 0 | M22: 0 | N22: 0 | O22: 5.350467785 | P22: 0 | Q22: 5.350467785 | R22: 0
B23: Herbicide
C24: Metolachlor | D24: 1.33 | F24: Pint | G24: 5 | I24: 6.65 | J24: 0 | K24: 0 | M24: 0 | N24: 0 | O24: 6.65 | P24: 0 | Q24: 6.65 | R24: 0
C25: Treflan | D25: 1.33 | F25: Pint | G25: 5 | I25: 6.65 | J25: 0 | K25: 0 | M25: 0 | N25: 0 | O25: 6.65 | P25: 0 | Q25: 6.65 | R25: 0
C26: Herbicide Application | D26: 2 | F26: Acre | G26: 5.350467785 | I26: 10.70093557 | J26: 0 | K26: 0 | M26: 0 | N26: 0 | O26: 10.70093557 | P26: 0 | Q26: 10.70093557 | R26: 0
B27: Insecticide
C28: Sevin Insecticide - Vegetables | D28: 0.17 | F28: Gallon | G28: 87.99 | I28: 14.9583 | J28: 0 | K28: 0 | M28: 0 | N28: 0 | O28: 14.9583 | P28: 0 | Q28: 14.9583 | R28: 0
C29: Insecticide Application | D29: 1 | F29: Acre | G29: 5.35360301 | I29: 5.35360301 | J29: 0 | K29: 0 | M29: 0 | N29: 0 | O29: 5.35360301 | P29: 0 | Q29: 5.35360301 | R29: 0
B30: Miscellaneous
C31: Toro 15mil Drip Tape - 12" drip emitter spacing | D31: 2.2 | F31: Roll | G31: 150 | I31: 330 | J31: 0 | K31: 0 | M31: 0 | N31: 0 | O31: 330 | P31: 0 | Q31: 330 | R31: 0
C32: Drip Tape Fittings | D32: 527 | F32: Unit | G32: 1.6 | I32: 843.2 | J32: 0 | K32: 0 | M32: 0 | N32: 0 | O32: 843.2 | P32: 0 | Q32: 843.2 | R32: 0
B33: Custom
C34: Harvest, Pack & Count Vegetables | D34: 235.9 | F34: CWT | G34: 10.45013239 | I34: 2465.186231 | J34: 0 | K34: 0 | M34: 0 | N34: 0 | O34: 2465.186231 | P34: 0 | Q34: 2465.186231 | R34: 0
C35: Hand Weeding - Vegetables | D35: 358 | F35: Hour | G35: 8.5 | I35: 3043 | J35: 0 | K35: 0 | M35: 0 | N35: 0 | O35: 3043 | P35: 0 | Q35: 3043 | R35: 0
D36: 0 | G36: 0 | I36: 0 | J36: 0 | K36: 0 | M36: 0 | N36: 0 | O36: 0 | P36: 0 | Q36: 0 | R36: 0
D37: 0 | G37: 0 | I37: 0 | J37: 0 | K37: 0 | M37: 0 | N37: 0 | O37: 0 | P37: 0 | Q37: 0 | R37: 0
D38: 0 | G38: 0 | I38: 0 | J38: =E38*H38 -> 0 | K38: 0 | M38: 0 | N38: =J38*L38 -> 0 | O38: 0 | P38: =+J38-N38 -> 0 | Q38: 0 | R38: =+J38*E$7 -> 0
B39: Irrigation
C40: Energy Cost | D40: 11 | F40: AcreInch | G40: 3.35 | I40: 36.85 | J40: =E40*H40 -> 0 | K40: 0 | M40: 0 | N40: =J40*L40 -> 0 | O40: 36.85 | P40: =+J40-N40 -> 0 | Q40: 36.85 | R40: =+J40*E$7 -> 0
C41: Irrigation Labor | D41: 0.198 | F41: Hour | G41: 13.65 | I41: 2.7027 | J41: 0 | K41: 0 | M41: 0 | N41: 0 | O41: 2.7027 | P41: 0 | Q41: 2.7027 | R41: 0
B42: Machinery Labor
C43: Tractors/Self-Propelled | D43: 0.98 | F43: Hour | G43: 13.43 | I43: 13.1614 | J43: =E43*H43 -> 0 | K43: 0 | M43: 0 | N43: =J43*L43 -> 0 | O43: 13.1614 | P43: =+J43-N43 -> 0 | Q43: 13.1614 | R43: =+J43*E$7 -> 0
C44: Other Labor | D44: 1.79 | F44: Hour | G44: 13.43 | I44: 24.0397 | J44: =E44*H44 -> 0 | K44: 0 | M44: 0 | N44: =J44*L44 -> 0 | O44: 24.0397 | P44: =+J44-N44 -> 0 | Q44: 24.0397 | R44: =+J44*E$7 -> 0
B46: Diesel Fuel
C47: Pickup/General Use Equipment | D47: 1 | F47: Acre | G47: 0 | I47: 0 | J47: =E47*H47 -> 0 | K47: 0 | M47: 0 | N47: =J47*L47 -> 0 | O47: 0 | P47: =+J47-N47 -> 0 | Q47: 0 | R47: =+J47*E$7 -> 0
C48: Tractors/Self-Propelled | D48: 2.19 | F48: Gallon | G48: 2.1902 | I48: 4.796538 | J48: =E48*H48 -> 0 | K48: 0 | M48: 0 | N48: =J48*L48 -> 0 | O48: 4.796538 | P48: =+J48-N48 -> 0 | Q48: 4.796538 | R48: =+J48*E$7 -> 0
B50: Gasoline
C51: Pickup/General Use Equipment | D51: 1 | F51: Acre | G51: 126.9 | I51: 126.9 | J51: =E51*H51 -> 0 | K51: 0 | M51: 0 | N51: =J51*L51 -> 0 | O51: 126.9 | P51: =+J51-N51 -> 0 | Q51: 126.9 | R51: =+J51*E$7 -> 0
C52: Tractors/Self-Propelled | D52: 0 | F52: Gallon | G52: 2.538 | I52: 0 | J52: =E52*H52 -> 0 | K52: 0 | M52: 0 | N52: =J52*L52 -> 0 | O52: 0 | P52: =+J52-N52 -> 0 | Q52: 0 | R52: =+J52*E$7 -> 0
B54: Repairs & Maintenance
C55: Pickup/General Use Equipment | D55: 1 | F55: Acre | G55: 61.2 | I55: 61.2 | J55: =E55*H55 -> 0 | K55: 0 | M55: 0 | N55: =J55*L55 -> 0 | O55: 61.2 | P55: =+J55-N55 -> 0 | Q55: 61.2 | R55: =+J55*E$7 -> 0
C56: Irrigation Equipment | D56: 1 | F56: Acre | G56: 33 | I56: 33 | J56: 0 | K56: 0 | M56: 0 | N56: 0 | O56: 33 | P56: 0 | Q56: 33 | R56: 0
C57: Tractors/Self-Propelled | D57: 1 | F57: Acre | G57: 3.965357087 | I57: 3.965357087 | J57: 0 | K57: 0 | M57: 0 | N57: 0 | O57: 3.965357087 | P57: 0 | Q57: 3.965357087 | R57: 0
C58: Implements | D58: 1 | F58: Acre | G58: 1.333261002 | I58: 1.333261002 | J58: 0 | K58: 0 | M58: 0 | N58: 0 | O58: 1.333261002 | P58: 0 | Q58: 1.333261002 | R58: 0
I59: 0 | J59: 0 | K59: 0 | M59: 0 | N59: 0 | O59: 0 | P59: 0 | Q59: 0 | R59: 0
I60: 0 | J60: 0 | K60: 0 | M60: 0 | N60: 0 | O60: 0 | P60: 0 | Q60: 0 | R60: 0
B61: Interest on Credit Line | G61: 0.0625 | I61: 130.1966397 | J61: =+SUM(J17:J60)/2*H61 -> 0 | M61: 0 | N61: =+SUM(N17:N60)/2*L61 -> 0 | O61: 130.1966397 | P61: =+SUM(P17:P60)/2*L61 -> 0 | Q61: 130.1966397 | R61: =+J61*E$7 -> 0
A62: Total Variable Costs | I62: 9315.575133 | J62: =SUM(J18:J61) -> 0 | M62: 0 | N62: =SUM(N18:N61) -> 0 | O62: 9315.575133 | P62: =SUM(P18:P61) -> 0 | Q62: 9315.575133 | R62: =SUM(R18:R61) -> 0
A63: Planned Returns Above Variable Costs: | I63: -4470.189133 | J63: =+J13-J62 -> 0 | M63: 0 | N63: =+N13-N62 -> 0 | O63: -4470.189133 | P63: =+P13-P62 -> 0 | Q63: -4470.189133 | R63: =+R13-R62 -> 0
B64: Breakeven Price to Cover Variable Costs | G64: 39.48950883 | H64: =IF(E10=0,"n/a",(YVarExp-(YTotExp+YTotRet-J10))/E10) -> n/a | I64: CWT
Q65: Enterprise | R65: Enterprise
A66: FIXED COSTS | D66: Quantity | E66: Quantity | F66: Units | G66: $/Unit | H66: $/Unit | I66: Total | J66: Total | K66: Share | L66: Share | M66: Landlord | N66: Landlord | O66: Tenant | P66: Tenant | Q66: Total | R66: Total
B67: Machinery Depreciation
C68: Pickup/General Use Equipment | D68: 1 | F68: Acre | G68: 64.26 | I68: 64.26 | J68: =E68*H68 -> 0 | K68: 0 | M68: 0 | N68: =J68*L68 -> 0 | O68: 64.26 | P68: =+J68-N68 -> 0 | Q68: 64.26 | R68: =+J68*E$7 -> 0
C69: Tractors/Self-Propelled | D69: 1 | F69: Acre | G69: 3.278028525 | I69: 3.278028525 | J69: 0 | K69: 0 | M69: 0 | N69: =J69*L69 -> 0 | O69: 3.278028525 | P69: 0 | Q69: 3.278028525 | R69: 0
C70: Implements | D70: 1 | F70: Acre | G70: 1.536591521 | I70: 1.536591521 | J70: 0 | K70: 0 | M70: 0 | N70: =J70*L70 -> 0 | O70: 1.536591521 | P70: 0 | Q70: 1.536591521 | R70: 0
B71: Equipment Investment
C72: Pickup/General Use Equipment | D72: 443.7 | F72: Dollars | G72: 0.0625 | I72: 27.73125 | J72: =E72*H72 -> 0 | K72: 0 | M72: 0 | N72: =J72*L72 -> 0 | O72: 27.73125 | P72: =+J72-N72 -> 0 | Q72: 27.73125 | R72: =+J72*E$7 -> 0
C73: Tractors/Self-Propelled | D73: 25.53689964 | F73: Dollars | G73: 0.0625 | I73: 1.596056227 | J73: 0 | K73: 0 | M73: 0 | N73: =J73*L73 -> 0 | O73: 1.596056227 | P73: 0 | Q73: 1.596056227 | R73: 0
C74: Implements | D74: 8.007514696 | F74: Dollars | G74: 0.0625 | I74: 0.5004696685 | J74: 0 | K74: 0 | M74: 0 | N74: =J74*L74 -> 0 | O74: 0.5004696685 | P74: 0 | Q74: 0.5004696685 | R74: 0
B75: Salaried Labor | D75: 1 | F75: Acre | G75: 0 | I75: 0 | J75: 0 | K75: 0 | M75: 0 | N75: =J75*L75 -> 0 | O75: 0 | P75: =+J75-N75 -> 0 | Q75: 0 | R75: =+J75*E$7 -> 0
B76: Management Fee, Owner/Operator Labor | D76: 1 | F76: Acre | G76: 0 | I76: 0 | J76: 0 | K76: 0 | M76: 0 | N76: 0 | O76: 0 | P76: 0 | Q76: 0 | R76: 0
B77: Allocated Establishment Cost | D77: 1 | F77: Acre | G77: 0 | I77: 0 | J77: 0 | K77: 0 | M77: 0 | N77: 0 | O77: 0 | P77: 0 | Q77: 0 | R77: 0
B78: Cash Rent - Irrigated | D78: 1 | F78: Acre | G78: 100 | I78: 100 | J78: 0 | K78: 0 | M78: 0 | N78: 0 | O78: 100 | P78: 0 | Q78: 100 | R78: 0
B79: Property Taxes | D79: 1 | F79: Acre | G79: 0 | I79: 0 | J79: 0 | K79: 0 | M79: 0 | N79: 0 | O79: 0 | P79: 0 | Q79: 0 | R79: 0
B80: Whole Farm Insurance | D80: 1 | F80: Acre | G80: 0 | I80: 0 | J80: 0 | K80: 0 | M80: 0 | N80: 0 | O80: 0 | P80: 0 | Q80: 0 | R80: 0
D81: 1 | G81: 0 | I81: 0 | J81: 0 | K81: 0 | M81: 0 | N81: 0 | O81: 0 | P81: 0 | Q81: 0 | R81: 0
D82: 1 | G82: 0 | I82: 0 | J82: =E82*H82 -> 0 | K82: 0 | M82: 0 | N82: 0 | O82: 0 | P82: 0 | Q82: 0 | R82: 0
A83: Total Fixed Costs | I83: 198.9023959 | J83: =+SUM(J68:J82) -> 0 | M83: 0 | N83: =+SUM(N68:N82) -> 0 | O83: 198.9023959 | P83: =+SUM(P68:P82) -> 0 | Q83: 198.9023959 | R83: =+SUM(R68:R82) -> 0
A84: Total Specified Costs | I84: 9514.477529 | J84: =+J62+J83 -> 0 | M84: 0 | N84: =+N62+N83 -> 0 | O84: 9514.477529 | P84: =+P62+P83 -> 0 | Q84: 9514.477529 | R84: =+R62+R83 -> 0
A86: Returns Above Specified Costs | I86: -4669.091529 | J86: =+J13-J84 -> 0 | M86: 0 | N86: =+N13-N84 -> 0 | O86: -4669.091529 | P86: =+P13-P84 -> 0 | Q86: -4669.091529 | R86: =+R13-R84 -> 0
A88: Breakeven Price to Cover Total Costs | G88: 40.33267287 | H88: =IF(E10=0,"n/a",(YTotExp-(YTotExp+YTotRet-J10))/E10) -> n/a | I88: CWT
D90: Example Breakeven Prices
B91: Example | C91: Example | D91: To Cover | G91: To Cover
B92: Yield | C92: Yield | D92: Variable | G92: Total
B93: Percent | C93: CWT | D93: Costs | G93: Costs
B94: 0.75 | C94: 176.925 | D94: 52.65267844 | G94: 53.77689716
B95: 0.9 | C95: 212.31 | D95: 43.87723204 | G95: 44.81408096
B96: 1 | C96: 235.9 | D96: 39.48950883 | G96: 40.33267287
B97: 1.1 | C97: 259.49 | D97: 35.89955348 | G97: 36.66606624
B98: 1.25 | C98: 294.875 | D98: 31.59160707 | G98: 32.26613829
A100: Developed by Justin Benavidez, Assistant Professor, Texas A&M AgriLife Extension, 806-677-5600.
A101: DeDe Jones, Extension Risk Management Specialist IV, Texas A&M AgriLife Extension
A102: Information presented is prepared solely as a general guide and not intended to recognize or predict the costs and returns from any one operation. Brand names are mentioned only as examples and imply no endorsement.

Sheet SweetCornNoMulch
A1: Projections for Planning Purposes Only -- Not to be Used without Updating
A2: 2021 Estimated Costs and Returns per Acre
A3: Sweet Corn, Drip Irrigated
A4: Enter your name for this budget in the cell above.
A5: Enter Your Values in the cells highlighed in MAROON.
E6: Your Acres | R6: Your
C7: Crop Acres | D7: 1 | L7: Your | Q7: Enterprise | R7: Enterprise
E8: Your | H8: Your | I8: Cash | J8: Your | K8: Landlord | L8: Landlord | N8: Your | P8: Your | Q8: Total | R8: Total
A9: REVENUE | D9: Quantity | E9: Quantity | F9: Units | G9: $/Unit | H9: $/Unit | I9: Total | J9: Total | K9: Share | L9: Share | M9: Landlord | N9: Landlord | O9: Tenant | P9: Tenant | Q9: (1 acres) | R9: ="(" & E7 & " acres)" -> ( acres)
B10: Sweet Corn | D10: 92.2 | F10: CWT | G10: 12.025 | I10: 1108.705 | J10: =E10*H10 -> 0 | K10: 0 | M10: 0 | N10: =J10*L10 -> 0 | O10: 1108.705 | P10: =+J10-N10 -> 0 | Q10: 1108.705 | R10: =+J10*E$7 -> 0
D11: 0 | G11: 0 | I11: 0 | J11: 0 | K11: 0 | M11: 0 | N11: 0 | O11: 0 | P11: =+J11-N11 -> 0 | Q11: 0 | R11: 0
D12: 0 | G12: 0 | I12: 0 | J12: 0 | K12: 0 | M12: 0 | N12: 0 | O12: 0 | P12: 0 | Q12: 0 | R12: 0
A13: Total Revenue | I13: 1108.705 | J13: =SUM(J10:J12) -> 0 | M13: 0 | N13: =SUM(N10:N12) -> 0 | O13: 1108.705 | P13: =SUM(P10:P12) -> 0 | Q13: 1108.705 | R13: =SUM(R10:R12) -> 0
Q14: Enterprise | R14: Enterprise
A15: VARIABLE COSTS | D15: Quantity | E15: Quantity | F15: Units | G15: $/Unit | H15: $/Unit | I15: Total | J15: Total | K15: Share | L15: Share | M15: Landlord | N15: Landlord | O15: Tenant | P15: Tenant | Q15: Total | R15: Total
A16: Production Costs
B17: Seed
C18: Seed - Corn, Sweet | D18: 7.47 | F18: Bag | G18: 275 | I18: 2054.25 | J18: =E18*H18 -> 0 | K18: 0 | M18: 0 | N18: =J18*L18 -> 0 | O18: 2054.25 | P18: =+J18-N18 -> 0 | Q18: 2054.25 | R18: =+J18*E$7 -> 0
B19: Fertilizer
C20: Fertilizer (N) - Dry | D20: 150 | F20: Pound | G20: 0.4 | I20: 60 | J20: 0 | K20: 0 | M20: 0 | N20: 0 | O20: 60 | P20: 0 | Q20: 60 | R20: 0
C21: Fertilizer Application | D21: 1 | F21: Acre | G21: 5.350467785 | I21: 5.350467785 | J21: 0 | K21: 0 | M21: 0 | N21: 0 | O21: 5.350467785 | P21: 0 | Q21: 5.350467785 | R21: 0
B22: Herbicide
C23: Metolachlor | D23: 1.33 | F23: Pint | G23: 5 | I23: 6.65 | J23: 0 | K23: 0 | M23: 0 | N23: 0 | O23: 6.65 | P23: 0 | Q23: 6.65 | R23: 0
C24: Treflan | D24: 1.33 | F24: Pint | G24: 5 | I24: 6.65 | J24: 0 | K24: 0 | M24: 0 | N24: 0 | O24: 6.65 | P24: 0 | Q24: 6.65 | R24: 0
C25: Herbicide Application | D25: 2 | F25: Acre | G25: 5.350467785 | I25: 10.70093557 | J25: 0 | K25: 0 | M25: 0 | N25: 0 | O25: 10.70093557 | P25: 0 | Q25: 10.70093557 | R25: 0
B26: Insecticide
C27: Sevin Insecticide - Vegetables | D27: 0.17 | F27: Gallon | G27: 87.99 | I27: 14.9583 | J27: 0 | K27: 0 | M27: 0 | N27: 0 | O27: 14.9583 | P27: 0 | Q27: 14.9583 | R27: 0
C28: Insecticide Application | D28: 1 | F28: Acre | G28: 5.35360301 | I28: 5.35360301 | J28: 0 | K28: 0 | M28: 0 | N28: 0 | O28: 5.35360301 | P28: 0 | Q28: 5.35360301 | R28: 0
B29: Miscellaneous
C30: Toro 15mil Drip Tape - 12" drip emitter spacing | D30: 2.2 | F30: Roll | G30: 150 | I30: 330 | J30: 0 | K30: 0 | M30: 0 | N30: 0 | O30: 330 | P30: 0 | Q30: 330 | R30: 0
C31: Drip Tape Fittings | D31: 527 | F31: Unit | G31: 1.6 | I31: 843.2 | J31: 0 | K31: 0 | M31: 0 | N31: 0 | O31: 843.2 | P31: 0 | Q31: 843.2 | R31: 0
B32: Custom
C33: Harvest, Pack & Count Vegetables | D33: 92.2 | F33: CWT | G33: 10.45013239 | I33: 963.5022065 | J33: 0 | K33: 0 | M33: 0 | N33: 0 | O33: 963.5022065 | P33: 0 | Q33: 963.5022065 | R33: 0
D34: 0 | G34: 0 | I34: 0 | J34: 0 | K34: 0 | M34: 0 | N34: 0 | O34: 0 | P34: 0 | Q34: 0 | R34: 0
D35: 0 | G35: 0 | I35: 0 | J35: 0 | K35: 0 | M35: 0 | N35: 0 | O35: 0 | P35: 0 | Q35: 0 | R35: 0
D36: 0 | G36: 0 | I36: 0 | J36: =E36*H36 -> 0 | K36: 0 | M36: 0 | N36: =J36*L36 -> 0 | O36: 0 | P36: =+J36-N36 -> 0 | Q36: 0 | R36: =+J36*E$7 -> 0
B37: Irrigation
C38: Energy Cost | D38: 10.2186 | F38: AcreInch | G38: 3.35 | I38: 34.23231 | J38: =E38*H38 -> 0 | K38: 0 | M38: 0 | N38: =J38*L38 -> 0 | O38: 34.23231 | P38: =+J38-N38 -> 0 | Q38: 34.23231 | R38: =+J38*E$7 -> 0
C39: Irrigation Labor | D39: 0.189 | F39: Hour | G39: 13.65 | I39: 2.57985 | J39: 0 | K39: 0 | M39: 0 | N39: 0 | O39: 2.57985 | P39: 0 | Q39: 2.57985 | R39: 0
B40: Machinery Labor
C41: Tractors/Self-Propelled | D41: 0.88 | F41: Hour | G41: 13.43 | I41: 11.8184 | J41: =E41*H41 -> 0 | K41: 0 | M41: 0 | N41: =J41*L41 -> 0 | O41: 11.8184 | P41: =+J41-N41 -> 0 | Q41: 11.8184 | R41: =+J41*E$7 -> 0
C42: Other Labor | D42: 1.47 | F42: Hour | G42: 13.43 | I42: 19.7421 | J42: =E42*H42 -> 0 | K42: 0 | M42: 0 | N42: =J42*L42 -> 0 | O42: 19.7421 | P42: =+J42-N42 -> 0 | Q42: 19.7421 | R42: =+J42*E$7 -> 0
B44: Diesel Fuel
C45: Pickup/General Use Equipment | D45: 1 | F45: Acre | G45: 0 | I45: 0 | J45: =E45*H45 -> 0 | K45: 0 | M45: 0 | N45: =J45*L45 -> 0 | O45: 0 | P45: =+J45-N45 -> 0 | Q45: 0 | R45: =+J45*E$7 -> 0
C46: Tractors/Self-Propelled | D46: 2.07 | F46: Gallon | G46: 2.1902 | I46: 4.533714 | J46: =E46*H46 -> 0 | K46: 0 | M46: 0 | N46: =J46*L46 -> 0 | O46: 4.533714 | P46: =+J46-N46 -> 0 | Q46: 4.533714 | R46: =+J46*E$7 -> 0
B48: Gasoline
C49: Pickup/General Use Equipment | D49: 1 | F49: Acre | G49: 126.9 | I49: 126.9 | J49: =E49*H49 -> 0 | K49: 0 | M49: 0 | N49: =J49*L49 -> 0 | O49: 126.9 | P49: =+J49-N49 -> 0 | Q49: 126.9 | R49: =+J49*E$7 -> 0
C50: Tractors/Self-Propelled | D50: 0 | F50: Gallon | G50: 2.538 | I50: 0 | J50: =E50*H50 -> 0 | K50: 0 | M50: 0 | N50: =J50*L50 -> 0 | O50: 0 | P50: =+J50-N50 -> 0 | Q50: 0 | R50: =+J50*E$7 -> 0
B52: Repairs & Maintenance
C53: Pickup/General Use Equipment | D53: 1 | F53: Acre | G53: 61.2 | I53: 61.2 | J53: =E53*H53 -> 0 | K53: 0 | M53: 0 | N53: =J53*L53 -> 0 | O53: 61.2 | P53: =+J53-N53 -> 0 | Q53: 61.2 | R53: =+J53*E$7 -> 0
C54: Irrigation Equipment | D54: 1 | F54: Acre | G54: 30.6558 | I54: 30.6558 | J54: 0 | K54: 0 | M54: 0 | N54: 0 | O54: 30.6558 | P54: 0 | Q54: 30.6558 | R54: 0
C55: Tractors/Self-Propelled | D55: 1 | F55: Acre | G55: 3.756423548 | I55: 3.756423548 | J55: 0 | K55: 0 | M55: 0 | N55: 0 | O55: 3.756423548 | P55: 0 | Q55: 3.756423548 | R55: 0
C56: Implements | D56: 1 | F56: Acre | G56: 2.142677171 | I56: 2.142677171 | J56: 0 | K56: 0 | M56: 0 | N56: 0 | O56: 2.142677171 | P56: 0 | Q56: 2.142677171 | R56: 0
I57: 0 | J57: 0 | K57: 0 | M57: 0 | N57: 0 | O57: 0 | P57: 0 | Q57: 0 | R57: 0
I58: 0 | J58: 0 | K58: 0 | M58: 0 | N58: 0 | O58: 0 | P58: 0 | Q58: 0 | R58: 0
B59: Interest on Credit Line | G59: 0.0625 | I59: 61.47856459 | J59: =+SUM(J17:J58)/2*H59 -> 0 | M59: 0 | N59: =+SUM(N17:N58)/2*L59 -> 0 | O59: 61.47856459 | P59: =+SUM(P17:P58)/2*L59 -> 0 | Q59: 61.47856459 | R59: =+J59*E$7 -> 0
A60: Total Variable Costs | I60: 4659.655352 | J60: =SUM(J18:J59) -> 0 | M60: 0 | N60: =SUM(N18:N59) -> 0 | O60: 4659.655352 | P60: =SUM(P18:P59) -> 0 | Q60: 4659.655352 | R60: =SUM(R18:R59) -> 0
A61: Planned Returns Above Variable Costs: | I61: -3550.950352 | J61: =+J13-J60 -> 0 | M61: 0 | N61: =+N13-N60 -> 0 | O61: -3550.950352 | P61: =+P13-P60 -> 0 | Q61: -3550.950352 | R61: =+R13-R60 -> 0
B62: Breakeven Price to Cover Variable Costs | G62: 50.5385613 | H62: =IF(E10=0,"n/a",(YVarExp-(YTotExp+YTotRet-J10))/E10) -> n/a | I62: CWT
Q63: Enterprise | R63: Enterprise
A64: FIXED COSTS | D64: Quantity | E64: Quantity | F64: Units | G64: $/Unit | H64: $/Unit | I64: Total | J64: Total | K64: Share | L64: Share | M64: Landlord | N64: Landlord | O64: Tenant | P64: Tenant | Q64: Total | R64: Total
B65: Machinery Depreciation
C66: Pickup/General Use Equipment | D66: 1 | F66: Acre | G66: 64.26 | I66: 64.26 | J66: =E66*H66 -> 0 | K66: 0 | M66: 0 | N66: =J66*L66 -> 0 | O66: 64.26 | P66: =+J66-N66 -> 0 | Q66: 64.26 | R66: =+J66*E$7 -> 0
C67: Tractors/Self-Propelled | D67: 1 | F67: Acre | G67: 3.105310133 | I67: 3.105310133 | J67: 0 | K67: 0 | M67: 0 | N67: =J67*L67 -> 0 | O67: 3.105310133 | P67: 0 | Q67: 3.105310133 | R67: 0
C68: Implements | D68: 1 | F68: Acre | G68: 2.577269453 | I68: 2.577269453 | J68: 0 | K68: 0 | M68: 0 | N68: =J68*L68 -> 0 | O68: 2.577269453 | P68: 0 | Q68: 2.577269453 | R68: 0
B69: Equipment Investment
C70: Pickup/General Use Equipment | D70: 443.7 | F70: Dollars | G70: 0.0625 | I70: 27.73125 | J70: =E70*H70 -> 0 | K70: 0 | M70: 0 | N70: =J70*L70 -> 0 | O70: 27.73125 | P70: =+J70-N70 -> 0 | Q70: 27.73125 | R70: =+J70*E$7 -> 0
C71: Tractors/Self-Propelled | D71: 24.19136765 | F71: Dollars | G71: 0.0625 | I71: 1.511960478 | J71: 0 | K71: 0 | M71: 0 | N71: =J71*L71 -> 0 | O71: 1.511960478 | P71: 0 | Q71: 1.511960478 | R71: 0
C72: Implements | D72: 15.30992963 | F72: Dollars | G72: 0.0625 | I72: 0.9568706021 | J72: 0 | K72: 0 | M72: 0 | N72: =J72*L72 -> 0 | O72: 0.9568706021 | P72: 0 | Q72: 0.9568706021 | R72: 0
B73: Salaried Labor | D73: 1 | F73: Acre | G73: 0 | I73: 0 | J73: 0 | K73: 0 | M73: 0 | N73: =J73*L73 -> 0 | O73: 0 | P73: =+J73-N73 -> 0 | Q73: 0 | R73: =+J73*E$7 -> 0
B74: Management Fee, Owner/Operator Labor | D74: 1 | F74: Acre | G74: 0 | I74: 0 | J74: 0 | K74: 0 | M74: 0 | N74: 0 | O74: 0 | P74: 0 | Q74: 0 | R74: 0
B75: Allocated Establishment Cost | D75: 1 | F75: Acre | G75: 0 | I75: 0 | J75: 0 | K75: 0 | M75: 0 | N75: 0 | O75: 0 | P75: 0 | Q75: 0 | R75: 0
B76: Cash Rent - Irrigated | D76: 1 | F76: Acre | G76: 100 | I76: 100 | J76: 0 | K76: 0 | M76: 0 | N76: 0 | O76: 100 | P76: 0 | Q76: 100 | R76: 0
B77: Property Taxes | D77: 1 | F77: Acre | G77: 0 | I77: 0 | J77: 0 | K77: 0 | M77: 0 | N77: 0 | O77: 0 | P77: 0 | Q77: 0 | R77: 0
B78: Whole Farm Insurance | D78: 1 | F78: Acre | G78: 0 | I78: 0 | J78: 0 | K78: 0 | M78: 0 | N78: 0 | O78: 0 | P78: 0 | Q78: 0 | R78: 0
D79: 1 | G79: 0 | I79: 0 | J79: 0 | K79: 0 | M79: 0 | N79: 0 | O79: 0 | P79: 0 | Q79: 0 | R79: 0
D80: 1 | G80: 0 | I80: 0 | J80: =E80*H80 -> 0 | K80: 0 | M80: 0 | N80: 0 | O80: 0 | P80: 0 | Q80: 0 | R80: 0
A81: Total Fixed Costs | I81: 200.1426607 | J81: =+SUM(J66:J80) -> 0 | M81: 0 | N81: =+SUM(N66:N80) -> 0 | O81: 200.1426607 | P81: =+SUM(P66:P80) -> 0 | Q81: 200.1426607 | R81: =+SUM(R66:R80) -> 0
A82: Total Specified Costs | I82: 4859.798013 | J82: =+J60+J81 -> 0 | M82: 0 | N82: =+N60+N81 -> 0 | O82: 4859.798013 | P82: =+P60+P81 -> 0 | Q82: 4859.798013 | R82: =+R60+R81 -> 0
A84: Returns Above Specified Costs | I84: -3751.093013 | J84: =+J13-J82 -> 0 | M84: 0 | N84: =+N13-N82 -> 0 | O84: -3751.093013 | P84: =+P13-P82 -> 0 | Q84: -3751.093013 | R84: =+R13-R82 -> 0
A86: Breakeven Price to Cover Total Costs | G86: 52.709306 | H86: =IF(E10=0,"n/a",(YTotExp-(YTotExp+YTotRet-J10))/E10) -> n/a | I86: CWT
D88: Example Breakeven Prices
B89: Example | C89: Example | D89: To Cover | G89: To Cover
B90: Yield | C90: Yield | D90: Variable | G90: Total
B91: Percent | C91: CWT | D91: Costs | G91: Costs
B92: 0.75 | C92: 69.15 | D92: 67.3847484 | G92: 70.27907466
B93: 0.9 | C93: 82.98 | D93: 56.153957 | G93: 58.56589555
B94: 1 | C94: 92.2 | D94: 50.5385613 | G94: 52.709306
B95: 1.1 | C95: 101.42 | D95: 45.94414664 | G95: 47.91755091
B96: 1.25 | C96: 115.25 | D96: 40.43084904 | G96: 42.1674448
A98: Developed by Justin Benavidez, Assistant Professor, Texas A&M AgriLife Extension, 806-677-5600.
A99: DeDe Jones, Extension Risk Management Specialist IV, Texas A&M AgriLife Extension
A100: Information presented is prepared solely as a general guide and not intended to recognize or predict the costs and returns from any one operation. Brand names are mentioned only as examples and imply no endorsement.

Sheet AlfalfaEstablish
A1: Projections for Planning Purposes Only -- Not to be Used without Updating
A2: 2021 Estimated Costs and Returns per Acre
A3: Alfalfa Establishment, Sprinkler Irrigated (NG), Fall Seeding Only
A4: Enter your name for this budget in the cell above.
A5: Enter Your Values in the cells highlighed in MAROON.
E6: Your Acres | R6: Your
C7: Crop Acres | D7: 122 | L7: Your | Q7: Enterprise | R7: Enterprise
E8: Your | H8: Your | I8: Cash | J8: Your | K8: Landlord | L8: Landlord | N8: Your | P8: Your | Q8: Total | R8: Total
A9: REVENUE | D9: Quantity | E9: Quantity | F9: Units | G9: $/Unit | H9: $/Unit | I9: Total | J9: Total | K9: Share | L9: Share | M9: Landlord | N9: Landlord | O9: Tenant | P9: Tenant | Q9: (122 acres) | R9: ="(" & E7 & " acres)" -> ( acres)
B10: 0 | D10: 0 | G10: 0 | I10: 0 | J10: =E10*H10 -> 0 | K10: 0 | M10: 0 | N10: =J10*L10 -> 0 | O10: 0 | P10: =+J10-N10 -> 0 | Q10: 0 | R10: =+J10*E$7 -> 0
D11: 0 | G11: 0 | I11: 0 | J11: 0 | K11: 0 | M11: 0 | N11: 0 | O11: 0 | P11: 0 | Q11: 0 | R11: 0
D12: 0 | G12: 0 | I12: 0 | J12: 0 | K12: 0 | M12: 0 | N12: 0 | O12: 0 | P12: 0 | Q12: 0 | R12: 0
A13: Total Revenue | I13: 0 | J13: =SUM(J10:J12) -> 0 | M13: 0 | N13: =SUM(N10:N12) -> 0 | O13: 0 | P13: =SUM(P10:P12) -> 0 | Q13: 0 | R13: =SUM(R10:R12) -> 0
Q14: Enterprise | R14: Enterprise
A15: VARIABLE COSTS | D15: Quantity | E15: Quantity | F15: Units | G15: $/Unit | H15: $/Unit | I15: Total | J15: Total | K15: Share | L15: Share | M15: Landlord | N15: Landlord | O15: Tenant | P15: Tenant | Q15: Total | R15: Total
A16: Production Costs
B17: Custom
C18: Fertilizer Application | D18: 1 | F18: Acre | G18: 5.350467785 | I18: 5.350467785 | J18: =E18*H18 -> 0 | K18: 0 | M18: 0 | N18: =J18*L18 -> 0 | O18: 5.350467785 | P18: =+J18-N18 -> 0 | Q18: 652.7570697 | R18: =+J18*E$7 -> 0
B19: Fertilizer
C20: Fertilizer (P) - Dry | D20: 80 | F20: Pound | G20: 0.45 | I20: 36 | J20: 0 | K20: 0 | M20: 0 | N20: 0 | O20: 36 | P20: 0 | Q20: 4392 | R20: 0
B21: Herbicide
C22: Herbicide and Application Alfalfa | D22: 1 | F22: Acre | G22: 23.9462841 | I22: 23.9462841 | J22: 0 | K22: 0 | M22: 0 | N22: 0 | O22: 23.9462841 | P22: 0 | Q22: 2921.44666 | R22: 0
B23: Seed
C24: Seed - Alfalfa | D24: 18 | F24: Pound | G24: 5.795175573 | I24: 104.3131603 | J24: 0 | K24: 0 | M24: 0 | N24: 0 | O24: 104.3131603 | P24: 0 | Q24: 12726.20556 | R24: 0
D25: 0 | G25: 0 | I25: 0 | J25: 0 | K25: 0 | M25: 0 | N25: 0 | O25: 0 | P25: 0 | Q25: 0 | R25: 0
D26: 0 | G26: 0 | I26: 0 | J26: 0 | K26: 0 | M26: 0 | N26: 0 | O26: 0 | P26: 0 | Q26: 0 | R26: 0
D27: 0 | G27: 0 | I27: 0 | J27: =E27*H27 -> 0 | K27: 0 | M27: 0 | N27: =J27*L27 -> 0 | O27: 0 | P27: =+J27-N27 -> 0 | Q27: 0 | R27: =+J27*E$7 -> 0
B28: Irrigation
C29: Energy Cost | D29: 6 | F29: AcreInch | G29: 3.35 | I29: 20.1 | J29: =E29*H29 -> 0 | K29: 0 | M29: 0 | N29: =J29*L29 -> 0 | O29: 20.1 | P29: =+J29-N29 -> 0 | Q29: 2452.2 | R29: =+J29*E$7 -> 0
C30: Irrigation Labor | D30: 0.384 | F30: Hour | G30: 13.65 | I30: 5.2416 | J30: 0 | K30: 0 | M30: 0 | N30: 0 | O30: 5.2416 | P30: 0 | Q30: 639.4752 | R30: 0
B31: Machinery Labor
C32: Tractors/Self-Propelled | D32: 0.64 | F32: Hour | G32: 13.43 | I32: 8.5952 | J32: =E32*H32 -> 0 | K32: 0 | M32: 0 | N32: =J32*L32 -> 0 | O32: 8.5952 | P32: =+J32-N32 -> 0 | Q32: 1048.6144 | R32: =+J32*E$7 -> 0
C33: Other Labor | D33: 0.73 | F33: Hour | G33: 13.43 | I33: 9.8039 | J33: =E33*H33 -> 0 | K33: 0 | M33: 0 | N33: =J33*L33 -> 0 | O33: 9.8039 | P33: =+J33-N33 -> 0 | Q33: 1196.0758 | R33: =+J33*E$7 -> 0
B35: Diesel Fuel
C36: Pickup/General Use Equipment | D36: 1 | F36: Acre | G36: 0 | I36: 0 | J36: =E36*H36 -> 0 | K36: 0 | M36: 0 | N36: =J36*L36 -> 0 | O36: 0 | P36: =+J36-N36 -> 0 | Q36: 0 | R36: =+J36*E$7 -> 0
C37: Tractors/Self-Propelled | D37: 2.96 | F37: Gallon | G37: 2.1902 | I37: 6.482992 | J37: =E37*H37 -> 0 | K37: 0 | M37: 0 | N37: =J37*L37 -> 0 | O37: 6.482992 | P37: =+J37-N37 -> 0 | Q37: 790.925024 | R37: =+J37*E$7 -> 0
B39: Gasoline
C40: Pickup/General Use Equipment | D40: 1 | F40: Acre | G40: 5.200819672 | I40: 5.200819672 | J40: =E40*H40 -> 0 | K40: 0 | M40: 0 | N40: =J40*L40 -> 0 | O40: 5.200819672 | P40: =+J40-N40 -> 0 | Q40: 634.5 | R40: =+J40*E$7 -> 0
C41: Tractors/Self-Propelled | D41: 0 | F41: Gallon | G41: 2.538 | I41: 0 | J41: =E41*H41 -> 0 | K41: 0 | M41: 0 | N41: =J41*L41 -> 0 | O41: 0 | P41: =+J41-N41 -> 0 | Q41: 0 | R41: =+J41*E$7 -> 0
B43: Repairs & Maintenance
C44: Pickup/General Use Equipment | D44: 1 | F44: Acre | G44: 2.508196721 | I44: 2.508196721 | J44: =E44*H44 -> 0 | K44: 0 | M44: 0 | N44: =J44*L44 -> 0 | O44: 2.508196721 | P44: =+J44-N44 -> 0 | Q44: 306 | R44: =+J44*E$7 -> 0
C45: Irrigation Equipment | D45: 1 | F45: Acre | G45: 22.5 | I45: 22.5 | J45: 0 | K45: 0 | M45: 0 | N45: 0 | O45: 22.5 | P45: 0 | Q45: 2745 | R45: 0
C46: Tractors/Self-Propelled | D46: 1 | F46: Acre | G46: 4.808795239 | I46: 4.808795239 | J46: 0 | K46: 0 | M46: 0 | N46: 0 | O46: 4.808795239 | P46: 0 | Q46: 586.6730191 | R46: 0
C47: Implements | D47: 1 | F47: Acre | G47: 12.35900752 | I47: 12.35900752 | J47: 0 | K47: 0 | M47: 0 | N47: 0 | O47: 12.35900752 | P47: 0 | Q47: 1507.798918 | R47: 0
I48: 0 | J48: 0 | K48: 0 | M48: 0 | N48: 0 | O48: 0 | P48: 0 | Q48: 0 | R48: =+J48*E$7 -> 0
I49: 0 | J49: 0 | K49: 0 | M49: 0 | N49: 0 | O49: 0 | P49: 0 | Q49: 0 | R49: 0
B50: Interest on Credit Line | G50: 0.0625 | I50: 5.947192303 | J50: =+SUM(J17:J49)/2*H50 -> 0 | M50: 0 | N50: =+SUM(N17:N49)/2*L50 -> 0 | O50: 5.947192303 | P50: =+SUM(P17:P49)/2*L50 -> 0 | Q50: 725.557461 | R50: =+J50*E$7 -> 0
A51: Total Variable Costs | I51: 273.1576156 | J51: =SUM(J18:J50) -> 0 | M51: 0 | N51: =SUM(N18:N50) -> 0 | O51: 273.1576156 | P51: =SUM(P18:P50) -> 0 | Q51: 33325.22911 | R51: =SUM(R18:R50) -> 0
A52: Planned Returns Above Variable Costs: | I52: -273.1576156 | J52: =+J13-J51 -> 0 | M52: 0 | N52: =+N13-N51 -> 0 | O52: -273.1576156 | P52: =+P13-P51 -> 0 | Q52: -33325.22911 | R52: =+R13-R51 -> 0
B53: Breakeven Price to Cover Variable Costs | G53: n/a | H53: =IF(E10=0,"n/a",(YVarExp-(YTotExp+YTotRet-J10))/E10) -> n/a
Q54: Enterprise | R54: Enterprise
A55: FIXED COSTS | D55: Quantity | E55: Quantity | F55: Units | G55: $/Unit | H55: $/Unit | J55: Total | K55: Share | L55: Share | M55: Landlord | N55: Landlord | O55: Tenant | P55: Tenant | Q55: Total | R55: Total
B56: Machinery Depreciation
C57: Pickup/General Use Equipment | D57: 1 | F57: Acre | G57: 2.633606557 | I57: 2.633606557 | J57: =E57*H57 -> 0 | K57: 0 | M57: 0 | N57: =J57*L57 -> 0 | O57: 2.633606557 | P57: =+J57-N57 -> 0 | Q57: 321.3 | R57: =+J57*E$7 -> 0
C58: Irrigation Equipment | D58: 1 | F58: Acre | G58: 11.83401639 | I58: 11.83401639 | J58: 0 | K58: 0 | M58: 0 | N58: =J58*L58 -> 0 | O58: 11.83401639 | P58: 0 | Q58: 1443.75 | R58: 0
C59: Tractors/Self-Propelled | D59: 1 | F59: Acre | G59: 4.686851565 | I59: 4.686851565 | J59: 0 | K59: 0 | M59: 0 | N59: =J59*L59 -> 0 | O59: 4.686851565 | P59: 0 | Q59: 571.7958909 | R59: 0
C60: Implements | D60: 1 | F60: Acre | G60: 14.82595978 | I60: 14.82595978 | J60: 0 | K60: 0 | M60: 0 | N60: =J60*L60 -> 0 | O60: 14.82595978 | P60: 0 | Q60: 1808.767093 | R60: 0
B61: Equipment Investment
C62: Pickup/General Use Equipment | D62: 18.18442623 | F62: Dollars | G62: 0.0625 | I62: 1.136526639 | J62: =E62*H62 -> 0 | K62: 0 | M62: 0 | N62: =J62*L62 -> 0 | O62: 1.136526639 | P62: =+J62-N62 -> 0 | Q62: 138.65625 | R62: =+J62*E$7 -> 0
C63: Irrigation Equipment | D63: 142.9303279 | F63: Dollars | G63: 0.0625 | I63: 8.933145492 | J63: 0 | K63: 0 | M63: 0 | N63: =J63*L63 -> 0 | O63: 8.933145492 | P63: 0 | Q63: 1089.84375 | R63: 0
C64: Tractors/Self-Propelled | D64: 36.51208558 | F64: Dollars | G64: 0.0625 | I64: 2.282005349 | J64: 0 | K64: 0 | M64: 0 | N64: =J64*L64 -> 0 | O64: 2.282005349 | P64: 0 | Q64: 278.4046525 | R64: 0
C65: Implements | D65: 63.42216127 | F65: Dollars | G65: 0.0625 | I65: 3.963885079 | J65: 0 | K65: 0 | M65: 0 | N65: =J65*L65 -> 0 | O65: 3.963885079 | P65: 0 | Q65: 483.5939797 | R65: 0
B66: Salaried Labor | D66: 1 | F66: Acre | G66: 0 | I66: 0 | J66: 0 | K66: 0 | M66: 0 | N66: =J66*L66 -> 0 | O66: 0 | P66: =+J66-N66 -> 0 | Q66: 0 | R66: =+J66*E$7 -> 0
B67: Management Fee, Owner/Operator Labor | D67: 1 | F67: Acre | G67: 0 | I67: 0 | J67: 0 | K67: 0 | M67: 0 | N67: 0 | O67: 0 | P67: 0 | Q67: 0 | R67: 0
B68: Allocated Establishment Cost | D68: 1 | F68: Acre | G68: 0 | I68: 0 | J68: 0 | K68: 0 | M68: 0 | N68: 0 | O68: 0 | P68: 0 | Q68: 0 | R68: 0
B69: Cash Rent - Alfalfa | D69: 1 | F69: Acre | G69: 100 | I69: 100 | J69: 0 | K69: 0 | M69: 0 | N69: 0 | O69: 100 | P69: 0 | Q69: 12200 | R69: 0
B70: Property Taxes | D70: 1 | F70: Acre | G70: 0 | I70: 0 | J70: =E70*H70 -> 0 | K70: 0 | M70: 0 | N70: 0 | O70: 0 | P70: 0 | Q70: 0 | R70: =+J70*E$7 -> 0
B71: Whole Farm Insurance | D71: 1 | F71: Acre | G71: 0 | I71: 0 | J71: 0 | K71: 0 | M71: 0 | N71: 0 | O71: 0 | P71: 0 | Q71: 0 | R71: 0
D72: 1 | G72: 0 | I72: 0 | J72: 0 | K72: 0 | M72: 0 | N72: 0 | O72: 0 | P72: 0 | Q72: 0 | R72: 0
D73: 1 | G73: 0 | I73: 0 | J73: 0 | K73: 0 | M73: 0 | N73: 0 | O73: 0 | P73: 0 | Q73: 0 | R73: 0
A74: Total Fixed Costs | I74: 150.2959969 | J74: =+SUM(J57:J73) -> 0 | M74: 0 | N74: =+SUM(N57:N73) -> 0 | O74: 150.2959969 | P74: =+SUM(P57:P73) -> 0 | Q74: 18336.11162 | R74: =+SUM(R57:R73) -> 0
A75: Total Specified Costs | I75: 423.4536125 | J75: =+J51+J74 -> 0 | M75: 0 | N75: =+N51+N74 -> 0 | O75: 423.4536125 | P75: =+P51+P74 -> 0 | Q75: 51661.34073 | R75: =+R51+R74 -> 0
A77: Returns Above Specified Costs | I77: -423.4536125 | J77: =+J13-J75 -> 0 | M77: 0 | N77: =+N13-N75 -> 0 | O77: -423.4536125 | P77: =+P13-P75 -> 0 | Q77: -51661.34073 | R77: =+R13-R75 -> 0
A79: Breakeven Price to Cover Total Costs | G79: n/a | H79: =IF(E10=0,"n/a",(YTotExp-(YTotExp+YTotRet-J10))/E10) -> n/a
D81: Example Breakeven Prices
B82: Example | C82: Example | D82: To Cover | G82: To Cover
B83: Yield | C83: Yield | D83: Variable | G83: Total
B84: Percent | D84: Costs | G84: Costs
B85: 0.75 | C85: 0 | D85: 0 | G85: 0
B86: 0.9 | C86: 0 | D86: 0 | G86: 0
B87: 1 | C87: 0 | D87: 0 | G87: 0
B88: 1.1 | C88: 0 | D88: 0 | G88: 0
B89: 1.25 | C89: 0 | D89: 0 | G89: 0
A91: Developed by Justin Benavidez, Assistant Professor, Texas A&M AgriLife Extension, 806-677-5600.
A93: Information presented is prepared solely as a general guide and not intended to recognize or predict the costs and returns from any one operation. Brand names are mentioned only as examples and imply no endorsement.

Sheet AlfalfaHay
A1: Projections for Planning Purposes Only -- Not to be Used without Updating
A2: 2021 Estimated Costs and Returns per Acre
A3: Alfalfa, Sprinkler Irrigated (NG)
A4: Enter your name for this budget in the cell above.
A5: Enter Your Values in the cells highlighed in MAROON.
E6: Your Acres | R6: Your
C7: Crop Acres | D7: 122 | L7: Your | Q7: Enterprise | R7: Enterprise
E8: Your | H8: Your | I8: Cash | J8: Your | K8: Landlord | L8: Landlord | N8: Your | P8: Your | Q8: Total | R8: Total
A9: REVENUE | D9: Quantity | E9: Quantity | F9: Units | G9: $/Unit | H9: $/Unit | I9: Total | J9: Total | K9: Share | L9: Share | M9: Landlord | N9: Landlord | O9: Tenant | P9: Tenant | Q9: (122 acres) | R9: ="(" & E7 & " acres)" -> ( acres)
B10: Hay - Alfalfa | D10: 5.5 | F10: Ton | G10: 230 | I10: 1265 | J10: =E10*H10 -> 0 | K10: 0 | M10: 0 | N10: =J10*L10 -> 0 | O10: 1265 | P10: =+J10-N10 -> 0 | Q10: 154330 | R10: =+J10*E$7 -> 0
D11: 0 | G11: 0 | I11: 0 | J11: 0 | K11: 0 | M11: 0 | N11: 0 | O11: 0 | P11: =+J11-N11 -> 0 | Q11: 0 | R11: 0
D12: 0 | G12: 0 | I12: 0 | J12: 0 | K12: 0 | M12: 0 | N12: 0 | O12: 0 | P12: 0 | Q12: 0 | R12: 0
A13: Total Revenue | I13: 1265 | J13: =SUM(J10:J12) -> 0 | M13: 0 | N13: =SUM(N10:N12) -> 0 | O13: 1265 | P13: =SUM(P10:P12) -> 0 | Q13: 154330 | R13: =SUM(R10:R12) -> 0
Q14: Enterprise | R14: Enterprise
A15: VARIABLE COSTS | D15: Quantity | E15: Quantity | F15: Units | G15: $/Unit | H15: $/Unit | I15: Total | J15: Total | K15: Share | L15: Share | M15: Landlord | N15: Landlord | O15: Tenant | P15: Tenant | Q15: Total | R15: Total
A16: Production Costs
B17: Custom
C18: Fertilizer Application | D18: 1 | F18: Acre | G18: 5.350467785 | I18: 5.350467785 | J18: =E18*H18 -> 0 | K18: 0 | M18: 0 | N18: =J18*L18 -> 0 | O18: 5.350467785 | P18: =+J18-N18 -> 0 | Q18: 652.7570697 | R18: =+J18*E$7 -> 0
C19: Custom Baling | D19: 5.5 | F19: Ton | G19: 42.81419241 | I19: 235.4780583 | J19: 0 | K19: 0 | M19: 0 | N19: 0 | O19: 235.4780583 | P19: 0 | Q19: 28728.32311 | R19: 0
B20: Fertilizer
C21: Fertilizer (P) - Liquid | D21: 60 | F21: Pound | G21: 0.49 | I21: 29.4 | J21: 0 | K21: 0 | M21: 0 | N21: 0 | O21: 29.4 | P21: 0 | Q21: 3586.8 | R21: 0
B22: Herbicide
C23: Herbicide and Application Alfalfa | D23: 1 | F23: Acre | G23: 23.9462841 | I23: 23.9462841 | J23: 0 | K23: 0 | M23: 0 | N23: 0 | O23: 23.9462841 | P23: 0 | Q23: 2921.44666 | R23: 0
B24: Insecticide
C25: Insecticide Application Alfalfa | D25: 1 | F25: Acre | G25: 10.80131232 | I25: 10.80131232 | J25: 0 | K25: 0 | M25: 0 | N25: 0 | O25: 10.80131232 | P25: 0 | Q25: 1317.760103 | R25: 0
D26: 0 | G26: 0 | I26: 0 | J26: 0 | K26: 0 | M26: 0 | N26: 0 | O26: 0 | P26: 0 | Q26: 0 | R26: 0
D27: 0 | G27: 0 | I27: 0 | J27: 0 | K27: 0 | M27: 0 | N27: 0 | O27: 0 | P27: 0 | Q27: 0 | R27: 0
D28: 0 | G28: 0 | I28: 0 | J28: =E28*H28 -> 0 | K28: 0 | M28: 0 | N28: =J28*L28 -> 0 | O28: 0 | P28: =+J28-N28 -> 0 | Q28: 0 | R28: =+J28*E$7 -> 0
B29: Irrigation
C30: Energy Cost | D30: 24 | F30: AcreInch | G30: 3.35 | I30: 80.4 | J30: =E30*H30 -> 0 | K30: 0 | M30: 0 | N30: =J30*L30 -> 0 | O30: 80.4 | P30: =+J30-N30 -> 0 | Q30: 9808.8 | R30: =+J30*E$7 -> 0
C31: Irrigation Labor | D31: 1.536 | F31: Hour | G31: 13.65 | I31: 20.9664 | J31: 0 | K31: 0 | M31: 0 | N31: 0 | O31: 20.9664 | P31: 0 | Q31: 2557.9008 | R31: 0
B32: Machinery Labor
C33: Tractors/Self-Propelled | D33: 0 | F33: Hour | G33: 13.43 | I33: 0 | J33: =E33*H33 -> 0 | K33: 0 | M33: 0 | N33: =J33*L33 -> 0 | O33: 0 | P33: =+J33-N33 -> 0 | Q33: 0 | R33: =+J33*E$7 -> 0
C34: Other Labor | D34: 0 | F34: Hour | G34: 13.43 | I34: 0 | J34: =E34*H34 -> 0 | K34: 0 | M34: 0 | N34: =J34*L34 -> 0 | O34: 0 | P34: =+J34-N34 -> 0 | Q34: 0 | R34: =+J34*E$7 -> 0
B36: Diesel Fuel
C37: Pickup/General Use Equipment | D37: 1 | F37: Acre | G37: 0 | I37: 0 | J37: =E37*H37 -> 0 | K37: 0 | M37: 0 | N37: =J37*L37 -> 0 | O37: 0 | P37: =+J37-N37 -> 0 | Q37: 0 | R37: =+J37*E$7 -> 0
C38: Tractors/Self-Propelled | D38: 0 | F38: Gallon | G38: 2.1902 | I38: 0 | J38: =E38*H38 -> 0 | K38: 0 | M38: 0 | N38: =J38*L38 -> 0 | O38: 0 | P38: =+J38-N38 -> 0 | Q38: 0 | R38: =+J38*E$7 -> 0
B40: Gasoline
C41: Pickup/General Use Equipment | D41: 1 | F41: Acre | G41: 5.200819672 | I41: 5.200819672 | J41: =E41*H41 -> 0 | K41: 0 | M41: 0 | N41: =J41*L41 -> 0 | O41: 5.200819672 | P41: =+J41-N41 -> 0 | Q41: 634.5 | R41: =+J41*E$7 -> 0
C42: Tractors/Self-Propelled | D42: 0 | F42: Gallon | G42: 2.538 | I42: 0 | J42: =E42*H42 -> 0 | K42: 0 | M42: 0 | N42: =J42*L42 -> 0 | O42: 0 | P42: =+J42-N42 -> 0 | Q42: 0 | R42: =+J42*E$7 -> 0
B44: Repairs & Maintenance
C45: Pickup/General Use Equipment | D45: 1 | F45: Acre | G45: 2.508196721 | I45: 2.508196721 | J45: =E45*H45 -> 0 | K45: 0 | M45: 0 | N45: =J45*L45 -> 0 | O45: 2.508196721 | P45: =+J45-N45 -> 0 | Q45: 306 | R45: =+J45*E$7 -> 0
C46: Irrigation Equipment | D46: 1 | F46: Acre | G46: 90 | I46: 90 | J46: 0 | K46: 0 | M46: 0 | N46: 0 | O46: 90 | P46: 0 | Q46: 10980 | R46: 0
C47: Tractors/Self-Propelled | D47: 1 | F47: Acre | G47: 0 | I47: 0 | J47: 0 | K47: 0 | M47: 0 | N47: 0 | O47: 0 | P47: 0 | Q47: 0 | R47: 0
C48: Implements | D48: 1 | F48: Acre | G48: 0 | I48: 0 | J48: 0 | K48: 0 | M48: 0 | N48: 0 | O48: 0 | P48: 0 | Q48: 0 | R48: 0
I49: 0 | J49: 0 | K49: 0 | M49: 0 | N49: 0 | O49: 0 | P49: 0 | Q49: 0 | R49: 0
I50: 0 | J50: 0 | K50: 0 | M50: 0 | N50: 0 | O50: 0 | P50: 0 | Q50: 0 | R50: 0
B51: Interest on Credit Line | G51: 0.0625 | I51: 5.483436969 | J51: =+SUM(J17:J50)/2*H51 -> 0 | M51: 0 | N51: =+SUM(N17:N50)/2*L51 -> 0 | O51: 5.483436969 | P51: =+SUM(P17:P50)/2*L51 -> 0 | Q51: 668.9793102 | R51: =+J51*E$7 -> 0
A52: Total Variable Costs | I52: 509.5349758 | J52: =SUM(J18:J51) -> 0 | M52: 0 | N52: =SUM(N18:N51) -> 0 | O52: 509.5349758 | P52: =SUM(P18:P51) -> 0 | Q52: 62163.26705 | R52: =SUM(R18:R51) -> 0
A53: Planned Returns Above Variable Costs: | I53: 755.4650242 | J53: =+J13-J52 -> 0 | M53: 0 | N53: =+N13-N52 -> 0 | O53: 755.4650242 | P53: =+P13-P52 -> 0 | Q53: 92166.73295 | R53: =+R13-R52 -> 0
B54: Breakeven Price to Cover Variable Costs | G54: 92.64272288 | H54: =IF(E10=0,"n/a",(YVarExp-(YTotExp+YTotRet-J10))/E10) -> n/a | I54: Ton
Q55: Enterprise | R55: Enterprise
A56: FIXED COSTS | D56: Quantity | E56: Quantity | F56: Units | G56: $/Unit | H56: $/Unit | I56: Total | J56: Total | K56: Share | L56: Share | M56: Landlord | N56: Landlord | O56: Tenant | P56: Tenant | Q56: Total | R56: Total
B57: Machinery Depreciation
C58: Pickup/General Use Equipment | D58: 1 | F58: Acre | G58: 2.633606557 | I58: 2.633606557 | J58: =E58*H58 -> 0 | K58: 0 | M58: 0 | N58: =J58*L58 -> 0 | O58: 2.633606557 | P58: =+J58-N58 -> 0 | Q58: 321.3 | R58: =+J58*E$7 -> 0
C59: Irrigation Equipment | D59: 1 | F59: Acre | G59: 47.33606557 | I59: 47.33606557 | J59: 0 | K59: 0 | M59: 0 | N59: =J59*L59 -> 0 | O59: 47.33606557 | P59: 0 | Q59: 5775 | R59: 0
B60: Equipment Investment
C61: Pickup/General Use Equipment | D61: 18.18442623 | F61: Dollars | G61: 0.0625 | I61: 1.136526639 | J61: =E61*H61 -> 0 | K61: 0 | M61: 0 | N61: =J61*L61 -> 0 | O61: 1.136526639 | P61: =+J61-N61 -> 0 | Q61: 138.65625 | R61: =+J61*E$7 -> 0
C62: Irrigation Equipment | D62: 571.7213115 | F62: Dollars | G62: 0.0625 | I62: 35.73258197 | J62: 0 | K62: 0 | M62: 0 | N62: =J62*L62 -> 0 | O62: 35.73258197 | P62: 0 | Q62: 4359.375 | R62: 0
B63: Salaried Labor | D63: 1 | F63: Acre | G63: 0 | I63: 0 | J63: 0 | K63: 0 | M63: 0 | N63: =J63*L63 -> 0 | O63: 0 | P63: =+J63-N63 -> 0 | Q63: 0 | R63: =+J63*E$7 -> 0
B64: Management Fee, Owner/Operator Labor | D64: 1 | F64: Acre | G64: 0 | I64: 0 | J64: 0 | K64: 0 | M64: 0 | N64: 0 | O64: 0 | P64: 0 | Q64: 0 | R64: 0
B65: Allocated Establishment Cost | D65: 1 | F65: Acre | G65: 76 | I65: 76 | J65: 0 | K65: 0 | M65: 0 | N65: 0 | O65: 76 | P65: 0 | Q65: 9272 | R65: 0
B66: Cash Rent - Alfalfa | D66: 1 | F66: Acre | G66: 100 | I66: 100 | J66: 0 | K66: 0 | M66: 0 | N66: 0 | O66: 100 | P66: 0 | Q66: 12200 | R66: 0
B67: Property Taxes | D67: 1 | F67: Acre | G67: 0 | I67: 0 | J67: 0 | K67: 0 | M67: 0 | N67: 0 | O67: 0 | P67: 0 | Q67: 0 | R67: 0
B68: Whole Farm Insurance | D68: 1 | F68: Acre | G68: 0 | I68: 0 | J68: 0 | K68: 0 | M68: 0 | N68: 0 | O68: 0 | P68: 0 | Q68: 0 | R68: 0
D69: 1 | G69: 0 | I69: 0 | J69: 0 | K69: 0 | M69: 0 | N69: 0 | O69: 0 | P69: 0 | Q69: 0 | R69: 0
D70: 1 | G70: 0 | I70: 0 | J70: =E70*H70 -> 0 | K70: 0 | M70: 0 | N70: 0 | O70: 0 | P70: 0 | Q70: 0 | R70: 0
A71: Total Fixed Costs | I71: 262.8387807 | J71: =+SUM(J58:J70) -> 0 | M71: 0 | N71: =+SUM(N58:N70) -> 0 | O71: 262.8387807 | P71: =+SUM(P58:P70) -> 0 | Q71: 32066.33125 | R71: =+SUM(R58:R70) -> 0
A72: Total Specified Costs | I72: 772.3737566 | J72: =+J52+J71 -> 0 | M72: 0 | N72: =+N52+N71 -> 0 | O72: 772.3737566 | P72: =+P52+P71 -> 0 | Q72: 94229.5983 | R72: =+R52+R71 -> 0
A74: Returns Above Specified Costs | I74: 492.6262434 | J74: =+J13-J72 -> 0 | M74: 0 | N74: =+N13-N72 -> 0 | O74: 492.6262434 | P74: =+P13-P72 -> 0 | Q74: 60100.4017 | R74: =+R13-R72 -> 0
A76: Breakeven Price to Cover Total Costs | G76: 140.4315921 | H76: =IF(E10=0,"n/a",(YTotExp-(YTotExp+YTotRet-J10))/E10) -> n/a | I76: Ton
D78: Example Breakeven Prices
B79: Example | C79: Example | D79: To Cover | G79: To Cover
B80: Yield | C80: Yield | D80: Variable | G80: Total
B81: Percent | C81: Ton | D81: Costs | G81: Costs
B82: 0.75 | C82: 4.125 | D82: 123.5236305 | G82: 187.2421228
B83: 0.9 | C83: 4.95 | D83: 102.9363588 | G83: 156.0351023
B84: 1 | C84: 5.5 | D84: 92.64272288 | G84: 140.4315921
B85: 1.1 | C85: 6.05 | D85: 84.22065716 | G85: 127.6650837
B86: 1.25 | C86: 6.875 | D86: 74.1141783 | G86: 112.3452737
A88: Developed by Justin Benavidez, Assistant Professor, Texas A&M AgriLife Extension, 806-677-5600.
A90: Information presented is prepared solely as a general guide and not intended to recognize or predict the costs and returns from any one operation. Brand names are mentioned only as examples and imply no endorsement.

Sheet CornSprinkler
A1: Projections for Planning Purposes Only -- Not to be Used without Updating
A2: 2021 Estimated Costs and Returns per Acre
A3: Bt Corn for Grain, Sprinkler Irrigated (NG)
A4: Enter your name for this budget in the cell above.
A5: Enter Your Values in the cells highlighed in MAROON.
E6: Your Acres | R6: Your
C7: Crop Acres | D7: 122 | L7: Your | Q7: Enterprise | R7: Enterprise
E8: Your | H8: Your | I8: Cash | J8: Your | K8: Landlord | L8: Landlord | N8: Your | P8: Your | Q8: Total | R8: Total
A9: REVENUE | D9: Quantity | E9: Quantity | F9: Units | G9: $/Unit | H9: $/Unit | I9: Total | J9: Total | K9: Share | L9: Share | M9: Landlord | N9: Landlord | O9: Tenant | P9: Tenant | Q9: (122 acres) | R9: ="(" & E7 & " acres)" -> ( acres)
B10: Corn | D10: 225 | F10: Bushel | G10: 4.222 | I10: 949.95 | J10: =E10*H10 -> 0 | K10: 0 | M10: 0 | N10: =J10*L10 -> 0 | O10: 949.95 | P10: =+J10-N10 -> 0 | Q10: 115893.9 | R10: =+J10*E$7 -> 0
D11: 0 | G11: 0 | I11: 0 | J11: 0 | K11: 0 | M11: 0 | N11: 0 | O11: 0 | P11: =+J11-N11 -> 0 | Q11: 0 | R11: 0
D12: 0 | G12: 0 | I12: 0 | J12: 0 | K12: 0 | M12: 0 | N12: 0 | O12: 0 | P12: 0 | Q12: 0 | R12: 0
A13: Total Revenue | I13: 949.95 | J13: =SUM(J10:J12) -> 0 | M13: 0 | N13: =SUM(N10:N12) -> 0 | O13: 949.95 | P13: =SUM(P10:P12) -> 0 | Q13: 115893.9 | R13: =SUM(R10:R12) -> 0
Q14: Enterprise | R14: Enterprise
A15: VARIABLE COSTS | D15: Quantity | E15: Quantity | F15: Units | G15: $/Unit | H15: $/Unit | I15: Total | J15: Total | K15: Share | L15: Share | M15: Landlord | N15: Landlord | O15: Tenant | P15: Tenant | Q15: Total | R15: Total
A16: Production Costs
B17: Custom
C18: Fertilizer Application - ANH3 | D18: 1 | F18: Acre | G18: 16.05140335 | I18: 16.05140335 | J18: =E18*H18 -> 0 | K18: 0 | M18: 0 | N18: =J18*L18 -> 0 | O18: 16.05140335 | P18: =+J18-N18 -> 0 | Q18: 1958.271209 | R18: =+J18*E$7 -> 0
C19: Crop Consultant | D19: 1 | F19: Acre | G19: 8.253873484 | I19: 8.253873484 | J19: 0 | K19: 0 | M19: 0 | N19: 0 | O19: 8.253873484 | P19: 0 | Q19: 1006.972565 | R19: 0
C20: Harvest and Haul - Corn | D20: 225 | F20: Bushel | G20: 0.4284554281 | I20: 96.40247132 | J20: 0 | K20: 0 | M20: 0 | N20: 0 | O20: 96.40247132 | P20: 0 | Q20: 11761.1015 | R20: 0
B21: Fertilizer
C22: Fertilizer (P) - Liquid | D22: 90 | F22: Pound | G22: 0.49 | I22: 44.1 | J22: 0 | K22: 0 | M22: 0 | N22: 0 | O22: 44.1 | P22: 0 | Q22: 5380.2 | R22: 0
C23: Fertilizer (N) - ANH3 | D23: 140 | F23: Pound | G23: 0.3 | I23: 42 | J23: 0 | K23: 0 | M23: 0 | N23: 0 | O23: 42 | P23: 0 | Q23: 5124 | R23: 0
C24: Fertilizer (N) - Liquid | D24: 85 | F24: Pound | G24: 0.5 | I24: 42.5 | J24: 0 | K24: 0 | M24: 0 | N24: 0 | O24: 42.5 | P24: 0 | Q24: 5185 | R24: 0
B25: Herbicide
C26: Herbicide - Corn Preplant | D26: 1 | F26: Acre | G26: 19.28032258 | I26: 19.28032258 | J26: 0 | K26: 0 | M26: 0 | N26: 0 | O26: 19.28032258 | P26: 0 | Q26: 2352.199355 | R26: 0
C27: Herbicide - Corn Postplant | D27: 1 | F27: Acre | G27: 17.40701613 | I27: 17.40701613 | J27: 0 | K27: 0 | M27: 0 | N27: 0 | O27: 17.40701613 | P27: 0 | Q27: 2123.655968 | R27: 0
B28: Insecticide
C29: Miticide | D29: 1 | F29: Acre | G29: 22.87264854 | I29: 22.87264854 | J29: 0 | K29: 0 | M29: 0 | N29: 0 | O29: 22.87264854 | P29: 0 | Q29: 2790.463122 | R29: 0
B30: Miscellaneous
C31: Crop Insurance Corn Irrigated | D31: 1 | F31: Acre | G31: 40.15 | I31: 40.15 | J31: 0 | K31: 0 | M31: 0 | N31: 0 | O31: 40.15 | P31: 0 | Q31: 4898.3 | R31: 0
B32: Seed
C33: Seed - Bt Corn for Grain | D33: 0.38 | F33: Bag | G33: 248.6740804 | I33: 94.49615056 | J33: 0 | K33: 0 | M33: 0 | N33: 0 | O33: 94.49615056 | P33: 0 | Q33: 11528.53037 | R33: 0
D34: 0 | G34: 0 | I34: 0 | J34: 0 | K34: 0 | M34: 0 | N34: 0 | O34: 0 | P34: 0 | Q34: 0 | R34: 0
D35: 0 | G35: 0 | I35: 0 | J35: 0 | K35: 0 | M35: 0 | N35: 0 | O35: 0 | P35: 0 | Q35: 0 | R35: 0
D36: 0 | G36: 0 | I36: 0 | J36: =E36*H36 -> 0 | K36: 0 | M36: 0 | N36: =J36*L36 -> 0 | O36: 0 | P36: =+J36-N36 -> 0 | Q36: 0 | R36: =+J36*E$7 -> 0
B37: Irrigation
C38: Energy Cost | D38: 22 | F38: AcreInch | G38: 3.35 | I38: 73.7 | J38: =E38*H38 -> 0 | K38: 0 | M38: 0 | N38: =J38*L38 -> 0 | O38: 73.7 | P38: =+J38-N38 -> 0 | Q38: 8991.4 | R38: =+J38*E$7 -> 0
C39: Irrigation Labor | D39: 1.344 | F39: Hour | G39: 13.65 | I39: 18.3456 | J39: 0 | K39: 0 | M39: 0 | N39: 0 | O39: 18.3456 | P39: 0 | Q39: 2238.1632 | R39: 0
B40: Machinery Labor
C41: Tractors/Self-Propelled | D41: 0.46 | F41: Hour | G41: 13.43 | I41: 6.1778 | J41: =E41*H41 -> 0 | K41: 0 | M41: 0 | N41: =J41*L41 -> 0 | O41: 6.1778 | P41: =+J41-N41 -> 0 | Q41: 753.6916 | R41: =+J41*E$7 -> 0
C42: Other Labor | D42: 0.53 | F42: Hour | G42: 13.43 | I42: 7.1179 | J42: =E42*H42 -> 0 | K42: 0 | M42: 0 | N42: =J42*L42 -> 0 | O42: 7.1179 | P42: =+J42-N42 -> 0 | Q42: 868.3838 | R42: =+J42*E$7 -> 0
B44: Diesel Fuel
C45: Pickup/General Use Equipment | D45: 1 | F45: Acre | G45: 0 | I45: 0 | J45: =E45*H45 -> 0 | K45: 0 | M45: 0 | N45: =J45*L45 -> 0 | O45: 0 | P45: =+J45-N45 -> 0 | Q45: 0 | R45: =+J45*E$7 -> 0
C46: Tractors/Self-Propelled | D46: 2.66 | F46: Gallon | G46: 2.1902 | I46: 5.825932 | J46: =E46*H46 -> 0 | K46: 0 | M46: 0 | N46: =J46*L46 -> 0 | O46: 5.825932 | P46: =+J46-N46 -> 0 | Q46: 710.763704 | R46: =+J46*E$7 -> 0
B48: Gasoline
C49: Pickup/General Use Equipment | D49: 1 | F49: Acre | G49: 7.801229508 | I49: 7.801229508 | J49: =E49*H49 -> 0 | K49: 0 | M49: 0 | N49: =J49*L49 -> 0 | O49: 7.801229508 | P49: =+J49-N49 -> 0 | Q49: 951.75 | R49: =+J49*E$7 -> 0
C50: Tractors/Self-Propelled | D50: 0 | F50: Gallon | G50: 2.538 | I50: 0 | J50: =E50*H50 -> 0 | K50: 0 | M50: 0 | N50: =J50*L50 -> 0 | O50: 0 | P50: =+J50-N50 -> 0 | Q50: 0 | R50: =+J50*E$7 -> 0
B52: Repairs & Maintenance
C53: Pickup/General Use Equipment | D53: 1 | F53: Acre | G53: 3.762295082 | I53: 3.762295082 | J53: =E53*H53 -> 0 | K53: 0 | M53: 0 | N53: =J53*L53 -> 0 | O53: 3.762295082 | P53: =+J53-N53 -> 0 | Q53: 459 | R53: =+J53*E$7 -> 0
C54: Irrigation Equipment | D54: 1 | F54: Acre | G54: 82.5 | I54: 82.5 | J54: 0 | K54: 0 | M54: 0 | N54: 0 | O54: 82.5 | P54: 0 | Q54: 10065 | R54: 0
C55: Tractors/Self-Propelled | D55: 1 | F55: Acre | G55: 4.972528797 | I55: 4.972528797 | J55: 0 | K55: 0 | M55: 0 | N55: 0 | O55: 4.972528797 | P55: 0 | Q55: 606.6485133 | R55: 0
C56: Implements | D56: 1 | F56: Acre | G56: 12.75809181 | I56: 12.75809181 | J56: 0 | K56: 0 | M56: 0 | N56: 0 | O56: 12.75809181 | P56: 0 | Q56: 1556.4872 | R56: 0
I57: 0 | J57: 0 | K57: 0 | M57: 0 | N57: 0 | O57: 0 | P57: 0 | Q57: 0 | R57: 0
I58: 0 | J58: 0 | K58: 0 | M58: 0 | N58: 0 | O58: 0 | P58: 0 | Q58: 0 | R58: 0
B59: Interest on Credit Line | G59: 0.0625 | I59: 12.89006693 | J59: =+SUM(J17:J58)/2*H59 -> 0 | M59: 0 | N59: =+SUM(N17:N58)/2*L59 -> 0 | O59: 12.89006693 | P59: =+SUM(P17:P58)/2*L59 -> 0 | Q59: 1572.588166 | R59: =+J59*E$7 -> 0
A60: Total Variable Costs | I60: 679.3653301 | J60: =SUM(J18:J59) -> 0 | M60: 0 | N60: =SUM(N18:N59) -> 0 | O60: 679.3653301 | P60: =SUM(P18:P59) -> 0 | Q60: 82882.57027 | R60: =SUM(R18:R59) -> 0
A61: Planned Returns Above Variable Costs: | I61: 270.5846699 | J61: =+J13-J60 -> 0 | M61: 0 | N61: =+N13-N60 -> 0 | O61: 270.5846699 | P61: =+P13-P60 -> 0 | Q61: 33011.32973 | R61: =+R13-R60 -> 0
B62: Breakeven Price to Cover Variable Costs | G62: 3.019401467 | H62: =IF(E10=0,"n/a",(YVarExp-(YTotExp+YTotRet-J10))/E10) -> n/a | I62: Bushel
Q63: Enterprise | R63: Enterprise
A64: FIXED COSTS | D64: Quantity | E64: Quantity | F64: Units | G64: $/Unit | H64: $/Unit | I64: Total | J64: Total | K64: Share | L64: Share | M64: Landlord | N64: Landlord | O64: Tenant | P64: Tenant | Q64: Total | R64: Total
B65: Machinery Depreciation
C66: Pickup/General Use Equipment | D66: 1 | F66: Acre | G66: 3.950409836 | I66: 3.950409836 | J66: =E66*H66 -> 0 | K66: 0 | M66: 0 | N66: =J66*L66 -> 0 | O66: 3.950409836 | P66: =+J66-N66 -> 0 | Q66: 481.95 | R66: =+J66*E$7 -> 0
C67: Irrigation Equipment | D67: 1 | F67: Acre | G67: 47.33606557 | I67: 47.33606557 | J67: 0 | K67: 0 | M67: 0 | N67: =J67*L67 -> 0 | O67: 47.33606557 | P67: 0 | Q67: 5775 | R67: 0
C68: Tractors/Self-Propelled | D68: 1 | F68: Acre | G68: 4.92483044 | I68: 4.92483044 | J68: 0 | K68: 0 | M68: 0 | N68: =J68*L68 -> 0 | O68: 4.92483044 | P68: 0 | Q68: 600.8293137 | R68: 0
C69: Implements | D69: 1 | F69: Acre | G69: 16.14061645 | I69: 16.14061645 | J69: 0 | K69: 0 | M69: 0 | N69: =J69*L69 -> 0 | O69: 16.14061645 | P69: 0 | Q69: 1969.155207 | R69: 0
B70: Equipment Investment
C71: Pickup/General Use Equipment | D71: 27.27663934 | F71: Dollars | G71: 0.0625 | I71: 1.704789959 | J71: =E71*H71 -> 0 | K71: 0 | M71: 0 | N71: =J71*L71 -> 0 | O71: 1.704789959 | P71: =+J71-N71 -> 0 | Q71: 207.984375 | R71: =+J71*E$7 -> 0
C72: Irrigation Equipment | D72: 571.7213115 | F72: Dollars | G72: 0.0625 | I72: 35.73258197 | J72: 0 | K72: 0 | M72: 0 | N72: =J72*L72 -> 0 | O72: 35.73258197 | P72: 0 | Q72: 4359.375 | R72: 0
C73: Tractors/Self-Propelled | D73: 38.36601778 | F73: Dollars | G73: 0.0625 | I73: 2.397876112 | J73: 0 | K73: 0 | M73: 0 | N73: =J73*L73 -> 0 | O73: 2.397876112 | P73: 0 | Q73: 292.5408856 | R73: 0
C74: Implements | D74: 69.04597036 | F74: Dollars | G74: 0.0625 | I74: 4.315373148 | J74: 0 | K74: 0 | M74: 0 | N74: =J74*L74 -> 0 | O74: 4.315373148 | P74: 0 | Q74: 526.475524 | R74: 0
B75: Salaried Labor | D75: 1 | F75: Acre | G75: 0 | I75: 0 | J75: 0 | K75: 0 | M75: 0 | N75: =J75*L75 -> 0 | O75: 0 | P75: =+J75-N75 -> 0 | Q75: 0 | R75: =+J75*E$7 -> 0
B76: Management Fee, Owner/Operator Labor | D76: 1 | F76: Acre | G76: 0 | I76: 0 | J76: 0 | K76: 0 | M76: 0 | N76: 0 | O76: 0 | P76: 0 | Q76: 0 | R76: 0
B77: Allocated Establishment Cost | D77: 1 | F77: Acre | G77: 0 | I77: 0 | J77: 0 | K77: 0 | M77: 0 | N77: 0 | O77: 0 | P77: 0 | Q77: 0 | R77: 0
B78: Cash Rent - Corn | D78: 1 | F78: Acre | G78: 100 | I78: 100 | J78: 0 | K78: 0 | M78: 0 | N78: 0 | O78: 100 | P78: 0 | Q78: 12200 | R78: 0
B79: Property Taxes | D79: 1 | F79: Acre | G79: 0 | I79: 0 | J79: 0 | K79: 0 | M79: 0 | N79: 0 | O79: 0 | P79: 0 | Q79: 0 | R79: 0
B80: Whole Farm Insurance | D80: 1 | F80: Acre | G80: 0 | I80: 0 | J80: 0 | K80: 0 | M80: 0 | N80: 0 | O80: 0 | P80: 0 | Q80: 0 | R80: 0
D81: 1 | G81: 0 | I81: 0 | J81: 0 | K81: 0 | M81: 0 | N81: 0 | O81: 0 | P81: 0 | Q81: 0 | R81: 0
D82: 1 | G82: 0 | I82: 0 | J82: =E82*H82 -> 0 | K82: 0 | M82: 0 | N82: 0 | O82: 0 | P82: 0 | Q82: 0 | R82: 0
A83: Total Fixed Costs | I83: 216.5025435 | J83: =+SUM(J66:J82) -> 0 | M83: 0 | N83: =+SUM(N66:N82) -> 0 | O83: 216.5025435 | P83: =+SUM(P66:P82) -> 0 | Q83: 26413.3103 | R83: =+SUM(R66:R82) -> 0
A84: Total Specified Costs | I84: 895.8678736 | J84: =+J60+J83 -> 0 | M84: 0 | N84: =+N60+N83 -> 0 | O84: 895.8678736 | P84: =+P60+P83 -> 0 | Q84: 109295.8806 | R84: =+R60+R83 -> 0
A86: Returns Above Specified Costs | I86: 54.08212643 | J86: =+J13-J84 -> 0 | M86: 0 | N86: =+N13-N84 -> 0 | O86: 54.08212643 | P86: =+P13-P84 -> 0 | Q86: 6598.019425 | R86: =+R13-R84 -> 0
A88: Breakeven Price to Cover Total Costs | G88: 3.981634994 | H88: =IF(E10=0,"n/a",(YTotExp-(YTotExp+YTotRet-J10))/E10) -> n/a | I88: Bushel
D90: Example Breakeven Prices
B91: Example | C91: Example | D91: To Cover | G91: To Cover
B92: Yield | C92: Yield | D92: Variable | G92: Total
B93: Percent | C93: Bushel | D93: Costs | G93: Costs
B94: 0.75 | C94: 168.75 | D94: 4.025868623 | G94: 5.308846658
B95: 0.9 | C95: 202.5 | D95: 3.354890519 | G95: 4.424038882
B96: 1 | C96: 225 | D96: 3.019401467 | G96: 3.981634994
B97: 1.1 | C97: 247.5 | D97: 2.744910425 | G97: 3.619668176
B98: 1.25 | C98: 281.25 | D98: 2.415521174 | G98: 3.185307995
A100: Developed by Justin Benavidez, Assistant Professor, Texas A&M AgriLife Extension, 806-677-5600.
A102: Information presented is prepared solely as a general guide and not intended to recognize or predict the costs and returns from any one operation. Brand names are mentioned only as examples and imply no endorsement.

Sheet CornStripTill
A1: Projections for Planning Purposes Only -- Not to be Used without Updating
A2: 2021 Estimated Costs and Returns per Acre
A3: Bt Corn for Grain, Strip Till
A4: Enter your name for this budget in the cell above.
A5: Enter Your Values in the cells highlighed in MAROON.
E6: Your Acres | R6: Your
C7: Crop Acres | D7: 122 | L7: Your | Q7: Enterprise | R7: Enterprise
E8: Your | H8: Your | I8: Cash | J8: Your | K8: Landlord | L8: Landlord | N8: Your | P8: Your | Q8: Total | R8: Total
A9: REVENUE | D9: Quantity | E9: Quantity | F9: Units | G9: $/Unit | H9: $/Unit | I9: Total | J9: Total | K9: Share | L9: Share | M9: Landlord | N9: Landlord | O9: Tenant | P9: Tenant | Q9: (122 acres) | R9: ="(" & E7 & " acres)" -> ( acres)
B10: Corn | D10: 225 | F10: Bushel | G10: 4.222 | I10: 949.95 | J10: =E10*H10 -> 0 | K10: 0 | M10: 0 | N10: =J10*L10 -> 0 | O10: 949.95 | P10: =+J10-N10 -> 0 | Q10: 115893.9 | R10: =+J10*E$7 -> 0
D11: 0 | G11: 0 | I11: 0 | J11: 0 | K11: 0 | M11: 0 | N11: 0 | O11: 0 | P11: =+J11-N11 -> 0 | Q11: 0 | R11: 0
D12: 0 | G12: 0 | I12: 0 | J12: 0 | K12: 0 | M12: 0 | N12: 0 | O12: 0 | P12: 0 | Q12: 0 | R12: 0
A13: Total Revenue | I13: 949.95 | J13: =SUM(J10:J12) -> 0 | M13: 0 | N13: =SUM(N10:N12) -> 0 | O13: 949.95 | P13: =SUM(P10:P12) -> 0 | Q13: 115893.9 | R13: =SUM(R10:R12) -> 0
Q14: Enterprise | R14: Enterprise
A15: VARIABLE COSTS | D15: Quantity | E15: Quantity | F15: Units | G15: $/Unit | H15: $/Unit | I15: Total | J15: Total | K15: Share | L15: Share | M15: Landlord | N15: Landlord | O15: Tenant | P15: Tenant | Q15: Total | R15: Total
A16: Production Costs
B17: Custom
C18: Fertilizer Application - ANH3 | D18: 1 | F18: Acre | G18: 16.05140335 | I18: 16.05140335 | J18: =E18*H18 -> 0 | K18: 0 | M18: 0 | N18: =J18*L18 -> 0 | O18: 16.05140335 | P18: =+J18-N18 -> 0 | Q18: 1958.271209 | R18: =+J18*E$7 -> 0
C19: Crop Consultant | D19: 1 | F19: Acre | G19: 8.253873484 | I19: 8.253873484 | J19: 0 | K19: 0 | M19: 0 | N19: 0 | O19: 8.253873484 | P19: 0 | Q19: 1006.972565 | R19: 0
C20: Harvest and Haul - Corn | D20: 225 | F20: Bushel | G20: 0.4284554281 | I20: 96.40247132 | J20: 0 | K20: 0 | M20: 0 | N20: 0 | O20: 96.40247132 | P20: 0 | Q20: 11761.1015 | R20: 0
C21: Strip Till | D21: 1 | F21: Acre | G21: 21.40187114 | I21: 21.40187114 | J21: 0 | K21: 0 | M21: 0 | N21: 0 | O21: 21.40187114 | P21: 0 | Q21: 2611.028279 | R21: 0
B22: Fertilizer
C23: Fertilizer (P) - Liquid | D23: 90 | F23: Pound | G23: 0.49 | I23: 44.1 | J23: 0 | K23: 0 | M23: 0 | N23: 0 | O23: 44.1 | P23: 0 | Q23: 5380.2 | R23: 0
C24: Fertilizer (N) - ANH3 | D24: 140 | F24: Pound | G24: 0.3 | I24: 42 | J24: 0 | K24: 0 | M24: 0 | N24: 0 | O24: 42 | P24: 0 | Q24: 5124 | R24: 0
C25: Fertilizer (N) - Liquid | D25: 85 | F25: Pound | G25: 0.5 | I25: 42.5 | J25: 0 | K25: 0 | M25: 0 | N25: 0 | O25: 42.5 | P25: 0 | Q25: 5185 | R25: 0
B26: Herbicide
C27: Herbicide - Corn Preplant | D27: 1 | F27: Acre | G27: 19.28032258 | I27: 19.28032258 | J27: 0 | K27: 0 | M27: 0 | N27: 0 | O27: 19.28032258 | P27: 0 | Q27: 2352.199355 | R27: 0
C28: Herbicide - Corn Postplant | D28: 1 | F28: Acre | G28: 17.40701613 | I28: 17.40701613 | J28: 0 | K28: 0 | M28: 0 | N28: 0 | O28: 17.40701613 | P28: 0 | Q28: 2123.655968 | R28: 0
C29: Burndown Herbicide | D29: 1 | F29: Acre | G29: 21.05891129 | I29: 21.05891129 | J29: 0 | K29: 0 | M29: 0 | N29: 0 | O29: 21.05891129 | P29: 0 | Q29: 2569.187177 | R29: 0
B30: Insecticide
C31: Miticide | D31: 1 | F31: Acre | G31: 22.87264854 | I31: 22.87264854 | J31: 0 | K31: 0 | M31: 0 | N31: 0 | O31: 22.87264854 | P31: 0 | Q31: 2790.463122 | R31: 0
B32: Miscellaneous
C33: Crop Insurance Corn Irrigated | D33: 1 | F33: Acre | G33: 40.15 | I33: 40.15 | J33: 0 | K33: 0 | M33: 0 | N33: 0 | O33: 40.15 | P33: 0 | Q33: 4898.3 | R33: 0
B34: Seed
C35: Seed - Bt Corn for Grain | D35: 0.38 | F35: Bag | G35: 248.6740804 | I35: 94.49615056 | J35: 0 | K35: 0 | M35: 0 | N35: 0 | O35: 94.49615056 | P35: 0 | Q35: 11528.53037 | R35: 0
D36: 0 | G36: 0 | I36: 0 | J36: 0 | K36: 0 | M36: 0 | N36: 0 | O36: 0 | P36: 0 | Q36: 0 | R36: 0
D37: 0 | G37: 0 | I37: 0 | J37: 0 | K37: 0 | M37: 0 | N37: 0 | O37: 0 | P37: 0 | Q37: 0 | R37: 0
D38: 0 | G38: 0 | I38: 0 | J38: =E38*H38 -> 0 | K38: 0 | M38: 0 | N38: =J38*L38 -> 0 | O38: 0 | P38: =+J38-N38 -> 0 | Q38: 0 | R38: =+J38*E$7 -> 0
B39: Irrigation
C40: Energy Cost | D40: 20 | F40: AcreInch | G40: 3.35 | I40: 67 | J40: =E40*H40 -> 0 | K40: 0 | M40: 0 | N40: =J40*L40 -> 0 | O40: 67 | P40: =+J40-N40 -> 0 | Q40: 8174 | R40: =+J40*E$7 -> 0
C41: Irrigation Labor | D41: 1.28 | F41: Hour | G41: 13.65 | I41: 17.472 | J41: 0 | K41: 0 | M41: 0 | N41: 0 | O41: 17.472 | P41: 0 | Q41: 2131.584 | R41: 0
B42: Machinery Labor
C43: Tractors/Self-Propelled | D43: 0.15 | F43: Hour | G43: 13.43 | I43: 2.0145 | J43: =E43*H43 -> 0 | K43: 0 | M43: 0 | N43: =J43*L43 -> 0 | O43: 2.0145 | P43: =+J43-N43 -> 0 | Q43: 245.769 | R43: =+J43*E$7 -> 0
C44: Other Labor | D44: 0.15 | F44: Hour | G44: 13.43 | I44: 2.0145 | J44: =E44*H44 -> 0 | K44: 0 | M44: 0 | N44: =J44*L44 -> 0 | O44: 2.0145 | P44: =+J44-N44 -> 0 | Q44: 245.769 | R44: =+J44*E$7 -> 0
B46: Diesel Fuel
C47: Pickup/General Use Equipment | D47: 1 | F47: Acre | G47: 0 | I47: 0 | J47: =E47*H47 -> 0 | K47: 0 | M47: 0 | N47: =J47*L47 -> 0 | O47: 0 | P47: =+J47-N47 -> 0 | Q47: 0 | R47: =+J47*E$7 -> 0
C48: Tractors/Self-Propelled | D48: 0.65 | F48: Gallon | G48: 2.1902 | I48: 1.42363 | J48: =E48*H48 -> 0 | K48: 0 | M48: 0 | N48: =J48*L48 -> 0 | O48: 1.42363 | P48: =+J48-N48 -> 0 | Q48: 173.68286 | R48: =+J48*E$7 -> 0
B50: Gasoline
C51: Pickup/General Use Equipment | D51: 1 | F51: Acre | G51: 7.801229508 | I51: 7.801229508 | J51: =E51*H51 -> 0 | K51: 0 | M51: 0 | N51: =J51*L51 -> 0 | O51: 7.801229508 | P51: =+J51-N51 -> 0 | Q51: 951.75 | R51: =+J51*E$7 -> 0
C52: Tractors/Self-Propelled | D52: 0 | F52: Gallon | G52: 2.538 | I52: 0 | J52: =E52*H52 -> 0 | K52: 0 | M52: 0 | N52: =J52*L52 -> 0 | O52: 0 | P52: =+J52-N52 -> 0 | Q52: 0 | R52: =+J52*E$7 -> 0
B54: Repairs & Maintenance
C55: Pickup/General Use Equipment | D55: 1 | F55: Acre | G55: 3.762295082 | I55: 3.762295082 | J55: =E55*H55 -> 0 | K55: 0 | M55: 0 | N55: =J55*L55 -> 0 | O55: 3.762295082 | P55: =+J55-N55 -> 0 | Q55: 459 | R55: =+J55*E$7 -> 0
C56: Irrigation Equipment | D56: 1 | F56: Acre | G56: 75 | I56: 75 | J56: 0 | K56: 0 | M56: 0 | N56: 0 | O56: 75 | P56: 0 | Q56: 9150 | R56: 0
C57: Tractors/Self-Propelled | D57: 1 | F57: Acre | G57: 1.032819275 | I57: 1.032819275 | J57: 0 | K57: 0 | M57: 0 | N57: 0 | O57: 1.032819275 | P57: 0 | Q57: 126.0039516 | R57: 0
C58: Implements | D58: 1 | F58: Acre | G58: 8.941123835 | I58: 8.941123835 | J58: 0 | K58: 0 | M58: 0 | N58: 0 | O58: 8.941123835 | P58: 0 | Q58: 1090.817108 | R58: 0
I59: 0 | J59: 0 | K59: 0 | M59: 0 | N59: 0 | O59: 0 | P59: 0 | Q59: 0 | R59: 0
I60: 0 | J60: 0 | K60: 0 | M60: 0 | N60: 0 | O60: 0 | P60: 0 | Q60: 0 | R60: 0
B61: Interest on Credit Line | G61: 0.0625 | I61: 13.91486456 | J61: =+SUM(J17:J60)/2*H61 -> 0 | M61: 0 | N61: =+SUM(N17:N60)/2*L61 -> 0 | O61: 13.91486456 | P61: =+SUM(P17:P60)/2*L61 -> 0 | Q61: 1697.613476 | R61: =+J61*E$7 -> 0
A62: Total Variable Costs | I62: 686.3516306 | J62: =SUM(J18:J61) -> 0 | M62: 0 | N62: =SUM(N18:N61) -> 0 | O62: 686.3516306 | P62: =SUM(P18:P61) -> 0 | Q62: 83734.89894 | R62: =SUM(R18:R61) -> 0
A63: Planned Returns Above Variable Costs: | I63: 263.5983694 | J63: =+J13-J62 -> 0 | M63: 0 | N63: =+N13-N62 -> 0 | O63: 263.5983694 | P63: =+P13-P62 -> 0 | Q63: 32159.00106 | R63: =+R13-R62 -> 0
B64: Breakeven Price to Cover Variable Costs | G64: 3.050451692 | H64: =IF(E10=0,"n/a",(YVarExp-(YTotExp+YTotRet-J10))/E10) -> n/a | I64: Bushel
Q65: Enterprise | R65: Enterprise
A66: FIXED COSTS | D66: Quantity | E66: Quantity | F66: Units | G66: $/Unit | H66: $/Unit | I66: Total | J66: Total | K66: Share | L66: Share | M66: Landlord | N66: Landlord | O66: Tenant | P66: Tenant | Q66: Total | R66: Total
B67: Machinery Depreciation
C68: Pickup/General Use Equipment | D68: 1 | F68: Acre | G68: 3.950409836 | I68: 3.950409836 | J68: =E68*H68 -> 0 | K68: 0 | M68: 0 | N68: =J68*L68 -> 0 | O68: 3.950409836 | P68: =+J68-N68 -> 0 | Q68: 481.95 | R68: =+J68*E$7 -> 0
C69: Irrigation Equipment | D69: 1 | F69: Acre | G69: 47.33606557 | I69: 47.33606557 | J69: 0 | K69: 0 | M69: 0 | N69: =J69*L69 -> 0 | O69: 47.33606557 | P69: 0 | Q69: 5775 | R69: 0
C70: Tractors/Self-Propelled | D70: 1 | F70: Acre | G70: 0.8537972676 | I70: 0.8537972676 | J70: 0 | K70: 0 | M70: 0 | N70: =J70*L70 -> 0 | O70: 0.8537972676 | P70: 0 | Q70: 104.1632666 | R70: 0
C71: Implements | D71: 1 | F71: Acre | G71: 11.49573064 | I71: 11.49573064 | J71: 0 | K71: 0 | M71: 0 | N71: =J71*L71 -> 0 | O71: 11.49573064 | P71: 0 | Q71: 1402.479139 | R71: 0
B72: Equipment Investment
C73: Pickup/General Use Equipment | D73: 27.27663934 | F73: Dollars | G73: 0.0625 | I73: 1.704789959 | J73: =E73*H73 -> 0 | K73: 0 | M73: 0 | N73: =J73*L73 -> 0 | O73: 1.704789959 | P73: =+J73-N73 -> 0 | Q73: 207.984375 | R73: =+J73*E$7 -> 0
C74: Irrigation Equipment | D74: 571.7213115 | F74: Dollars | G74: 0.0625 | I74: 35.73258197 | J74: 0 | K74: 0 | M74: 0 | N74: =J74*L74 -> 0 | O74: 35.73258197 | P74: 0 | Q74: 4359.375 | R74: 0
C75: Tractors/Self-Propelled | D75: 6.651356133 | F75: Dollars | G75: 0.0625 | I75: 0.4157097583 | J75: 0 | K75: 0 | M75: 0 | N75: =J75*L75 -> 0 | O75: 0.4157097583 | P75: 0 | Q75: 50.71659051 | R75: 0
C76: Implements | D76: 49.17618109 | F76: Dollars | G76: 0.0625 | I76: 3.073511318 | J76: 0 | K76: 0 | M76: 0 | N76: =J76*L76 -> 0 | O76: 3.073511318 | P76: 0 | Q76: 374.9683808 | R76: 0
B77: Salaried Labor | D77: 1 | F77: Acre | G77: 0 | I77: 0 | J77: 0 | K77: 0 | M77: 0 | N77: =J77*L77 -> 0 | O77: 0 | P77: =+J77-N77 -> 0 | Q77: 0 | R77: =+J77*E$7 -> 0
B78: Management Fee, Owner/Operator Labor | D78: 1 | F78: Acre | G78: 0 | I78: 0 | J78: 0 | K78: 0 | M78: 0 | N78: 0 | O78: 0 | P78: 0 | Q78: 0 | R78: 0
B79: Allocated Establishment Cost | D79: 1 | F79: Acre | G79: 0 | I79: 0 | J79: 0 | K79: 0 | M79: 0 | N79: 0 | O79: 0 | P79: 0 | Q79: 0 | R79: 0
B80: Cash Rent - Corn | D80: 1 | F80: Acre | G80: 100 | I80: 100 | J80: 0 | K80: 0 | M80: 0 | N80: 0 | O80: 100 | P80: 0 | Q80: 12200 | R80: 0
B81: Property Taxes | D81: 1 | F81: Acre | G81: 0 | I81: 0 | J81: 0 | K81: 0 | M81: 0 | N81: 0 | O81: 0 | P81: 0 | Q81: 0 | R81: 0
B82: Whole Farm Insurance | D82: 1 | F82: Acre | G82: 0 | I82: 0 | J82: 0 | K82: 0 | M82: 0 | N82: 0 | O82: 0 | P82: 0 | Q82: 0 | R82: 0
D83: 1 | G83: 0 | I83: 0 | J83: 0 | K83: 0 | M83: 0 | N83: 0 | O83: 0 | P83: 0 | Q83: 0 | R83: 0
D84: 1 | G84: 0 | I84: 0 | J84: =E84*H84 -> 0 | K84: 0 | M84: 0 | N84: 0 | O84: 0 | P84: 0 | Q84: 0 | R84: 0
A85: Total Fixed Costs | I85: 204.5625963 | J85: =+SUM(J68:J84) -> 0 | M85: 0 | N85: =+SUM(N68:N84) -> 0 | O85: 204.5625963 | P85: =+SUM(P68:P84) -> 0 | Q85: 24956.63675 | R85: =+SUM(R68:R84) -> 0
A86: Total Specified Costs | I86: 890.914227 | J86: =+J62+J85 -> 0 | M86: 0 | N86: =+N62+N85 -> 0 | O86: 890.914227 | P86: =+P62+P85 -> 0 | Q86: 108691.5357 | R86: =+R62+R85 -> 0
A88: Returns Above Specified Costs | I88: 59.03577303 | J88: =+J13-J86 -> 0 | M88: 0 | N88: =+N13-N86 -> 0 | O88: 59.03577303 | P88: =+P13-P86 -> 0 | Q88: 7202.36431 | R88: =+R13-R86 -> 0
A90: Breakeven Price to Cover Total Costs | G90: 3.959618787 | H90: =IF(E10=0,"n/a",(YTotExp-(YTotExp+YTotRet-J10))/E10) -> n/a | I90: Bushel
D92: Example Breakeven Prices
B93: Example | C93: Example | D93: To Cover | G93: To Cover
B94: Yield | C94: Yield | D94: Variable | G94: Total
B95: Percent | C95: Bushel | D95: Costs | G95: Costs
B96: 0.75 | C96: 168.75 | D96: 4.067268922 | G96: 5.279491715
B97: 0.9 | C97: 202.5 | D97: 3.389390769 | G97: 4.399576429
B98: 1 | C98: 225 | D98: 3.050451692 | G98: 3.959618787
B99: 1.1 | C99: 247.5 | D99: 2.773137902 | G99: 3.599653442
B100: 1.25 | C100: 281.25 | D100: 2.440361353 | G100: 3.167695029
A102: Developed by Justin Benavidez, Assistant Professor, Texas A&M AgriLife Extension, 806-677-5600.
A104: Information presented is prepared solely as a general guide and not intended to recognize or predict the costs and returns from any one operation. Brand names are mentioned only as examples and imply no endorsement.

Sheet CornSilage
A1: Projections for Planning Purposes Only -- Not to be Used without Updating
A2: 2021 Estimated Costs and Returns per Acre
A3: Corn Silage, Bt, Sprinkler Irrigated (NG)
A4: Enter your name for this budget in the cell above.
A5: Enter Your Values in the cells highlighed in MAROON.
E6: Your Acres | R6: Your
C7: Crop Acres | D7: 122 | L7: Your | Q7: Enterprise | R7: Enterprise
E8: Your | H8: Your | I8: Cash | J8: Your | K8: Landlord | L8: Landlord | N8: Your | P8: Your | Q8: Total | R8: Total
A9: REVENUE | D9: Quantity | E9: Quantity | F9: Units | G9: $/Unit | H9: $/Unit | I9: Total | J9: Total | K9: Share | L9: Share | M9: Landlord | N9: Landlord | O9: Tenant | P9: Tenant | Q9: (122 acres) | R9: ="(" & E7 & " acres)" -> ( acres)
B10: Corn Silage | D10: 27 | F10: Ton | G10: 38.998 | I10: 1052.946 | J10: =E10*H10 -> 0 | K10: 0 | M10: 0 | N10: =J10*L10 -> 0 | O10: 1052.946 | P10: =+J10-N10 -> 0 | Q10: 128459.412 | R10: =+J10*E$7 -> 0
D11: 0 | G11: 0 | I11: 0 | J11: 0 | K11: 0 | M11: 0 | N11: 0 | O11: 0 | P11: =+J11-N11 -> 0 | Q11: 0 | R11: 0
D12: 0 | G12: 0 | I12: 0 | J12: 0 | K12: 0 | M12: 0 | N12: 0 | O12: 0 | P12: 0 | Q12: 0 | R12: 0
A13: Total Revenue | I13: 1052.946 | J13: =SUM(J10:J12) -> 0 | M13: 0 | N13: =SUM(N10:N12) -> 0 | O13: 1052.946 | P13: =SUM(P10:P12) -> 0 | Q13: 128459.412 | R13: =SUM(R10:R12) -> 0
Q14: Enterprise | R14: Enterprise
A15: VARIABLE COSTS | D15: Quantity | E15: Quantity | F15: Units | G15: $/Unit | H15: $/Unit | I15: Total | J15: Total | K15: Share | L15: Share | M15: Landlord | N15: Landlord | O15: Tenant | P15: Tenant | Q15: Total | R15: Total
A16: Production Costs
B17: Custom
C18: Fertilizer Application - ANH3 | D18: 1 | F18: Acre | G18: 16.05140335 | I18: 16.05140335 | J18: =E18*H18 -> 0 | K18: 0 | M18: 0 | N18: =J18*L18 -> 0 | O18: 16.05140335 | P18: =+J18-N18 -> 0 | Q18: 1958.271209 | R18: =+J18*E$7 -> 0
C19: Harvest and Haul - Corn Silage | D19: 27 | F19: Ton | G19: 9.635022065 | I19: 260.1455958 | J19: 0 | K19: 0 | M19: 0 | N19: 0 | O19: 260.1455958 | P19: 0 | Q19: 31737.76268 | R19: 0
B20: Fertilizer
C21: Fertilizer (P) - Liquid | D21: 90 | F21: Pound | G21: 0.49 | I21: 44.1 | J21: 0 | K21: 0 | M21: 0 | N21: 0 | O21: 44.1 | P21: 0 | Q21: 5380.2 | R21: 0
C22: Fertilizer (N) - ANH3 | D22: 160 | F22: Pound | G22: 0.3 | I22: 48 | J22: 0 | K22: 0 | M22: 0 | N22: 0 | O22: 48 | P22: 0 | Q22: 5856 | R22: 0
C23: Fertilizer (N) - Liquid | D23: 95 | F23: Pound | G23: 0.5 | I23: 47.5 | J23: 0 | K23: 0 | M23: 0 | N23: 0 | O23: 47.5 | P23: 0 | Q23: 5795 | R23: 0
B24: Herbicide
C25: Herbicide - Corn Preplant | D25: 1 | F25: Acre | G25: 19.28032258 | I25: 19.28032258 | J25: 0 | K25: 0 | M25: 0 | N25: 0 | O25: 19.28032258 | P25: 0 | Q25: 2352.199355 | R25: 0
C26: Herbicide - Corn Postplant | D26: 1 | F26: Acre | G26: 17.40701613 | I26: 17.40701613 | J26: 0 | K26: 0 | M26: 0 | N26: 0 | O26: 17.40701613 | P26: 0 | Q26: 2123.655968 | R26: 0
B27: Insecticide
C28: Miticide | D28: 1 | F28: Acre | G28: 22.87264854 | I28: 22.87264854 | J28: 0 | K28: 0 | M28: 0 | N28: 0 | O28: 22.87264854 | P28: 0 | Q28: 2790.463122 | R28: 0
C29: Insecticide and Apply Corn Silage | D29: 1 | F29: Acre | G29: 27.7509031 | I29: 27.7509031 | J29: 0 | K29: 0 | M29: 0 | N29: 0 | O29: 27.7509031 | P29: 0 | Q29: 3385.610179 | R29: 0
B30: Miscellaneous
C31: Crop Insurance Corn Silage Irrigated | D31: 1 | F31: Acre | G31: 40.15 | I31: 40.15 | J31: 0 | K31: 0 | M31: 0 | N31: 0 | O31: 40.15 | P31: 0 | Q31: 4898.3 | R31: 0
B32: Seed
C33: Seed - Corn Silage | D33: 0.44 | F33: Bag | G33: 248.6740804 | I33: 109.4165954 | J33: 0 | K33: 0 | M33: 0 | N33: 0 | O33: 109.4165954 | P33: 0 | Q33: 13348.82464 | R33: 0
D34: 0 | G34: 0 | I34: 0 | J34: 0 | K34: 0 | M34: 0 | N34: 0 | O34: 0 | P34: 0 | Q34: 0 | R34: 0
D35: 0 | G35: 0 | I35: 0 | J35: 0 | K35: 0 | M35: 0 | N35: 0 | O35: 0 | P35: 0 | Q35: 0 | R35: 0
D36: 0 | G36: 0 | I36: 0 | J36: =E36*H36 -> 0 | K36: 0 | M36: 0 | N36: =J36*L36 -> 0 | O36: 0 | P36: =+J36-N36 -> 0 | Q36: 0 | R36: =+J36*E$7 -> 0
B37: Irrigation
C38: Energy Cost | D38: 20 | F38: AcreInch | G38: 3.35 | I38: 67 | J38: =E38*H38 -> 0 | K38: 0 | M38: 0 | N38: =J38*L38 -> 0 | O38: 67 | P38: =+J38-N38 -> 0 | Q38: 8174 | R38: =+J38*E$7 -> 0
C39: Irrigation Labor | D39: 1.28 | F39: Hour | G39: 13.65 | I39: 17.472 | J39: 0 | K39: 0 | M39: 0 | N39: 0 | O39: 17.472 | P39: 0 | Q39: 2131.584 | R39: 0
B40: Machinery Labor
C41: Tractors/Self-Propelled | D41: 0.52 | F41: Hour | G41: 13.43 | I41: 6.9836 | J41: =E41*H41 -> 0 | K41: 0 | M41: 0 | N41: =J41*L41 -> 0 | O41: 6.9836 | P41: =+J41-N41 -> 0 | Q41: 851.9992 | R41: =+J41*E$7 -> 0
C42: Other Labor | D42: 0.6 | F42: Hour | G42: 13.43 | I42: 8.058 | J42: =E42*H42 -> 0 | K42: 0 | M42: 0 | N42: =J42*L42 -> 0 | O42: 8.058 | P42: =+J42-N42 -> 0 | Q42: 983.076 | R42: =+J42*E$7 -> 0
B44: Diesel Fuel
C45: Pickup/General Use Equipment | D45: 1 | F45: Acre | G45: 0 | I45: 0 | J45: =E45*H45 -> 0 | K45: 0 | M45: 0 | N45: =J45*L45 -> 0 | O45: 0 | P45: =+J45-N45 -> 0 | Q45: 0 | R45: =+J45*E$7 -> 0
C46: Tractors/Self-Propelled | D46: 3.02 | F46: Gallon | G46: 2.1902 | I46: 6.614404 | J46: =E46*H46 -> 0 | K46: 0 | M46: 0 | N46: =J46*L46 -> 0 | O46: 6.614404 | P46: =+J46-N46 -> 0 | Q46: 806.957288 | R46: =+J46*E$7 -> 0
B48: Gasoline
C49: Pickup/General Use Equipment | D49: 1 | F49: Acre | G49: 7.801229508 | I49: 7.801229508 | J49: =E49*H49 -> 0 | K49: 0 | M49: 0 | N49: =J49*L49 -> 0 | O49: 7.801229508 | P49: =+J49-N49 -> 0 | Q49: 951.75 | R49: =+J49*E$7 -> 0
C50: Tractors/Self-Propelled | D50: 0 | F50: Gallon | G50: 2.538 | I50: 0 | J50: =E50*H50 -> 0 | K50: 0 | M50: 0 | N50: =J50*L50 -> 0 | O50: 0 | P50: =+J50-N50 -> 0 | Q50: 0 | R50: =+J50*E$7 -> 0
B52: Repairs & Maintenance
C53: Pickup/General Use Equipment | D53: 1 | F53: Acre | G53: 3.762295082 | I53: 3.762295082 | J53: =E53*H53 -> 0 | K53: 0 | M53: 0 | N53: =J53*L53 -> 0 | O53: 3.762295082 | P53: =+J53-N53 -> 0 | Q53: 459 | R53: =+J53*E$7 -> 0
C54: Irrigation Equipment | D54: 1 | F54: Acre | G54: 75 | I54: 75 | J54: 0 | K54: 0 | M54: 0 | N54: 0 | O54: 75 | P54: 0 | Q54: 9150 | R54: 0
C55: Tractors/Self-Propelled | D55: 1 | F55: Acre | G55: 5.564722493 | I55: 5.564722493 | J55: 0 | K55: 0 | M55: 0 | N55: 0 | O55: 5.564722493 | P55: 0 | Q55: 678.8961441 | R55: 0
C56: Implements | D56: 1 | F56: Acre | G56: 16.24534148 | I56: 16.24534148 | J56: 0 | K56: 0 | M56: 0 | N56: 0 | O56: 16.24534148 | P56: 0 | Q56: 1981.93166 | R56: 0
I57: 0 | J57: 0 | K57: 0 | M57: 0 | N57: 0 | O57: 0 | P57: 0 | Q57: 0 | R57: 0
I58: 0 | J58: 0 | K58: 0 | M58: 0 | N58: 0 | O58: 0 | P58: 0 | Q58: 0 | R58: 0
B59: Interest on Credit Line | G59: 0.0625 | I59: 15.10588517 | J59: =+SUM(J17:J58)/2*H59 -> 0 | M59: 0 | N59: =+SUM(N17:N58)/2*L59 -> 0 | O59: 15.10588517 | P59: =+SUM(P17:P58)/2*L59 -> 0 | Q59: 1842.91799 | R59: =+J59*E$7 -> 0
A60: Total Variable Costs | I60: 882.2819626 | J60: =SUM(J18:J59) -> 0 | M60: 0 | N60: =SUM(N18:N59) -> 0 | O60: 882.2819626 | P60: =SUM(P18:P59) -> 0 | Q60: 107638.3994 | R60: =SUM(R18:R59) -> 0
A61: Planned Returns Above Variable Costs: | I61: 170.6640374 | J61: =+J13-J60 -> 0 | M61: 0 | N61: =+N13-N60 -> 0 | O61: 170.6640374 | P61: =+P13-P60 -> 0 | Q61: 20821.01257 | R61: =+R13-R60 -> 0
B62: Breakeven Price to Cover Variable Costs | G62: 32.67710973 | H62: =IF(E10=0,"n/a",(YVarExp-(YTotExp+YTotRet-J10))/E10) -> n/a | I62: Ton
Q63: Enterprise | R63: Enterprise
A64: FIXED COSTS | D64: Quantity | E64: Quantity | F64: Units | G64: $/Unit | H64: $/Unit | I64: Total | J64: Total | K64: Share | L64: Share | M64: Landlord | N64: Landlord | O64: Tenant | P64: Tenant | Q64: Total | R64: Total
B65: Machinery Depreciation
C66: Pickup/General Use Equipment | D66: 1 | F66: Acre | G66: 3.950409836 | I66: 3.950409836 | J66: =E66*H66 -> 0 | K66: 0 | M66: 0 | N66: =J66*L66 -> 0 | O66: 3.950409836 | P66: =+J66-N66 -> 0 | Q66: 481.95 | R66: =+J66*E$7 -> 0
C67: Irrigation Equipment | D67: 1 | F67: Acre | G67: 47.33606557 | I67: 47.33606557 | J67: 0 | K67: 0 | M67: 0 | N67: =J67*L67 -> 0 | O67: 47.33606557 | P67: 0 | Q67: 5775 | R67: 0
C68: Tractors/Self-Propelled | D68: 1 | F68: Acre | G68: 5.536763926 | I68: 5.536763926 | J68: 0 | K68: 0 | M68: 0 | N68: =J68*L68 -> 0 | O68: 5.536763926 | P68: 0 | Q68: 675.485199 | R68: 0
C69: Implements | D69: 1 | F69: Acre | G69: 20.06377233 | I69: 20.06377233 | J69: 0 | K69: 0 | M69: 0 | N69: =J69*L69 -> 0 | O69: 20.06377233 | P69: 0 | Q69: 2447.780224 | R69: 0
B70: Equipment Investment
C71: Pickup/General Use Equipment | D71: 27.27663934 | F71: Dollars | G71: 0.0625 | I71: 1.704789959 | J71: =E71*H71 -> 0 | K71: 0 | M71: 0 | N71: =J71*L71 -> 0 | O71: 1.704789959 | P71: =+J71-N71 -> 0 | Q71: 207.984375 | R71: =+J71*E$7 -> 0
C72: Irrigation Equipment | D72: 571.7213115 | F72: Dollars | G72: 0.0625 | I72: 35.73258197 | J72: 0 | K72: 0 | M72: 0 | N72: =J72*L72 -> 0 | O72: 35.73258197 | P72: 0 | Q72: 4359.375 | R72: 0
C73: Tractors/Self-Propelled | D73: 43.13317704 | F73: Dollars | G73: 0.0625 | I73: 2.695823565 | J73: 0 | K73: 0 | M73: 0 | N73: =J73*L73 -> 0 | O73: 2.695823565 | P73: 0 | Q73: 328.8904749 | R73: 0
C74: Implements | D74: 85.82835939 | F74: Dollars | G74: 0.0625 | I74: 5.364272462 | J74: 0 | K74: 0 | M74: 0 | N74: =J74*L74 -> 0 | O74: 5.364272462 | P74: 0 | Q74: 654.4412404 | R74: 0
B75: Salaried Labor | D75: 1 | F75: Acre | G75: 0 | I75: 0 | J75: 0 | K75: 0 | M75: 0 | N75: =J75*L75 -> 0 | O75: 0 | P75: =+J75-N75 -> 0 | Q75: 0 | R75: =+J75*E$7 -> 0
B76: Management Fee, Owner/Operator Labor | D76: 1 | F76: Acre | G76: 0 | I76: 0 | J76: 0 | K76: 0 | M76: 0 | N76: 0 | O76: 0 | P76: 0 | Q76: 0 | R76: 0
B77: Allocated Establishment Cost | D77: 1 | F77: Acre | G77: 0 | I77: 0 | J77: 0 | K77: 0 | M77: 0 | N77: 0 | O77: 0 | P77: 0 | Q77: 0 | R77: 0
B78: Cash Rent - Corn | D78: 1 | F78: Acre | G78: 100 | I78: 100 | J78: 0 | K78: 0 | M78: 0 | N78: 0 | O78: 100 | P78: 0 | Q78: 12200 | R78: 0
B79: Property Taxes | D79: 1 | F79: Acre | G79: 0 | I79: 0 | J79: 0 | K79: 0 | M79: 0 | N79: 0 | O79: 0 | P79: 0 | Q79: 0 | R79: 0
B80: Whole Farm Insurance | D80: 1 | F80: Acre | G80: 0 | I80: 0 | J80: 0 | K80: 0 | M80: 0 | N80: 0 | O80: 0 | P80: 0 | Q80: 0 | R80: 0
D81: 1 | G81: 0 | I81: 0 | J81: 0 | K81: 0 | M81: 0 | N81: 0 | O81: 0 | P81: 0 | Q81: 0 | R81: 0
D82: 1 | G82: 0 | I82: 0 | J82: =E82*H82 -> 0 | K82: 0 | M82: 0 | N82: 0 | O82: 0 | P82: 0 | Q82: 0 | R82: 0
A83: Total Fixed Costs | I83: 222.3844796 | J83: =+SUM(J66:J82) -> 0 | M83: 0 | N83: =+SUM(N66:N82) -> 0 | O83: 222.3844796 | P83: =+SUM(P66:P82) -> 0 | Q83: 27130.90651 | R83: =+SUM(R66:R82) -> 0
A84: Total Specified Costs | I84: 1104.666442 | J84: =+J60+J83 -> 0 | M84: 0 | N84: =+N60+N83 -> 0 | O84: 1104.666442 | P84: =+P60+P83 -> 0 | Q84: 134769.3059 | R84: =+R60+R83 -> 0
A86: Returns Above Specified Costs | I86: -51.72044219 | J86: =+J13-J84 -> 0 | M86: 0 | N86: =+N13-N84 -> 0 | O86: -51.72044219 | P86: =+P13-P84 -> 0 | Q86: -6309.893947 | R86: =+R13-R84 -> 0
A88: Breakeven Price to Cover Total Costs | G88: 40.91357193 | H88: =IF(E10=0,"n/a",(YTotExp-(YTotExp+YTotRet-J10))/E10) -> n/a | I88: Ton
D90: Example Breakeven Prices
B91: Example | C91: Example | D91: To Cover | G91: To Cover
B92: Yield | C92: Yield | D92: Variable | G92: Total
B93: Percent | C93: Ton | D93: Costs | G93: Costs
B94: 0.75 | C94: 20.25 | D94: 43.56947963 | G94: 54.55142924
B95: 0.9 | C95: 24.3 | D95: 36.30789969 | G95: 45.45952437
B96: 1 | C96: 27 | D96: 32.67710973 | G96: 40.91357193
B97: 1.1 | C97: 29.7 | D97: 29.70646339 | G97: 37.1941563
B98: 1.25 | C98: 33.75 | D98: 26.14168778 | G98: 32.73085755
A100: Developed by Justin Benavidez, Assistant Professor, Texas A&M AgriLife Extension, 806-677-5600.
A102: Information presented is prepared solely as a general guide and not intended to recognize or predict the costs and returns from any one operation. Brand names are mentioned only as examples and imply no endorsement.

Sheet CottonDryland
A1: Projections for Planning Purposes Only -- Not to be Used without Updating
A2: 2021 Estimated Costs and Returns per Acre
A3: Cotton, Dryland (Roundup Ready Flex)
A4: Enter your name for this budget in the cell above.
A5: Enter Your Values in the cells highlighed in MAROON.
E6: Your Acres | R6: Your
C7: Crop Acres | D7: 160 | L7: Your | Q7: Enterprise | R7: Enterprise
E8: Your | H8: Your | I8: Cash | J8: Your | K8: Landlord | L8: Landlord | N8: Your | P8: Your | Q8: Total | R8: Total
A9: REVENUE | D9: Quantity | E9: Quantity | F9: Units | G9: $/Unit | H9: $/Unit | I9: Total | J9: Total | K9: Share | L9: Share | M9: Landlord | N9: Landlord | O9: Tenant | P9: Tenant | Q9: (160 acres) | R9: ="(" & E7 & " acres)" -> ( acres)
B10: Cotton Lint | D10: 400 | F10: Pound | G10: 0.7 | I10: 280 | J10: =E10*H10 -> 0 | K10: 0 | M10: 0 | N10: =J10*L10 -> 0 | O10: 280 | P10: =+J10-N10 -> 0 | Q10: 44800 | R10: =+J10*E$7 -> 0
B11: Cottonseed | D11: 0.3 | F11: Ton | G11: 225 | I11: 67.5 | J11: 0 | K11: 0 | M11: 0 | N11: 0 | O11: 67.5 | P11: =+J11-N11 -> 0 | Q11: 10800 | R11: 0
D12: 0 | G12: 0 | I12: 0 | J12: 0 | K12: 0 | M12: 0 | N12: 0 | O12: 0 | P12: 0 | Q12: 0 | R12: 0
D13: 0 | G13: 0 | I13: 0 | J13: 0 | K13: 0 | M13: 0 | N13: 0 | O13: 0 | P13: 0 | Q13: 0 | R13: 0
A14: Total Revenue | I14: 347.5 | J14: =SUM(J10:J13) -> 0 | M14: 0 | N14: =SUM(N10:N13) -> 0 | O14: 347.5 | P14: =SUM(P10:P13) -> 0 | Q14: 55600 | R14: =SUM(R10:R13) -> 0
Q15: Enterprise | R15: Enterprise
A16: VARIABLE COSTS | D16: Quantity | E16: Quantity | F16: Units | G16: $/Unit | H16: $/Unit | I16: Total | J16: Total | K16: Share | L16: Share | M16: Landlord | N16: Landlord | O16: Tenant | P16: Tenant | Q16: Total | R16: Total
A17: Production Costs
B18: Custom
C19: Fertilizer Application | D19: 1 | F19: Acre | G19: 5.350467785 | I19: 5.350467785 | J19: =E19*H19 -> 0 | K19: 0 | M19: 0 | N19: =J19*L19 -> 0 | O19: 5.350467785 | P19: =+J19-N19 -> 0 | Q19: 856.0748455 | R19: =+J19*E$7 -> 0
C20: Strip and Module - Cotton | D20: 4 | F20: CWT | G20: 12.54015887 | I20: 50.16063548 | J20: 0 | K20: 0 | M20: 0 | N20: 0 | O20: 50.16063548 | P20: 0 | Q20: 8025.701677 | R20: 0
C21: Ginning - Cotton | D21: 18 | F21: CWT | G21: 3.135039718 | I21: 56.43071492 | J21: 0 | K21: 0 | M21: 0 | N21: 0 | O21: 56.43071492 | P21: 0 | Q21: 9028.914387 | R21: 0
B22: Fertilizer
C23: Fertilizer (P) - Dry | D23: 20 | F23: Pound | G23: 0.45 | I23: 9 | J23: 0 | K23: 0 | M23: 0 | N23: 0 | O23: 9 | P23: 0 | Q23: 1440 | R23: 0
C24: Fertilizer (N) - Dry | D24: 30 | F24: Pound | G24: 0.4 | I24: 12 | J24: 0 | K24: 0 | M24: 0 | N24: 0 | O24: 12 | P24: 0 | Q24: 1920 | R24: 0
B25: Herbicide
C26: Herbicide and Apply Preplant | D26: 1 | F26: Acre | G26: 24.61698965 | I26: 24.61698965 | J26: 0 | K26: 0 | M26: 0 | N26: 0 | O26: 24.61698965 | P26: 0 | Q26: 3938.718344 | R26: 0
C27: Herbicide and Apply Postemerge Dry | D27: 1 | F27: Acre | G27: 15.56246472 | I27: 15.56246472 | J27: 0 | K27: 0 | M27: 0 | N27: 0 | O27: 15.56246472 | P27: 0 | Q27: 2489.994356 | R27: 0
B28: Insecticide
C29: Insecticide and Apply Cotton | D29: 0.5 | F29: Acre | G29: 10.36214958 | I29: 5.181074788 | J29: 0 | K29: 0 | M29: 0 | N29: 0 | O29: 5.181074788 | P29: 0 | Q29: 828.9719661 | R29: 0
C30: Boll Weevil Assessment Dryland | D30: 1 | F30: Acre | G30: 0.7356932409 | I30: 0.7356932409 | J30: 0 | K30: 0 | M30: 0 | N30: 0 | O30: 0.7356932409 | P30: 0 | Q30: 117.7109185 | R30: 0
B31: Miscellaneous
C32: Crop Insurance Cotton - Dryland | D32: 1 | F32: Acre | G32: 25 | I32: 25 | J32: 0 | K32: 0 | M32: 0 | N32: 0 | O32: 25 | P32: 0 | Q32: 4000 | R32: 0
B33: Seed
C34: Seed - Cotton Dryland | D34: 0.18 | F34: Bag | G34: 331.5654405 | I34: 59.6817793 | J34: 0 | K34: 0 | M34: 0 | N34: 0 | O34: 59.6817793 | P34: 0 | Q34: 9549.084688 | R34: 0
B35: Other Chemicals
C36: Harvest Aid Apply Cotton Dryland | D36: 0.5 | F36: Acre | G36: 27.11809356 | I36: 13.55904678 | J36: 0 | K36: 0 | M36: 0 | N36: 0 | O36: 13.55904678 | P36: 0 | Q36: 2169.447485 | R36: 0
D37: 0 | G37: 0 | I37: 0 | J37: 0 | K37: 0 | M37: 0 | N37: 0 | O37: 0 | P37: 0 | Q37: 0 | R37: 0
D38: 0 | G38: 0 | I38: 0 | J38: 0 | K38: 0 | M38: 0 | N38: 0 | O38: 0 | P38: 0 | Q38: 0 | R38: 0
D39: 0 | G39: 0 | I39: 0 | J39: =E39*H39 -> 0 | K39: 0 | M39: 0 | N39: =J39*L39 -> 0 | O39: 0 | P39: =+J39-N39 -> 0 | Q39: 0 | R39: =+J39*E$7 -> 0
B40: Machinery Labor
C41: Tractors/Self-Propelled | D41: 0.7 | F41: Hour | G41: 13.43 | I41: 9.401 | J41: =E41*H41 -> 0 | K41: 0 | M41: 0 | N41: =J41*L41 -> 0 | O41: 9.401 | P41: =+J41-N41 -> 0 | Q41: 1504.16 | R41: =+J41*E$7 -> 0
C42: Other Labor | D42: 0.82 | F42: Hour | G42: 13.43 | I42: 11.0126 | J42: =E42*H42 -> 0 | K42: 0 | M42: 0 | N42: =J42*L42 -> 0 | O42: 11.0126 | P42: =+J42-N42 -> 0 | Q42: 1762.016 | R42: =+J42*E$7 -> 0
B44: Diesel Fuel
C45: Pickup/General Use Equipment | D45: 1 | F45: Acre | G45: 0 | I45: 0 | J45: =E45*H45 -> 0 | K45: 0 | M45: 0 | N45: =J45*L45 -> 0 | O45: 0 | P45: =+J45-N45 -> 0 | Q45: 0 | R45: =+J45*E$7 -> 0
C46: Tractors/Self-Propelled | D46: 3.62 | F46: Gallon | G46: 2.1902 | I46: 7.928524 | J46: =E46*H46 -> 0 | K46: 0 | M46: 0 | N46: =J46*L46 -> 0 | O46: 7.928524 | P46: =+J46-N46 -> 0 | Q46: 1268.56384 | R46: =+J46*E$7 -> 0
B48: Gasoline
C49: Pickup/General Use Equipment | D49: 1 | F49: Acre | G49: 5.1553125 | I49: 5.1553125 | J49: =E49*H49 -> 0 | K49: 0 | M49: 0 | N49: =J49*L49 -> 0 | O49: 5.1553125 | P49: =+J49-N49 -> 0 | Q49: 824.85 | R49: =+J49*E$7 -> 0
C50: Tractors/Self-Propelled | D50: 0 | F50: Gallon | G50: 2.538 | I50: 0 | J50: =E50*H50 -> 0 | K50: 0 | M50: 0 | N50: =J50*L50 -> 0 | O50: 0 | P50: =+J50-N50 -> 0 | Q50: 0 | R50: =+J50*E$7 -> 0
B52: Repairs & Maintenance
C53: Pickup/General Use Equipment | D53: 1 | F53: Acre | G53: 2.48625 | I53: 2.48625 | J53: =E53*H53 -> 0 | K53: 0 | M53: 0 | N53: =J53*L53 -> 0 | O53: 2.48625 | P53: =+J53-N53 -> 0 | Q53: 397.8 | R53: =+J53*E$7 -> 0
C54: Irrigation Equipment | D54: 1 | F54: Acre | G54: 0 | I54: 0 | J54: 0 | K54: 0 | M54: 0 | N54: 0 | O54: 0 | P54: 0 | Q54: 0 | R54: 0
C55: Tractors/Self-Propelled | D55: 1 | F55: Acre | G55: 6.400931031 | I55: 6.400931031 | J55: 0 | K55: 0 | M55: 0 | N55: 0 | O55: 6.400931031 | P55: 0 | Q55: 1024.148965 | R55: 0
C56: Implements | D56: 1 | F56: Acre | G56: 15.77578269 | I56: 15.77578269 | J56: 0 | K56: 0 | M56: 0 | N56: 0 | O56: 15.77578269 | P56: 0 | Q56: 2524.12523 | R56: 0
I57: 0 | J57: 0 | K57: 0 | M57: 0 | N57: 0 | O57: 0 | P57: 0 | Q57: 0 | R57: 0
I58: 0 | J58: 0 | K58: 0 | M58: 0 | N58: 0 | O58: 0 | P58: 0 | Q58: 0 | R58: 0
B59: Interest on Credit Line | G59: 0.0625 | I59: 8.396729705 | J59: =+SUM(J18:J58)/2*H59 -> 0 | M59: 0 | N59: =+SUM(N18:N58)/2*L59 -> 0 | O59: 8.396729705 | P59: =+SUM(P18:P58)/2*L59 -> 0 | Q59: 1343.476753 | R59: =+J59*E$7 -> 0
A60: Total Variable Costs | I60: 343.8359966 | J60: =SUM(J19:J59) -> 0 | M60: 0 | N60: =SUM(N19:N59) -> 0 | O60: 343.8359966 | P60: =SUM(P19:P59) -> 0 | Q60: 55013.75945 | R60: =SUM(R19:R59) -> 0
A61: Planned Returns Above Variable Costs: | I61: 3.664003414 | J61: =+J14-J60 -> 0 | M61: 0 | N61: =+N14-N60 -> 0 | O61: 3.664003414 | P61: =+P14-P60 -> 0 | Q61: 586.2405462 | R61: =+R14-R60 -> 0
B62: Breakeven Price to Cover Variable Costs | G62: 0.6908399915 | H62: =IF(E10=0,"n/a",(YVarExp-(YTotExp+YTotRet-J10))/E10) -> n/a | I62: Pound
Q63: Enterprise | R63: Enterprise
A64: FIXED COSTS | D64: Quantity | E64: Quantity | F64: Units | G64: $/Unit | H64: $/Unit | I64: Total | J64: Total | K64: Share | L64: Share | M64: Landlord | N64: Landlord | O64: Tenant | P64: Tenant | Q64: Total | R64: Total
B65: Machinery Depreciation
C66: Pickup/General Use Equipment | D66: 1 | F66: Acre | G66: 2.6105625 | I66: 2.6105625 | J66: =E66*H66 -> 0 | K66: 0 | M66: 0 | N66: =J66*L66 -> 0 | O66: 2.6105625 | P66: =+J66-N66 -> 0 | Q66: 417.69 | R66: =+J66*E$7 -> 0
C67: Tractors/Self-Propelled | D67: 1 | F67: Acre | G67: 5.991565486 | I67: 5.991565486 | J67: 0 | K67: 0 | M67: 0 | N67: =J67*L67 -> 0 | O67: 5.991565486 | P67: 0 | Q67: 958.6504778 | R67: 0
C68: Implements | D68: 1 | F68: Acre | G68: 19.39342659 | I68: 19.39342659 | J68: 0 | K68: 0 | M68: 0 | N68: =J68*L68 -> 0 | O68: 19.39342659 | P68: 0 | Q68: 3102.948254 | R68: 0
B69: Equipment Investment
C70: Pickup/General Use Equipment | D70: 18.0253125 | F70: Dollars | G70: 0.0625 | I70: 1.126582031 | J70: =E70*H70 -> 0 | K70: 0 | M70: 0 | N70: =J70*L70 -> 0 | O70: 1.126582031 | P70: =+J70-N70 -> 0 | Q70: 180.253125 | R70: =+J70*E$7 -> 0
C71: Tractors/Self-Propelled | D71: 46.6762279 | F71: Dollars | G71: 0.0625 | I71: 2.917264244 | J71: 0 | K71: 0 | M71: 0 | N71: =J71*L71 -> 0 | O71: 2.917264244 | P71: 0 | Q71: 466.762279 | R71: 0
C72: Implements | D72: 83.35894584 | F72: Dollars | G72: 0.0625 | I72: 5.209934115 | J72: 0 | K72: 0 | M72: 0 | N72: =J72*L72 -> 0 | O72: 5.209934115 | P72: 0 | Q72: 833.5894584 | R72: 0
B73: Salaried Labor | D73: 1 | F73: Acre | G73: 0 | I73: 0 | J73: 0 | K73: 0 | M73: 0 | N73: =J73*L73 -> 0 | O73: 0 | P73: =+J73-N73 -> 0 | Q73: 0 | R73: =+J73*E$7 -> 0
B74: Management Fee, Owner/Operator Labor | D74: 1 | F74: Acre | G74: 0 | I74: 0 | J74: 0 | K74: 0 | M74: 0 | N74: 0 | O74: 0 | P74: 0 | Q74: 0 | R74: 0
B75: Allocated Establishment Cost | D75: 1 | F75: Acre | G75: 0 | I75: 0 | J75: 0 | K75: 0 | M75: 0 | N75: 0 | O75: 0 | P75: 0 | Q75: 0 | R75: 0
B76: Cash Rent - Cotton Dryland | D76: 1 | F76: Acre | G76: 30 | I76: 30 | J76: 0 | K76: 0 | M76: 0 | N76: 0 | O76: 30 | P76: 0 | Q76: 4800 | R76: 0
B77: Property Taxes | D77: 1 | F77: Acre | G77: 0 | I77: 0 | J77: 0 | K77: 0 | M77: 0 | N77: 0 | O77: 0 | P77: 0 | Q77: 0 | R77: 0
B78: Whole Farm Insurance | D78: 1 | F78: Acre | G78: 0 | I78: 0 | J78: 0 | K78: 0 | M78: 0 | N78: 0 | O78: 0 | P78: 0 | Q78: 0 | R78: 0
D79: 1 | G79: 0 | I79: 0 | J79: 0 | K79: 0 | M79: 0 | N79: 0 | O79: 0 | P79: 0 | Q79: 0 | R79: 0
D80: 1 | G80: 0 | I80: 0 | J80: =E80*H80 -> 0 | K80: 0 | M80: 0 | N80: 0 | O80: 0 | P80: 0 | Q80: 0 | R80: 0
A81: Total Fixed Costs | I81: 67.24933496 | J81: =+SUM(J66:J80) -> 0 | M81: 0 | N81: =+SUM(N66:N80) -> 0 | O81: 67.24933496 | P81: =+SUM(P66:P80) -> 0 | Q81: 10759.89359 | R81: =+SUM(R66:R80) -> 0
A82: Total Specified Costs | I82: 411.0853315 | J82: =+J60+J81 -> 0 | M82: 0 | N82: =+N60+N81 -> 0 | O82: 411.0853315 | P82: =+P60+P81 -> 0 | Q82: 65773.65305 | R82: =+R60+R81 -> 0
A84: Returns Above Specified Costs | I84: -63.58533155 | J84: =+J14-J82 -> 0 | M84: 0 | N84: =+N14-N82 -> 0 | O84: -63.58533155 | P84: =+P14-P82 -> 0 | Q84: -10173.65305 | R84: =+R14-R82 -> 0
A86: Breakeven Price to Cover Total Costs | G86: 0.8589633289 | H86: =IF(E10=0,"n/a",(YTotExp-(YTotExp+YTotRet-J10))/E10) -> n/a | I86: Pound
D88: Example Breakeven Prices
B89: Example | C89: Example | D89: To Cover | G89: To Cover
B90: Yield | C90: Yield | D90: Variable | G90: Total
B91: Percent | C91: Pound | D91: Costs | G91: Costs
B92: 0.75 | C92: 300 | D92: 0.9211199886 | G92: 1.145284438
B93: 0.9 | C93: 360 | D93: 0.7675999905 | G93: 0.9544036987
B94: 1 | C94: 400 | D94: 0.6908399915 | G94: 0.8589633289
B95: 1.1 | C95: 440 | D95: 0.6280363559 | G95: 0.7808757535
B96: 1.25 | C96: 500 | D96: 0.5526719932 | G96: 0.6871706631
A98: Developed by Justin Benavidez, Assistant Professor, Texas A&M AgriLife Extension, 806-677-5600.
A100: Information presented is prepared solely as a general guide and not intended to recognize or predict the costs and returns from any one operation. Brand names are mentioned only as examples and imply no endorsement.

Sheet CottonIrrigated
A1: Projections for Planning Purposes Only -- Not to be Used without Updating
A2: 2021 Estimated Costs and Returns per Acre
A3: Cotton, Sprinkler Irrigated (Roundup Ready Flex)
A4: Enter your name for this budget in the cell above.
A5: Enter Your Values in the cells highlighed in MAROON.
E6: Your Acres | R6: Your
C7: Crop Acres | D7: 122 | L7: Your | Q7: Enterprise | R7: Enterprise
E8: Your | H8: Your | I8: Cash | J8: Your | K8: Landlord | L8: Landlord | N8: Your | P8: Your | Q8: Total | R8: Total
A9: REVENUE | D9: Quantity | E9: Quantity | F9: Units | G9: $/Unit | H9: $/Unit | I9: Total | J9: Total | K9: Share | L9: Share | M9: Landlord | N9: Landlord | O9: Tenant | P9: Tenant | Q9: (122 acres) | R9: ="(" & E7 & " acres)" -> ( acres)
B10: Cotton Lint | D10: 1500 | F10: Pound | G10: 0.7 | I10: 1050 | J10: =E10*H10 -> 0 | K10: 0 | M10: 0 | N10: =J10*L10 -> 0 | O10: 1050 | P10: =+J10-N10 -> 0 | Q10: 128100 | R10: =+J10*E$7 -> 0
B11: Cottonseed | D11: 1.125 | F11: Ton | G11: 225 | I11: 253.125 | J11: 0 | K11: 0 | M11: 0 | N11: 0 | O11: 253.125 | P11: =+J11-N11 -> 0 | Q11: 30881.25 | R11: 0
D12: 0 | G12: 0 | I12: 0 | J12: 0 | K12: 0 | M12: 0 | N12: 0 | O12: 0 | P12: 0 | Q12: 0 | R12: 0
D13: 0 | G13: 0 | I13: 0 | J13: 0 | K13: 0 | M13: 0 | N13: 0 | O13: 0 | P13: 0 | Q13: 0 | R13: 0
A14: Total Revenue | I14: 1303.125 | J14: =SUM(J10:J13) -> 0 | M14: 0 | N14: =SUM(N10:N13) -> 0 | O14: 1303.125 | P14: =SUM(P10:P13) -> 0 | Q14: 158981.25 | R14: =SUM(R10:R13) -> 0
Q15: Enterprise | R15: Enterprise
A16: VARIABLE COSTS | D16: Quantity | E16: Quantity | F16: Units | G16: $/Unit | H16: $/Unit | I16: Total | J16: Total | K16: Share | L16: Share | M16: Landlord | N16: Landlord | O16: Tenant | P16: Tenant | Q16: Total | R16: Total
A17: Production Costs
B18: Custom
C19: Fertilizer Application | D19: 1 | F19: Acre | G19: 5.350467785 | I19: 5.350467785 | J19: =E19*H19 -> 0 | K19: 0 | M19: 0 | N19: =J19*L19 -> 0 | O19: 5.350467785 | P19: =+J19-N19 -> 0 | Q19: 652.7570697 | R19: =+J19*E$7 -> 0
C20: Strip and Module - Cotton | D20: 15 | F20: CWT | G20: 12.54015887 | I20: 188.1023831 | J20: 0 | K20: 0 | M20: 0 | N20: 0 | O20: 188.1023831 | P20: 0 | Q20: 22948.49073 | R20: 0
C21: Ginning - Cotton | D21: 54.95 | F21: CWT | G21: 3.135039718 | I21: 172.2704325 | J21: 0 | K21: 0 | M21: 0 | N21: 0 | O21: 172.2704325 | P21: 0 | Q21: 21016.99276 | R21: 0
B22: Fertilizer
C23: Fertilizer (P) - Dry | D23: 65 | F23: Pound | G23: 0.45 | I23: 29.25 | J23: 0 | K23: 0 | M23: 0 | N23: 0 | O23: 29.25 | P23: 0 | Q23: 3568.5 | R23: 0
C24: Fertilizer (N) - Dry | D24: 135 | F24: Pound | G24: 0.4 | I24: 54 | J24: 0 | K24: 0 | M24: 0 | N24: 0 | O24: 54 | P24: 0 | Q24: 6588 | R24: 0
B25: Herbicide
C26: Herbicide and Apply Preplant | D26: 1 | F26: Acre | G26: 24.61698965 | I26: 24.61698965 | J26: 0 | K26: 0 | M26: 0 | N26: 0 | O26: 24.61698965 | P26: 0 | Q26: 3003.272738 | R26: 0
C27: Herbicide and Apply Postemerge | D27: 1 | F27: Acre | G27: 21.11674506 | I27: 21.11674506 | J27: 0 | K27: 0 | M27: 0 | N27: 0 | O27: 21.11674506 | P27: 0 | Q27: 2576.242897 | R27: 0
B28: Insecticide
C29: Insecticide and Apply Cotton | D29: 1 | F29: Acre | G29: 10.36214958 | I29: 10.36214958 | J29: 0 | K29: 0 | M29: 0 | N29: 0 | O29: 10.36214958 | P29: 0 | Q29: 1264.182248 | R29: 0
C30: Boll Weevil Assessment Irrigated | D30: 1 | F30: Acre | G30: 0.7356932409 | I30: 0.7356932409 | J30: 0 | K30: 0 | M30: 0 | N30: 0 | O30: 0.7356932409 | P30: 0 | Q30: 89.75457539 | R30: 0
B31: Miscellaneous
C32: Crop Insurance Cotton - Irrigated | D32: 1 | F32: Acre | G32: 55 | I32: 55 | J32: 0 | K32: 0 | M32: 0 | N32: 0 | O32: 55 | P32: 0 | Q32: 6710 | R32: 0
B33: Seed
C34: Seed - Cotton | D34: 0.26 | F34: Bag | G34: 344.2917023 | I34: 89.5158426 | J34: 0 | K34: 0 | M34: 0 | N34: 0 | O34: 89.5158426 | P34: 0 | Q34: 10920.9328 | R34: 0
B35: Other Chemicals
C36: Harvest Aid Apply Cotton Irrigated | D36: 1 | F36: Acre | G36: 27.11809356 | I36: 27.11809356 | J36: 0 | K36: 0 | M36: 0 | N36: 0 | O36: 27.11809356 | P36: 0 | Q36: 3308.407414 | R36: 0
D37: 0 | G37: 0 | I37: 0 | J37: 0 | K37: 0 | M37: 0 | N37: 0 | O37: 0 | P37: 0 | Q37: 0 | R37: 0
D38: 0 | G38: 0 | I38: 0 | J38: 0 | K38: 0 | M38: 0 | N38: 0 | O38: 0 | P38: 0 | Q38: 0 | R38: 0
D39: 0 | G39: 0 | I39: 0 | J39: =E39*H39 -> 0 | K39: 0 | M39: 0 | N39: =J39*L39 -> 0 | O39: 0 | P39: =+J39-N39 -> 0 | Q39: 0 | R39: =+J39*E$7 -> 0
B40: Irrigation
C41: Energy Cost | D41: 12 | F41: AcreInch | G41: 3.35 | I41: 40.2 | J41: =E41*H41 -> 0 | K41: 0 | M41: 0 | N41: =J41*L41 -> 0 | O41: 40.2 | P41: =+J41-N41 -> 0 | Q41: 4904.4 | R41: =+J41*E$7 -> 0
C42: Irrigation Labor | D42: 0.768 | F42: Hour | G42: 13.65 | I42: 10.4832 | J42: 0 | K42: 0 | M42: 0 | N42: 0 | O42: 10.4832 | P42: 0 | Q42: 1278.9504 | R42: 0
B43: Machinery Labor
C44: Tractors/Self-Propelled | D44: 0.63 | F44: Hour | G44: 13.43 | I44: 8.4609 | J44: =E44*H44 -> 0 | K44: 0 | M44: 0 | N44: =J44*L44 -> 0 | O44: 8.4609 | P44: =+J44-N44 -> 0 | Q44: 1032.2298 | R44: =+J44*E$7 -> 0
C45: Other Labor | D45: 0.72 | F45: Hour | G45: 13.43 | I45: 9.6696 | J45: =E45*H45 -> 0 | K45: 0 | M45: 0 | N45: =J45*L45 -> 0 | O45: 9.6696 | P45: =+J45-N45 -> 0 | Q45: 1179.6912 | R45: =+J45*E$7 -> 0
B47: Diesel Fuel
C48: Pickup/General Use Equipment | D48: 1 | F48: Acre | G48: 0 | I48: 0 | J48: =E48*H48 -> 0 | K48: 0 | M48: 0 | N48: =J48*L48 -> 0 | O48: 0 | P48: =+J48-N48 -> 0 | Q48: 0 | R48: =+J48*E$7 -> 0
C49: Tractors/Self-Propelled | D49: 3.22 | F49: Gallon | G49: 2.1902 | I49: 7.052444 | J49: =E49*H49 -> 0 | K49: 0 | M49: 0 | N49: =J49*L49 -> 0 | O49: 7.052444 | P49: =+J49-N49 -> 0 | Q49: 860.398168 | R49: =+J49*E$7 -> 0
B51: Gasoline
C52: Pickup/General Use Equipment | D52: 1 | F52: Acre | G52: 8.841393443 | I52: 8.841393443 | J52: =E52*H52 -> 0 | K52: 0 | M52: 0 | N52: =J52*L52 -> 0 | O52: 8.841393443 | P52: =+J52-N52 -> 0 | Q52: 1078.65 | R52: =+J52*E$7 -> 0
C53: Tractors/Self-Propelled | D53: 0 | F53: Gallon | G53: 2.538 | I53: 0 | J53: =E53*H53 -> 0 | K53: 0 | M53: 0 | N53: =J53*L53 -> 0 | O53: 0 | P53: =+J53-N53 -> 0 | Q53: 0 | R53: =+J53*E$7 -> 0
B55: Repairs & Maintenance
C56: Pickup/General Use Equipment | D56: 1 | F56: Acre | G56: 4.263934426 | I56: 4.263934426 | J56: =E56*H56 -> 0 | K56: 0 | M56: 0 | N56: =J56*L56 -> 0 | O56: 4.263934426 | P56: =+J56-N56 -> 0 | Q56: 520.2 | R56: =+J56*E$7 -> 0
C57: Irrigation Equipment | D57: 1 | F57: Acre | G57: 45 | I57: 45 | J57: 0 | K57: 0 | M57: 0 | N57: 0 | O57: 45 | P57: 0 | Q57: 5490 | R57: 0
C58: Tractors/Self-Propelled | D58: 1 | F58: Acre | G58: 5.735459927 | I58: 5.735459927 | J58: 0 | K58: 0 | M58: 0 | N58: 0 | O58: 5.735459927 | P58: 0 | Q58: 699.7261111 | R58: 0
C59: Implements | D59: 1 | F59: Acre | G59: 6.19170159 | I59: 6.19170159 | J59: 0 | K59: 0 | M59: 0 | N59: 0 | O59: 6.19170159 | P59: 0 | Q59: 755.387594 | R59: 0
I60: 0 | J60: 0 | K60: 0 | M60: 0 | N60: 0 | O60: 0 | P60: 0 | Q60: 0 | R60: 0
I61: 0 | J61: 0 | K61: 0 | M61: 0 | N61: 0 | O61: 0 | P61: 0 | Q61: 0 | R61: 0
B62: Interest on Credit Line | G62: 0.0625 | I62: 15.91092847 | J62: =+SUM(J18:J61)/2*H62 -> 0 | M62: 0 | N62: =+SUM(N18:N61)/2*L62 -> 0 | O62: 15.91092847 | P62: =+SUM(P18:P61)/2*L62 -> 0 | Q62: 1941.133274 | R62: =+J62*E$7 -> 0
A63: Total Variable Costs | I63: 839.2483589 | J63: =SUM(J19:J62) -> 0 | M63: 0 | N63: =SUM(N19:N62) -> 0 | O63: 839.2483589 | P63: =SUM(P19:P62) -> 0 | Q63: 102388.2998 | R63: =SUM(R19:R62) -> 0
A64: Planned Returns Above Variable Costs: | I64: 463.8766411 | J64: =+J14-J63 -> 0 | M64: 0 | N64: =+N14-N63 -> 0 | O64: 463.8766411 | P64: =+P14-P63 -> 0 | Q64: 56592.95022 | R64: =+R14-R63 -> 0
B65: Breakeven Price to Cover Variable Costs | G65: 0.3907489059 | H65: =IF(E10=0,"n/a",(YVarExp-(YTotExp+YTotRet-J10))/E10) -> n/a | I65: Pound
Q66: Enterprise | R66: Enterprise
A67: FIXED COSTS | D67: Quantity | E67: Quantity | F67: Units | G67: $/Unit | H67: $/Unit | I67: Total | J67: Total | K67: Share | L67: Share | M67: Landlord | N67: Landlord | O67: Tenant | P67: Tenant | Q67: Total | R67: Total
B68: Machinery Depreciation
C69: Pickup/General Use Equipment | D69: 1 | F69: Acre | G69: 4.477131148 | I69: 4.477131148 | J69: =E69*H69 -> 0 | K69: 0 | M69: 0 | N69: =J69*L69 -> 0 | O69: 4.477131148 | P69: =+J69-N69 -> 0 | Q69: 546.21 | R69: =+J69*E$7 -> 0
C70: Irrigation Equipment | D70: 1 | F70: Acre | G70: 33.50409836 | I70: 33.50409836 | J70: 0 | K70: 0 | M70: 0 | N70: =J70*L70 -> 0 | O70: 33.50409836 | P70: 0 | Q70: 4087.5 | R70: 0
C71: Tractors/Self-Propelled | D71: 1 | F71: Acre | G71: 5.34353335 | I71: 5.34353335 | J71: 0 | K71: 0 | M71: 0 | N71: =J71*L71 -> 0 | O71: 5.34353335 | P71: 0 | Q71: 651.9110687 | R71: 0
C72: Implements | D72: 1 | F72: Acre | G72: 7.17436902 | I72: 7.17436902 | J72: 0 | K72: 0 | M72: 0 | N72: =J72*L72 -> 0 | O72: 7.17436902 | P72: 0 | Q72: 875.2730205 | R72: 0
B73: Equipment Investment
C74: Pickup/General Use Equipment | D74: 30.91352459 | F74: Dollars | G74: 0.0625 | I74: 1.932095287 | J74: =E74*H74 -> 0 | K74: 0 | M74: 0 | N74: =J74*L74 -> 0 | O74: 1.932095287 | P74: =+J74-N74 -> 0 | Q74: 235.715625 | R74: =+J74*E$7 -> 0
C75: Irrigation Equipment | D75: 470.2868852 | F75: Dollars | G75: 0.0625 | I75: 29.39293033 | J75: 0 | K75: 0 | M75: 0 | N75: =J75*L75 -> 0 | O75: 29.39293033 | P75: 0 | Q75: 3585.9375 | R75: 0
C76: Tractors/Self-Propelled | D76: 41.62784852 | F76: Dollars | G76: 0.0625 | I76: 2.601740532 | J76: 0 | K76: 0 | M76: 0 | N76: =J76*L76 -> 0 | O76: 2.601740532 | P76: 0 | Q76: 317.4123449 | R76: 0
C77: Implements | D77: 31.08853291 | F77: Dollars | G77: 0.0625 | I77: 1.943033307 | J77: 0 | K77: 0 | M77: 0 | N77: =J77*L77 -> 0 | O77: 1.943033307 | P77: 0 | Q77: 237.0500634 | R77: 0
B78: Salaried Labor | D78: 1 | F78: Acre | G78: 0 | I78: 0 | J78: 0 | K78: 0 | M78: 0 | N78: =J78*L78 -> 0 | O78: 0 | P78: =+J78-N78 -> 0 | Q78: 0 | R78: =+J78*E$7 -> 0
B79: Management Fee, Owner/Operator Labor | D79: 1 | F79: Acre | G79: 0 | I79: 0 | J79: 0 | K79: 0 | M79: 0 | N79: 0 | O79: 0 | P79: 0 | Q79: 0 | R79: 0
B80: Allocated Establishment Cost | D80: 1 | F80: Acre | G80: 0 | I80: 0 | J80: 0 | K80: 0 | M80: 0 | N80: 0 | O80: 0 | P80: 0 | Q80: 0 | R80: 0
B81: Cash Rent - Cotton Irrigated | D81: 1 | F81: Acre | G81: 76 | I81: 76 | J81: 0 | K81: 0 | M81: 0 | N81: 0 | O81: 76 | P81: 0 | Q81: 9272 | R81: 0
B82: Property Taxes | D82: 1 | F82: Acre | G82: 0 | I82: 0 | J82: 0 | K82: 0 | M82: 0 | N82: 0 | O82: 0 | P82: 0 | Q82: 0 | R82: 0
B83: Whole Farm Insurance | D83: 1 | F83: Acre | G83: 0 | I83: 0 | J83: 0 | K83: 0 | M83: 0 | N83: 0 | O83: 0 | P83: 0 | Q83: 0 | R83: 0
D84: 1 | G84: 0 | I84: 0 | J84: 0 | K84: 0 | M84: 0 | N84: 0 | O84: 0 | P84: 0 | Q84: 0 | R84: 0
D85: 1 | G85: 0 | I85: 0 | J85: =E85*H85 -> 0 | K85: 0 | M85: 0 | N85: 0 | O85: 0 | P85: 0 | Q85: 0 | R85: 0
A86: Total Fixed Costs | I86: 162.3689313 | J86: =+SUM(J69:J85) -> 0 | M86: 0 | N86: =+SUM(N69:N85) -> 0 | O86: 162.3689313 | P86: =+SUM(P69:P85) -> 0 | Q86: 19809.00962 | R86: =+SUM(R69:R85) -> 0
A87: Total Specified Costs | I87: 1001.61729 | J87: =+J63+J86 -> 0 | M87: 0 | N87: =+N63+N86 -> 0 | O87: 1001.61729 | P87: =+P63+P86 -> 0 | Q87: 122197.3094 | R87: =+R63+R86 -> 0
A89: Returns Above Specified Costs | I89: 301.5077098 | J89: =+J14-J87 -> 0 | M89: 0 | N89: =+N14-N87 -> 0 | O89: 301.5077098 | P89: =+P14-P87 -> 0 | Q89: 36783.9406 | R89: =+R14-R87 -> 0
A91: Breakeven Price to Cover Total Costs | G91: 0.4989948601 | H91: =IF(E10=0,"n/a",(YTotExp-(YTotExp+YTotRet-J10))/E10) -> n/a | I91: Pound
D93: Example Breakeven Prices
B94: Example | C94: Example | D94: To Cover | G94: To Cover
B95: Yield | C95: Yield | D95: Variable | G95: Total
B96: Percent | C96: Pound | D96: Costs | G96: Costs
B97: 0.75 | C97: 1125 | D97: 0.5209985412 | G97: 0.6653264802
B98: 0.9 | C98: 1350 | D98: 0.434165451 | G98: 0.5544387335
B99: 1 | C99: 1500 | D99: 0.3907489059 | G99: 0.4989948601
B100: 1.1 | C100: 1650 | D100: 0.3552262781 | G100: 0.453631691
B101: 1.25 | C101: 1875 | D101: 0.3125991247 | G101: 0.3991958881
A103: Developed by Justin Benavidez, Assistant Professor, Texas A&M AgriLife Extension, 806-677-5600.
A105: Information presented is prepared solely as a general guide and not intended to recognize or predict the costs and returns from any one operation. Brand names are mentioned only as examples and imply no endorsement.

Sheet Peanuts
A1: Projections for Planning Purposes Only -- Not to be Used without Updating
A2: 2021 Estimated Costs and Returns per Acre
A3: Peanuts, Runner, Sprinkler Irrigated
A4: Enter your name for this budget in the cell above.
A5: Enter Your Values in the cells highlighed in MAROON.
E6: Your Acres | R6: Your
C7: Crop Acres | D7: 122 | L7: Your | Q7: Enterprise | R7: Enterprise
E8: Your | H8: Your | I8: Cash | J8: Your | K8: Landlord | L8: Landlord | N8: Your | P8: Your | Q8: Total | R8: Total
A9: REVENUE | D9: Quantity | E9: Quantity | F9: Units | G9: $/Unit | H9: $/Unit | I9: Total | J9: Total | K9: Share | L9: Share | M9: Landlord | N9: Landlord | O9: Tenant | P9: Tenant | Q9: (122 acres) | R9: ="(" & E7 & " acres)" -> ( acres)
B10: Peanuts - Runner | D10: 2.25 | F10: Ton | G10: 424.55 | I10: 955.2375 | J10: =E10*H10 -> 0 | K10: 0 | M10: 0 | N10: =J10*L10 -> 0 | O10: 955.2375 | P10: =+J10-N10 -> 0 | Q10: 116538.975 | R10: =+J10*E$7 -> 0
D11: 0 | G11: 0 | I11: 0 | J11: 0 | K11: 0 | M11: 0 | N11: 0 | O11: 0 | P11: =+J11-N11 -> 0 | Q11: 0 | R11: 0
D12: 0 | G12: 0 | I12: 0 | J12: 0 | K12: 0 | M12: 0 | N12: 0 | O12: 0 | P12: 0 | Q12: 0 | R12: 0
A13: Total Revenue | I13: 955.2375 | J13: =SUM(J10:J12) -> 0 | M13: 0 | N13: =SUM(N10:N12) -> 0 | O13: 955.2375 | P13: =SUM(P10:P12) -> 0 | Q13: 116538.975 | R13: =SUM(R10:R12) -> 0
Q14: Enterprise | R14: Enterprise
A15: VARIABLE COSTS | D15: Quantity | E15: Quantity | F15: Units | G15: $/Unit | H15: $/Unit | I15: Total | J15: Total | K15: Share | L15: Share | M15: Landlord | N15: Landlord | O15: Tenant | P15: Tenant | Q15: Total | R15: Total
A16: Production Costs
B17: Custom
C18: Fertilizer Application | D18: 1 | F18: Acre | G18: 5.350467785 | I18: 5.350467785 | J18: =E18*H18 -> 0 | K18: 0 | M18: 0 | N18: =J18*L18 -> 0 | O18: 5.350467785 | P18: =+J18-N18 -> 0 | Q18: 652.7570697 | R18: =+J18*E$7 -> 0
C19: Dig and Shake | D19: 1 | F19: Acre | G19: 26.76278906 | I19: 26.76278906 | J19: 0 | K19: 0 | M19: 0 | N19: 0 | O19: 26.76278906 | P19: 0 | Q19: 3265.060265 | R19: 0
C20: Harvest and Haul - Peanuts | D20: 2.25 | F20: Ton | G20: 42.81419241 | I20: 96.33193292 | J20: 0 | K20: 0 | M20: 0 | N20: 0 | O20: 96.33193292 | P20: 0 | Q20: 11752.49582 | R20: 0
C21: Drying - Peanuts | D21: 2.25 | F21: Ton | G21: 26.76278906 | I21: 60.21627538 | J21: 0 | K21: 0 | M21: 0 | N21: 0 | O21: 60.21627538 | P21: 0 | Q21: 7346.385596 | R21: 0
B22: Fertilizer
C23: Fertilizer (P) - Dry | D23: 50 | F23: Pound | G23: 0.45 | I23: 22.5 | J23: 0 | K23: 0 | M23: 0 | N23: 0 | O23: 22.5 | P23: 0 | Q23: 2745 | R23: 0
C24: Fertilizer (N) - Dry | D24: 80 | F24: Pound | G24: 0.4 | I24: 32 | J24: 0 | K24: 0 | M24: 0 | N24: 0 | O24: 32 | P24: 0 | Q24: 3904 | R24: 0
B25: Herbicide
C26: Herbicide - Peanut | D26: 1 | F26: Acre | G26: 19.33294355 | I26: 19.33294355 | J26: 0 | K26: 0 | M26: 0 | N26: 0 | O26: 19.33294355 | P26: 0 | Q26: 2358.619113 | R26: 0
B27: Insecticide
C28: Insecticide and Apply Peanut | D28: 1 | F28: Application | G28: 10.36214958 | I28: 10.36214958 | J28: 0 | K28: 0 | M28: 0 | N28: 0 | O28: 10.36214958 | P28: 0 | Q28: 1264.182248 | R28: 0
B29: Miscellaneous
C30: Crop Insurance Peanuts - Irrigated | D30: 1 | F30: Acre | G30: 40 | I30: 40 | J30: 0 | K30: 0 | M30: 0 | N30: 0 | O30: 40 | P30: 0 | Q30: 4880 | R30: 0
B31: Seed
C32: Seed - Peanut | D32: 100 | F32: Pound | G32: 0.945936698 | I32: 94.5936698 | J32: 0 | K32: 0 | M32: 0 | N32: 0 | O32: 94.5936698 | P32: 0 | Q32: 11540.42772 | R32: 0
C33: Innoculant Peanut | D33: 1 | F33: Acre | G33: 7.13329771 | I33: 7.13329771 | J33: 0 | K33: 0 | M33: 0 | N33: 0 | O33: 7.13329771 | P33: 0 | Q33: 870.2623206 | R33: 0
B34: Fungicides
C35: Fungicide and Apply Peanut | D35: 3 | F35: Application | G35: 17.70587302 | I35: 53.11761905 | J35: 0 | K35: 0 | M35: 0 | N35: 0 | O35: 53.11761905 | P35: 0 | Q35: 6480.349524 | R35: 0
B36: Other Labor
C37: Hoeing - Peanut | D37: 1 | F37: Acre | G37: 20.81739812 | I37: 20.81739812 | J37: 0 | K37: 0 | M37: 0 | N37: 0 | O37: 20.81739812 | P37: 0 | Q37: 2539.722571 | R37: 0
D38: 0 | G38: 0 | I38: 0 | J38: 0 | K38: 0 | M38: 0 | N38: 0 | O38: 0 | P38: 0 | Q38: 0 | R38: 0
D39: 0 | G39: 0 | I39: 0 | J39: 0 | K39: 0 | M39: 0 | N39: 0 | O39: 0 | P39: 0 | Q39: 0 | R39: 0
D40: 0 | G40: 0 | I40: 0 | J40: =E40*H40 -> 0 | K40: 0 | M40: 0 | N40: =J40*L40 -> 0 | O40: 0 | P40: =+J40-N40 -> 0 | Q40: 0 | R40: =+J40*E$7 -> 0
B41: Irrigation
C42: Energy Cost | D42: 21 | F42: AcreInch | G42: 3.35 | I42: 70.35 | J42: =E42*H42 -> 0 | K42: 0 | M42: 0 | N42: =J42*L42 -> 0 | O42: 70.35 | P42: =+J42-N42 -> 0 | Q42: 8582.7 | R42: =+J42*E$7 -> 0
C43: Irrigation Labor | D43: 1.344 | F43: Hour | G43: 13.65 | I43: 18.3456 | J43: 0 | K43: 0 | M43: 0 | N43: 0 | O43: 18.3456 | P43: 0 | Q43: 2238.1632 | R43: 0
B44: Machinery Labor
C45: Tractors/Self-Propelled | D45: 1.22 | F45: Hour | G45: 13.43 | I45: 16.3846 | J45: =E45*H45 -> 0 | K45: 0 | M45: 0 | N45: =J45*L45 -> 0 | O45: 16.3846 | P45: =+J45-N45 -> 0 | Q45: 1998.9212 | R45: =+J45*E$7 -> 0
C46: Other Labor | D46: 1.41 | F46: Hour | G46: 13.43 | I46: 18.9363 | J46: =E46*H46 -> 0 | K46: 0 | M46: 0 | N46: =J46*L46 -> 0 | O46: 18.9363 | P46: =+J46-N46 -> 0 | Q46: 2310.2286 | R46: =+J46*E$7 -> 0
B48: Diesel Fuel
C49: Pickup/General Use Equipment | D49: 1 | F49: Acre | G49: 0 | I49: 0 | J49: =E49*H49 -> 0 | K49: 0 | M49: 0 | N49: =J49*L49 -> 0 | O49: 0 | P49: =+J49-N49 -> 0 | Q49: 0 | R49: =+J49*E$7 -> 0
C50: Tractors/Self-Propelled | D50: 6.86 | F50: Gallon | G50: 2.1902 | I50: 15.024772 | J50: =E50*H50 -> 0 | K50: 0 | M50: 0 | N50: =J50*L50 -> 0 | O50: 15.024772 | P50: =+J50-N50 -> 0 | Q50: 1833.022184 | R50: =+J50*E$7 -> 0
B52: Gasoline
C53: Pickup/General Use Equipment | D53: 1 | F53: Acre | G53: 5.200819672 | I53: 5.200819672 | J53: =E53*H53 -> 0 | K53: 0 | M53: 0 | N53: =J53*L53 -> 0 | O53: 5.200819672 | P53: =+J53-N53 -> 0 | Q53: 634.5 | R53: =+J53*E$7 -> 0
C54: Tractors/Self-Propelled | D54: 0 | F54: Gallon | G54: 2.538 | I54: 0 | J54: =E54*H54 -> 0 | K54: 0 | M54: 0 | N54: =J54*L54 -> 0 | O54: 0 | P54: =+J54-N54 -> 0 | Q54: 0 | R54: =+J54*E$7 -> 0
B56: Repairs & Maintenance
C57: Pickup/General Use Equipment | D57: 1 | F57: Acre | G57: 2.508196721 | I57: 2.508196721 | J57: =E57*H57 -> 0 | K57: 0 | M57: 0 | N57: =J57*L57 -> 0 | O57: 2.508196721 | P57: =+J57-N57 -> 0 | Q57: 306 | R57: =+J57*E$7 -> 0
C58: Irrigation Equipment | D58: 1 | F58: Acre | G58: 78.75 | I58: 78.75 | J58: 0 | K58: 0 | M58: 0 | N58: 0 | O58: 78.75 | P58: 0 | Q58: 9607.5 | R58: 0
C59: Tractors/Self-Propelled | D59: 1 | F59: Acre | G59: 11.86720062 | I59: 11.86720062 | J59: 0 | K59: 0 | M59: 0 | N59: 0 | O59: 11.86720062 | P59: 0 | Q59: 1447.798475 | R59: 0
C60: Implements | D60: 1 | F60: Acre | G60: 29.21066357 | I60: 29.21066357 | J60: 0 | K60: 0 | M60: 0 | N60: 0 | O60: 29.21066357 | P60: 0 | Q60: 3563.700955 | R60: 0
I61: 0 | J61: 0 | K61: 0 | M61: 0 | N61: 0 | O61: 0 | P61: 0 | Q61: 0 | R61: 0
I62: 0 | J62: 0 | K62: 0 | M62: 0 | N62: 0 | O62: 0 | P62: 0 | Q62: 0 | R62: 0
B63: Interest on Credit Line | G63: 0.0625 | I63: 15.80736535 | J63: =+SUM(J17:J62)/2*H63 -> 0 | M63: 0 | N63: =+SUM(N17:N62)/2*L63 -> 0 | O63: 15.80736535 | P63: =+SUM(P17:P62)/2*L63 -> 0 | Q63: 1928.498572 | R63: =+J63*E$7 -> 0
A64: Total Variable Costs | I64: 770.9040609 | J64: =SUM(J18:J63) -> 0 | M64: 0 | N64: =SUM(N18:N63) -> 0 | O64: 770.9040609 | P64: =SUM(P18:P63) -> 0 | Q64: 94050.29543 | R64: =SUM(R18:R63) -> 0
A65: Planned Returns Above Variable Costs: | I65: 184.3334391 | J65: =+J13-J64 -> 0 | M65: 0 | N65: =+N13-N64 -> 0 | O65: 184.3334391 | P65: =+P13-P64 -> 0 | Q65: 22488.67957 | R65: =+R13-R64 -> 0
B66: Breakeven Price to Cover Variable Costs | G66: 342.6240271 | H66: =IF(E10=0,"n/a",(YVarExp-(YTotExp+YTotRet-J10))/E10) -> n/a | I66: Ton
Q67: Enterprise | R67: Enterprise
A68: FIXED COSTS | D68: Quantity | E68: Quantity | F68: Units | G68: $/Unit | H68: $/Unit | I68: Total | J68: Total | K68: Share | L68: Share | M68: Landlord | N68: Landlord | O68: Tenant | P68: Tenant | Q68: Total | R68: Total
B69: Machinery Depreciation
C70: Pickup/General Use Equipment | D70: 1 | F70: Acre | G70: 2.633606557 | I70: 2.633606557 | J70: =E70*H70 -> 0 | K70: 0 | M70: 0 | N70: =J70*L70 -> 0 | O70: 2.633606557 | P70: =+J70-N70 -> 0 | Q70: 321.3 | R70: =+J70*E$7 -> 0
C71: Irrigation Equipment | D71: 1 | F71: Acre | G71: 47.33606557 | I71: 47.33606557 | J71: 0 | K71: 0 | M71: 0 | N71: =J71*L71 -> 0 | O71: 47.33606557 | P71: 0 | Q71: 5775 | R71: 0
C72: Tractors/Self-Propelled | D72: 1 | F72: Acre | G72: 11.91502946 | I72: 11.91502946 | J72: 0 | K72: 0 | M72: 0 | N72: =J72*L72 -> 0 | O72: 11.91502946 | P72: 0 | Q72: 1453.633594 | R72: 0
C73: Implements | D73: 1 | F73: Acre | G73: 34.48815613 | I73: 34.48815613 | J73: 0 | K73: 0 | M73: 0 | N73: =J73*L73 -> 0 | O73: 34.48815613 | P73: 0 | Q73: 4207.555048 | R73: 0
B74: Equipment Investment
C75: Pickup/General Use Equipment | D75: 18.18442623 | F75: Dollars | G75: 0.0625 | I75: 1.136526639 | J75: =E75*H75 -> 0 | K75: 0 | M75: 0 | N75: =J75*L75 -> 0 | O75: 1.136526639 | P75: =+J75-N75 -> 0 | Q75: 138.65625 | R75: =+J75*E$7 -> 0
C76: Irrigation Equipment | D76: 571.7213115 | F76: Dollars | G76: 0.0625 | I76: 35.73258197 | J76: 0 | K76: 0 | M76: 0 | N76: =J76*L76 -> 0 | O76: 35.73258197 | P76: 0 | Q76: 4359.375 | R76: 0
C77: Tractors/Self-Propelled | D77: 92.82192305 | F77: Dollars | G77: 0.0625 | I77: 5.801370191 | J77: 0 | K77: 0 | M77: 0 | N77: =J77*L77 -> 0 | O77: 5.801370191 | P77: 0 | Q77: 707.7671633 | R77: 0
C78: Implements | D78: 147.5326679 | F78: Dollars | G78: 0.0625 | I78: 9.220791743 | J78: 0 | K78: 0 | M78: 0 | N78: =J78*L78 -> 0 | O78: 9.220791743 | P78: 0 | Q78: 1124.936593 | R78: 0
B79: Salaried Labor | D79: 1 | F79: Acre | G79: 0 | I79: 0 | J79: 0 | K79: 0 | M79: 0 | N79: =J79*L79 -> 0 | O79: 0 | P79: =+J79-N79 -> 0 | Q79: 0 | R79: =+J79*E$7 -> 0
B80: Management Fee, Owner/Operator Labor | D80: 1 | F80: Acre | G80: 0 | I80: 0 | J80: 0 | K80: 0 | M80: 0 | N80: 0 | O80: 0 | P80: 0 | Q80: 0 | R80: 0
B81: Allocated Establishment Cost | D81: 1 | F81: Acre | G81: 0 | I81: 0 | J81: 0 | K81: 0 | M81: 0 | N81: 0 | O81: 0 | P81: 0 | Q81: 0 | R81: 0
B82: Cash Rent - Peanuts | D82: 1 | F82: Acre | G82: 76 | I82: 76 | J82: 0 | K82: 0 | M82: 0 | N82: 0 | O82: 76 | P82: 0 | Q82: 9272 | R82: 0
B83: Property Taxes | D83: 1 | F83: Acre | G83: 0 | I83: 0 | J83: 0 | K83: 0 | M83: 0 | N83: 0 | O83: 0 | P83: 0 | Q83: 0 | R83: 0
B84: Whole Farm Insurance | D84: 1 | F84: Acre | G84: 0 | I84: 0 | J84: 0 | K84: 0 | M84: 0 | N84: 0 | O84: 0 | P84: 0 | Q84: 0 | R84: 0
D85: 1 | G85: 0 | I85: 0 | J85: 0 | K85: 0 | M85: 0 | N85: 0 | O85: 0 | P85: 0 | Q85: 0 | R85: 0
D86: 1 | G86: 0 | I86: 0 | J86: =E86*H86 -> 0 | K86: 0 | M86: 0 | N86: 0 | O86: 0 | P86: 0 | Q86: 0 | R86: 0
A87: Total Fixed Costs | I87: 224.2641283 | J87: =+SUM(J70:J86) -> 0 | M87: 0 | N87: =+SUM(N70:N86) -> 0 | O87: 224.2641283 | P87: =+SUM(P70:P86) -> 0 | Q87: 27360.22365 | R87: =+SUM(R70:R86) -> 0
A88: Total Specified Costs | I88: 995.1681891 | J88: =+J64+J87 -> 0 | M88: 0 | N88: =+N64+N87 -> 0 | O88: 995.1681891 | P88: =+P64+P87 -> 0 | Q88: 121410.5191 | R88: =+R64+R87 -> 0
A90: Returns Above Specified Costs | I90: -39.93068913 | J90: =+J13-J88 -> 0 | M90: 0 | N90: =+N13-N88 -> 0 | O90: -39.93068913 | P90: =+P13-P88 -> 0 | Q90: -4871.544074 | R90: =+R13-R88 -> 0
A92: Breakeven Price to Cover Total Costs | G92: 442.2969729 | H92: =IF(E10=0,"n/a",(YTotExp-(YTotExp+YTotRet-J10))/E10) -> n/a | I92: Ton
D94: Example Breakeven Prices
B95: Example | C95: Example | D95: To Cover | G95: To Cover
B96: Yield | C96: Yield | D96: Variable | G96: Total
B97: Percent | C97: Ton | D97: Costs | G97: Costs
B98: 0.75 | C98: 1.6875 | D98: 456.8320361 | G98: 589.7292973
B99: 0.9 | C99: 2.025 | D99: 380.6933634 | G99: 491.4410811
B100: 1 | C100: 2.25 | D100: 342.6240271 | G100: 442.2969729
B101: 1.1 | C101: 2.475 | D101: 311.4763882 | G101: 402.0881572
B102: 1.25 | C102: 2.8125 | D102: 274.0992216 | G102: 353.8375784
A104: Developed by Justin Benavidez, Assistant Professor, Texas A&M AgriLife Extension, 806-677-5600.
A106: Information presented is prepared solely as a general guide and not intended to recognize or predict the costs and returns from any one operation. Brand names are mentioned only as examples and imply no endorsement.

Sheet SorghumRotation
A1: Projections for Planning Purposes Only -- Not to be Used without Updating
A2: 2021 Estimated Costs and Returns per Acre
A3: Rotation, Sorghum-Fallow-Wheat, Minimum Till, Sorghum
A4: Enter your name for this budget in the cell above.
A5: Enter Your Values in the cells highlighed in MAROON.
E6: Your Acres | R6: Your
C7: Crop Acres | D7: 160 | L7: Your | Q7: Enterprise | R7: Enterprise
E8: Your | H8: Your | I8: Cash | J8: Your | K8: Landlord | L8: Landlord | N8: Your | P8: Your | Q8: Total | R8: Total
A9: REVENUE | D9: Quantity | E9: Quantity | F9: Units | G9: $/Unit | H9: $/Unit | I9: Total | J9: Total | K9: Share | L9: Share | M9: Landlord | N9: Landlord | O9: Tenant | P9: Tenant | Q9: (160 acres) | R9: ="(" & E7 & " acres)" -> ( acres)
B10: Grain Sorghum | D10: 25 | F10: CWT | G10: 8.04 | I10: 201 | J10: =E10*H10 -> 0 | K10: 0 | M10: 0 | N10: =J10*L10 -> 0 | O10: 201 | P10: =+J10-N10 -> 0 | Q10: 32160 | R10: =+J10*E$7 -> 0
D11: 0 | G11: 0 | I11: 0 | J11: 0 | K11: 0 | M11: 0 | N11: 0 | O11: 0 | P11: =+J11-N11 -> 0 | Q11: 0 | R11: 0
D12: 0 | G12: 0 | I12: 0 | J12: 0 | K12: 0 | M12: 0 | N12: 0 | O12: 0 | P12: 0 | Q12: 0 | R12: 0
A13: Total Revenue | I13: 201 | J13: =SUM(J10:J12) -> 0 | M13: 0 | N13: =SUM(N10:N12) -> 0 | O13: 201 | P13: =SUM(P10:P12) -> 0 | Q13: 32160 | R13: =SUM(R10:R12) -> 0
Q14: Enterprise | R14: Enterprise
A15: VARIABLE COSTS | D15: Quantity | E15: Quantity | F15: Units | G15: $/Unit | H15: $/Unit | I15: Total | J15: Total | K15: Share | L15: Share | M15: Landlord | N15: Landlord | O15: Tenant | P15: Tenant | Q15: Total | R15: Total
A16: Production Costs
B17: Custom
C18: Fertilizer Application - ANH3 | D18: 1 | F18: Acre | G18: 16.05140335 | I18: 16.05140335 | J18: =E18*H18 -> 0 | K18: 0 | M18: 0 | N18: =J18*L18 -> 0 | O18: 16.05140335 | P18: =+J18-N18 -> 0 | Q18: 2568.224537 | R18: =+J18*E$7 -> 0
C19: Custom Harvest - Sorghum Dryland | D19: 1 | F19: Acre | G19: 26.76278906 | I19: 26.76278906 | J19: 0 | K19: 0 | M19: 0 | N19: 0 | O19: 26.76278906 | P19: 0 | Q19: 4282.046249 | R19: 0
C20: Custom Haul - Sorghum Dryland | D20: 25 | F20: CWT | G20: 0.2717034422 | I20: 6.792586055 | J20: 0 | K20: 0 | M20: 0 | N20: 0 | O20: 6.792586055 | P20: 0 | Q20: 1086.813769 | R20: 0
B21: Fertilizer
C22: Fertilizer (N) - ANH3 | D22: 40 | F22: Pound | G22: 0.3 | I22: 12 | J22: 0 | K22: 0 | M22: 0 | N22: 0 | O22: 12 | P22: 0 | Q22: 1920 | R22: 0
B23: Herbicide
C24: Herbicide and Apply Sorghum | D24: 1 | F24: Acre | G24: 20.90714958 | I24: 20.90714958 | J24: 0 | K24: 0 | M24: 0 | N24: 0 | O24: 20.90714958 | P24: 0 | Q24: 3345.143932 | R24: 0
B25: Insecticide
C26: Insecticide Head Worm | D26: 0.33 | F26: Application | G26: 10.58173095 | I26: 3.491971214 | J26: 0 | K26: 0 | M26: 0 | N26: 0 | O26: 3.491971214 | P26: 0 | Q26: 558.7153942 | R26: 0
C27: Insecticide Sugar Cane Aphid | D27: 1 | F27: Application | G27: 22.679619 | I27: 22.679619 | J27: 0 | K27: 0 | M27: 0 | N27: 0 | O27: 22.679619 | P27: 0 | Q27: 3628.73904 | R27: 0
B28: Miscellaneous
C29: Crop Insurance Sorghum - Dryland | D29: 1 | F29: Acre | G29: 17.4 | I29: 17.4 | J29: 0 | K29: 0 | M29: 0 | N29: 0 | O29: 17.4 | P29: 0 | Q29: 2784 | R29: 0
B30: Seed
C31: Seed - Sorghum | D31: 2.25 | F31: Pound | G31: 2.10641574 | I31: 4.739435415 | J31: 0 | K31: 0 | M31: 0 | N31: 0 | O31: 4.739435415 | P31: 0 | Q31: 758.3096664 | R31: 0
D32: 0 | G32: 0 | I32: 0 | J32: 0 | K32: 0 | M32: 0 | N32: 0 | O32: 0 | P32: 0 | Q32: 0 | R32: 0
D33: 0 | G33: 0 | I33: 0 | J33: 0 | K33: 0 | M33: 0 | N33: 0 | O33: 0 | P33: 0 | Q33: 0 | R33: 0
D34: 0 | G34: 0 | I34: 0 | J34: =E34*H34 -> 0 | K34: 0 | M34: 0 | N34: =J34*L34 -> 0 | O34: 0 | P34: =+J34-N34 -> 0 | Q34: 0 | R34: =+J34*E$7 -> 0
B35: Machinery Labor
C36: Tractors/Self-Propelled | D36: 0.33 | F36: Hour | G36: 13.43 | I36: 4.4319 | J36: =E36*H36 -> 0 | K36: 0 | M36: 0 | N36: =J36*L36 -> 0 | O36: 4.4319 | P36: =+J36-N36 -> 0 | Q36: 709.104 | R36: =+J36*E$7 -> 0
C37: Other Labor | D37: 0.35 | F37: Hour | G37: 13.43 | I37: 4.7005 | J37: =E37*H37 -> 0 | K37: 0 | M37: 0 | N37: =J37*L37 -> 0 | O37: 4.7005 | P37: =+J37-N37 -> 0 | Q37: 752.08 | R37: =+J37*E$7 -> 0
B39: Diesel Fuel
C40: Pickup/General Use Equipment | D40: 1 | F40: Acre | G40: 0 | I40: 0 | J40: =E40*H40 -> 0 | K40: 0 | M40: 0 | N40: =J40*L40 -> 0 | O40: 0 | P40: =+J40-N40 -> 0 | Q40: 0 | R40: =+J40*E$7 -> 0
C41: Tractors/Self-Propelled | D41: 1.91 | F41: Gallon | G41: 2.1902 | I41: 4.183282 | J41: =E41*H41 -> 0 | K41: 0 | M41: 0 | N41: =J41*L41 -> 0 | O41: 4.183282 | P41: =+J41-N41 -> 0 | Q41: 669.32512 | R41: =+J41*E$7 -> 0
B43: Gasoline
C44: Pickup/General Use Equipment | D44: 1 | F44: Acre | G44: 5.1553125 | I44: 5.1553125 | J44: =E44*H44 -> 0 | K44: 0 | M44: 0 | N44: =J44*L44 -> 0 | O44: 5.1553125 | P44: =+J44-N44 -> 0 | Q44: 824.85 | R44: =+J44*E$7 -> 0
C45: Tractors/Self-Propelled | D45: 0 | F45: Gallon | G45: 2.538 | I45: 0 | J45: =E45*H45 -> 0 | K45: 0 | M45: 0 | N45: =J45*L45 -> 0 | O45: 0 | P45: =+J45-N45 -> 0 | Q45: 0 | R45: =+J45*E$7 -> 0
B47: Repairs & Maintenance
C48: Pickup/General Use Equipment | D48: 1 | F48: Acre | G48: 2.48625 | I48: 2.48625 | J48: =E48*H48 -> 0 | K48: 0 | M48: 0 | N48: =J48*L48 -> 0 | O48: 2.48625 | P48: =+J48-N48 -> 0 | Q48: 397.8 | R48: =+J48*E$7 -> 0
C49: Irrigation Equipment | D49: 1 | F49: Acre | G49: 0 | I49: 0 | J49: 0 | K49: 0 | M49: 0 | N49: 0 | O49: 0 | P49: 0 | Q49: 0 | R49: 0
C50: Tractors/Self-Propelled | D50: 1 | F50: Acre | G50: 3.824154106 | I50: 3.824154106 | J50: 0 | K50: 0 | M50: 0 | N50: 0 | O50: 3.824154106 | P50: 0 | Q50: 611.864657 | R50: 0
C51: Implements | D51: 1 | F51: Acre | G51: 11.95661414 | I51: 11.95661414 | J51: 0 | K51: 0 | M51: 0 | N51: 0 | O51: 11.95661414 | P51: 0 | Q51: 1913.058262 | R51: 0
I52: 0 | J52: 0 | K52: 0 | M52: 0 | N52: 0 | O52: 0 | P52: 0 | Q52: 0 | R52: 0
I53: 0 | J53: 0 | K53: 0 | M53: 0 | N53: 0 | O53: 0 | P53: 0 | Q53: 0 | R53: 0
B54: Interest on Credit Line | G54: 0.0625 | I54: 3.394909987 | J54: =+SUM(J17:J53)/2*H54 -> 0 | M54: 0 | N54: =+SUM(N17:N53)/2*L54 -> 0 | O54: 3.394909987 | P54: =+SUM(P17:P53)/2*L54 -> 0 | Q54: 543.1855979 | R54: =+J54*E$7 -> 0
A55: Total Variable Costs | I55: 170.9578764 | J55: =SUM(J18:J54) -> 0 | M55: 0 | N55: =SUM(N18:N54) -> 0 | O55: 170.9578764 | P55: =SUM(P18:P54) -> 0 | Q55: 27353.26022 | R55: =SUM(R18:R54) -> 0
A56: Planned Returns Above Variable Costs: | I56: 30.0421236 | J56: =+J13-J55 -> 0 | M56: 0 | N56: =+N13-N55 -> 0 | O56: 30.0421236 | P56: =+P13-P55 -> 0 | Q56: 4806.739775 | R56: =+R13-R55 -> 0
B57: Breakeven Price to Cover Variable Costs | G57: 6.838315056 | H57: =IF(E10=0,"n/a",(YVarExp-(YTotExp+YTotRet-J10))/E10) -> n/a | I57: CWT
Q58: Enterprise | R58: Enterprise
A59: FIXED COSTS | D59: Quantity | E59: Quantity | F59: Units | G59: $/Unit | H59: $/Unit | I59: Total | J59: Total | K59: Share | L59: Share | M59: Landlord | N59: Landlord | O59: Tenant | P59: Tenant | Q59: Total | R59: Total
B60: Machinery Depreciation
C61: Pickup/General Use Equipment | D61: 1 | F61: Acre | G61: 2.6105625 | I61: 2.6105625 | J61: =E61*H61 -> 0 | K61: 0 | M61: 0 | N61: =J61*L61 -> 0 | O61: 2.6105625 | P61: =+J61-N61 -> 0 | Q61: 417.69 | R61: =+J61*E$7 -> 0
C62: Tractors/Self-Propelled | D62: 1 | F62: Acre | G62: 3.738176593 | I62: 3.738176593 | J62: 0 | K62: 0 | M62: 0 | N62: =J62*L62 -> 0 | O62: 3.738176593 | P62: 0 | Q62: 598.1082549 | R62: 0
C63: Implements | D63: 1 | F63: Acre | G63: 15.4929144 | I63: 15.4929144 | J63: 0 | K63: 0 | M63: 0 | N63: =J63*L63 -> 0 | O63: 15.4929144 | P63: 0 | Q63: 2478.866304 | R63: 0
B64: Equipment Investment
C65: Pickup/General Use Equipment | D65: 18.0253125 | F65: Dollars | G65: 0.0625 | I65: 1.126582031 | J65: =E65*H65 -> 0 | K65: 0 | M65: 0 | N65: =J65*L65 -> 0 | O65: 1.126582031 | P65: =+J65-N65 -> 0 | Q65: 180.253125 | R65: =+J65*E$7 -> 0
C66: Tractors/Self-Propelled | D66: 29.12160152 | F66: Dollars | G66: 0.0625 | I66: 1.820100095 | J66: 0 | K66: 0 | M66: 0 | N66: =J66*L66 -> 0 | O66: 1.820100095 | P66: 0 | Q66: 291.2160152 | R66: 0
C67: Implements | D67: 66.27524493 | F67: Dollars | G67: 0.0625 | I67: 4.142202808 | J67: 0 | K67: 0 | M67: 0 | N67: =J67*L67 -> 0 | O67: 4.142202808 | P67: 0 | Q67: 662.7524493 | R67: 0
B68: Salaried Labor | D68: 1 | F68: Acre | G68: 0 | I68: 0 | J68: 0 | K68: 0 | M68: 0 | N68: =J68*L68 -> 0 | O68: 0 | P68: =+J68-N68 -> 0 | Q68: 0 | R68: =+J68*E$7 -> 0
B69: Management Fee, Owner/Operator Labor | D69: 1 | F69: Acre | G69: 0 | I69: 0 | J69: 0 | K69: 0 | M69: 0 | N69: 0 | O69: 0 | P69: 0 | Q69: 0 | R69: 0
B70: Allocated Establishment Cost | D70: 1 | F70: Acre | G70: 0 | I70: 0 | J70: 0 | K70: 0 | M70: 0 | N70: 0 | O70: 0 | P70: 0 | Q70: 0 | R70: 0
B71: Cash Rent - Sorghum | D71: 1 | F71: Acre | G71: 30 | I71: 30 | J71: 0 | K71: 0 | M71: 0 | N71: 0 | O71: 30 | P71: 0 | Q71: 4800 | R71: 0
B72: Property Taxes | D72: 1 | F72: Acre | G72: 0 | I72: 0 | J72: 0 | K72: 0 | M72: 0 | N72: 0 | O72: 0 | P72: 0 | Q72: 0 | R72: 0
B73: Whole Farm Insurance | D73: 1 | F73: Acre | G73: 0 | I73: 0 | J73: 0 | K73: 0 | M73: 0 | N73: 0 | O73: 0 | P73: 0 | Q73: 0 | R73: 0
D74: 1 | G74: 0 | I74: 0 | J74: 0 | K74: 0 | M74: 0 | N74: 0 | O74: 0 | P74: 0 | Q74: 0 | R74: 0
D75: 1 | G75: 0 | I75: 0 | J75: =E75*H75 -> 0 | K75: 0 | M75: 0 | N75: 0 | O75: 0 | P75: 0 | Q75: 0 | R75: 0
A76: Total Fixed Costs | I76: 58.93053843 | J76: =+SUM(J61:J75) -> 0 | M76: 0 | N76: =+SUM(N61:N75) -> 0 | O76: 58.93053843 | P76: =+SUM(P61:P75) -> 0 | Q76: 9428.886148 | R76: =+SUM(R61:R75) -> 0
A77: Total Specified Costs | I77: 229.8884148 | J77: =+J55+J76 -> 0 | M77: 0 | N77: =+N55+N76 -> 0 | O77: 229.8884148 | P77: =+P55+P76 -> 0 | Q77: 36782.14637 | R77: =+R55+R76 -> 0
A79: Returns Above Specified Costs | I79: -28.88841483 | J79: =+J13-J77 -> 0 | M79: 0 | N79: =+N13-N77 -> 0 | O79: -28.88841483 | P79: =+P13-P77 -> 0 | Q79: -4622.146373 | R79: =+R13-R77 -> 0
A81: Breakeven Price to Cover Total Costs | G81: 9.195536593 | H81: =IF(E10=0,"n/a",(YTotExp-(YTotExp+YTotRet-J10))/E10) -> n/a | I81: CWT
D83: Example Breakeven Prices
B84: Example | C84: Example | D84: To Cover | G84: To Cover
B85: Yield | C85: Yield | D85: Variable | G85: Total
B86: Percent | C86: CWT | D86: Costs | G86: Costs
B87: 0.75 | C87: 18.75 | D87: 9.117753408 | G87: 12.26071546
B88: 0.9 | C88: 22.5 | D88: 7.59812784 | G88: 10.21726288
B89: 1 | C89: 25 | D89: 6.838315056 | G89: 9.195536593
B90: 1.1 | C90: 27.5 | D90: 6.216650051 | G90: 8.359578721
B91: 1.25 | C91: 31.25 | D91: 5.470652045 | G91: 7.356429275
A93: Developed by Justin Benavidez, Assistant Professor, Texas A&M AgriLife Extension, 806-677-5600.
A95: Information presented is prepared solely as a general guide and not intended to recognize or predict the costs and returns from any one operation. Brand names are mentioned only as examples and imply no endorsement.

Sheet FallowRotation
A1: Projections for Planning Purposes Only -- Not to be Used without Updating
A2: 2021 Estimated Costs and Returns per Acre
A3: Rotation, Sorghum-Fallow-Wheat, Minimum Till, Fallow
A4: Enter your name for this budget in the cell above.
A5: Enter Your Values in the cells highlighed in MAROON.
E6: Your Acres | R6: Your
C7: Crop Acres | D7: 160 | L7: Your | Q7: Enterprise | R7: Enterprise
E8: Your | H8: Your | I8: Cash | J8: Your | K8: Landlord | L8: Landlord | N8: Your | P8: Your | Q8: Total | R8: Total
A9: REVENUE | D9: Quantity | E9: Quantity | F9: Units | G9: $/Unit | H9: $/Unit | I9: Total | J9: Total | K9: Share | L9: Share | M9: Landlord | N9: Landlord | O9: Tenant | P9: Tenant | Q9: (160 acres) | R9: ="(" & E7 & " acres)" -> ( acres)
B10: 0 | D10: 0 | G10: 0 | I10: 0 | J10: =E10*H10 -> 0 | K10: 0 | M10: 0 | N10: =J10*L10 -> 0 | O10: 0 | P10: =+J10-N10 -> 0 | Q10: 0 | R10: =+J10*E$7 -> 0
D11: 0 | G11: 0 | I11: 0 | J11: 0 | K11: 0 | M11: 0 | N11: 0 | O11: 0 | P11: =+J11-N11 -> 0 | Q11: 0 | R11: 0
D12: 0 | G12: 0 | I12: 0 | J12: 0 | K12: 0 | M12: 0 | N12: 0 | O12: 0 | P12: 0 | Q12: 0 | R12: 0
A13: Total Revenue | I13: 0 | J13: =SUM(J10:J12) -> 0 | M13: 0 | N13: =SUM(N10:N12) -> 0 | O13: 0 | P13: =SUM(P10:P12) -> 0 | Q13: 0 | R13: =SUM(R10:R12) -> 0
Q14: Enterprise | R14: Enterprise
A15: VARIABLE COSTS | D15: Quantity | E15: Quantity | F15: Units | G15: $/Unit | H15: $/Unit | I15: Total | J15: Total | K15: Share | L15: Share | M15: Landlord | N15: Landlord | O15: Tenant | P15: Tenant | Q15: Total | R15: Total
A16: Production Costs
B17: Herbicide
C18: Herbicide and Apply Fallow | D18: 2 | F18: Acre | G18: 12.24037629 | I18: 24.48075259 | J18: =E18*H18 -> 0 | K18: 0 | M18: 0 | N18: =J18*L18 -> 0 | O18: 24.48075259 | P18: =+J18-N18 -> 0 | Q18: 3916.920414 | R18: =+J18*E$7 -> 0
D19: 0 | G19: 0 | I19: 0 | J19: 0 | K19: 0 | M19: 0 | N19: 0 | O19: 0 | P19: 0 | Q19: 0 | R19: 0
D20: 0 | G20: 0 | I20: 0 | J20: 0 | K20: 0 | M20: 0 | N20: 0 | O20: 0 | P20: 0 | Q20: 0 | R20: 0
D21: 0 | G21: 0 | I21: 0 | J21: =E21*H21 -> 0 | K21: 0 | M21: 0 | N21: =J21*L21 -> 0 | O21: 0 | P21: =+J21-N21 -> 0 | Q21: 0 | R21: =+J21*E$7 -> 0
B22: Machinery Labor
C23: Tractors/Self-Propelled | D23: 0.12 | F23: Hour | G23: 13.43 | I23: 1.6116 | J23: =E23*H23 -> 0 | K23: 0 | M23: 0 | N23: =J23*L23 -> 0 | O23: 1.6116 | P23: =+J23-N23 -> 0 | Q23: 257.856 | R23: =+J23*E$7 -> 0
C24: Other Labor | D24: 0.14 | F24: Hour | G24: 13.43 | I24: 1.8802 | J24: =E24*H24 -> 0 | K24: 0 | M24: 0 | N24: =J24*L24 -> 0 | O24: 1.8802 | P24: =+J24-N24 -> 0 | Q24: 300.832 | R24: =+J24*E$7 -> 0
B26: Diesel Fuel
C27: Pickup/General Use Equipment | D27: 1 | F27: Acre | G27: 0 | I27: 0 | J27: =E27*H27 -> 0 | K27: 0 | M27: 0 | N27: =J27*L27 -> 0 | O27: 0 | P27: =+J27-N27 -> 0 | Q27: 0 | R27: =+J27*E$7 -> 0
C28: Tractors/Self-Propelled | D28: 0.91 | F28: Gallon | G28: 2.1902 | I28: 1.993082 | J28: =E28*H28 -> 0 | K28: 0 | M28: 0 | N28: =J28*L28 -> 0 | O28: 1.993082 | P28: =+J28-N28 -> 0 | Q28: 318.89312 | R28: =+J28*E$7 -> 0
B30: Gasoline
C31: Pickup/General Use Equipment | D31: 1 | F31: Acre | G31: 0 | I31: 0 | J31: =E31*H31 -> 0 | K31: 0 | M31: 0 | N31: =J31*L31 -> 0 | O31: 0 | P31: =+J31-N31 -> 0 | Q31: 0 | R31: =+J31*E$7 -> 0
C32: Tractors/Self-Propelled | D32: 0 | F32: Gallon | G32: 2.538 | I32: 0 | J32: =E32*H32 -> 0 | K32: 0 | M32: 0 | N32: =J32*L32 -> 0 | O32: 0 | P32: =+J32-N32 -> 0 | Q32: 0 | R32: =+J32*E$7 -> 0
B34: Repairs & Maintenance
C35: Pickup/General Use Equipment | D35: 1 | F35: Acre | G35: 0 | I35: 0 | J35: =E35*H35 -> 0 | K35: 0 | M35: 0 | N35: =J35*L35 -> 0 | O35: 0 | P35: =+J35-N35 -> 0 | Q35: 0 | R35: =+J35*E$7 -> 0
C36: Irrigation Equipment | D36: 1 | F36: Acre | G36: 0 | I36: 0 | J36: 0 | K36: 0 | M36: 0 | N36: 0 | O36: 0 | P36: 0 | Q36: 0 | R36: 0
C37: Tractors/Self-Propelled | D37: 1 | F37: Acre | G37: 2.177540297 | I37: 2.177540297 | J37: 0 | K37: 0 | M37: 0 | N37: 0 | O37: 2.177540297 | P37: 0 | Q37: 348.4064474 | R37: 0
C38: Implements | D38: 1 | F38: Acre | G38: 2.781797587 | I38: 2.781797587 | J38: 0 | K38: 0 | M38: 0 | N38: 0 | O38: 2.781797587 | P38: 0 | Q38: 445.0876139 | R38: 0
I39: 0 | J39: 0 | K39: 0 | M39: 0 | N39: 0 | O39: 0 | P39: 0 | Q39: 0 | R39: 0
I40: 0 | J40: 0 | K40: 0 | M40: 0 | N40: 0 | O40: 0 | P40: 0 | Q40: 0 | R40: 0
B41: Interest on Credit Line | G41: 0.0625 | I41: 1.200193542 | J41: =+SUM(J17:J40)/2*H41 -> 0 | M41: 0 | N41: =+SUM(N17:N40)/2*L41 -> 0 | O41: 1.200193542 | P41: =+SUM(P17:P40)/2*L41 -> 0 | Q41: 192.0309667 | R41: =+J41*E$7 -> 0
A42: Total Variable Costs | I42: 36.12516601 | J42: =SUM(J18:J41) -> 0 | M42: 0 | N42: =SUM(N18:N41) -> 0 | O42: 36.12516601 | P42: =SUM(P18:P41) -> 0 | Q42: 5780.026562 | R42: =SUM(R18:R41) -> 0
A43: Planned Returns Above Variable Costs: | I43: -36.12516601 | J43: =+J13-J42 -> 0 | M43: 0 | N43: =+N13-N42 -> 0 | O43: -36.12516601 | P43: =+P13-P42 -> 0 | Q43: -5780.026562 | R43: =+R13-R42 -> 0
B44: Breakeven Price to Cover Variable Costs | G44: n/a | H44: =IF(E10=0,"n/a",(YVarExp-(YTotExp+YTotRet-J10))/E10) -> n/a
Q45: Enterprise | R45: Enterprise
A46: FIXED COSTS | D46: Quantity | E46: Quantity | F46: Units | G46: $/Unit | H46: $/Unit | I46: Total | J46: Total | K46: Share | L46: Share | M46: Landlord | N46: Landlord | O46: Tenant | P46: Tenant | Q46: Total | R46: Total
B47: Machinery Depreciation
C48: Tractors/Self-Propelled | D48: 1 | F48: Acre | G48: 2.250124973 | I48: 2.250124973 | J48: =E48*H48 -> 0 | K48: 0 | M48: 0 | N48: =J48*L48 -> 0 | O48: 2.250124973 | P48: =+J48-N48 -> 0 | Q48: 360.0199957 | R48: =+J48*E$7 -> 0
C49: Implements | D49: 1 | F49: Acre | G49: 3.576596897 | I49: 3.576596897 | J49: 0 | K49: 0 | M49: 0 | N49: =J49*L49 -> 0 | O49: 3.576596897 | P49: 0 | Q49: 572.2555036 | R49: 0
B50: Equipment Investment
C51: Tractors/Self-Propelled | D51: 17.52919939 | F51: Dollars | G51: 0.0625 | I51: 1.095574962 | J51: =E51*H51 -> 0 | K51: 0 | M51: 0 | N51: =J51*L51 -> 0 | O51: 1.095574962 | P51: =+J51-N51 -> 0 | Q51: 175.2919939 | R51: =+J51*E$7 -> 0
C52: Implements | D52: 15.29988673 | F52: Dollars | G52: 0.0625 | I52: 0.9562429205 | J52: 0 | K52: 0 | M52: 0 | N52: =J52*L52 -> 0 | O52: 0.9562429205 | P52: 0 | Q52: 152.9988673 | R52: 0
B53: Salaried Labor | D53: 1 | F53: Acre | G53: 0 | I53: 0 | J53: 0 | K53: 0 | M53: 0 | N53: =J53*L53 -> 0 | O53: 0 | P53: =+J53-N53 -> 0 | Q53: 0 | R53: =+J53*E$7 -> 0
B54: Management Fee, Owner/Operator Labor | D54: 1 | F54: Acre | G54: 0 | I54: 0 | J54: 0 | K54: 0 | M54: 0 | N54: 0 | O54: 0 | P54: 0 | Q54: 0 | R54: 0
B55: Allocated Establishment Cost | D55: 1 | F55: Acre | G55: 0 | I55: 0 | J55: 0 | K55: 0 | M55: 0 | N55: 0 | O55: 0 | P55: 0 | Q55: 0 | R55: 0
B56: Cash Rent - Wheat Dryland | D56: 1 | F56: Acre | G56: 30 | I56: 30 | J56: 0 | K56: 0 | M56: 0 | N56: 0 | O56: 30 | P56: 0 | Q56: 4800 | R56: 0
B57: Property Taxes | D57: 1 | F57: Acre | G57: 0 | I57: 0 | J57: 0 | K57: 0 | M57: 0 | N57: 0 | O57: 0 | P57: 0 | Q57: 0 | R57: 0
B58: Whole Farm Insurance | D58: 1 | F58: Acre | G58: 0 | I58: 0 | J58: 0 | K58: 0 | M58: 0 | N58: 0 | O58: 0 | P58: 0 | Q58: 0 | R58: 0
D59: 1 | G59: 0 | I59: 0 | J59: 0 | K59: 0 | M59: 0 | N59: 0 | O59: 0 | P59: 0 | Q59: 0 | R59: 0
D60: 1 | G60: 0 | I60: 0 | J60: =E60*H60 -> 0 | K60: 0 | M60: 0 | N60: 0 | O60: 0 | P60: 0 | Q60: 0 | R60: 0
A61: Total Fixed Costs | I61: 37.87853975 | J61: =+SUM(J48:J60) -> 0 | M61: 0 | N61: =+SUM(N48:N60) -> 0 | O61: 37.87853975 | P61: =+SUM(P48:P60) -> 0 | Q61: 6060.56636 | R61: =+SUM(R48:R60) -> 0
A62: Total Specified Costs | I62: 74.00370577 | J62: =+J42+J61 -> 0 | M62: 0 | N62: =+N42+N61 -> 0 | O62: 74.00370577 | P62: =+P42+P61 -> 0 | Q62: 11840.59292 | R62: =+R42+R61 -> 0
A64: Returns Above Specified Costs | I64: -74.00370577 | J64: =+J13-J62 -> 0 | M64: 0 | N64: =+N13-N62 -> 0 | O64: -74.00370577 | P64: =+P13-P62 -> 0 | Q64: -11840.59292 | R64: =+R13-R62 -> 0
A66: Breakeven Price to Cover Total Costs | G66: n/a | H66: =IF(E10=0,"n/a",(YTotExp-(YTotExp+YTotRet-J10))/E10) -> n/a
D68: Example Breakeven Prices
B69: Example | C69: Example | D69: To Cover | G69: To Cover
B70: Yield | C70: Yield | D70: Variable | G70: Total
B71: Percent | D71: Costs | G71: Costs
B72: 0.75 | C72: 0 | D72: 0 | G72: 0
B73: 0.9 | C73: 0 | D73: 0 | G73: 0
B74: 1 | C74: 0 | D74: 0 | G74: 0
B75: 1.1 | C75: 0 | D75: 0 | G75: 0
B76: 1.25 | C76: 0 | D76: 0 | G76: 0
A78: Developed by Justin Benavidez, Assistant Professor, Texas A&M AgriLife Extension, 806-677-5600.
A80: Information presented is prepared solely as a general guide and not intended to recognize or predict the costs and returns from any one operation. Brand names are mentioned only as examples and imply no endorsement.

Sheet WheatRotation
A1: Projections for Planning Purposes Only -- Not to be Used without Updating
A2: 2021 Estimated Costs and Returns per Acre
A3: Rotation, Sorghum-Fallow-Wheat, Minimum Till, Wheat with Grazing
A4: Enter your name for this budget in the cell above.
A5: Enter Your Values in the cells highlighed in MAROON.
E6: Your Acres | R6: Your
C7: Crop Acres | D7: 160 | L7: Your | Q7: Enterprise | R7: Enterprise
E8: Your | H8: Your | I8: Cash | J8: Your | K8: Landlord | L8: Landlord | N8: Your | P8: Your | Q8: Total | R8: Total
A9: REVENUE | D9: Quantity | E9: Quantity | F9: Units | G9: $/Unit | H9: $/Unit | I9: Total | J9: Total | K9: Share | L9: Share | M9: Landlord | N9: Landlord | O9: Tenant | P9: Tenant | Q9: (160 acres) | R9: ="(" & E7 & " acres)" -> ( acres)
B10: Wheat | D10: 26 | F10: Bushel | G10: 5.28 | I10: 137.28 | J10: =E10*H10 -> 0 | K10: 0 | M10: 0 | N10: =J10*L10 -> 0 | O10: 137.28 | P10: =+J10-N10 -> 0 | Q10: 21964.8 | R10: =+J10*E$7 -> 0
B11: Grazing - Wheat | D11: 73 | F11: Pound | G11: 0.5 | I11: 36.5 | J11: 0 | K11: 0 | M11: 0 | N11: 0 | O11: 36.5 | P11: =+J11-N11 -> 0 | Q11: 5840 | R11: 0
D12: 0 | G12: 0 | I12: 0 | J12: 0 | K12: 0 | M12: 0 | N12: 0 | O12: 0 | P12: 0 | Q12: 0 | R12: 0
D13: 0 | G13: 0 | I13: 0 | J13: 0 | K13: 0 | M13: 0 | N13: 0 | O13: 0 | P13: 0 | Q13: 0 | R13: 0
A14: Total Revenue | I14: 173.78 | J14: =SUM(J10:J13) -> 0 | M14: 0 | N14: =SUM(N10:N13) -> 0 | O14: 173.78 | P14: =SUM(P10:P13) -> 0 | Q14: 27804.8 | R14: =SUM(R10:R13) -> 0
Q15: Enterprise | R15: Enterprise
A16: VARIABLE COSTS | D16: Quantity | E16: Quantity | F16: Units | G16: $/Unit | H16: $/Unit | I16: Total | J16: Total | K16: Share | L16: Share | M16: Landlord | N16: Landlord | O16: Tenant | P16: Tenant | Q16: Total | R16: Total
A17: Production Costs
B18: Seed
C19: Seed - Wheat Dryland | D19: 1 | F19: Bushel | G19: 11.4780154 | I19: 11.4780154 | J19: =E19*H19 -> 0 | K19: 0 | M19: 0 | N19: =J19*L19 -> 0 | O19: 11.4780154 | P19: =+J19-N19 -> 0 | Q19: 1836.482464 | R19: =+J19*E$7 -> 0
B20: Fertilizer
C21: Fertilizer (N) - Dry | D21: 30 | F21: Pound | G21: 0.4 | I21: 12 | J21: 0 | K21: 0 | M21: 0 | N21: 0 | O21: 12 | P21: 0 | Q21: 1920 | R21: 0
B22: Custom
C23: Fertilizer Application | D23: 1 | F23: Acre | G23: 5.350467785 | I23: 5.350467785 | J23: 0 | K23: 0 | M23: 0 | N23: 0 | O23: 5.350467785 | P23: 0 | Q23: 856.0748455 | R23: 0
C24: Custom Harvest - Wheat | D24: 1 | F24: Acre | G24: 26.76278906 | I24: 26.76278906 | J24: 0 | K24: 0 | M24: 0 | N24: 0 | O24: 26.76278906 | P24: 0 | Q24: 4282.046249 | R24: 0
C25: Custom Haul - Wheat | D25: 26 | F25: Bushel | G25: 0.2717034422 | I25: 7.064289497 | J25: 0 | K25: 0 | M25: 0 | N25: 0 | O25: 7.064289497 | P25: 0 | Q25: 1130.28632 | R25: 0
D26: 0 | G26: 0 | I26: 0 | J26: 0 | K26: 0 | M26: 0 | N26: 0 | O26: 0 | P26: 0 | Q26: 0 | R26: 0
D27: 0 | G27: 0 | I27: 0 | J27: 0 | K27: 0 | M27: 0 | N27: 0 | O27: 0 | P27: 0 | Q27: 0 | R27: 0
D28: 0 | G28: 0 | I28: 0 | J28: =E28*H28 -> 0 | K28: 0 | M28: 0 | N28: =J28*L28 -> 0 | O28: 0 | P28: =+J28-N28 -> 0 | Q28: 0 | R28: =+J28*E$7 -> 0
B29: Machinery Labor
C30: Tractors/Self-Propelled | D30: 0.18 | F30: Hour | G30: 13.43 | I30: 2.4174 | J30: =E30*H30 -> 0 | K30: 0 | M30: 0 | N30: =J30*L30 -> 0 | O30: 2.4174 | P30: =+J30-N30 -> 0 | Q30: 386.784 | R30: =+J30*E$7 -> 0
C31: Other Labor | D31: 0.18 | F31: Hour | G31: 13.43 | I31: 2.4174 | J31: =E31*H31 -> 0 | K31: 0 | M31: 0 | N31: =J31*L31 -> 0 | O31: 2.4174 | P31: =+J31-N31 -> 0 | Q31: 386.784 | R31: =+J31*E$7 -> 0
B33: Diesel Fuel
C34: Pickup/General Use Equipment | D34: 1 | F34: Acre | G34: 0 | I34: 0 | J34: =E34*H34 -> 0 | K34: 0 | M34: 0 | N34: =J34*L34 -> 0 | O34: 0 | P34: =+J34-N34 -> 0 | Q34: 0 | R34: =+J34*E$7 -> 0
C35: Tractors/Self-Propelled | D35: 0.6 | F35: Gallon | G35: 2.1902 | I35: 1.31412 | J35: =E35*H35 -> 0 | K35: 0 | M35: 0 | N35: =J35*L35 -> 0 | O35: 1.31412 | P35: =+J35-N35 -> 0 | Q35: 210.2592 | R35: =+J35*E$7 -> 0
B37: Gasoline
C38: Pickup/General Use Equipment | D38: 1 | F38: Acre | G38: 5.1553125 | I38: 5.1553125 | J38: =E38*H38 -> 0 | K38: 0 | M38: 0 | N38: =J38*L38 -> 0 | O38: 5.1553125 | P38: =+J38-N38 -> 0 | Q38: 824.85 | R38: =+J38*E$7 -> 0
C39: Tractors/Self-Propelled | D39: 0 | F39: Gallon | G39: 2.538 | I39: 0 | J39: =E39*H39 -> 0 | K39: 0 | M39: 0 | N39: =J39*L39 -> 0 | O39: 0 | P39: =+J39-N39 -> 0 | Q39: 0 | R39: =+J39*E$7 -> 0
B41: Repairs & Maintenance
C42: Pickup/General Use Equipment | D42: 1 | F42: Acre | G42: 2.48625 | I42: 2.48625 | J42: =E42*H42 -> 0 | K42: 0 | M42: 0 | N42: =J42*L42 -> 0 | O42: 2.48625 | P42: =+J42-N42 -> 0 | Q42: 397.8 | R42: =+J42*E$7 -> 0
C43: Irrigation Equipment | D43: 1 | F43: Acre | G43: 0 | I43: 0 | J43: 0 | K43: 0 | M43: 0 | N43: 0 | O43: 0 | P43: 0 | Q43: 0 | R43: 0
C44: Tractors/Self-Propelled | D44: 1 | F44: Acre | G44: 0.7770146825 | I44: 0.7770146825 | J44: 0 | K44: 0 | M44: 0 | N44: 0 | O44: 0.7770146825 | P44: 0 | Q44: 124.3223492 | R44: 0
C45: Implements | D45: 1 | F45: Acre | G45: 4.945526667 | I45: 4.945526667 | J45: 0 | K45: 0 | M45: 0 | N45: 0 | O45: 4.945526667 | P45: 0 | Q45: 791.2842667 | R45: 0
I46: 0 | J46: 0 | K46: 0 | M46: 0 | N46: 0 | O46: 0 | P46: 0 | Q46: 0 | R46: 0
I47: 0 | J47: 0 | K47: 0 | M47: 0 | N47: 0 | O47: 0 | P47: 0 | Q47: 0 | R47: 0
B48: Interest on Credit Line | G48: 0.0625 | I48: 1.362330333 | J48: =+SUM(J18:J47)/2*H48 -> 0 | M48: 0 | N48: =+SUM(N18:N47)/2*L48 -> 0 | O48: 1.362330333 | P48: =+SUM(P18:P47)/2*L48 -> 0 | Q48: 217.9728533 | R48: =+J48*E$7 -> 0
A49: Total Variable Costs | I49: 83.53091592 | J49: =SUM(J19:J48) -> 0 | M49: 0 | N49: =SUM(N19:N48) -> 0 | O49: 83.53091592 | P49: =SUM(P19:P48) -> 0 | Q49: 13364.94655 | R49: =SUM(R19:R48) -> 0
A50: Planned Returns Above Variable Costs: | I50: 90.24908408 | J50: =+J14-J49 -> 0 | M50: 0 | N50: =+N14-N49 -> 0 | O50: 90.24908408 | P50: =+P14-P49 -> 0 | Q50: 14439.85345 | R50: =+R14-R49 -> 0
B51: Breakeven Price to Cover Variable Costs | G51: 1.808881381 | H51: =IF(E10=0,"n/a",(YVarExp-(YTotExp+YTotRet-J10))/E10) -> n/a | I51: Bushel
Q52: Enterprise | R52: Enterprise
A53: FIXED COSTS | D53: Quantity | E53: Quantity | F53: Units | G53: $/Unit | H53: $/Unit | I53: Total | J53: Total | K53: Share | L53: Share | M53: Landlord | N53: Landlord | O53: Tenant | P53: Tenant | Q53: Total | R53: Total
B54: Machinery Depreciation
C55: Pickup/General Use Equipment | D55: 1 | F55: Acre | G55: 2.6105625 | I55: 2.6105625 | J55: =E55*H55 -> 0 | K55: 0 | M55: 0 | N55: =J55*L55 -> 0 | O55: 2.6105625 | P55: =+J55-N55 -> 0 | Q55: 417.69 | R55: =+J55*E$7 -> 0
C56: Tractors/Self-Propelled | D56: 1 | F56: Acre | G56: 0.6423321376 | I56: 0.6423321376 | J56: 0 | K56: 0 | M56: 0 | N56: =J56*L56 -> 0 | O56: 0.6423321376 | P56: 0 | Q56: 102.773142 | R56: 0
C57: Implements | D57: 1 | F57: Acre | G57: 6.358534286 | I57: 6.358534286 | J57: 0 | K57: 0 | M57: 0 | N57: =J57*L57 -> 0 | O57: 6.358534286 | P57: 0 | Q57: 1017.365486 | R57: 0
B58: Equipment Investment
C59: Pickup/General Use Equipment | D59: 18.0253125 | F59: Dollars | G59: 0.0625 | I59: 1.126582031 | J59: =E59*H59 -> 0 | K59: 0 | M59: 0 | N59: =J59*L59 -> 0 | O59: 1.126582031 | P59: =+J59-N59 -> 0 | Q59: 180.253125 | R59: =+J59*E$7 -> 0
C60: Tractors/Self-Propelled | D60: 5.003974556 | F60: Dollars | G60: 0.0625 | I60: 0.3127484097 | J60: 0 | K60: 0 | M60: 0 | N60: =J60*L60 -> 0 | O60: 0.3127484097 | P60: 0 | Q60: 50.03974556 | R60: 0
C61: Implements | D61: 27.20039667 | F61: Dollars | G61: 0.0625 | I61: 1.700024792 | J61: 0 | K61: 0 | M61: 0 | N61: =J61*L61 -> 0 | O61: 1.700024792 | P61: 0 | Q61: 272.0039667 | R61: 0
B62: Salaried Labor | D62: 1 | F62: Acre | G62: 0 | I62: 0 | J62: 0 | K62: 0 | M62: 0 | N62: =J62*L62 -> 0 | O62: 0 | P62: =+J62-N62 -> 0 | Q62: 0 | R62: =+J62*E$7 -> 0
B63: Management Fee, Owner/Operator Labor | D63: 1 | F63: Acre | G63: 0 | I63: 0 | J63: 0 | K63: 0 | M63: 0 | N63: 0 | O63: 0 | P63: 0 | Q63: 0 | R63: 0
B64: Allocated Establishment Cost | D64: 1 | F64: Acre | G64: 0 | I64: 0 | J64: 0 | K64: 0 | M64: 0 | N64: 0 | O64: 0 | P64: 0 | Q64: 0 | R64: 0
B65: Cash Rent - Wheat Dryland | D65: 1 | F65: Acre | G65: 30 | I65: 30 | J65: 0 | K65: 0 | M65: 0 | N65: 0 | O65: 30 | P65: 0 | Q65: 4800 | R65: 0
B66: Property Taxes | D66: 1 | F66: Acre | G66: 0 | I66: 0 | J66: 0 | K66: 0 | M66: 0 | N66: 0 | O66: 0 | P66: 0 | Q66: 0 | R66: 0
B67: Whole Farm Insurance | D67: 1 | F67: Acre | G67: 0 | I67: 0 | J67: 0 | K67: 0 | M67: 0 | N67: 0 | O67: 0 | P67: 0 | Q67: 0 | R67: 0
D68: 1 | G68: 0 | I68: 0 | J68: 0 | K68: 0 | M68: 0 | N68: 0 | O68: 0 | P68: 0 | Q68: 0 | R68: 0
D69: 1 | G69: 0 | I69: 0 | J69: =E69*H69 -> 0 | K69: 0 | M69: 0 | N69: 0 | O69: 0 | P69: 0 | Q69: 0 | R69: 0
A70: Total Fixed Costs | I70: 42.75078416 | J70: =+SUM(J55:J69) -> 0 | M70: 0 | N70: =+SUM(N55:N69) -> 0 | O70: 42.75078416 | P70: =+SUM(P55:P69) -> 0 | Q70: 6840.125465 | R70: =+SUM(R55:R69) -> 0
A71: Total Specified Costs | I71: 126.2817001 | J71: =+J49+J70 -> 0 | M71: 0 | N71: =+N49+N70 -> 0 | O71: 126.2817001 | P71: =+P49+P70 -> 0 | Q71: 20205.07201 | R71: =+R49+R70 -> 0
A73: Returns Above Specified Costs | I73: 47.49829993 | J73: =+J14-J71 -> 0 | M73: 0 | N73: =+N14-N71 -> 0 | O73: 47.49829993 | P73: =+P14-P71 -> 0 | Q73: 7599.727988 | R73: =+R14-R71 -> 0
A75: Breakeven Price to Cover Total Costs | G75: 3.453142311 | H75: =IF(E10=0,"n/a",(YTotExp-(YTotExp+YTotRet-J10))/E10) -> n/a | I75: Bushel
D77: Example Breakeven Prices
B78: Example | C78: Example | D78: To Cover | G78: To Cover
B79: Yield | C79: Yield | D79: Variable | G79: Total
B80: Percent | C80: Bushel | D80: Costs | G80: Costs
B81: 0.75 | C81: 19.5 | D81: 2.411841842 | G81: 4.604189747
B82: 0.9 | C82: 23.4 | D82: 2.009868202 | G82: 3.836824789
B83: 1 | C83: 26 | D83: 1.808881381 | G83: 3.453142311
B84: 1.1 | C84: 28.6 | D84: 1.644437619 | G84: 3.139220282
B85: 1.25 | C85: 32.5 | D85: 1.447105105 | G85: 2.762513848
A87: Developed by Justin Benavidez, Assistant Professor, Texas A&M AgriLife Extension, 806-677-5600.
A89: Information presented is prepared solely as a general guide and not intended to recognize or predict the costs and returns from any one operation. Brand names are mentioned only as examples and imply no endorsement.

Sheet SorghumDryland
A1: Projections for Planning Purposes Only -- Not to be Used without Updating
A2: 2021 Estimated Costs and Returns per Acre
A3: Sorghum, Dryland, Continuous, Minimum Tillage
A4: Enter your name for this budget in the cell above.
A5: Enter Your Values in the cells highlighed in MAROON.
E6: Your Acres | R6: Your
C7: Crop Acres | D7: 160 | L7: Your | Q7: Enterprise | R7: Enterprise
E8: Your | H8: Your | I8: Cash | J8: Your | K8: Landlord | L8: Landlord | N8: Your | P8: Your | Q8: Total | R8: Total
A9: REVENUE | D9: Quantity | E9: Quantity | F9: Units | G9: $/Unit | H9: $/Unit | I9: Total | J9: Total | K9: Share | L9: Share | M9: Landlord | N9: Landlord | O9: Tenant | P9: Tenant | Q9: (160 acres) | R9: ="(" & E7 & " acres)" -> ( acres)
B10: Grain Sorghum | D10: 25 | F10: CWT | G10: 8.04 | I10: 201 | J10: =E10*H10 -> 0 | K10: 0 | M10: 0 | N10: =J10*L10 -> 0 | O10: 201 | P10: =+J10-N10 -> 0 | Q10: 32160 | R10: =+J10*E$7 -> 0
D11: 0 | G11: 0 | I11: 0 | J11: 0 | K11: 0 | M11: 0 | N11: 0 | O11: 0 | P11: =+J11-N11 -> 0 | Q11: 0 | R11: 0
D12: 0 | G12: 0 | I12: 0 | J12: 0 | K12: 0 | M12: 0 | N12: 0 | O12: 0 | P12: 0 | Q12: 0 | R12: 0
A13: Total Revenue | I13: 201 | J13: =SUM(J10:J12) -> 0 | M13: 0 | N13: =SUM(N10:N12) -> 0 | O13: 201 | P13: =SUM(P10:P12) -> 0 | Q13: 32160 | R13: =SUM(R10:R12) -> 0
Q14: Enterprise | R14: Enterprise
A15: VARIABLE COSTS | D15: Quantity | E15: Quantity | F15: Units | G15: $/Unit | H15: $/Unit | I15: Total | J15: Total | K15: Share | L15: Share | M15: Landlord | N15: Landlord | O15: Tenant | P15: Tenant | Q15: Total | R15: Total
A16: Production Costs
B17: Herbicide
C18: Herbicide and Apply Sorghum | D18: 1 | F18: Acre | G18: 20.90714958 | I18: 20.90714958 | J18: =E18*H18 -> 0 | K18: 0 | M18: 0 | N18: =J18*L18 -> 0 | O18: 20.90714958 | P18: =+J18-N18 -> 0 | Q18: 3345.143932 | R18: =+J18*E$7 -> 0
B19: Seed
C20: Seed - Sorghum | D20: 2.25 | F20: Pound | G20: 2.10641574 | I20: 4.739435415 | J20: 0 | K20: 0 | M20: 0 | N20: 0 | O20: 4.739435415 | P20: 0 | Q20: 758.3096664 | R20: 0
B21: Fertilizer
C22: Fertilizer (N) - ANH3 | D22: 40 | F22: Pound | G22: 0.3 | I22: 12 | J22: 0 | K22: 0 | M22: 0 | N22: 0 | O22: 12 | P22: 0 | Q22: 1920 | R22: 0
B23: Custom
C24: Fertilizer Application - ANH3 | D24: 1 | F24: Acre | G24: 16.05140335 | I24: 16.05140335 | J24: 0 | K24: 0 | M24: 0 | N24: 0 | O24: 16.05140335 | P24: 0 | Q24: 2568.224537 | R24: 0
C25: Custom Harvest - Sorghum Dryland | D25: 1 | F25: Acre | G25: 26.76278906 | I25: 26.76278906 | J25: 0 | K25: 0 | M25: 0 | N25: 0 | O25: 26.76278906 | P25: 0 | Q25: 4282.046249 | R25: 0
C26: Custom Haul - Sorghum Dryland | D26: 25 | F26: CWT | G26: 0.2717034422 | I26: 6.792586055 | J26: 0 | K26: 0 | M26: 0 | N26: 0 | O26: 6.792586055 | P26: 0 | Q26: 1086.813769 | R26: 0
B27: Miscellaneous
C28: Crop Insurance Sorghum - Dryland | D28: 1 | F28: Acre | G28: 17.4 | I28: 17.4 | J28: 0 | K28: 0 | M28: 0 | N28: 0 | O28: 17.4 | P28: 0 | Q28: 2784 | R28: 0
B29: Insecticide
C30: Insecticide Head Worm | D30: 0.67 | F30: Application | G30: 10.58173095 | I30: 7.089759737 | J30: 0 | K30: 0 | M30: 0 | N30: 0 | O30: 7.089759737 | P30: 0 | Q30: 1134.361558 | R30: 0
C31: Insecticide Sugar Cane Aphid | D31: 1 | F31: Application | G31: 22.679619 | I31: 22.679619 | J31: 0 | K31: 0 | M31: 0 | N31: 0 | O31: 22.679619 | P31: 0 | Q31: 3628.73904 | R31: 0
D32: 0 | G32: 0 | I32: 0 | J32: 0 | K32: 0 | M32: 0 | N32: 0 | O32: 0 | P32: 0 | Q32: 0 | R32: 0
D33: 0 | G33: 0 | I33: 0 | J33: 0 | K33: 0 | M33: 0 | N33: 0 | O33: 0 | P33: 0 | Q33: 0 | R33: 0
D34: 0 | G34: 0 | I34: 0 | J34: =E34*H34 -> 0 | K34: 0 | M34: 0 | N34: =J34*L34 -> 0 | O34: 0 | P34: =+J34-N34 -> 0 | Q34: 0 | R34: =+J34*E$7 -> 0
B35: Machinery Labor
C36: Tractors/Self-Propelled | D36: 0.33 | F36: Hour | G36: 13.43 | I36: 4.4319 | J36: =E36*H36 -> 0 | K36: 0 | M36: 0 | N36: =J36*L36 -> 0 | O36: 4.4319 | P36: =+J36-N36 -> 0 | Q36: 709.104 | R36: =+J36*E$7 -> 0
C37: Other Labor | D37: 0.35 | F37: Hour | G37: 13.43 | I37: 4.7005 | J37: =E37*H37 -> 0 | K37: 0 | M37: 0 | N37: =J37*L37 -> 0 | O37: 4.7005 | P37: =+J37-N37 -> 0 | Q37: 752.08 | R37: =+J37*E$7 -> 0
B39: Diesel Fuel
C40: Pickup/General Use Equipment | D40: 1 | F40: Acre | G40: 0 | I40: 0 | J40: =E40*H40 -> 0 | K40: 0 | M40: 0 | N40: =J40*L40 -> 0 | O40: 0 | P40: =+J40-N40 -> 0 | Q40: 0 | R40: =+J40*E$7 -> 0
C41: Tractors/Self-Propelled | D41: 1.91 | F41: Gallon | G41: 2.1902 | I41: 4.183282 | J41: =E41*H41 -> 0 | K41: 0 | M41: 0 | N41: =J41*L41 -> 0 | O41: 4.183282 | P41: =+J41-N41 -> 0 | Q41: 669.32512 | R41: =+J41*E$7 -> 0
B43: Gasoline
C44: Pickup/General Use Equipment | D44: 1 | F44: Acre | G44: 5.1553125 | I44: 5.1553125 | J44: =E44*H44 -> 0 | K44: 0 | M44: 0 | N44: =J44*L44 -> 0 | O44: 5.1553125 | P44: =+J44-N44 -> 0 | Q44: 824.85 | R44: =+J44*E$7 -> 0
C45: Tractors/Self-Propelled | D45: 0 | F45: Gallon | G45: 2.538 | I45: 0 | J45: =E45*H45 -> 0 | K45: 0 | M45: 0 | N45: =J45*L45 -> 0 | O45: 0 | P45: =+J45-N45 -> 0 | Q45: 0 | R45: =+J45*E$7 -> 0
B47: Repairs & Maintenance
C48: Pickup/General Use Equipment | D48: 1 | F48: Acre | G48: 2.48625 | I48: 2.48625 | J48: =E48*H48 -> 0 | K48: 0 | M48: 0 | N48: =J48*L48 -> 0 | O48: 2.48625 | P48: =+J48-N48 -> 0 | Q48: 397.8 | R48: =+J48*E$7 -> 0
C49: Irrigation Equipment | D49: 1 | F49: Acre | G49: 0 | I49: 0 | J49: 0 | K49: 0 | M49: 0 | N49: 0 | O49: 0 | P49: 0 | Q49: 0 | R49: 0
C50: Tractors/Self-Propelled | D50: 1 | F50: Acre | G50: 3.824154106 | I50: 3.824154106 | J50: 0 | K50: 0 | M50: 0 | N50: 0 | O50: 3.824154106 | P50: 0 | Q50: 611.864657 | R50: 0
C51: Implements | D51: 1 | F51: Acre | G51: 11.95661414 | I51: 11.95661414 | J51: 0 | K51: 0 | M51: 0 | N51: 0 | O51: 11.95661414 | P51: 0 | Q51: 1913.058262 | R51: 0
I52: 0 | J52: 0 | K52: 0 | M52: 0 | N52: 0 | O52: 0 | P52: 0 | Q52: 0 | R52: 0
I53: 0 | J53: 0 | K53: 0 | M53: 0 | N53: 0 | O53: 0 | P53: 0 | Q53: 0 | R53: 0
B54: Interest on Credit Line | G54: 0.0625 | I54: 3.448507179 | J54: =+SUM(J17:J53)/2*H54 -> 0 | M54: 0 | N54: =+SUM(N17:N53)/2*L54 -> 0 | O54: 3.448507179 | P54: =+SUM(P17:P53)/2*L54 -> 0 | Q54: 551.7611486 | R54: =+J54*E$7 -> 0
A55: Total Variable Costs | I55: 174.6092621 | J55: =SUM(J18:J54) -> 0 | M55: 0 | N55: =SUM(N18:N54) -> 0 | O55: 174.6092621 | P55: =SUM(P18:P54) -> 0 | Q55: 27937.48194 | R55: =SUM(R18:R54) -> 0
A56: Planned Returns Above Variable Costs: | I56: 26.39073788 | J56: =+J13-J55 -> 0 | M56: 0 | N56: =+N13-N55 -> 0 | O56: 26.39073788 | P56: =+P13-P55 -> 0 | Q56: 4222.518061 | R56: =+R13-R55 -> 0
B57: Breakeven Price to Cover Variable Costs | G57: 6.984370485 | H57: =IF(E10=0,"n/a",(YVarExp-(YTotExp+YTotRet-J10))/E10) -> n/a | I57: CWT
Q58: Enterprise | R58: Enterprise
A59: FIXED COSTS | D59: Quantity | E59: Quantity | F59: Units | G59: $/Unit | H59: $/Unit | I59: Total | J59: Total | K59: Share | L59: Share | M59: Landlord | N59: Landlord | O59: Tenant | P59: Tenant | Q59: Total | R59: Total
B60: Machinery Depreciation
C61: Pickup/General Use Equipment | D61: 1 | F61: Acre | G61: 2.6105625 | I61: 2.6105625 | J61: =E61*H61 -> 0 | K61: 0 | M61: 0 | N61: =J61*L61 -> 0 | O61: 2.6105625 | P61: =+J61-N61 -> 0 | Q61: 417.69 | R61: =+J61*E$7 -> 0
C62: Tractors/Self-Propelled | D62: 1 | F62: Acre | G62: 3.738176593 | I62: 3.738176593 | J62: 0 | K62: 0 | M62: 0 | N62: =J62*L62 -> 0 | O62: 3.738176593 | P62: 0 | Q62: 598.1082549 | R62: 0
C63: Implements | D63: 1 | F63: Acre | G63: 15.4929144 | I63: 15.4929144 | J63: 0 | K63: 0 | M63: 0 | N63: =J63*L63 -> 0 | O63: 15.4929144 | P63: 0 | Q63: 2478.866304 | R63: 0
B64: Equipment Investment
C65: Pickup/General Use Equipment | D65: 18.0253125 | F65: Dollars | G65: 0.0625 | I65: 1.126582031 | J65: =E65*H65 -> 0 | K65: 0 | M65: 0 | N65: =J65*L65 -> 0 | O65: 1.126582031 | P65: =+J65-N65 -> 0 | Q65: 180.253125 | R65: =+J65*E$7 -> 0
C66: Tractors/Self-Propelled | D66: 29.12160152 | F66: Dollars | G66: 0.0625 | I66: 1.820100095 | J66: 0 | K66: 0 | M66: 0 | N66: =J66*L66 -> 0 | O66: 1.820100095 | P66: 0 | Q66: 291.2160152 | R66: 0
C67: Implements | D67: 66.27524493 | F67: Dollars | G67: 0.0625 | I67: 4.142202808 | J67: 0 | K67: 0 | M67: 0 | N67: =J67*L67 -> 0 | O67: 4.142202808 | P67: 0 | Q67: 662.7524493 | R67: 0
B68: Salaried Labor | D68: 1 | F68: Acre | G68: 0 | I68: 0 | J68: 0 | K68: 0 | M68: 0 | N68: =J68*L68 -> 0 | O68: 0 | P68: =+J68-N68 -> 0 | Q68: 0 | R68: =+J68*E$7 -> 0
B69: Management Fee, Owner/Operator Labor | D69: 1 | F69: Acre | G69: 0 | I69: 0 | J69: 0 | K69: 0 | M69: 0 | N69: 0 | O69: 0 | P69: 0 | Q69: 0 | R69: 0
B70: Allocated Establishment Cost | D70: 1 | F70: Acre | G70: 0 | I70: 0 | J70: 0 | K70: 0 | M70: 0 | N70: 0 | O70: 0 | P70: 0 | Q70: 0 | R70: 0
B71: Cash Rent - Sorghum | D71: 1 | F71: Acre | G71: 30 | I71: 30 | J71: 0 | K71: 0 | M71: 0 | N71: 0 | O71: 30 | P71: 0 | Q71: 4800 | R71: 0
B72: Property Taxes | D72: 1 | F72: Acre | G72: 0 | I72: 0 | J72: 0 | K72: 0 | M72: 0 | N72: 0 | O72: 0 | P72: 0 | Q72: 0 | R72: 0
B73: Whole Farm Insurance | D73: 1 | F73: Acre | G73: 0 | I73: 0 | J73: 0 | K73: 0 | M73: 0 | N73: 0 | O73: 0 | P73: 0 | Q73: 0 | R73: 0
D74: 1 | G74: 0 | I74: 0 | J74: 0 | K74: 0 | M74: 0 | N74: 0 | O74: 0 | P74: 0 | Q74: 0 | R74: 0
D75: 1 | G75: 0 | I75: 0 | J75: =E75*H75 -> 0 | K75: 0 | M75: 0 | N75: 0 | O75: 0 | P75: 0 | Q75: 0 | R75: 0
A76: Total Fixed Costs | I76: 58.93053843 | J76: =+SUM(J61:J75) -> 0 | M76: 0 | N76: =+SUM(N61:N75) -> 0 | O76: 58.93053843 | P76: =+SUM(P61:P75) -> 0 | Q76: 9428.886148 | R76: =+SUM(R61:R75) -> 0
A77: Total Specified Costs | I77: 233.5398005 | J77: =+J55+J76 -> 0 | M77: 0 | N77: =+N55+N76 -> 0 | O77: 233.5398005 | P77: =+P55+P76 -> 0 | Q77: 37366.36809 | R77: =+R55+R76 -> 0
A79: Returns Above Specified Costs | I79: -32.53980055 | J79: =+J13-J77 -> 0 | M79: 0 | N79: =+N13-N77 -> 0 | O79: -32.53980055 | P79: =+P13-P77 -> 0 | Q79: -5206.368087 | R79: =+R13-R77 -> 0
A81: Breakeven Price to Cover Total Costs | G81: 9.341592022 | H81: =IF(E10=0,"n/a",(YTotExp-(YTotExp+YTotRet-J10))/E10) -> n/a | I81: CWT
D83: Example Breakeven Prices
B84: Example | C84: Example | D84: To Cover | G84: To Cover
B85: Yield | C85: Yield | D85: Variable | G85: Total
B86: Percent | C86: CWT | D86: Costs | G86: Costs
B87: 0.75 | C87: 18.75 | D87: 9.31249398 | G87: 12.45545603
B88: 0.9 | C88: 22.5 | D88: 7.76041165 | G88: 10.37954669
B89: 1 | C89: 25 | D89: 6.984370485 | G89: 9.341592022
B90: 1.1 | C90: 27.5 | D90: 6.349427713 | G90: 8.492356384
B91: 1.25 | C91: 31.25 | D91: 5.587496388 | G91: 7.473273617
A93: Developed by Justin Benavidez, Assistant Professor, Texas A&M AgriLife Extension, 806-677-5600.
A95: Information presented is prepared solely as a general guide and not intended to recognize or predict the costs and returns from any one operation. Brand names are mentioned only as examples and imply no endorsement.

Sheet SorghumSprinkler
A1: Projections for Planning Purposes Only -- Not to be Used without Updating
A2: 2021 Estimated Costs and Returns per Acre
A3: Continuous Sorghum, Sprinkler Irrigated (NG)
A4: Enter your name for this budget in the cell above.
A5: Enter Your Values in the cells highlighed in MAROON.
E6: Your Acres | R6: Your
C7: Crop Acres | D7: 122 | L7: Your | Q7: Enterprise | R7: Enterprise
E8: Your | H8: Your | I8: Cash | J8: Your | K8: Landlord | L8: Landlord | N8: Your | P8: Your | Q8: Total | R8: Total
A9: REVENUE | D9: Quantity | E9: Quantity | F9: Units | G9: $/Unit | H9: $/Unit | I9: Total | J9: Total | K9: Share | L9: Share | M9: Landlord | N9: Landlord | O9: Tenant | P9: Tenant | Q9: (122 acres) | R9: ="(" & E7 & " acres)" -> ( acres)
B10: Grain Sorghum | D10: 60 | F10: CWT | G10: 8.04 | I10: 482.4 | J10: =E10*H10 -> 0 | K10: 0 | M10: 0 | N10: =J10*L10 -> 0 | O10: 482.4 | P10: =+J10-N10 -> 0 | Q10: 58852.8 | R10: =+J10*E$7 -> 0
D11: 0 | G11: 0 | I11: 0 | J11: 0 | K11: 0 | M11: 0 | N11: 0 | O11: 0 | P11: =+J11-N11 -> 0 | Q11: 0 | R11: 0
D12: 0 | G12: 0 | I12: 0 | J12: 0 | K12: 0 | M12: 0 | N12: 0 | O12: 0 | P12: 0 | Q12: 0 | R12: 0
A13: Total Revenue | I13: 482.4 | J13: =SUM(J10:J12) -> 0 | M13: 0 | N13: =SUM(N10:N12) -> 0 | O13: 482.4 | P13: =SUM(P10:P12) -> 0 | Q13: 58852.8 | R13: =SUM(R10:R12) -> 0
Q14: Enterprise | R14: Enterprise
A15: VARIABLE COSTS | D15: Quantity | E15: Quantity | F15: Units | G15: $/Unit | H15: $/Unit | I15: Total | J15: Total | K15: Share | L15: Share | M15: Landlord | N15: Landlord | O15: Tenant | P15: Tenant | Q15: Total | R15: Total
A16: Production Costs
B17: Herbicide
C18: Herbicide and Apply Sorghum Irrig. | D18: 1 | F18: Acre | G18: 24.77418627 | I18: 24.77418627 | J18: =E18*H18 -> 0 | K18: 0 | M18: 0 | N18: =J18*L18 -> 0 | O18: 24.77418627 | P18: =+J18-N18 -> 0 | Q18: 3022.450724 | R18: =+J18*E$7 -> 0
B19: Seed
C20: Seed - Sorghum | D20: 4 | F20: Pound | G20: 2.10641574 | I20: 8.42566296 | J20: 0 | K20: 0 | M20: 0 | N20: 0 | O20: 8.42566296 | P20: 0 | Q20: 1027.930881 | R20: 0
B21: Fertilizer
C22: Fertilizer (N) - ANH3 | D22: 60 | F22: Pound | G22: 0.3 | I22: 18 | J22: 0 | K22: 0 | M22: 0 | N22: 0 | O22: 18 | P22: 0 | Q22: 2196 | R22: 0
C23: Fertilizer (P) - Liquid | D23: 40 | F23: Pound | G23: 0.49 | I23: 19.6 | J23: 0 | K23: 0 | M23: 0 | N23: 0 | O23: 19.6 | P23: 0 | Q23: 2391.2 | R23: 0
C24: Fertilizer (N) - Liquid | D24: 50 | F24: Pound | G24: 0.5 | I24: 25 | J24: 0 | K24: 0 | M24: 0 | N24: 0 | O24: 25 | P24: 0 | Q24: 3050 | R24: 0
B25: Custom
C26: Fertilizer Application - ANH3 | D26: 1 | F26: Acre | G26: 16.05140335 | I26: 16.05140335 | J26: 0 | K26: 0 | M26: 0 | N26: 0 | O26: 16.05140335 | P26: 0 | Q26: 1958.271209 | R26: 0
C27: Harvest and Haul - Sorghum | D27: 60 | F27: CWT | G27: 0.9091615181 | I27: 54.54969109 | J27: 0 | K27: 0 | M27: 0 | N27: 0 | O27: 54.54969109 | P27: 0 | Q27: 6655.062312 | R27: 0
B28: Miscellaneous
C29: Crop Insurance Sorghum - Irrigated | D29: 1 | F29: Acre | G29: 33 | I29: 33 | J29: 0 | K29: 0 | M29: 0 | N29: 0 | O29: 33 | P29: 0 | Q29: 4026 | R29: 0
B30: Insecticide
C31: Insecticide Head Worm | D31: 0.67 | F31: Application | G31: 10.58173095 | I31: 7.089759737 | J31: 0 | K31: 0 | M31: 0 | N31: 0 | O31: 7.089759737 | P31: 0 | Q31: 864.9506879 | R31: 0
C32: Insecticide Sugar Cane Aphid | D32: 1 | F32: Application | G32: 22.679619 | I32: 22.679619 | J32: 0 | K32: 0 | M32: 0 | N32: 0 | O32: 22.679619 | P32: 0 | Q32: 2766.913518 | R32: 0
D33: 0 | G33: 0 | I33: 0 | J33: 0 | K33: 0 | M33: 0 | N33: 0 | O33: 0 | P33: 0 | Q33: 0 | R33: 0
D34: 0 | G34: 0 | I34: 0 | J34: 0 | K34: 0 | M34: 0 | N34: 0 | O34: 0 | P34: 0 | Q34: 0 | R34: 0
D35: 0 | G35: 0 | I35: 0 | J35: =E35*H35 -> 0 | K35: 0 | M35: 0 | N35: =J35*L35 -> 0 | O35: 0 | P35: =+J35-N35 -> 0 | Q35: 0 | R35: =+J35*E$7 -> 0
B36: Irrigation
C37: Energy Cost | D37: 10 | F37: AcreInch | G37: 3.35 | I37: 33.5 | J37: =E37*H37 -> 0 | K37: 0 | M37: 0 | N37: =J37*L37 -> 0 | O37: 33.5 | P37: =+J37-N37 -> 0 | Q37: 4087 | R37: =+J37*E$7 -> 0
C38: Irrigation Labor | D38: 0.896 | F38: Hour | G38: 13.65 | I38: 12.2304 | J38: 0 | K38: 0 | M38: 0 | N38: 0 | O38: 12.2304 | P38: 0 | Q38: 1492.1088 | R38: 0
B39: Machinery Labor
C40: Tractors/Self-Propelled | D40: 0.33 | F40: Hour | G40: 13.43 | I40: 4.4319 | J40: =E40*H40 -> 0 | K40: 0 | M40: 0 | N40: =J40*L40 -> 0 | O40: 4.4319 | P40: =+J40-N40 -> 0 | Q40: 540.6918 | R40: =+J40*E$7 -> 0
C41: Other Labor | D41: 0.37 | F41: Hour | G41: 13.43 | I41: 4.9691 | J41: =E41*H41 -> 0 | K41: 0 | M41: 0 | N41: =J41*L41 -> 0 | O41: 4.9691 | P41: =+J41-N41 -> 0 | Q41: 606.2302 | R41: =+J41*E$7 -> 0
B43: Diesel Fuel
C44: Pickup/General Use Equipment | D44: 1 | F44: Acre | G44: 0 | I44: 0 | J44: =E44*H44 -> 0 | K44: 0 | M44: 0 | N44: =J44*L44 -> 0 | O44: 0 | P44: =+J44-N44 -> 0 | Q44: 0 | R44: =+J44*E$7 -> 0
C45: Tractors/Self-Propelled | D45: 1.92 | F45: Gallon | G45: 2.1902 | I45: 4.205184 | J45: =E45*H45 -> 0 | K45: 0 | M45: 0 | N45: =J45*L45 -> 0 | O45: 4.205184 | P45: =+J45-N45 -> 0 | Q45: 513.032448 | R45: =+J45*E$7 -> 0
B47: Gasoline
C48: Pickup/General Use Equipment | D48: 1 | F48: Acre | G48: 5.200819672 | I48: 5.200819672 | J48: =E48*H48 -> 0 | K48: 0 | M48: 0 | N48: =J48*L48 -> 0 | O48: 5.200819672 | P48: =+J48-N48 -> 0 | Q48: 634.5 | R48: =+J48*E$7 -> 0
C49: Tractors/Self-Propelled | D49: 0 | F49: Gallon | G49: 2.538 | I49: 0 | J49: =E49*H49 -> 0 | K49: 0 | M49: 0 | N49: =J49*L49 -> 0 | O49: 0 | P49: =+J49-N49 -> 0 | Q49: 0 | R49: =+J49*E$7 -> 0
B51: Repairs & Maintenance
C52: Pickup/General Use Equipment | D52: 1 | F52: Acre | G52: 2.508196721 | I52: 2.508196721 | J52: =E52*H52 -> 0 | K52: 0 | M52: 0 | N52: =J52*L52 -> 0 | O52: 2.508196721 | P52: =+J52-N52 -> 0 | Q52: 306 | R52: =+J52*E$7 -> 0
C53: Irrigation Equipment | D53: 1 | F53: Acre | G53: 37.5 | I53: 37.5 | J53: 0 | K53: 0 | M53: 0 | N53: 0 | O53: 37.5 | P53: 0 | Q53: 4575 | R53: 0
C54: Tractors/Self-Propelled | D54: 1 | F54: Acre | G54: 3.802553268 | I54: 3.802553268 | J54: 0 | K54: 0 | M54: 0 | N54: 0 | O54: 3.802553268 | P54: 0 | Q54: 463.9114986 | R54: 0
C55: Implements | D55: 1 | F55: Acre | G55: 15.21017109 | I55: 15.21017109 | J55: 0 | K55: 0 | M55: 0 | N55: 0 | O55: 15.21017109 | P55: 0 | Q55: 1855.640873 | R55: 0
I56: 0 | J56: 0 | K56: 0 | M56: 0 | N56: 0 | O56: 0 | P56: 0 | Q56: 0 | R56: 0
I57: 0 | J57: 0 | K57: 0 | M57: 0 | N57: 0 | O57: 0 | P57: 0 | Q57: 0 | R57: 0
B58: Interest on Credit Line | G58: 0.0625 | I58: 7.907303614 | J58: =+SUM(J17:J57)/2*H58 -> 0 | M58: 0 | N58: =+SUM(N17:N57)/2*L58 -> 0 | O58: 7.907303614 | P58: =+SUM(P17:P57)/2*L58 -> 0 | Q58: 964.691041 | R58: =+J58*E$7 -> 0
A59: Total Variable Costs | I59: 360.6359508 | J59: =SUM(J18:J58) -> 0 | M59: 0 | N59: =SUM(N18:N58) -> 0 | O59: 360.6359508 | P59: =SUM(P18:P58) -> 0 | Q59: 43997.58599 | R59: =SUM(R18:R58) -> 0
A60: Planned Returns Above Variable Costs: | I60: 121.7640492 | J60: =+J13-J59 -> 0 | M60: 0 | N60: =+N13-N59 -> 0 | O60: 121.7640492 | P60: =+P13-P59 -> 0 | Q60: 14855.21401 | R60: =+R13-R59 -> 0
B61: Breakeven Price to Cover Variable Costs | G61: 6.01059918 | H61: =IF(E10=0,"n/a",(YVarExp-(YTotExp+YTotRet-J10))/E10) -> n/a | I61: CWT
Q62: Enterprise | R62: Enterprise
A63: FIXED COSTS | D63: Quantity | E63: Quantity | F63: Units | G63: $/Unit | H63: $/Unit | I63: Total | J63: Total | K63: Share | L63: Share | M63: Landlord | N63: Landlord | O63: Tenant | P63: Tenant | Q63: Total | R63: Total
B64: Machinery Depreciation
C65: Pickup/General Use Equipment | D65: 1 | F65: Acre | G65: 2.633606557 | I65: 2.633606557 | J65: =E65*H65 -> 0 | K65: 0 | M65: 0 | N65: =J65*L65 -> 0 | O65: 2.633606557 | P65: =+J65-N65 -> 0 | Q65: 321.3 | R65: =+J65*E$7 -> 0
C66: Irrigation Equipment | D66: 1 | F66: Acre | G66: 47.33606557 | I66: 47.33606557 | J66: 0 | K66: 0 | M66: 0 | N66: =J66*L66 -> 0 | O66: 47.33606557 | P66: 0 | Q66: 5775 | R66: 0
C67: Tractors/Self-Propelled | D67: 1 | F67: Acre | G67: 3.715855726 | I67: 3.715855726 | J67: 0 | K67: 0 | M67: 0 | N67: =J67*L67 -> 0 | O67: 3.715855726 | P67: 0 | Q67: 453.3343986 | R67: 0
C68: Implements | D68: 1 | F68: Acre | G68: 18.99548342 | I68: 18.99548342 | J68: 0 | K68: 0 | M68: 0 | N68: =J68*L68 -> 0 | O68: 18.99548342 | P68: 0 | Q68: 2317.448977 | R68: 0
B69: Equipment Investment
C70: Pickup/General Use Equipment | D70: 18.18442623 | F70: Dollars | G70: 0.0625 | I70: 1.136526639 | J70: =E70*H70 -> 0 | K70: 0 | M70: 0 | N70: =J70*L70 -> 0 | O70: 1.136526639 | P70: =+J70-N70 -> 0 | Q70: 138.65625 | R70: =+J70*E$7 -> 0
C71: Irrigation Equipment | D71: 571.7213115 | F71: Dollars | G71: 0.0625 | I71: 35.73258197 | J71: 0 | K71: 0 | M71: 0 | N71: =J71*L71 -> 0 | O71: 35.73258197 | P71: 0 | Q71: 4359.375 | R71: 0
C72: Tractors/Self-Propelled | D72: 28.94771477 | F72: Dollars | G72: 0.0625 | I72: 1.809232173 | J72: 0 | K72: 0 | M72: 0 | N72: =J72*L72 -> 0 | O72: 1.809232173 | P72: 0 | Q72: 220.7263251 | R72: 0
C73: Implements | D73: 81.25845685 | F73: Dollars | G73: 0.0625 | I73: 5.078653553 | J73: 0 | K73: 0 | M73: 0 | N73: =J73*L73 -> 0 | O73: 5.078653553 | P73: 0 | Q73: 619.5957335 | R73: 0
B74: Salaried Labor | D74: 1 | F74: Acre | G74: 0 | I74: 0 | J74: 0 | K74: 0 | M74: 0 | N74: =J74*L74 -> 0 | O74: 0 | P74: =+J74-N74 -> 0 | Q74: 0 | R74: =+J74*E$7 -> 0
B75: Management Fee, Owner/Operator Labor | D75: 1 | F75: Acre | G75: 0 | I75: 0 | J75: 0 | K75: 0 | M75: 0 | N75: 0 | O75: 0 | P75: 0 | Q75: 0 | R75: 0
B76: Allocated Establishment Cost | D76: 1 | F76: Acre | G76: 0 | I76: 0 | J76: 0 | K76: 0 | M76: 0 | N76: 0 | O76: 0 | P76: 0 | Q76: 0 | R76: 0
B77: Cash Rent - Sorghum f | D77: 1 | F77: Acre | G77: 76 | I77: 76 | J77: 0 | K77: 0 | M77: 0 | N77: 0 | O77: 76 | P77: 0 | Q77: 9272 | R77: 0
B78: Property Taxes | D78: 1 | F78: Acre | G78: 0 | I78: 0 | J78: 0 | K78: 0 | M78: 0 | N78: 0 | O78: 0 | P78: 0 | Q78: 0 | R78: 0
B79: Whole Farm Insurance | D79: 1 | F79: Acre | G79: 0 | I79: 0 | J79: 0 | K79: 0 | M79: 0 | N79: 0 | O79: 0 | P79: 0 | Q79: 0 | R79: 0
D80: 1 | G80: 0 | I80: 0 | J80: 0 | K80: 0 | M80: 0 | N80: 0 | O80: 0 | P80: 0 | Q80: 0 | R80: 0
D81: 1 | G81: 0 | I81: 0 | J81: =E81*H81 -> 0 | K81: 0 | M81: 0 | N81: 0 | O81: 0 | P81: 0 | Q81: 0 | R81: 0
A82: Total Fixed Costs | I82: 192.4380056 | J82: =+SUM(J65:J81) -> 0 | M82: 0 | N82: =+SUM(N65:N81) -> 0 | O82: 192.4380056 | P82: =+SUM(P65:P81) -> 0 | Q82: 23477.43668 | R82: =+SUM(R65:R81) -> 0
A83: Total Specified Costs | I83: 553.0739564 | J83: =+J59+J82 -> 0 | M83: 0 | N83: =+N59+N82 -> 0 | O83: 553.0739564 | P83: =+P59+P82 -> 0 | Q83: 67475.02268 | R83: =+R59+R82 -> 0
A85: Returns Above Specified Costs | I85: -70.67395638 | J85: =+J13-J83 -> 0 | M85: 0 | N85: =+N13-N83 -> 0 | O85: -70.67395638 | P85: =+P13-P83 -> 0 | Q85: -8622.222678 | R85: =+R13-R83 -> 0
A87: Breakeven Price to Cover Total Costs | G87: 9.217899273 | H87: =IF(E10=0,"n/a",(YTotExp-(YTotExp+YTotRet-J10))/E10) -> n/a | I87: CWT
D89: Example Breakeven Prices
B90: Example | C90: Example | D90: To Cover | G90: To Cover
B91: Yield | C91: Yield | D91: Variable | G91: Total
B92: Percent | C92: CWT | D92: Costs | G92: Costs
B93: 0.75 | C93: 45 | D93: 8.014132239 | G93: 12.29053236
B94: 0.9 | C94: 54 | D94: 6.678443533 | G94: 10.2421103
B95: 1 | C95: 60 | D95: 6.01059918 | G95: 9.217899273
B96: 1.1 | C96: 66 | D96: 5.464181072 | G96: 8.37990843
B97: 1.25 | C97: 75 | D97: 4.808479344 | G97: 7.374319418
A99: Developed by Justin Benavidez, Assistant Professor, Texas A&M AgriLife Extension, 806-677-5600.
A101: Information presented is prepared solely as a general guide and not intended to recognize or predict the costs and returns from any one operation. Brand names are mentioned only as examples and imply no endorsement.

Sheet SeedSorghum
A1: Projections for Planning Purposes Only -- Not to be Used without Updating
A2: 2021 Estimated Costs and Returns per Acre
A3: Seed Sorghum, Sprinkler Irrigated (NG)
A4: Enter your name for this budget in the cell above.
A5: Enter Your Values in the cells highlighed in MAROON.
E6: Your Acres | R6: Your
C7: Crop Acres | D7: 122 | L7: Your | Q7: Enterprise | R7: Enterprise
E8: Your | H8: Your | I8: Cash | J8: Your | K8: Landlord | L8: Landlord | N8: Your | P8: Your | Q8: Total | R8: Total
A9: REVENUE | D9: Quantity | E9: Quantity | F9: Units | G9: $/Unit | H9: $/Unit | I9: Total | J9: Total | K9: Share | L9: Share | M9: Landlord | N9: Landlord | O9: Tenant | P9: Tenant | Q9: (122 acres) | R9: ="(" & E7 & " acres)" -> ( acres)
B10: Seed Sorghum - Female Only | D10: 45 | F10: CWT | G10: 20.73303571 | I10: 932.9866071 | J10: =E10*H10 -> 0 | K10: 0 | M10: 0 | N10: =J10*L10 -> 0 | O10: 932.9866071 | P10: =+J10-N10 -> 0 | Q10: 113824.3661 | R10: =+J10*E$7 -> 0
D11: 0 | G11: 0 | I11: 0 | J11: 0 | K11: 0 | M11: 0 | N11: 0 | O11: 0 | P11: =+J11-N11 -> 0 | Q11: 0 | R11: 0
D12: 0 | G12: 0 | I12: 0 | J12: 0 | K12: 0 | M12: 0 | N12: 0 | O12: 0 | P12: 0 | Q12: 0 | R12: 0
A13: Total Revenue | I13: 932.9866071 | J13: =SUM(J10:J12) -> 0 | M13: 0 | N13: =SUM(N10:N12) -> 0 | O13: 932.9866071 | P13: =SUM(P10:P12) -> 0 | Q13: 113824.3661 | R13: =SUM(R10:R12) -> 0
Q14: Enterprise | R14: Enterprise
A15: VARIABLE COSTS | D15: Quantity | E15: Quantity | F15: Units | G15: $/Unit | H15: $/Unit | I15: Total | J15: Total | K15: Share | L15: Share | M15: Landlord | N15: Landlord | O15: Tenant | P15: Tenant | Q15: Total | R15: Total
A16: Production Costs
B17: Herbicide
C18: Herbicide and Apply Sorghum Irrig. | D18: 1 | F18: Acre | G18: 24.77418627 | I18: 24.77418627 | J18: =E18*H18 -> 0 | K18: 0 | M18: 0 | N18: =J18*L18 -> 0 | O18: 24.77418627 | P18: =+J18-N18 -> 0 | Q18: 3022.450724 | R18: =+J18*E$7 -> 0
B19: Seed
C20: Seed - Sorghum | D20: 0 | F20: Pound | G20: 2.10641574 | I20: 0 | J20: 0 | K20: 0 | M20: 0 | N20: 0 | O20: 0 | P20: 0 | Q20: 0 | R20: 0
B21: Fertilizer
C22: Fertilizer (N) - ANH3 | D22: 65 | F22: Pound | G22: 0.3 | I22: 19.5 | J22: 0 | K22: 0 | M22: 0 | N22: 0 | O22: 19.5 | P22: 0 | Q22: 2379 | R22: 0
C23: Fertilizer (P) - Liquid | D23: 50 | F23: Pound | G23: 0.49 | I23: 24.5 | J23: 0 | K23: 0 | M23: 0 | N23: 0 | O23: 24.5 | P23: 0 | Q23: 2989 | R23: 0
C24: Fertilizer (N) - Liquid | D24: 60 | F24: Pound | G24: 0.5 | I24: 30 | J24: 0 | K24: 0 | M24: 0 | N24: 0 | O24: 30 | P24: 0 | Q24: 3660 | R24: 0
B25: Custom
C26: Fertilizer Application - ANH3 | D26: 1 | F26: Acre | G26: 16.05140335 | I26: 16.05140335 | J26: 0 | K26: 0 | M26: 0 | N26: 0 | O26: 16.05140335 | P26: 0 | Q26: 1958.271209 | R26: 0
C27: Harvest and Haul - Sorghum | D27: 45 | F27: CWT | G27: 0.9091615181 | I27: 40.91226831 | J27: 0 | K27: 0 | M27: 0 | N27: 0 | O27: 40.91226831 | P27: 0 | Q27: 4991.296734 | R27: 0
B28: Miscellaneous
C29: Crop Insurance Sorghum - Irrigated | D29: 1 | F29: Acre | G29: 33 | I29: 33 | J29: 0 | K29: 0 | M29: 0 | N29: 0 | O29: 33 | P29: 0 | Q29: 4026 | R29: 0
B30: Insecticide
C31: Insecticide Head Worm | D31: 0.67 | F31: Application | G31: 10.58173095 | I31: 7.089759737 | J31: 0 | K31: 0 | M31: 0 | N31: 0 | O31: 7.089759737 | P31: 0 | Q31: 864.9506879 | R31: 0
C32: Insecticide Sugar Cane Aphid | D32: 1 | F32: Application | G32: 22.679619 | I32: 22.679619 | J32: 0 | K32: 0 | M32: 0 | N32: 0 | O32: 22.679619 | P32: 0 | Q32: 2766.913518 | R32: 0
D33: 0 | G33: 0 | I33: 0 | J33: 0 | K33: 0 | M33: 0 | N33: 0 | O33: 0 | P33: 0 | Q33: 0 | R33: 0
D34: 0 | G34: 0 | I34: 0 | J34: 0 | K34: 0 | M34: 0 | N34: 0 | O34: 0 | P34: 0 | Q34: 0 | R34: 0
D35: 0 | G35: 0 | I35: 0 | J35: =E35*H35 -> 0 | K35: 0 | M35: 0 | N35: =J35*L35 -> 0 | O35: 0 | P35: =+J35-N35 -> 0 | Q35: 0 | R35: =+J35*E$7 -> 0
B36: Irrigation
C37: Energy Cost | D37: 16 | F37: AcreInch | G37: 3.35 | I37: 53.6 | J37: =E37*H37 -> 0 | K37: 0 | M37: 0 | N37: =J37*L37 -> 0 | O37: 53.6 | P37: =+J37-N37 -> 0 | Q37: 6539.2 | R37: =+J37*E$7 -> 0
C38: Irrigation Labor | D38: 1.024 | F38: Hour | G38: 13.65 | I38: 13.9776 | J38: 0 | K38: 0 | M38: 0 | N38: 0 | O38: 13.9776 | P38: 0 | Q38: 1705.2672 | R38: 0
B39: Machinery Labor
C40: Tractors/Self-Propelled | D40: 0.33 | F40: Hour | G40: 13.43 | I40: 4.4319 | J40: =E40*H40 -> 0 | K40: 0 | M40: 0 | N40: =J40*L40 -> 0 | O40: 4.4319 | P40: =+J40-N40 -> 0 | Q40: 540.6918 | R40: =+J40*E$7 -> 0
C41: Other Labor | D41: 0.37 | F41: Hour | G41: 13.43 | I41: 4.9691 | J41: =E41*H41 -> 0 | K41: 0 | M41: 0 | N41: =J41*L41 -> 0 | O41: 4.9691 | P41: =+J41-N41 -> 0 | Q41: 606.2302 | R41: =+J41*E$7 -> 0
B43: Diesel Fuel
C44: Pickup/General Use Equipment | D44: 1 | F44: Acre | G44: 0 | I44: 0 | J44: =E44*H44 -> 0 | K44: 0 | M44: 0 | N44: =J44*L44 -> 0 | O44: 0 | P44: =+J44-N44 -> 0 | Q44: 0 | R44: =+J44*E$7 -> 0
C45: Tractors/Self-Propelled | D45: 1.92 | F45: Gallon | G45: 2.1902 | I45: 4.205184 | J45: =E45*H45 -> 0 | K45: 0 | M45: 0 | N45: =J45*L45 -> 0 | O45: 4.205184 | P45: =+J45-N45 -> 0 | Q45: 513.032448 | R45: =+J45*E$7 -> 0
B47: Gasoline
C48: Pickup/General Use Equipment | D48: 1 | F48: Acre | G48: 5.200819672 | I48: 5.200819672 | J48: =E48*H48 -> 0 | K48: 0 | M48: 0 | N48: =J48*L48 -> 0 | O48: 5.200819672 | P48: =+J48-N48 -> 0 | Q48: 634.5 | R48: =+J48*E$7 -> 0
C49: Tractors/Self-Propelled | D49: 0 | F49: Gallon | G49: 2.538 | I49: 0 | J49: =E49*H49 -> 0 | K49: 0 | M49: 0 | N49: =J49*L49 -> 0 | O49: 0 | P49: =+J49-N49 -> 0 | Q49: 0 | R49: =+J49*E$7 -> 0
B51: Repairs & Maintenance
C52: Pickup/General Use Equipment | D52: 1 | F52: Acre | G52: 2.508196721 | I52: 2.508196721 | J52: =E52*H52 -> 0 | K52: 0 | M52: 0 | N52: =J52*L52 -> 0 | O52: 2.508196721 | P52: =+J52-N52 -> 0 | Q52: 306 | R52: =+J52*E$7 -> 0
C53: Irrigation Equipment | D53: 1 | F53: Acre | G53: 60 | I53: 60 | J53: 0 | K53: 0 | M53: 0 | N53: 0 | O53: 60 | P53: 0 | Q53: 7320 | R53: 0
C54: Tractors/Self-Propelled | D54: 1 | F54: Acre | G54: 3.802553268 | I54: 3.802553268 | J54: 0 | K54: 0 | M54: 0 | N54: 0 | O54: 3.802553268 | P54: 0 | Q54: 463.9114986 | R54: 0
C55: Implements | D55: 1 | F55: Acre | G55: 15.21017109 | I55: 15.21017109 | J55: 0 | K55: 0 | M55: 0 | N55: 0 | O55: 15.21017109 | P55: 0 | Q55: 1855.640873 | R55: 0
I56: 0 | J56: 0 | K56: 0 | M56: 0 | N56: 0 | O56: 0 | P56: 0 | Q56: 0 | R56: 0
I57: 0 | J57: 0 | K57: 0 | M57: 0 | N57: 0 | O57: 0 | P57: 0 | Q57: 0 | R57: 0
B58: Interest on Credit Line | G58: 0.0625 | I58: 8.649462156 | J58: =+SUM(J17:J57)/2*H58 -> 0 | M58: 0 | N58: =+SUM(N17:N57)/2*L58 -> 0 | O58: 8.649462156 | P58: =+SUM(P17:P57)/2*L58 -> 0 | Q58: 1055.234383 | R58: =+J58*E$7 -> 0
A59: Total Variable Costs | I59: 395.0622236 | J59: =SUM(J18:J58) -> 0 | M59: 0 | N59: =SUM(N18:N58) -> 0 | O59: 395.0622236 | P59: =SUM(P18:P58) -> 0 | Q59: 48197.59128 | R59: =SUM(R18:R58) -> 0
A60: Planned Returns Above Variable Costs: | I60: 537.9243836 | J60: =+J13-J59 -> 0 | M60: 0 | N60: =+N13-N59 -> 0 | O60: 537.9243836 | P60: =+P13-P59 -> 0 | Q60: 65626.77479 | R60: =+R13-R59 -> 0
B61: Breakeven Price to Cover Variable Costs | G61: 8.779160524 | H61: =IF(E10=0,"n/a",(YVarExp-(YTotExp+YTotRet-J10))/E10) -> n/a | I61: CWT
Q62: Enterprise | R62: Enterprise
A63: FIXED COSTS | D63: Quantity | E63: Quantity | F63: Units | G63: $/Unit | H63: $/Unit | I63: Total | J63: Total | K63: Share | L63: Share | M63: Landlord | N63: Landlord | O63: Tenant | P63: Tenant | Q63: Total | R63: Total
B64: Machinery Depreciation
C65: Pickup/General Use Equipment | D65: 1 | F65: Acre | G65: 2.633606557 | I65: 2.633606557 | J65: =E65*H65 -> 0 | K65: 0 | M65: 0 | N65: =J65*L65 -> 0 | O65: 2.633606557 | P65: =+J65-N65 -> 0 | Q65: 321.3 | R65: =+J65*E$7 -> 0
C66: Irrigation Equipment | D66: 1 | F66: Acre | G66: 40.42008197 | I66: 40.42008197 | J66: 0 | K66: 0 | M66: 0 | N66: =J66*L66 -> 0 | O66: 40.42008197 | P66: 0 | Q66: 4931.25 | R66: 0
C67: Tractors/Self-Propelled | D67: 1 | F67: Acre | G67: 3.715855726 | I67: 3.715855726 | J67: 0 | K67: 0 | M67: 0 | N67: =J67*L67 -> 0 | O67: 3.715855726 | P67: 0 | Q67: 453.3343986 | R67: 0
C68: Implements | D68: 1 | F68: Acre | G68: 18.99548342 | I68: 18.99548342 | J68: 0 | K68: 0 | M68: 0 | N68: =J68*L68 -> 0 | O68: 18.99548342 | P68: 0 | Q68: 2317.448977 | R68: 0
B69: Equipment Investment
C70: Pickup/General Use Equipment | D70: 18.18442623 | F70: Dollars | G70: 0.0625 | I70: 1.136526639 | J70: =E70*H70 -> 0 | K70: 0 | M70: 0 | N70: =J70*L70 -> 0 | O70: 1.136526639 | P70: =+J70-N70 -> 0 | Q70: 138.65625 | R70: =+J70*E$7 -> 0
C71: Irrigation Equipment | D71: 521.0040984 | F71: Dollars | G71: 0.0625 | I71: 32.56275615 | J71: 0 | K71: 0 | M71: 0 | N71: =J71*L71 -> 0 | O71: 32.56275615 | P71: 0 | Q71: 3972.65625 | R71: 0
C72: Tractors/Self-Propelled | D72: 28.94771477 | F72: Dollars | G72: 0.0625 | I72: 1.809232173 | J72: 0 | K72: 0 | M72: 0 | N72: =J72*L72 -> 0 | O72: 1.809232173 | P72: 0 | Q72: 220.7263251 | R72: 0
C73: Implements | D73: 81.25845685 | F73: Dollars | G73: 0.0625 | I73: 5.078653553 | J73: 0 | K73: 0 | M73: 0 | N73: =J73*L73 -> 0 | O73: 5.078653553 | P73: 0 | Q73: 619.5957335 | R73: 0
B74: Salaried Labor | D74: 1 | F74: Acre | G74: 0 | I74: 0 | J74: 0 | K74: 0 | M74: 0 | N74: =J74*L74 -> 0 | O74: 0 | P74: =+J74-N74 -> 0 | Q74: 0 | R74: =+J74*E$7 -> 0
B75: Management Fee, Owner/Operator Labor | D75: 1 | F75: Acre | G75: 0 | I75: 0 | J75: 0 | K75: 0 | M75: 0 | N75: 0 | O75: 0 | P75: 0 | Q75: 0 | R75: 0
B76: Allocated Establishment Cost | D76: 1 | F76: Acre | G76: 0 | I76: 0 | J76: 0 | K76: 0 | M76: 0 | N76: 0 | O76: 0 | P76: 0 | Q76: 0 | R76: 0
B77: Cash Rent - Sorghum f | D77: 1 | F77: Acre | G77: 76 | I77: 76 | J77: 0 | K77: 0 | M77: 0 | N77: 0 | O77: 76 | P77: 0 | Q77: 9272 | R77: 0
B78: Property Taxes | D78: 1 | F78: Acre | G78: 0 | I78: 0 | J78: 0 | K78: 0 | M78: 0 | N78: 0 | O78: 0 | P78: 0 | Q78: 0 | R78: 0
B79: Whole Farm Insurance | D79: 1 | F79: Acre | G79: 0 | I79: 0 | J79: 0 | K79: 0 | M79: 0 | N79: 0 | O79: 0 | P79: 0 | Q79: 0 | R79: 0
D80: 1 | G80: 0 | I80: 0 | J80: 0 | K80: 0 | M80: 0 | N80: 0 | O80: 0 | P80: 0 | Q80: 0 | R80: 0
D81: 1 | G81: 0 | I81: 0 | J81: =E81*H81 -> 0 | K81: 0 | M81: 0 | N81: 0 | O81: 0 | P81: 0 | Q81: 0 | R81: 0
A82: Total Fixed Costs | I82: 182.3521962 | J82: =+SUM(J65:J81) -> 0 | M82: 0 | N82: =+SUM(N65:N81) -> 0 | O82: 182.3521962 | P82: =+SUM(P65:P81) -> 0 | Q82: 22246.96793 | R82: =+SUM(R65:R81) -> 0
A83: Total Specified Costs | I83: 577.4144198 | J83: =+J59+J82 -> 0 | M83: 0 | N83: =+N59+N82 -> 0 | O83: 577.4144198 | P83: =+P59+P82 -> 0 | Q83: 70444.55921 | R83: =+R59+R82 -> 0
A85: Returns Above Specified Costs | I85: 355.5721874 | J85: =+J13-J83 -> 0 | M85: 0 | N85: =+N13-N83 -> 0 | O85: 355.5721874 | P85: =+P13-P83 -> 0 | Q85: 43379.80686 | R85: =+R13-R83 -> 0
A87: Breakeven Price to Cover Total Costs | G87: 12.83143155 | H87: =IF(E10=0,"n/a",(YTotExp-(YTotExp+YTotRet-J10))/E10) -> n/a | I87: CWT
D89: Example Breakeven Prices
B90: Example | C90: Example | D90: To Cover | G90: To Cover
B91: Yield | C91: Yield | D91: Variable | G91: Total
B92: Percent | C92: CWT | D92: Costs | G92: Costs
B93: 0.75 | C93: 33.75 | D93: 11.70554737 | G93: 17.1085754
B94: 0.9 | C94: 40.5 | D94: 9.754622804 | G94: 14.25714617
B95: 1 | C95: 45 | D95: 8.779160524 | G95: 12.83143155
B96: 1.1 | C96: 49.5 | D96: 7.981055022 | G96: 11.66493777
B97: 1.25 | C97: 56.25 | D97: 7.023328419 | G97: 10.26514524
A99: Developed by Justin Benavidez, Assistant Professor, Texas A&M AgriLife Extension, 806-677-5600.
A101: Information presented is prepared solely as a general guide and not intended to recognize or predict the costs and returns from any one operation. Brand names are mentioned only as examples and imply no endorsement.

Sheet SoybeansSprinkler
A1: Projections for Planning Purposes Only -- Not to be Used without Updating
A2: 2021 Estimated Costs and Returns per Acre
A3: Soybeans, Roundup Ready, Sprinkler Irrigated (NG)
A4: Enter your name for this budget in the cell above.
A5: Enter Your Values in the cells highlighed in MAROON.
E6: Your Acres | R6: Your
C7: Crop Acres | D7: 122 | L7: Your | Q7: Enterprise | R7: Enterprise
E8: Your | H8: Your | I8: Cash | J8: Your | K8: Landlord | L8: Landlord | N8: Your | P8: Your | Q8: Total | R8: Total
A9: REVENUE | D9: Quantity | E9: Quantity | F9: Units | G9: $/Unit | H9: $/Unit | I9: Total | J9: Total | K9: Share | L9: Share | M9: Landlord | N9: Landlord | O9: Tenant | P9: Tenant | Q9: (122 acres) | R9: ="(" & E7 & " acres)" -> ( acres)
B10: Soybeans | D10: 60 | F10: Bushel | G10: 9.324 | I10: 559.44 | J10: =E10*H10 -> 0 | K10: 0 | M10: 0 | N10: =J10*L10 -> 0 | O10: 559.44 | P10: =+J10-N10 -> 0 | Q10: 68251.68 | R10: =+J10*E$7 -> 0
D11: 0 | G11: 0 | I11: 0 | J11: 0 | K11: 0 | M11: 0 | N11: 0 | O11: 0 | P11: =+J11-N11 -> 0 | Q11: 0 | R11: 0
D12: 0 | G12: 0 | I12: 0 | J12: 0 | K12: 0 | M12: 0 | N12: 0 | O12: 0 | P12: 0 | Q12: 0 | R12: 0
A13: Total Revenue | I13: 559.44 | J13: =SUM(J10:J12) -> 0 | M13: 0 | N13: =SUM(N10:N12) -> 0 | O13: 559.44 | P13: =SUM(P10:P12) -> 0 | Q13: 68251.68 | R13: =SUM(R10:R12) -> 0
Q14: Enterprise | R14: Enterprise
A15: VARIABLE COSTS | D15: Quantity | E15: Quantity | F15: Units | G15: $/Unit | H15: $/Unit | I15: Total | J15: Total | K15: Share | L15: Share | M15: Landlord | N15: Landlord | O15: Tenant | P15: Tenant | Q15: Total | R15: Total
A16: Production Costs
B17: Seed
C18: Seed - Soybeans | D18: 1 | F18: Bag | G18: 69.12164243 | I18: 69.12164243 | J18: =E18*H18 -> 0 | K18: 0 | M18: 0 | N18: =J18*L18 -> 0 | O18: 69.12164243 | P18: =+J18-N18 -> 0 | Q18: 8432.840376 | R18: =+J18*E$7 -> 0
C19: Innoculant Soybeans | D19: 1 | F19: Acre | G19: 7.666534351 | I19: 7.666534351 | J19: 0 | K19: 0 | M19: 0 | N19: 0 | O19: 7.666534351 | P19: 0 | Q19: 935.3171908 | R19: 0
B20: Fertilizer
C21: Fertilizer (P) - Liquid | D21: 50 | F21: Pound | G21: 0.49 | I21: 24.5 | J21: 0 | K21: 0 | M21: 0 | N21: 0 | O21: 24.5 | P21: 0 | Q21: 2989 | R21: 0
B22: Custom
C23: Harvest and Haul - Soybeans | D23: 60 | F23: Bushel | G23: 0.7106090026 | I23: 42.63654016 | J23: 0 | K23: 0 | M23: 0 | N23: 0 | O23: 42.63654016 | P23: 0 | Q23: 5201.657899 | R23: 0
B24: Herbicide
C25: Herbicide and Apply Soybeans | D25: 2 | F25: Acre | G25: 13.11019755 | I25: 26.22039511 | J25: 0 | K25: 0 | M25: 0 | N25: 0 | O25: 26.22039511 | P25: 0 | Q25: 3198.888203 | R25: 0
B26: Insecticide
C27: Insecticide and Apply Soybeans | D27: 0.5 | F27: Acre | G27: 9.724317968 | I27: 4.862158984 | J27: 0 | K27: 0 | M27: 0 | N27: 0 | O27: 4.862158984 | P27: 0 | Q27: 593.183396 | R27: 0
B28: Miscellaneous
C29: Crop Insurance Soybeans | D29: 1 | F29: Acre | G29: 37 | I29: 37 | J29: 0 | K29: 0 | M29: 0 | N29: 0 | O29: 37 | P29: 0 | Q29: 4514 | R29: 0
D30: 0 | G30: 0 | I30: 0 | J30: 0 | K30: 0 | M30: 0 | N30: 0 | O30: 0 | P30: 0 | Q30: 0 | R30: 0
D31: 0 | G31: 0 | I31: 0 | J31: 0 | K31: 0 | M31: 0 | N31: 0 | O31: 0 | P31: 0 | Q31: 0 | R31: 0
D32: 0 | G32: 0 | I32: 0 | J32: =E32*H32 -> 0 | K32: 0 | M32: 0 | N32: =J32*L32 -> 0 | O32: 0 | P32: =+J32-N32 -> 0 | Q32: 0 | R32: =+J32*E$7 -> 0
B33: Irrigation
C34: Energy Cost | D34: 14 | F34: AcreInch | G34: 3.35 | I34: 46.9 | J34: =E34*H34 -> 0 | K34: 0 | M34: 0 | N34: =J34*L34 -> 0 | O34: 46.9 | P34: =+J34-N34 -> 0 | Q34: 5721.8 | R34: =+J34*E$7 -> 0
C35: Irrigation Labor | D35: 0.896 | F35: Hour | G35: 13.65 | I35: 12.2304 | J35: 0 | K35: 0 | M35: 0 | N35: 0 | O35: 12.2304 | P35: 0 | Q35: 1492.1088 | R35: 0
B36: Machinery Labor
C37: Tractors/Self-Propelled | D37: 0.34 | F37: Hour | G37: 13.43 | I37: 4.5662 | J37: =E37*H37 -> 0 | K37: 0 | M37: 0 | N37: =J37*L37 -> 0 | O37: 4.5662 | P37: =+J37-N37 -> 0 | Q37: 557.0764 | R37: =+J37*E$7 -> 0
C38: Other Labor | D38: 0.38 | F38: Hour | G38: 13.43 | I38: 5.1034 | J38: =E38*H38 -> 0 | K38: 0 | M38: 0 | N38: =J38*L38 -> 0 | O38: 5.1034 | P38: =+J38-N38 -> 0 | Q38: 622.6148 | R38: =+J38*E$7 -> 0
B40: Diesel Fuel
C41: Pickup/General Use Equipment | D41: 1 | F41: Acre | G41: 0 | I41: 0 | J41: =E41*H41 -> 0 | K41: 0 | M41: 0 | N41: =J41*L41 -> 0 | O41: 0 | P41: =+J41-N41 -> 0 | Q41: 0 | R41: =+J41*E$7 -> 0
C42: Tractors/Self-Propelled | D42: 2 | F42: Gallon | G42: 2.1902 | I42: 4.3804 | J42: =E42*H42 -> 0 | K42: 0 | M42: 0 | N42: =J42*L42 -> 0 | O42: 4.3804 | P42: =+J42-N42 -> 0 | Q42: 534.4088 | R42: =+J42*E$7 -> 0
B44: Gasoline
C45: Pickup/General Use Equipment | D45: 1 | F45: Acre | G45: 5.200819672 | I45: 5.200819672 | J45: =E45*H45 -> 0 | K45: 0 | M45: 0 | N45: =J45*L45 -> 0 | O45: 5.200819672 | P45: =+J45-N45 -> 0 | Q45: 634.5 | R45: =+J45*E$7 -> 0
C46: Tractors/Self-Propelled | D46: 0 | F46: Gallon | G46: 2.538 | I46: 0 | J46: =E46*H46 -> 0 | K46: 0 | M46: 0 | N46: =J46*L46 -> 0 | O46: 0 | P46: =+J46-N46 -> 0 | Q46: 0 | R46: =+J46*E$7 -> 0
B48: Repairs & Maintenance
C49: Pickup/General Use Equipment | D49: 1 | F49: Acre | G49: 2.508196721 | I49: 2.508196721 | J49: =E49*H49 -> 0 | K49: 0 | M49: 0 | N49: =J49*L49 -> 0 | O49: 2.508196721 | P49: =+J49-N49 -> 0 | Q49: 306 | R49: =+J49*E$7 -> 0
C50: Irrigation Equipment | D50: 1 | F50: Acre | G50: 52.5 | I50: 52.5 | J50: 0 | K50: 0 | M50: 0 | N50: 0 | O50: 52.5 | P50: 0 | Q50: 6405 | R50: 0
C51: Tractors/Self-Propelled | D51: 1 | F51: Acre | G51: 4.006335841 | I51: 4.006335841 | J51: 0 | K51: 0 | M51: 0 | N51: 0 | O51: 4.006335841 | P51: 0 | Q51: 488.7729725 | R51: 0
C52: Implements | D52: 1 | F52: Acre | G52: 15.51021106 | I52: 15.51021106 | J52: 0 | K52: 0 | M52: 0 | N52: 0 | O52: 15.51021106 | P52: 0 | Q52: 1892.245749 | R52: 0
I53: 0 | J53: 0 | K53: 0 | M53: 0 | N53: 0 | O53: 0 | P53: 0 | Q53: 0 | R53: 0
I54: 0 | J54: 0 | K54: 0 | M54: 0 | N54: 0 | O54: 0 | P54: 0 | Q54: 0 | R54: 0
B55: Interest on Credit Line | G55: 0.0625 | I55: 8.01088151 | J55: =+SUM(J17:J54)/2*H55 -> 0 | M55: 0 | N55: =+SUM(N17:N54)/2*L55 -> 0 | O55: 8.01088151 | P55: =+SUM(P17:P54)/2*L55 -> 0 | Q55: 977.3275442 | R55: =+J55*E$7 -> 0
A56: Total Variable Costs | I56: 372.9241158 | J56: =SUM(J18:J55) -> 0 | M56: 0 | N56: =SUM(N18:N55) -> 0 | O56: 372.9241158 | P56: =SUM(P18:P55) -> 0 | Q56: 45496.74213 | R56: =SUM(R18:R55) -> 0
A57: Planned Returns Above Variable Costs: | I57: 186.5158842 | J57: =+J13-J56 -> 0 | M57: 0 | N57: =+N13-N56 -> 0 | O57: 186.5158842 | P57: =+P13-P56 -> 0 | Q57: 22754.93787 | R57: =+R13-R56 -> 0
B58: Breakeven Price to Cover Variable Costs | G58: 6.215401931 | H58: =IF(E10=0,"n/a",(YVarExp-(YTotExp+YTotRet-J10))/E10) -> n/a | I58: Bushel
Q59: Enterprise | R59: Enterprise
A60: FIXED COSTS | D60: Quantity | E60: Quantity | F60: Units | G60: $/Unit | H60: $/Unit | I60: Total | J60: Total | K60: Share | L60: Share | M60: Landlord | N60: Landlord | O60: Tenant | P60: Tenant | Q60: Total | R60: Total
B61: Machinery Depreciation
C62: Pickup/General Use Equipment | D62: 1 | F62: Acre | G62: 2.633606557 | I62: 2.633606557 | J62: =E62*H62 -> 0 | K62: 0 | M62: 0 | N62: =J62*L62 -> 0 | O62: 2.633606557 | P62: =+J62-N62 -> 0 | Q62: 321.3 | R62: =+J62*E$7 -> 0
C63: Irrigation Equipment | D63: 1 | F63: Acre | G63: 40.42008197 | I63: 40.42008197 | J63: 0 | K63: 0 | M63: 0 | N63: =J63*L63 -> 0 | O63: 40.42008197 | P63: 0 | Q63: 4931.25 | R63: 0
C64: Tractors/Self-Propelled | D64: 1 | F64: Acre | G64: 3.926431052 | I64: 3.926431052 | J64: 0 | K64: 0 | M64: 0 | N64: =J64*L64 -> 0 | O64: 3.926431052 | P64: 0 | Q64: 479.0245883 | R64: 0
C65: Implements | D65: 1 | F65: Acre | G65: 19.68604622 | I65: 19.68604622 | J65: 0 | K65: 0 | M65: 0 | N65: =J65*L65 -> 0 | O65: 19.68604622 | P65: 0 | Q65: 2401.697639 | R65: 0
B66: Equipment Investment
C67: Pickup/General Use Equipment | D67: 18.18442623 | F67: Dollars | G67: 0.0625 | I67: 1.136526639 | J67: =E67*H67 -> 0 | K67: 0 | M67: 0 | N67: =J67*L67 -> 0 | O67: 1.136526639 | P67: =+J67-N67 -> 0 | Q67: 138.65625 | R67: =+J67*E$7 -> 0
C68: Irrigation Equipment | D68: 521.0040984 | F68: Dollars | G68: 0.0625 | I68: 32.56275615 | J68: 0 | K68: 0 | M68: 0 | N68: =J68*L68 -> 0 | O68: 32.56275615 | P68: 0 | Q68: 3972.65625 | R68: 0
C69: Tractors/Self-Propelled | D69: 30.58816448 | F69: Dollars | G69: 0.0625 | I69: 1.91176028 | J69: 0 | K69: 0 | M69: 0 | N69: =J69*L69 -> 0 | O69: 1.91176028 | P69: 0 | Q69: 233.2347542 | R69: 0
C70: Implements | D70: 84.21253104 | F70: Dollars | G70: 0.0625 | I70: 5.26328319 | J70: 0 | K70: 0 | M70: 0 | N70: =J70*L70 -> 0 | O70: 5.26328319 | P70: 0 | Q70: 642.1205492 | R70: 0
B71: Salaried Labor | D71: 1 | F71: Acre | G71: 0 | I71: 0 | J71: 0 | K71: 0 | M71: 0 | N71: =J71*L71 -> 0 | O71: 0 | P71: =+J71-N71 -> 0 | Q71: 0 | R71: =+J71*E$7 -> 0
B72: Management Fee, Owner/Operator Labor | D72: 1 | F72: Acre | G72: 0 | I72: 0 | J72: 0 | K72: 0 | M72: 0 | N72: 0 | O72: 0 | P72: 0 | Q72: 0 | R72: 0
B73: Allocated Establishment Cost | D73: 1 | F73: Acre | G73: 0 | I73: 0 | J73: 0 | K73: 0 | M73: 0 | N73: 0 | O73: 0 | P73: 0 | Q73: 0 | R73: 0
B74: Cash Rent - Soybeans | D74: 1 | F74: Acre | G74: 76 | I74: 76 | J74: 0 | K74: 0 | M74: 0 | N74: 0 | O74: 76 | P74: 0 | Q74: 9272 | R74: 0
B75: Property Taxes | D75: 1 | F75: Acre | G75: 0 | I75: 0 | J75: 0 | K75: 0 | M75: 0 | N75: 0 | O75: 0 | P75: 0 | Q75: 0 | R75: 0
B76: Whole Farm Insurance | D76: 1 | F76: Acre | G76: 0 | I76: 0 | J76: 0 | K76: 0 | M76: 0 | N76: 0 | O76: 0 | P76: 0 | Q76: 0 | R76: 0
D77: 1 | G77: 0 | I77: 0 | J77: 0 | K77: 0 | M77: 0 | N77: 0 | O77: 0 | P77: 0 | Q77: 0 | R77: 0
D78: 1 | G78: 0 | I78: 0 | J78: =E78*H78 -> 0 | K78: 0 | M78: 0 | N78: 0 | O78: 0 | P78: 0 | Q78: 0 | R78: 0
A79: Total Fixed Costs | I79: 183.5404921 | J79: =+SUM(J62:J78) -> 0 | M79: 0 | N79: =+SUM(N62:N78) -> 0 | O79: 183.5404921 | P79: =+SUM(P62:P78) -> 0 | Q79: 22391.94003 | R79: =+SUM(R62:R78) -> 0
A80: Total Specified Costs | I80: 556.4646079 | J80: =+J56+J79 -> 0 | M80: 0 | N80: =+N56+N79 -> 0 | O80: 556.4646079 | P80: =+P56+P79 -> 0 | Q80: 67888.68216 | R80: =+R56+R79 -> 0
A82: Returns Above Specified Costs | I82: 2.975392113 | J82: =+J13-J80 -> 0 | M82: 0 | N82: =+N13-N80 -> 0 | O82: 2.975392113 | P82: =+P13-P80 -> 0 | Q82: 362.9978378 | R82: =+R13-R80 -> 0
A84: Breakeven Price to Cover Total Costs | G84: 9.274410131 | H84: =IF(E10=0,"n/a",(YTotExp-(YTotExp+YTotRet-J10))/E10) -> n/a | I84: Bushel
D86: Example Breakeven Prices
B87: Example | C87: Example | D87: To Cover | G87: To Cover
B88: Yield | C88: Yield | D88: Variable | G88: Total
B89: Percent | C89: Bushel | D89: Costs | G89: Costs
B90: 0.75 | C90: 45 | D90: 8.287202574 | G90: 12.36588018
B91: 0.9 | C91: 54 | D91: 6.906002145 | G91: 10.30490015
B92: 1 | C92: 60 | D92: 6.215401931 | G92: 9.274410131
B93: 1.1 | C93: 66 | D93: 5.650365391 | G93: 8.431281938
B94: 1.25 | C94: 75 | D94: 4.972321544 | G94: 7.419528105
A96: Developed by Justin Benavidez, Assistant Professor, Texas A&M AgriLife Extension, 806-677-5600.
A98: Information presented is prepared solely as a general guide and not intended to recognize or predict the costs and returns from any one operation. Brand names are mentioned only as examples and imply no endorsement.

Sheet SunflowersDryland
A1: Projections for Planning Purposes Only -- Not to be Used without Updating
A2: 2021 Estimated Costs and Returns per Acre
A3: Oilseed Sunflowers, Dryland, Strip Tillage
A4: Enter your name for this budget in the cell above.
A5: Enter Your Values in the cells highlighed in MAROON.
E6: Your Acres | R6: Your
C7: Crop Acres | D7: 160 | L7: Your | Q7: Enterprise | R7: Enterprise
E8: Your | H8: Your | I8: Cash | J8: Your | K8: Landlord | L8: Landlord | N8: Your | P8: Your | Q8: Total | R8: Total
A9: REVENUE | D9: Quantity | E9: Quantity | F9: Units | G9: $/Unit | H9: $/Unit | I9: Total | J9: Total | K9: Share | L9: Share | M9: Landlord | N9: Landlord | O9: Tenant | P9: Tenant | Q9: (160 acres) | R9: ="(" & E7 & " acres)" -> ( acres)
B10: Oilseed Sunflowers | D10: 10 | F10: CWT | G10: 17.89 | I10: 178.9 | J10: =E10*H10 -> 0 | K10: 0 | M10: 0 | N10: =J10*L10 -> 0 | O10: 178.9 | P10: =+J10-N10 -> 0 | Q10: 28624 | R10: =+J10*E$7 -> 0
D11: 0 | G11: 0 | I11: 0 | J11: 0 | K11: 0 | M11: 0 | N11: 0 | O11: 0 | P11: =+J11-N11 -> 0 | Q11: 0 | R11: 0
D12: 0 | G12: 0 | I12: 0 | J12: 0 | K12: 0 | M12: 0 | N12: 0 | O12: 0 | P12: 0 | Q12: 0 | R12: 0
A13: Total Revenue | I13: 178.9 | J13: =SUM(J10:J12) -> 0 | M13: 0 | N13: =SUM(N10:N12) -> 0 | O13: 178.9 | P13: =SUM(P10:P12) -> 0 | Q13: 28624 | R13: =SUM(R10:R12) -> 0
Q14: Enterprise | R14: Enterprise
A15: VARIABLE COSTS | D15: Quantity | E15: Quantity | F15: Units | G15: $/Unit | H15: $/Unit | I15: Total | J15: Total | K15: Share | L15: Share | M15: Landlord | N15: Landlord | O15: Tenant | P15: Tenant | Q15: Total | R15: Total
A16: Production Costs
B17: Herbicide
C18: Glyphosphate | D18: 3 | F18: Acre | G18: 4.872701613 | I18: 14.61810484 | J18: =E18*H18 -> 0 | K18: 0 | M18: 0 | N18: =J18*L18 -> 0 | O18: 14.61810484 | P18: =+J18-N18 -> 0 | Q18: 2338.896774 | R18: =+J18*E$7 -> 0
C19: 2-4D | D19: 1 | F19: Acre | G19: 2.599475806 | I19: 2.599475806 | J19: 0 | K19: 0 | M19: 0 | N19: 0 | O19: 2.599475806 | P19: 0 | Q19: 415.916129 | R19: 0
C20: Prowel H2O | D20: 1 | F20: Acre | G20: 14.40762097 | I20: 14.40762097 | J20: 0 | K20: 0 | M20: 0 | N20: 0 | O20: 14.40762097 | P20: 0 | Q20: 2305.219355 | R20: 0
B21: Seed
C22: Seed - Sunflower | D22: 1 | F22: Acre | G22: 10.4150556 | I22: 10.4150556 | J22: 0 | K22: 0 | M22: 0 | N22: 0 | O22: 10.4150556 | P22: 0 | Q22: 1666.408896 | R22: 0
B23: Fertilizer
C24: Fertilizer (N) - Liquid | D24: 40 | F24: Pound | G24: 0.5 | I24: 20 | J24: 0 | K24: 0 | M24: 0 | N24: 0 | O24: 20 | P24: 0 | Q24: 3200 | R24: 0
B25: Custom
C26: Herbicide Application | D26: 3 | F26: Acre | G26: 5.350467785 | I26: 16.05140335 | J26: 0 | K26: 0 | M26: 0 | N26: 0 | O26: 16.05140335 | P26: 0 | Q26: 2568.224537 | R26: 0
C27: Pesticide Application | D27: 1 | F27: Acre | G27: 5.350467785 | I27: 5.350467785 | J27: 0 | K27: 0 | M27: 0 | N27: 0 | O27: 5.350467785 | P27: 0 | Q27: 856.0748455 | R27: 0
C28: Custom Harvest - Sorghum Dryland | D28: 1 | F28: Acre | G28: 26.76278906 | I28: 26.76278906 | J28: 0 | K28: 0 | M28: 0 | N28: 0 | O28: 26.76278906 | P28: 0 | Q28: 4282.046249 | R28: 0
C29: Custom Haul - Sunflowers | D29: 10 | F29: CWT | G29: 0.48070609 | I29: 4.8070609 | J29: 0 | K29: 0 | M29: 0 | N29: 0 | O29: 4.8070609 | P29: 0 | Q29: 769.129744 | R29: 0
B30: Miscellaneous
C31: Crop Insurance Sunflowers - Dryland | D31: 1 | F31: Acre | G31: 10 | I31: 10 | J31: 0 | K31: 0 | M31: 0 | N31: 0 | O31: 10 | P31: 0 | Q31: 1600 | R31: 0
B32: Insecticide
C33: Seed Insecticide - Sunflower | D33: 1 | F33: Acre | G33: 3.972205438 | I33: 3.972205438 | J33: 0 | K33: 0 | M33: 0 | N33: 0 | O33: 3.972205438 | P33: 0 | Q33: 635.5528701 | R33: 0
C34: Ammo | D34: 1 | F34: Acre | G34: 3.547039275 | I34: 3.547039275 | J34: 0 | K34: 0 | M34: 0 | N34: 0 | O34: 3.547039275 | P34: 0 | Q34: 567.526284 | R34: 0
D35: 0 | G35: 0 | I35: 0 | J35: 0 | K35: 0 | M35: 0 | N35: 0 | O35: 0 | P35: 0 | Q35: 0 | R35: 0
D36: 0 | G36: 0 | I36: 0 | J36: 0 | K36: 0 | M36: 0 | N36: 0 | O36: 0 | P36: 0 | Q36: 0 | R36: 0
D37: 0 | G37: 0 | I37: 0 | J37: =E37*H37 -> 0 | K37: 0 | M37: 0 | N37: =J37*L37 -> 0 | O37: 0 | P37: =+J37-N37 -> 0 | Q37: 0 | R37: =+J37*E$7 -> 0
B38: Machinery Labor
C39: Tractors/Self-Propelled | D39: 0.21 | F39: Hour | G39: 13.43 | I39: 2.8203 | J39: =E39*H39 -> 0 | K39: 0 | M39: 0 | N39: =J39*L39 -> 0 | O39: 2.8203 | P39: =+J39-N39 -> 0 | Q39: 451.248 | R39: =+J39*E$7 -> 0
C40: Other Labor | D40: 0.25 | F40: Hour | G40: 13.43 | I40: 3.3575 | J40: =E40*H40 -> 0 | K40: 0 | M40: 0 | N40: =J40*L40 -> 0 | O40: 3.3575 | P40: =+J40-N40 -> 0 | Q40: 537.2 | R40: =+J40*E$7 -> 0
B42: Diesel Fuel
C43: Pickup/General Use Equipment | D43: 1 | F43: Acre | G43: 0 | I43: 0 | J43: =E43*H43 -> 0 | K43: 0 | M43: 0 | N43: =J43*L43 -> 0 | O43: 0 | P43: =+J43-N43 -> 0 | Q43: 0 | R43: =+J43*E$7 -> 0
C44: Tractors/Self-Propelled | D44: 1.57 | F44: Gallon | G44: 2.1902 | I44: 3.438614 | J44: =E44*H44 -> 0 | K44: 0 | M44: 0 | N44: =J44*L44 -> 0 | O44: 3.438614 | P44: =+J44-N44 -> 0 | Q44: 550.17824 | R44: =+J44*E$7 -> 0
B46: Gasoline
C47: Pickup/General Use Equipment | D47: 1 | F47: Acre | G47: 5.1553125 | I47: 5.1553125 | J47: =E47*H47 -> 0 | K47: 0 | M47: 0 | N47: =J47*L47 -> 0 | O47: 5.1553125 | P47: =+J47-N47 -> 0 | Q47: 824.85 | R47: =+J47*E$7 -> 0
C48: Tractors/Self-Propelled | D48: 0 | F48: Gallon | G48: 2.538 | I48: 0 | J48: =E48*H48 -> 0 | K48: 0 | M48: 0 | N48: =J48*L48 -> 0 | O48: 0 | P48: =+J48-N48 -> 0 | Q48: 0 | R48: =+J48*E$7 -> 0
B50: Repairs & Maintenance
C51: Pickup/General Use Equipment | D51: 1 | F51: Acre | G51: 2.48625 | I51: 2.48625 | J51: =E51*H51 -> 0 | K51: 0 | M51: 0 | N51: =J51*L51 -> 0 | O51: 2.48625 | P51: =+J51-N51 -> 0 | Q51: 397.8 | R51: =+J51*E$7 -> 0
C52: Irrigation Equipment | D52: 1 | F52: Acre | G52: 0 | I52: 0 | J52: 0 | K52: 0 | M52: 0 | N52: 0 | O52: 0 | P52: 0 | Q52: 0 | R52: 0
C53: Tractors/Self-Propelled | D53: 1 | F53: Acre | G53: 3.562338974 | I53: 3.562338974 | J53: 0 | K53: 0 | M53: 0 | N53: 0 | O53: 3.562338974 | P53: 0 | Q53: 569.9742358 | R53: 0
C54: Implements | D54: 1 | F54: Acre | G54: 10.33202263 | I54: 10.33202263 | J54: 0 | K54: 0 | M54: 0 | N54: 0 | O54: 10.33202263 | P54: 0 | Q54: 1653.123621 | R54: 0
I55: 0 | J55: 0 | K55: 0 | M55: 0 | N55: 0 | O55: 0 | P55: 0 | Q55: 0 | R55: 0
I56: 0 | J56: 0 | K56: 0 | M56: 0 | N56: 0 | O56: 0 | P56: 0 | Q56: 0 | R56: 0
B57: Interest on Credit Line | G57: 0.0625 | I57: 3.686525261 | J57: =+SUM(J17:J56)/2*H57 -> 0 | M57: 0 | N57: =+SUM(N17:N56)/2*L57 -> 0 | O57: 3.686525261 | P57: =+SUM(P17:P56)/2*L57 -> 0 | Q57: 589.8440418 | R57: =+J57*E$7 -> 0
A58: Total Variable Costs | I58: 167.3700864 | J58: =SUM(J18:J57) -> 0 | M58: 0 | N58: =SUM(N18:N57) -> 0 | O58: 167.3700864 | P58: =SUM(P18:P57) -> 0 | Q58: 26779.21382 | R58: =SUM(R18:R57) -> 0
A59: Planned Returns Above Variable Costs: | I59: 11.52991361 | J59: =+J13-J58 -> 0 | M59: 0 | N59: =+N13-N58 -> 0 | O59: 11.52991361 | P59: =+P13-P58 -> 0 | Q59: 1844.786178 | R59: =+R13-R58 -> 0
B60: Breakeven Price to Cover Variable Costs | G60: 16.73700864 | H60: =IF(E10=0,"n/a",(YVarExp-(YTotExp+YTotRet-J10))/E10) -> n/a | I60: CWT
Q61: Enterprise | R61: Enterprise
A62: FIXED COSTS | D62: Quantity | E62: Quantity | F62: Units | G62: $/Unit | H62: $/Unit | I62: Total | J62: Total | K62: Share | L62: Share | M62: Landlord | N62: Landlord | O62: Tenant | P62: Tenant | Q62: Total | R62: Total
B63: Machinery Depreciation
C64: Pickup/General Use Equipment | D64: 1 | F64: Acre | G64: 2.6105625 | I64: 2.6105625 | J64: =E64*H64 -> 0 | K64: 0 | M64: 0 | N64: =J64*L64 -> 0 | O64: 2.6105625 | P64: =+J64-N64 -> 0 | Q64: 417.69 | R64: =+J64*E$7 -> 0
C65: Tractors/Self-Propelled | D65: 1 | F65: Acre | G65: 3.681083606 | I65: 3.681083606 | J65: 0 | K65: 0 | M65: 0 | N65: =J65*L65 -> 0 | O65: 3.681083606 | P65: 0 | Q65: 588.973377 | R65: 0
C66: Implements | D66: 1 | F66: Acre | G66: 13.28402909 | I66: 13.28402909 | J66: 0 | K66: 0 | M66: 0 | N66: =J66*L66 -> 0 | O66: 13.28402909 | P66: 0 | Q66: 2125.444655 | R66: 0
B67: Equipment Investment
C68: Pickup/General Use Equipment | D68: 18.0253125 | F68: Dollars | G68: 0.0625 | I68: 1.126582031 | J68: =E68*H68 -> 0 | K68: 0 | M68: 0 | N68: =J68*L68 -> 0 | O68: 1.126582031 | P68: =+J68-N68 -> 0 | Q68: 180.253125 | R68: =+J68*E$7 -> 0
C69: Tractors/Self-Propelled | D69: 28.67682874 | F69: Dollars | G69: 0.0625 | I69: 1.792301796 | J69: 0 | K69: 0 | M69: 0 | N69: =J69*L69 -> 0 | O69: 1.792301796 | P69: 0 | Q69: 286.7682874 | R69: 0
C70: Implements | D70: 56.82612446 | F70: Dollars | G70: 0.0625 | I70: 3.551632779 | J70: 0 | K70: 0 | M70: 0 | N70: =J70*L70 -> 0 | O70: 3.551632779 | P70: 0 | Q70: 568.2612446 | R70: 0
B71: Salaried Labor | D71: 1 | F71: Acre | G71: 0 | I71: 0 | J71: 0 | K71: 0 | M71: 0 | N71: =J71*L71 -> 0 | O71: 0 | P71: =+J71-N71 -> 0 | Q71: 0 | R71: =+J71*E$7 -> 0
B72: Management Fee, Owner/Operator Labor | D72: 1 | F72: Acre | G72: 0 | I72: 0 | J72: 0 | K72: 0 | M72: 0 | N72: 0 | O72: 0 | P72: 0 | Q72: 0 | R72: 0
B73: Allocated Establishment Cost | D73: 1 | F73: Acre | G73: 0 | I73: 0 | J73: 0 | K73: 0 | M73: 0 | N73: 0 | O73: 0 | P73: 0 | Q73: 0 | R73: 0
B74: Cash Rent - Sunflowers Dryland | D74: 1 | F74: Acre | G74: 30 | I74: 30 | J74: 0 | K74: 0 | M74: 0 | N74: 0 | O74: 30 | P74: 0 | Q74: 4800 | R74: 0
B75: Property Taxes | D75: 1 | F75: Acre | G75: 0 | I75: 0 | J75: 0 | K75: 0 | M75: 0 | N75: 0 | O75: 0 | P75: 0 | Q75: 0 | R75: 0
B76: Whole Farm Insurance | D76: 1 | F76: Acre | G76: 0 | I76: 0 | J76: 0 | K76: 0 | M76: 0 | N76: 0 | O76: 0 | P76: 0 | Q76: 0 | R76: 0
D77: 1 | G77: 0 | I77: 0 | J77: 0 | K77: 0 | M77: 0 | N77: 0 | O77: 0 | P77: 0 | Q77: 0 | R77: 0
D78: 1 | G78: 0 | I78: 0 | J78: =E78*H78 -> 0 | K78: 0 | M78: 0 | N78: 0 | O78: 0 | P78: 0 | Q78: 0 | R78: 0
A79: Total Fixed Costs | I79: 56.04619181 | J79: =+SUM(J64:J78) -> 0 | M79: 0 | N79: =+SUM(N64:N78) -> 0 | O79: 56.04619181 | P79: =+SUM(P64:P78) -> 0 | Q79: 8967.390689 | R79: =+SUM(R64:R78) -> 0
A80: Total Specified Costs | I80: 223.4162782 | J80: =+J58+J79 -> 0 | M80: 0 | N80: =+N58+N79 -> 0 | O80: 223.4162782 | P80: =+P58+P79 -> 0 | Q80: 35746.60451 | R80: =+R58+R79 -> 0
A82: Returns Above Specified Costs | I82: -44.51627819 | J82: =+J13-J80 -> 0 | M82: 0 | N82: =+N13-N80 -> 0 | O82: -44.51627819 | P82: =+P13-P80 -> 0 | Q82: -7122.604511 | R82: =+R13-R80 -> 0
A84: Breakeven Price to Cover Total Costs | G84: 22.34162782 | H84: =IF(E10=0,"n/a",(YTotExp-(YTotExp+YTotRet-J10))/E10) -> n/a | I84: CWT
D86: Example Breakeven Prices
B87: Example | C87: Example | D87: To Cover | G87: To Cover
B88: Yield | C88: Yield | D88: Variable | G88: Total
B89: Percent | C89: CWT | D89: Costs | G89: Costs
B90: 0.75 | C90: 7.5 | D90: 22.31601152 | G90: 29.78883709
B91: 0.9 | C91: 9 | D91: 18.59667627 | G91: 24.82403091
B92: 1 | C92: 10 | D92: 16.73700864 | G92: 22.34162782
B93: 1.1 | C93: 11 | D93: 15.2154624 | G93: 20.31057074
B94: 1.25 | C94: 12.5 | D94: 13.38960691 | G94: 17.87330226
A96: Developed by Justin Benavidez, Assistant Professor, Texas A&M AgriLife Extension, 806-677-5600.
A98: Information presented is prepared solely as a general guide and not intended to recognize or predict the costs and returns from any one operation. Brand names are mentioned only as examples and imply no endorsement.

Sheet SunflowersOilseed
A1: Projections for Planning Purposes Only -- Not to be Used without Updating
A2: 2021 Estimated Costs and Returns per Acre
A3: Oilseed Sunflowers, Sprinkler Irrigated, Strip Tillage
A4: Enter your name for this budget in the cell above.
A5: Enter Your Values in the cells highlighed in MAROON.
E6: Your Acres | R6: Your
C7: Crop Acres | D7: 122 | L7: Your | Q7: Enterprise | R7: Enterprise
E8: Your | H8: Your | I8: Cash | J8: Your | K8: Landlord | L8: Landlord | N8: Your | P8: Your | Q8: Total | R8: Total
A9: REVENUE | D9: Quantity | E9: Quantity | F9: Units | G9: $/Unit | H9: $/Unit | I9: Total | J9: Total | K9: Share | L9: Share | M9: Landlord | N9: Landlord | O9: Tenant | P9: Tenant | Q9: (122 acres) | R9: ="(" & E7 & " acres)" -> ( acres)
B10: Oilseed Sunflowers | D10: 20 | F10: CWT | G10: 17.89 | I10: 357.8 | J10: =E10*H10 -> 0 | K10: 0 | M10: 0 | N10: =J10*L10 -> 0 | O10: 357.8 | P10: =+J10-N10 -> 0 | Q10: 43651.6 | R10: =+J10*E$7 -> 0
D11: 0 | G11: 0 | I11: 0 | J11: 0 | K11: 0 | M11: 0 | N11: 0 | O11: 0 | P11: =+J11-N11 -> 0 | Q11: 0 | R11: 0
D12: 0 | G12: 0 | I12: 0 | J12: 0 | K12: 0 | M12: 0 | N12: 0 | O12: 0 | P12: 0 | Q12: 0 | R12: 0
A13: Total Revenue | I13: 357.8 | J13: =SUM(J10:J12) -> 0 | M13: 0 | N13: =SUM(N10:N12) -> 0 | O13: 357.8 | P13: =SUM(P10:P12) -> 0 | Q13: 43651.6 | R13: =SUM(R10:R12) -> 0
Q14: Enterprise | R14: Enterprise
A15: VARIABLE COSTS | D15: Quantity | E15: Quantity | F15: Units | G15: $/Unit | H15: $/Unit | I15: Total | J15: Total | K15: Share | L15: Share | M15: Landlord | N15: Landlord | O15: Tenant | P15: Tenant | Q15: Total | R15: Total
A16: Production Costs
B17: Herbicide
C18: Glyphosphate | D18: 3 | F18: Acre | G18: 4.872701613 | I18: 14.61810484 | J18: =E18*H18 -> 0 | K18: 0 | M18: 0 | N18: =J18*L18 -> 0 | O18: 14.61810484 | P18: =+J18-N18 -> 0 | Q18: 1783.40879 | R18: =+J18*E$7 -> 0
C19: 2-4D | D19: 1 | F19: Acre | G19: 2.599475806 | I19: 2.599475806 | J19: 0 | K19: 0 | M19: 0 | N19: 0 | O19: 2.599475806 | P19: 0 | Q19: 317.1360484 | R19: 0
C20: Prowel H2O | D20: 1 | F20: Acre | G20: 14.40762097 | I20: 14.40762097 | J20: 0 | K20: 0 | M20: 0 | N20: 0 | O20: 14.40762097 | P20: 0 | Q20: 1757.729758 | R20: 0
B21: Seed
C22: Seed - Oilseed Sunflower | D22: 1 | F22: Acre | G22: 30.63079555 | I22: 30.63079555 | J22: 0 | K22: 0 | M22: 0 | N22: 0 | O22: 30.63079555 | P22: 0 | Q22: 3736.957057 | R22: 0
B23: Fertilizer
C24: Fertilizer (N) - Liquid | D24: 70 | F24: Pound | G24: 0.5 | I24: 35 | J24: 0 | K24: 0 | M24: 0 | N24: 0 | O24: 35 | P24: 0 | Q24: 4270 | R24: 0
C25: Fertilizer (P) - Liquid | D25: 25 | F25: Pound | G25: 0.49 | I25: 12.25 | J25: 0 | K25: 0 | M25: 0 | N25: 0 | O25: 12.25 | P25: 0 | Q25: 1494.5 | R25: 0
B26: Custom
C27: Herbicide Application | D27: 3 | F27: Acre | G27: 5.350467785 | I27: 16.05140335 | J27: 0 | K27: 0 | M27: 0 | N27: 0 | O27: 16.05140335 | P27: 0 | Q27: 1958.271209 | R27: 0
C28: Pesticide Application | D28: 1 | F28: Acre | G28: 5.350467785 | I28: 5.350467785 | J28: 0 | K28: 0 | M28: 0 | N28: 0 | O28: 5.350467785 | P28: 0 | Q28: 652.7570697 | R28: 0
C29: Custom Harvest - Sorghum Dryland | D29: 1 | F29: Acre | G29: 26.76278906 | I29: 26.76278906 | J29: 0 | K29: 0 | M29: 0 | N29: 0 | O29: 26.76278906 | P29: 0 | Q29: 3265.060265 | R29: 0
C30: Custom Haul - Sunflowers | D30: 20 | F30: CWT | G30: 0.48070609 | I30: 9.614121801 | J30: 0 | K30: 0 | M30: 0 | N30: 0 | O30: 9.614121801 | P30: 0 | Q30: 1172.92286 | R30: 0
B31: Miscellaneous
C32: Crop Insurance Sunflowers - Irrigated | D32: 1 | F32: Acre | G32: 21 | I32: 21 | J32: 0 | K32: 0 | M32: 0 | N32: 0 | O32: 21 | P32: 0 | Q32: 2562 | R32: 0
B33: Insecticide
C34: Ammo | D34: 1 | F34: Acre | G34: 3.547039275 | I34: 3.547039275 | J34: 0 | K34: 0 | M34: 0 | N34: 0 | O34: 3.547039275 | P34: 0 | Q34: 432.7387915 | R34: 0
C35: Seed Insecticide - Sunflower Irrigated | D35: 1 | F35: Acre | G35: 4.871178248 | I35: 4.871178248 | J35: 0 | K35: 0 | M35: 0 | N35: 0 | O35: 4.871178248 | P35: 0 | Q35: 594.2837462 | R35: 0
D36: 0 | G36: 0 | I36: 0 | J36: 0 | K36: 0 | M36: 0 | N36: 0 | O36: 0 | P36: 0 | Q36: 0 | R36: 0
D37: 0 | G37: 0 | I37: 0 | J37: 0 | K37: 0 | M37: 0 | N37: 0 | O37: 0 | P37: 0 | Q37: 0 | R37: 0
D38: 0 | G38: 0 | I38: 0 | J38: =E38*H38 -> 0 | K38: 0 | M38: 0 | N38: =J38*L38 -> 0 | O38: 0 | P38: =+J38-N38 -> 0 | Q38: 0 | R38: =+J38*E$7 -> 0
B39: Irrigation
C40: Energy Cost | D40: 7 | F40: AcreInch | G40: 3.35 | I40: 23.45 | J40: =E40*H40 -> 0 | K40: 0 | M40: 0 | N40: =J40*L40 -> 0 | O40: 23.45 | P40: =+J40-N40 -> 0 | Q40: 2860.9 | R40: =+J40*E$7 -> 0
C41: Irrigation Labor | D41: 0.448 | F41: Hour | G41: 13.65 | I41: 6.1152 | J41: 0 | K41: 0 | M41: 0 | N41: 0 | O41: 6.1152 | P41: 0 | Q41: 746.0544 | R41: 0
B42: Machinery Labor
C43: Tractors/Self-Propelled | D43: 0.21 | F43: Hour | G43: 13.43 | I43: 2.8203 | J43: =E43*H43 -> 0 | K43: 0 | M43: 0 | N43: =J43*L43 -> 0 | O43: 2.8203 | P43: =+J43-N43 -> 0 | Q43: 344.0766 | R43: =+J43*E$7 -> 0
C44: Other Labor | D44: 0.25 | F44: Hour | G44: 13.43 | I44: 3.3575 | J44: =E44*H44 -> 0 | K44: 0 | M44: 0 | N44: =J44*L44 -> 0 | O44: 3.3575 | P44: =+J44-N44 -> 0 | Q44: 409.615 | R44: =+J44*E$7 -> 0
B46: Diesel Fuel
C47: Pickup/General Use Equipment | D47: 1 | F47: Acre | G47: 0 | I47: 0 | J47: =E47*H47 -> 0 | K47: 0 | M47: 0 | N47: =J47*L47 -> 0 | O47: 0 | P47: =+J47-N47 -> 0 | Q47: 0 | R47: =+J47*E$7 -> 0
C48: Tractors/Self-Propelled | D48: 1.57 | F48: Gallon | G48: 2.1902 | I48: 3.438614 | J48: =E48*H48 -> 0 | K48: 0 | M48: 0 | N48: =J48*L48 -> 0 | O48: 3.438614 | P48: =+J48-N48 -> 0 | Q48: 419.510908 | R48: =+J48*E$7 -> 0
B50: Gasoline
C51: Pickup/General Use Equipment | D51: 1 | F51: Acre | G51: 11.44180328 | I51: 11.44180328 | J51: =E51*H51 -> 0 | K51: 0 | M51: 0 | N51: =J51*L51 -> 0 | O51: 11.44180328 | P51: =+J51-N51 -> 0 | Q51: 1395.9 | R51: =+J51*E$7 -> 0
C52: Tractors/Self-Propelled | D52: 0 | F52: Gallon | G52: 2.538 | I52: 0 | J52: =E52*H52 -> 0 | K52: 0 | M52: 0 | N52: =J52*L52 -> 0 | O52: 0 | P52: =+J52-N52 -> 0 | Q52: 0 | R52: =+J52*E$7 -> 0
B54: Repairs & Maintenance
C55: Pickup/General Use Equipment | D55: 1 | F55: Acre | G55: 5.518032787 | I55: 5.518032787 | J55: =E55*H55 -> 0 | K55: 0 | M55: 0 | N55: =J55*L55 -> 0 | O55: 5.518032787 | P55: =+J55-N55 -> 0 | Q55: 673.2 | R55: =+J55*E$7 -> 0
C56: Irrigation Equipment | D56: 1 | F56: Acre | G56: 26.25 | I56: 26.25 | J56: 0 | K56: 0 | M56: 0 | N56: 0 | O56: 26.25 | P56: 0 | Q56: 3202.5 | R56: 0
C57: Tractors/Self-Propelled | D57: 1 | F57: Acre | G57: 3.562338974 | I57: 3.562338974 | J57: 0 | K57: 0 | M57: 0 | N57: 0 | O57: 3.562338974 | P57: 0 | Q57: 434.6053548 | R57: 0
C58: Implements | D58: 1 | F58: Acre | G58: 10.33202263 | I58: 10.33202263 | J58: 0 | K58: 0 | M58: 0 | N58: 0 | O58: 10.33202263 | P58: 0 | Q58: 1260.506761 | R58: 0
I59: 0 | J59: 0 | K59: 0 | M59: 0 | N59: 0 | O59: 0 | P59: 0 | Q59: 0 | R59: 0
I60: 0 | J60: 0 | K60: 0 | M60: 0 | N60: 0 | O60: 0 | P60: 0 | Q60: 0 | R60: 0
B61: Interest on Credit Line | G61: 0.0625 | I61: 8.040794229 | J61: =+SUM(J17:J60)/2*H61 -> 0 | M61: 0 | N61: =+SUM(N17:N60)/2*L61 -> 0 | O61: 8.040794229 | P61: =+SUM(P17:P60)/2*L61 -> 0 | Q61: 980.9768959 | R61: =+J61*E$7 -> 0
A62: Total Variable Costs | I62: 301.0296026 | J62: =SUM(J18:J61) -> 0 | M62: 0 | N62: =SUM(N18:N61) -> 0 | O62: 301.0296026 | P62: =SUM(P18:P61) -> 0 | Q62: 36725.61151 | R62: =SUM(R18:R61) -> 0
A63: Planned Returns Above Variable Costs: | I63: 56.77039742 | J63: =+J13-J62 -> 0 | M63: 0 | N63: =+N13-N62 -> 0 | O63: 56.77039742 | P63: =+P13-P62 -> 0 | Q63: 6925.988485 | R63: =+R13-R62 -> 0
B64: Breakeven Price to Cover Variable Costs | G64: 15.05148013 | H64: =IF(E10=0,"n/a",(YVarExp-(YTotExp+YTotRet-J10))/E10) -> n/a | I64: CWT
Q65: Enterprise | R65: Enterprise
A66: FIXED COSTS | D66: Quantity | E66: Quantity | F66: Units | G66: $/Unit | H66: $/Unit | I66: Total | J66: Total | K66: Share | L66: Share | M66: Landlord | N66: Landlord | O66: Tenant | P66: Tenant | Q66: Total | R66: Total
B67: Machinery Depreciation
C68: Pickup/General Use Equipment | D68: 1 | F68: Acre | G68: 5.793934426 | I68: 5.793934426 | J68: =E68*H68 -> 0 | K68: 0 | M68: 0 | N68: =J68*L68 -> 0 | O68: 5.793934426 | P68: =+J68-N68 -> 0 | Q68: 706.86 | R68: =+J68*E$7 -> 0
C69: Irrigation Equipment | D69: 1 | F69: Acre | G69: 28.80122951 | I69: 28.80122951 | J69: 0 | K69: 0 | M69: 0 | N69: =J69*L69 -> 0 | O69: 28.80122951 | P69: 0 | Q69: 3513.75 | R69: 0
C70: Tractors/Self-Propelled | D70: 1 | F70: Acre | G70: 3.681083606 | I70: 3.681083606 | J70: 0 | K70: 0 | M70: 0 | N70: =J70*L70 -> 0 | O70: 3.681083606 | P70: 0 | Q70: 449.0922 | R70: 0
C71: Implements | D71: 1 | F71: Acre | G71: 13.28402909 | I71: 13.28402909 | J71: 0 | K71: 0 | M71: 0 | N71: =J71*L71 -> 0 | O71: 13.28402909 | P71: 0 | Q71: 1620.651549 | R71: 0
B72: Equipment Investment
C73: Pickup/General Use Equipment | D73: 40.0057377 | F73: Dollars | G73: 0.0625 | I73: 2.500358607 | J73: =E73*H73 -> 0 | K73: 0 | M73: 0 | N73: =J73*L73 -> 0 | O73: 2.500358607 | P73: =+J73-N73 -> 0 | Q73: 305.04375 | R73: =+J73*E$7 -> 0
C74: Irrigation Equipment | D74: 435.7991803 | F74: Dollars | G74: 0.0625 | I74: 27.23744877 | J74: 0 | K74: 0 | M74: 0 | N74: =J74*L74 -> 0 | O74: 27.23744877 | P74: 0 | Q74: 3322.96875 | R74: 0
C75: Tractors/Self-Propelled | D75: 28.67682874 | F75: Dollars | G75: 0.0625 | I75: 1.792301796 | J75: 0 | K75: 0 | M75: 0 | N75: =J75*L75 -> 0 | O75: 1.792301796 | P75: 0 | Q75: 218.6608191 | R75: 0
C76: Implements | D76: 56.82612446 | F76: Dollars | G76: 0.0625 | I76: 3.551632779 | J76: 0 | K76: 0 | M76: 0 | N76: =J76*L76 -> 0 | O76: 3.551632779 | P76: 0 | Q76: 433.299199 | R76: 0
B77: Salaried Labor | D77: 1 | F77: Acre | G77: 0 | I77: 0 | J77: 0 | K77: 0 | M77: 0 | N77: =J77*L77 -> 0 | O77: 0 | P77: =+J77-N77 -> 0 | Q77: 0 | R77: =+J77*E$7 -> 0
B78: Management Fee, Owner/Operator Labor | D78: 1 | F78: Acre | G78: 0 | I78: 0 | J78: 0 | K78: 0 | M78: 0 | N78: 0 | O78: 0 | P78: 0 | Q78: 0 | R78: 0
B79: Allocated Establishment Cost | D79: 1 | F79: Acre | G79: 0 | I79: 0 | J79: 0 | K79: 0 | M79: 0 | N79: 0 | O79: 0 | P79: 0 | Q79: 0 | R79: 0
B80: Cash Rent - Sunflowers Irrigated | D80: 1 | F80: Acre | G80: 76 | I80: 76 | J80: 0 | K80: 0 | M80: 0 | N80: 0 | O80: 76 | P80: 0 | Q80: 9272 | R80: 0
B81: Property Taxes | D81: 1 | F81: Acre | G81: 0 | I81: 0 | J81: 0 | K81: 0 | M81: 0 | N81: 0 | O81: 0 | P81: 0 | Q81: 0 | R81: 0
B82: Whole Farm Insurance | D82: 1 | F82: Acre | G82: 0 | I82: 0 | J82: 0 | K82: 0 | M82: 0 | N82: 0 | O82: 0 | P82: 0 | Q82: 0 | R82: 0
D83: 1 | G83: 0 | I83: 0 | J83: 0 | K83: 0 | M83: 0 | N83: 0 | O83: 0 | P83: 0 | Q83: 0 | R83: 0
D84: 1 | G84: 0 | I84: 0 | J84: =E84*H84 -> 0 | K84: 0 | M84: 0 | N84: 0 | O84: 0 | P84: 0 | Q84: 0 | R84: 0
A85: Total Fixed Costs | I85: 162.6420186 | J85: =+SUM(J68:J84) -> 0 | M85: 0 | N85: =+SUM(N68:N84) -> 0 | O85: 162.6420186 | P85: =+SUM(P68:P84) -> 0 | Q85: 19842.32627 | R85: =+SUM(R68:R84) -> 0
A86: Total Specified Costs | I86: 463.6716212 | J86: =+J62+J85 -> 0 | M86: 0 | N86: =+N62+N85 -> 0 | O86: 463.6716212 | P86: =+P62+P85 -> 0 | Q86: 56567.93778 | R86: =+R62+R85 -> 0
A88: Returns Above Specified Costs | I88: -105.8716212 | J88: =+J13-J86 -> 0 | M88: 0 | N88: =+N13-N86 -> 0 | O88: -105.8716212 | P88: =+P13-P86 -> 0 | Q88: -12916.33778 | R88: =+R13-R86 -> 0
A90: Breakeven Price to Cover Total Costs | G90: 23.18358106 | H90: =IF(E10=0,"n/a",(YTotExp-(YTotExp+YTotRet-J10))/E10) -> n/a | I90: CWT
D92: Example Breakeven Prices
B93: Example | C93: Example | D93: To Cover | G93: To Cover
B94: Yield | C94: Yield | D94: Variable | G94: Total
B95: Percent | C95: CWT | D95: Costs | G95: Costs
B96: 0.75 | C96: 15 | D96: 20.06864017 | G96: 30.91144141
B97: 0.9 | C97: 18 | D97: 16.72386681 | G97: 25.75953451
B98: 1 | C98: 20 | D98: 15.05148013 | G98: 23.18358106
B99: 1.1 | C99: 22 | D99: 13.68316375 | G99: 21.07598278
B100: 1.25 | C100: 25 | D100: 12.0411841 | G100: 18.54686485
A102: Developed by Justin Benavidez, Assistant Professor, Texas A&M AgriLife Extension, 806-677-5600.
A104: Information presented is prepared solely as a general guide and not intended to recognize or predict the costs and returns from any one operation. Brand names are mentioned only as examples and imply no endorsement.

Sheet SunflowersConfectionary
A1: Projections for Planning Purposes Only -- Not to be Used without Updating
A2: 2021 Estimated Costs and Returns per Acre
A3: Confectionary Sunflowers, Sprinkler Irrigated, Strip Tillage
A4: Enter your name for this budget in the cell above.
A5: Enter Your Values in the cells highlighed in MAROON.
E6: Your Acres | R6: Your
C7: Crop Acres | D7: 122 | L7: Your | Q7: Enterprise | R7: Enterprise
E8: Your | H8: Your | I8: Cash | J8: Your | K8: Landlord | L8: Landlord | N8: Your | P8: Your | Q8: Total | R8: Total
A9: REVENUE | D9: Quantity | E9: Quantity | F9: Units | G9: $/Unit | H9: $/Unit | I9: Total | J9: Total | K9: Share | L9: Share | M9: Landlord | N9: Landlord | O9: Tenant | P9: Tenant | Q9: (122 acres) | R9: ="(" & E7 & " acres)" -> ( acres)
B10: Confectionary Sunflowers | D10: 18 | F10: CWT | G10: 22.89 | I10: 412.02 | J10: =E10*H10 -> 0 | K10: 0 | M10: 0 | N10: =J10*L10 -> 0 | O10: 412.02 | P10: =+J10-N10 -> 0 | Q10: 50266.44 | R10: =+J10*E$7 -> 0
D11: 0 | G11: 0 | I11: 0 | J11: 0 | K11: 0 | M11: 0 | N11: 0 | O11: 0 | P11: =+J11-N11 -> 0 | Q11: 0 | R11: 0
D12: 0 | G12: 0 | I12: 0 | J12: 0 | K12: 0 | M12: 0 | N12: 0 | O12: 0 | P12: 0 | Q12: 0 | R12: 0
A13: Total Revenue | I13: 412.02 | J13: =SUM(J10:J12) -> 0 | M13: 0 | N13: =SUM(N10:N12) -> 0 | O13: 412.02 | P13: =SUM(P10:P12) -> 0 | Q13: 50266.44 | R13: =SUM(R10:R12) -> 0
Q14: Enterprise | R14: Enterprise
A15: VARIABLE COSTS | D15: Quantity | E15: Quantity | F15: Units | G15: $/Unit | H15: $/Unit | I15: Total | J15: Total | K15: Share | L15: Share | M15: Landlord | N15: Landlord | O15: Tenant | P15: Tenant | Q15: Total | R15: Total
A16: Production Costs
B17: Herbicide
C18: Glyphosphate | D18: 3 | F18: Acre | G18: 4.872701613 | I18: 14.61810484 | J18: =E18*H18 -> 0 | K18: 0 | M18: 0 | N18: =J18*L18 -> 0 | O18: 14.61810484 | P18: =+J18-N18 -> 0 | Q18: 1783.40879 | R18: =+J18*E$7 -> 0
C19: 2-4D | D19: 1 | F19: Acre | G19: 2.599475806 | I19: 2.599475806 | J19: 0 | K19: 0 | M19: 0 | N19: 0 | O19: 2.599475806 | P19: 0 | Q19: 317.1360484 | R19: 0
C20: Prowel H2O | D20: 1 | F20: Acre | G20: 14.40762097 | I20: 14.40762097 | J20: 0 | K20: 0 | M20: 0 | N20: 0 | O20: 14.40762097 | P20: 0 | Q20: 1757.729758 | R20: 0
B21: Seed
C22: Seed - Confectionary Sunflower | D22: 1 | F22: Acre | G22: 32.19110351 | I22: 32.19110351 | J22: 0 | K22: 0 | M22: 0 | N22: 0 | O22: 32.19110351 | P22: 0 | Q22: 3927.314628 | R22: 0
B23: Fertilizer
C24: Fertilizer (N) - Liquid | D24: 70 | F24: Pound | G24: 0.5 | I24: 35 | J24: 0 | K24: 0 | M24: 0 | N24: 0 | O24: 35 | P24: 0 | Q24: 4270 | R24: 0
C25: Fertilizer (P) - Liquid | D25: 25 | F25: Pound | G25: 0.49 | I25: 12.25 | J25: 0 | K25: 0 | M25: 0 | N25: 0 | O25: 12.25 | P25: 0 | Q25: 1494.5 | R25: 0
B26: Custom
C27: Herbicide Application | D27: 3 | F27: Acre | G27: 5.350467785 | I27: 16.05140335 | J27: 0 | K27: 0 | M27: 0 | N27: 0 | O27: 16.05140335 | P27: 0 | Q27: 1958.271209 | R27: 0
C28: Pesticide Application | D28: 1 | F28: Acre | G28: 5.350467785 | I28: 5.350467785 | J28: 0 | K28: 0 | M28: 0 | N28: 0 | O28: 5.350467785 | P28: 0 | Q28: 652.7570697 | R28: 0
C29: Custom Harvest - Sorghum Dryland | D29: 1 | F29: Acre | G29: 26.76278906 | I29: 26.76278906 | J29: 0 | K29: 0 | M29: 0 | N29: 0 | O29: 26.76278906 | P29: 0 | Q29: 3265.060265 | R29: 0
C30: Custom Haul - Sunflowers | D30: 18 | F30: CWT | G30: 0.48070609 | I30: 8.65270962 | J30: 0 | K30: 0 | M30: 0 | N30: 0 | O30: 8.65270962 | P30: 0 | Q30: 1055.630574 | R30: 0
B31: Miscellaneous
C32: Crop Insurance Sunflowers - Irrigated | D32: 1 | F32: Acre | G32: 21 | I32: 21 | J32: 0 | K32: 0 | M32: 0 | N32: 0 | O32: 21 | P32: 0 | Q32: 2562 | R32: 0
B33: Insecticide
C34: Ammo | D34: 1 | F34: Acre | G34: 3.547039275 | I34: 3.547039275 | J34: 0 | K34: 0 | M34: 0 | N34: 0 | O34: 3.547039275 | P34: 0 | Q34: 432.7387915 | R34: 0
C35: Seed Insecticide - Sunflower Confection | D35: 1 | F35: Acre | G35: 5.080241692 | I35: 5.080241692 | J35: 0 | K35: 0 | M35: 0 | N35: 0 | O35: 5.080241692 | P35: 0 | Q35: 619.7894864 | R35: 0
D36: 0 | G36: 0 | I36: 0 | J36: 0 | K36: 0 | M36: 0 | N36: 0 | O36: 0 | P36: 0 | Q36: 0 | R36: 0
D37: 0 | G37: 0 | I37: 0 | J37: 0 | K37: 0 | M37: 0 | N37: 0 | O37: 0 | P37: 0 | Q37: 0 | R37: 0
D38: 0 | G38: 0 | I38: 0 | J38: =E38*H38 -> 0 | K38: 0 | M38: 0 | N38: =J38*L38 -> 0 | O38: 0 | P38: =+J38-N38 -> 0 | Q38: 0 | R38: =+J38*E$7 -> 0
B39: Irrigation
C40: Energy Cost | D40: 7 | F40: AcreInch | G40: 3.35 | I40: 23.45 | J40: =E40*H40 -> 0 | K40: 0 | M40: 0 | N40: =J40*L40 -> 0 | O40: 23.45 | P40: =+J40-N40 -> 0 | Q40: 2860.9 | R40: =+J40*E$7 -> 0
C41: Irrigation Labor | D41: 0.448 | F41: Hour | G41: 13.65 | I41: 6.1152 | J41: 0 | K41: 0 | M41: 0 | N41: 0 | O41: 6.1152 | P41: 0 | Q41: 746.0544 | R41: 0
B42: Machinery Labor
C43: Tractors/Self-Propelled | D43: 0.21 | F43: Hour | G43: 13.43 | I43: 2.8203 | J43: =E43*H43 -> 0 | K43: 0 | M43: 0 | N43: =J43*L43 -> 0 | O43: 2.8203 | P43: =+J43-N43 -> 0 | Q43: 344.0766 | R43: =+J43*E$7 -> 0
C44: Other Labor | D44: 0.25 | F44: Hour | G44: 13.43 | I44: 3.3575 | J44: =E44*H44 -> 0 | K44: 0 | M44: 0 | N44: =J44*L44 -> 0 | O44: 3.3575 | P44: =+J44-N44 -> 0 | Q44: 409.615 | R44: =+J44*E$7 -> 0
B46: Diesel Fuel
C47: Pickup/General Use Equipment | D47: 1 | F47: Acre | G47: 0 | I47: 0 | J47: =E47*H47 -> 0 | K47: 0 | M47: 0 | N47: =J47*L47 -> 0 | O47: 0 | P47: =+J47-N47 -> 0 | Q47: 0 | R47: =+J47*E$7 -> 0
C48: Tractors/Self-Propelled | D48: 1.57 | F48: Gallon | G48: 2.1902 | I48: 3.438614 | J48: =E48*H48 -> 0 | K48: 0 | M48: 0 | N48: =J48*L48 -> 0 | O48: 3.438614 | P48: =+J48-N48 -> 0 | Q48: 419.510908 | R48: =+J48*E$7 -> 0
B50: Gasoline
C51: Pickup/General Use Equipment | D51: 1 | F51: Acre | G51: 11.44180328 | I51: 11.44180328 | J51: =E51*H51 -> 0 | K51: 0 | M51: 0 | N51: =J51*L51 -> 0 | O51: 11.44180328 | P51: =+J51-N51 -> 0 | Q51: 1395.9 | R51: =+J51*E$7 -> 0
C52: Tractors/Self-Propelled | D52: 0 | F52: Gallon | G52: 2.538 | I52: 0 | J52: =E52*H52 -> 0 | K52: 0 | M52: 0 | N52: =J52*L52 -> 0 | O52: 0 | P52: =+J52-N52 -> 0 | Q52: 0 | R52: =+J52*E$7 -> 0
B54: Repairs & Maintenance
C55: Pickup/General Use Equipment | D55: 1 | F55: Acre | G55: 5.518032787 | I55: 5.518032787 | J55: =E55*H55 -> 0 | K55: 0 | M55: 0 | N55: =J55*L55 -> 0 | O55: 5.518032787 | P55: =+J55-N55 -> 0 | Q55: 673.2 | R55: =+J55*E$7 -> 0
C56: Irrigation Equipment | D56: 1 | F56: Acre | G56: 26.25 | I56: 26.25 | J56: 0 | K56: 0 | M56: 0 | N56: 0 | O56: 26.25 | P56: 0 | Q56: 3202.5 | R56: 0
C57: Tractors/Self-Propelled | D57: 1 | F57: Acre | G57: 3.562338974 | I57: 3.562338974 | J57: 0 | K57: 0 | M57: 0 | N57: 0 | O57: 3.562338974 | P57: 0 | Q57: 434.6053548 | R57: 0
C58: Implements | D58: 1 | F58: Acre | G58: 10.33202263 | I58: 10.33202263 | J58: 0 | K58: 0 | M58: 0 | N58: 0 | O58: 10.33202263 | P58: 0 | Q58: 1260.506761 | R58: 0
I59: 0 | J59: 0 | K59: 0 | M59: 0 | N59: 0 | O59: 0 | P59: 0 | Q59: 0 | R59: 0
I60: 0 | J60: 0 | K60: 0 | M60: 0 | N60: 0 | O60: 0 | P60: 0 | Q60: 0 | R60: 0
B61: Interest on Credit Line | G61: 0.0625 | I61: 8.098927761 | J61: =+SUM(J17:J60)/2*H61 -> 0 | M61: 0 | N61: =+SUM(N17:N60)/2*L61 -> 0 | O61: 8.098927761 | P61: =+SUM(P17:P60)/2*L61 -> 0 | Q61: 988.0691868 | R61: =+J61*E$7 -> 0
A62: Total Variable Costs | I62: 301.8956953 | J62: =SUM(J18:J61) -> 0 | M62: 0 | N62: =SUM(N18:N61) -> 0 | O62: 301.8956953 | P62: =SUM(P18:P61) -> 0 | Q62: 36831.27483 | R62: =SUM(R18:R61) -> 0
A63: Planned Returns Above Variable Costs: | I63: 110.1243047 | J63: =+J13-J62 -> 0 | M63: 0 | N63: =+N13-N62 -> 0 | O63: 110.1243047 | P63: =+P13-P62 -> 0 | Q63: 13435.16517 | R63: =+R13-R62 -> 0
B64: Breakeven Price to Cover Variable Costs | G64: 16.77198307 | H64: =IF(E10=0,"n/a",(YVarExp-(YTotExp+YTotRet-J10))/E10) -> n/a | I64: CWT
Q65: Enterprise | R65: Enterprise
A66: FIXED COSTS | D66: Quantity | E66: Quantity | F66: Units | G66: $/Unit | H66: $/Unit | I66: Total | J66: Total | K66: Share | L66: Share | M66: Landlord | N66: Landlord | O66: Tenant | P66: Tenant | Q66: Total | R66: Total
B67: Machinery Depreciation
C68: Pickup/General Use Equipment | D68: 1 | F68: Acre | G68: 5.793934426 | I68: 5.793934426 | J68: =E68*H68 -> 0 | K68: 0 | M68: 0 | N68: =J68*L68 -> 0 | O68: 5.793934426 | P68: =+J68-N68 -> 0 | Q68: 706.86 | R68: =+J68*E$7 -> 0
C69: Irrigation Equipment | D69: 1 | F69: Acre | G69: 28.80122951 | I69: 28.80122951 | J69: 0 | K69: 0 | M69: 0 | N69: =J69*L69 -> 0 | O69: 28.80122951 | P69: 0 | Q69: 3513.75 | R69: 0
C70: Tractors/Self-Propelled | D70: 1 | F70: Acre | G70: 3.681083606 | I70: 3.681083606 | J70: 0 | K70: 0 | M70: 0 | N70: =J70*L70 -> 0 | O70: 3.681083606 | P70: 0 | Q70: 449.0922 | R70: 0
C71: Implements | D71: 1 | F71: Acre | G71: 13.28402909 | I71: 13.28402909 | J71: 0 | K71: 0 | M71: 0 | N71: =J71*L71 -> 0 | O71: 13.28402909 | P71: 0 | Q71: 1620.651549 | R71: 0
B72: Equipment Investment
C73: Pickup/General Use Equipment | D73: 40.0057377 | F73: Dollars | G73: 0.0625 | I73: 2.500358607 | J73: =E73*H73 -> 0 | K73: 0 | M73: 0 | N73: =J73*L73 -> 0 | O73: 2.500358607 | P73: =+J73-N73 -> 0 | Q73: 305.04375 | R73: =+J73*E$7 -> 0
C74: Irrigation Equipment | D74: 435.7991803 | F74: Dollars | G74: 0.0625 | I74: 27.23744877 | J74: 0 | K74: 0 | M74: 0 | N74: =J74*L74 -> 0 | O74: 27.23744877 | P74: 0 | Q74: 3322.96875 | R74: 0
C75: Tractors/Self-Propelled | D75: 28.67682874 | F75: Dollars | G75: 0.0625 | I75: 1.792301796 | J75: 0 | K75: 0 | M75: 0 | N75: =J75*L75 -> 0 | O75: 1.792301796 | P75: 0 | Q75: 218.6608191 | R75: 0
C76: Implements | D76: 56.82612446 | F76: Dollars | G76: 0.0625 | I76: 3.551632779 | J76: 0 | K76: 0 | M76: 0 | N76: =J76*L76 -> 0 | O76: 3.551632779 | P76: 0 | Q76: 433.299199 | R76: 0
B77: Salaried Labor | D77: 1 | F77: Acre | G77: 0 | I77: 0 | J77: 0 | K77: 0 | M77: 0 | N77: =J77*L77 -> 0 | O77: 0 | P77: =+J77-N77 -> 0 | Q77: 0 | R77: =+J77*E$7 -> 0
B78: Management Fee, Owner/Operator Labor | D78: 1 | F78: Acre | G78: 0 | I78: 0 | J78: 0 | K78: 0 | M78: 0 | N78: 0 | O78: 0 | P78: 0 | Q78: 0 | R78: 0
B79: Allocated Establishment Cost | D79: 1 | F79: Acre | G79: 0 | I79: 0 | J79: 0 | K79: 0 | M79: 0 | N79: 0 | O79: 0 | P79: 0 | Q79: 0 | R79: 0
B80: Cash Rent - Sunflowers Irrigated | D80: 1 | F80: Acre | G80: 76 | I80: 76 | J80: 0 | K80: 0 | M80: 0 | N80: 0 | O80: 76 | P80: 0 | Q80: 9272 | R80: 0
B81: Property Taxes | D81: 1 | F81: Acre | G81: 0 | I81: 0 | J81: 0 | K81: 0 | M81: 0 | N81: 0 | O81: 0 | P81: 0 | Q81: 0 | R81: 0
B82: Whole Farm Insurance | D82: 1 | F82: Acre | G82: 0 | I82: 0 | J82: 0 | K82: 0 | M82: 0 | N82: 0 | O82: 0 | P82: 0 | Q82: 0 | R82: 0
D83: 1 | G83: 0 | I83: 0 | J83: 0 | K83: 0 | M83: 0 | N83: 0 | O83: 0 | P83: 0 | Q83: 0 | R83: 0
D84: 1 | G84: 0 | I84: 0 | J84: =E84*H84 -> 0 | K84: 0 | M84: 0 | N84: 0 | O84: 0 | P84: 0 | Q84: 0 | R84: 0
A85: Total Fixed Costs | I85: 162.6420186 | J85: =+SUM(J68:J84) -> 0 | M85: 0 | N85: =+SUM(N68:N84) -> 0 | O85: 162.6420186 | P85: =+SUM(P68:P84) -> 0 | Q85: 19842.32627 | R85: =+SUM(R68:R84) -> 0
A86: Total Specified Costs | I86: 464.5377139 | J86: =+J62+J85 -> 0 | M86: 0 | N86: =+N62+N85 -> 0 | O86: 464.5377139 | P86: =+P62+P85 -> 0 | Q86: 56673.6011 | R86: =+R62+R85 -> 0
A88: Returns Above Specified Costs | I88: -52.51771392 | J88: =+J13-J86 -> 0 | M88: 0 | N88: =+N13-N86 -> 0 | O88: -52.51771392 | P88: =+P13-P86 -> 0 | Q88: -6407.161098 | R88: =+R13-R86 -> 0
A90: Breakeven Price to Cover Total Costs | G90: 25.80765077 | H90: =IF(E10=0,"n/a",(YTotExp-(YTotExp+YTotRet-J10))/E10) -> n/a | I90: CWT
D92: Example Breakeven Prices
B93: Example | C93: Example | D93: To Cover | G93: To Cover
B94: Yield | C94: Yield | D94: Variable | G94: Total
B95: Percent | C95: CWT | D95: Costs | G95: Costs
B96: 0.75 | C96: 13.5 | D96: 22.3626441 | G96: 34.41020103
B97: 0.9 | C97: 16.2 | D97: 18.63553675 | G97: 28.67516753
B98: 1 | C98: 18 | D98: 16.77198307 | G98: 25.80765077
B99: 1.1 | C99: 19.8 | D99: 15.24725734 | G99: 23.4615007
B100: 1.25 | C100: 22.5 | D100: 13.41758646 | G100: 20.64612062
A102: Developed by Justin Benavidez, Assistant Professor, Texas A&M AgriLife Extension, 806-677-5600.
A104: Information presented is prepared solely as a general guide and not intended to recognize or predict the costs and returns from any one operation. Brand names are mentioned only as examples and imply no endorsement.

Sheet WheatDryland
A1: Projections for Planning Purposes Only -- Not to be Used without Updating
A2: 2021 Estimated Costs and Returns per Acre
A3: Continuous Wheat, Dryland, Grazed
A4: Enter your name for this budget in the cell above.
A5: Enter Your Values in the cells highlighed in MAROON.
E6: Your Acres | R6: Your
C7: Crop Acres | D7: 160 | L7: Your | Q7: Enterprise | R7: Enterprise
E8: Your | H8: Your | I8: Cash | J8: Your | K8: Landlord | L8: Landlord | N8: Your | P8: Your | Q8: Total | R8: Total
A9: REVENUE | D9: Quantity | E9: Quantity | F9: Units | G9: $/Unit | H9: $/Unit | I9: Total | J9: Total | K9: Share | L9: Share | M9: Landlord | N9: Landlord | O9: Tenant | P9: Tenant | Q9: (160 acres) | R9: ="(" & E7 & " acres)" -> ( acres)
B10: Wheat | D10: 20 | F10: Bushel | G10: 5.28 | I10: 105.6 | J10: =E10*H10 -> 0 | K10: 0 | M10: 0 | N10: =J10*L10 -> 0 | O10: 105.6 | P10: =+J10-N10 -> 0 | Q10: 16896 | R10: =+J10*E$7 -> 0
B11: Grazing - Wheat | D11: 73 | F11: Pound | G11: 0.5 | I11: 36.5 | J11: 0 | K11: 0 | M11: 0 | N11: 0 | O11: 36.5 | P11: =+J11-N11 -> 0 | Q11: 5840 | R11: 0
D12: 0 | G12: 0 | I12: 0 | J12: 0 | K12: 0 | M12: 0 | N12: 0 | O12: 0 | P12: 0 | Q12: 0 | R12: 0
D13: 0 | G13: 0 | I13: 0 | J13: 0 | K13: 0 | M13: 0 | N13: 0 | O13: 0 | P13: 0 | Q13: 0 | R13: 0
A14: Total Revenue | I14: 142.1 | J14: =SUM(J10:J13) -> 0 | M14: 0 | N14: =SUM(N10:N13) -> 0 | O14: 142.1 | P14: =SUM(P10:P13) -> 0 | Q14: 22736 | R14: =SUM(R10:R13) -> 0
Q15: Enterprise | R15: Enterprise
A16: VARIABLE COSTS | D16: Quantity | E16: Quantity | F16: Units | G16: $/Unit | H16: $/Unit | I16: Total | J16: Total | K16: Share | L16: Share | M16: Landlord | N16: Landlord | O16: Tenant | P16: Tenant | Q16: Total | R16: Total
A17: Production Costs
B18: Seed
C19: Seed - Wheat Dryland | D19: 1 | F19: Bushel | G19: 11.4780154 | I19: 11.4780154 | J19: =E19*H19 -> 0 | K19: 0 | M19: 0 | N19: =J19*L19 -> 0 | O19: 11.4780154 | P19: =+J19-N19 -> 0 | Q19: 1836.482464 | R19: =+J19*E$7 -> 0
B20: Fertilizer
C21: Fertilizer (N) - ANH3 | D21: 30 | F21: Pound | G21: 0.3 | I21: 9 | J21: 0 | K21: 0 | M21: 0 | N21: 0 | O21: 9 | P21: 0 | Q21: 1440 | R21: 0
B22: Custom
C23: Fertilizer Application - ANH3 | D23: 1 | F23: Acre | G23: 16.05140335 | I23: 16.05140335 | J23: 0 | K23: 0 | M23: 0 | N23: 0 | O23: 16.05140335 | P23: 0 | Q23: 2568.224537 | R23: 0
C24: Custom Harvest - Wheat | D24: 1 | F24: Acre | G24: 26.76278906 | I24: 26.76278906 | J24: 0 | K24: 0 | M24: 0 | N24: 0 | O24: 26.76278906 | P24: 0 | Q24: 4282.046249 | R24: 0
C25: Custom Haul - Wheat | D25: 20 | F25: Bushel | G25: 0.2717034422 | I25: 5.434068844 | J25: 0 | K25: 0 | M25: 0 | N25: 0 | O25: 5.434068844 | P25: 0 | Q25: 869.451015 | R25: 0
B26: Miscellaneous
C27: Crop Insurance Wheat Dryland | D27: 1 | F27: Acre | G27: 16.5 | I27: 16.5 | J27: 0 | K27: 0 | M27: 0 | N27: 0 | O27: 16.5 | P27: 0 | Q27: 2640 | R27: 0
D28: 0 | G28: 0 | I28: 0 | J28: 0 | K28: 0 | M28: 0 | N28: 0 | O28: 0 | P28: 0 | Q28: 0 | R28: 0
D29: 0 | G29: 0 | I29: 0 | J29: 0 | K29: 0 | M29: 0 | N29: 0 | O29: 0 | P29: 0 | Q29: 0 | R29: 0
D30: 0 | G30: 0 | I30: 0 | J30: =E30*H30 -> 0 | K30: 0 | M30: 0 | N30: =J30*L30 -> 0 | O30: 0 | P30: =+J30-N30 -> 0 | Q30: 0 | R30: =+J30*E$7 -> 0
B31: Machinery Labor
C32: Tractors/Self-Propelled | D32: 0.41 | F32: Hour | G32: 13.43 | I32: 5.5063 | J32: =E32*H32 -> 0 | K32: 0 | M32: 0 | N32: =J32*L32 -> 0 | O32: 5.5063 | P32: =+J32-N32 -> 0 | Q32: 881.008 | R32: =+J32*E$7 -> 0
C33: Other Labor | D33: 0.45 | F33: Hour | G33: 13.43 | I33: 6.0435 | J33: =E33*H33 -> 0 | K33: 0 | M33: 0 | N33: =J33*L33 -> 0 | O33: 6.0435 | P33: =+J33-N33 -> 0 | Q33: 966.96 | R33: =+J33*E$7 -> 0
B35: Diesel Fuel
C36: Pickup/General Use Equipment | D36: 1 | F36: Acre | G36: 0 | I36: 0 | J36: =E36*H36 -> 0 | K36: 0 | M36: 0 | N36: =J36*L36 -> 0 | O36: 0 | P36: =+J36-N36 -> 0 | Q36: 0 | R36: =+J36*E$7 -> 0
C37: Tractors/Self-Propelled | D37: 2.22 | F37: Gallon | G37: 2.1902 | I37: 4.862244 | J37: =E37*H37 -> 0 | K37: 0 | M37: 0 | N37: =J37*L37 -> 0 | O37: 4.862244 | P37: =+J37-N37 -> 0 | Q37: 777.95904 | R37: =+J37*E$7 -> 0
B39: Gasoline
C40: Pickup/General Use Equipment | D40: 1 | F40: Acre | G40: 5.1553125 | I40: 5.1553125 | J40: =E40*H40 -> 0 | K40: 0 | M40: 0 | N40: =J40*L40 -> 0 | O40: 5.1553125 | P40: =+J40-N40 -> 0 | Q40: 824.85 | R40: =+J40*E$7 -> 0
C41: Tractors/Self-Propelled | D41: 0 | F41: Gallon | G41: 2.538 | I41: 0 | J41: =E41*H41 -> 0 | K41: 0 | M41: 0 | N41: =J41*L41 -> 0 | O41: 0 | P41: =+J41-N41 -> 0 | Q41: 0 | R41: =+J41*E$7 -> 0
B43: Repairs & Maintenance
C44: Pickup/General Use Equipment | D44: 1 | F44: Acre | G44: 2.48625 | I44: 2.48625 | J44: =E44*H44 -> 0 | K44: 0 | M44: 0 | N44: =J44*L44 -> 0 | O44: 2.48625 | P44: =+J44-N44 -> 0 | Q44: 397.8 | R44: =+J44*E$7 -> 0
C45: Irrigation Equipment | D45: 1 | F45: Acre | G45: 0 | I45: 0 | J45: 0 | K45: 0 | M45: 0 | N45: 0 | O45: 0 | P45: 0 | Q45: 0 | R45: 0
C46: Tractors/Self-Propelled | D46: 1 | F46: Acre | G46: 4.439929661 | I46: 4.439929661 | J46: 0 | K46: 0 | M46: 0 | N46: 0 | O46: 4.439929661 | P46: 0 | Q46: 710.3887458 | R46: 0
C47: Implements | D47: 1 | F47: Acre | G47: 8.669181309 | I47: 8.669181309 | J47: 0 | K47: 0 | M47: 0 | N47: 0 | O47: 8.669181309 | P47: 0 | Q47: 1387.069009 | R47: 0
I48: 0 | J48: 0 | K48: 0 | M48: 0 | N48: 0 | O48: 0 | P48: 0 | Q48: 0 | R48: 0
I49: 0 | J49: 0 | K49: 0 | M49: 0 | N49: 0 | O49: 0 | P49: 0 | Q49: 0 | R49: 0
B50: Interest on Credit Line | G50: 0.0625 | I50: 4.254991822 | J50: =+SUM(J18:J49)/2*H50 -> 0 | M50: 0 | N50: =+SUM(N18:N49)/2*L50 -> 0 | O50: 4.254991822 | P50: =+SUM(P18:P49)/2*L50 -> 0 | Q50: 680.7986915 | R50: =+J50*E$7 -> 0
A51: Total Variable Costs | I51: 126.6439859 | J51: =SUM(J19:J50) -> 0 | M51: 0 | N51: =SUM(N19:N50) -> 0 | O51: 126.6439859 | P51: =SUM(P19:P50) -> 0 | Q51: 20263.03775 | R51: =SUM(R19:R50) -> 0
A52: Planned Returns Above Variable Costs: | I52: 15.45601406 | J52: =+J14-J51 -> 0 | M52: 0 | N52: =+N14-N51 -> 0 | O52: 15.45601406 | P52: =+P14-P51 -> 0 | Q52: 2472.962249 | R52: =+R14-R51 -> 0
B53: Breakeven Price to Cover Variable Costs | G53: 4.507199297 | H53: =IF(E10=0,"n/a",(YVarExp-(YTotExp+YTotRet-J10))/E10) -> n/a | I53: Bushel
Q54: Enterprise | R54: Enterprise
A55: FIXED COSTS | D55: Quantity | E55: Quantity | F55: Units | G55: $/Unit | H55: $/Unit | I55: Total | J55: Total | K55: Share | L55: Share | M55: Landlord | N55: Landlord | O55: Tenant | P55: Tenant | Q55: Total | R55: Total
B56: Machinery Depreciation
C57: Pickup/General Use Equipment | D57: 1 | F57: Acre | G57: 2.6105625 | I57: 2.6105625 | J57: =E57*H57 -> 0 | K57: 0 | M57: 0 | N57: =J57*L57 -> 0 | O57: 2.6105625 | P57: =+J57-N57 -> 0 | Q57: 417.69 | R57: =+J57*E$7 -> 0
C58: Tractors/Self-Propelled | D58: 1 | F58: Acre | G58: 4.427344282 | I58: 4.427344282 | J58: 0 | K58: 0 | M58: 0 | N58: =J58*L58 -> 0 | O58: 4.427344282 | P58: 0 | Q58: 708.3750851 | R58: 0
C59: Implements | D59: 1 | F59: Acre | G59: 11.29848881 | I59: 11.29848881 | J59: 0 | K59: 0 | M59: 0 | N59: =J59*L59 -> 0 | O59: 11.29848881 | P59: 0 | Q59: 1807.75821 | R59: 0
B60: Equipment Investment
C61: Pickup/General Use Equipment | D61: 18.0253125 | F61: Dollars | G61: 0.0625 | I61: 1.126582031 | J61: =E61*H61 -> 0 | K61: 0 | M61: 0 | N61: =J61*L61 -> 0 | O61: 1.126582031 | P61: =+J61-N61 -> 0 | Q61: 180.253125 | R61: =+J61*E$7 -> 0
C62: Tractors/Self-Propelled | D62: 34.49044013 | F62: Dollars | G62: 0.0625 | I62: 2.155652508 | J62: 0 | K62: 0 | M62: 0 | N62: =J62*L62 -> 0 | O62: 2.155652508 | P62: 0 | Q62: 344.9044013 | R62: 0
C63: Implements | D63: 48.33242437 | F63: Dollars | G63: 0.0625 | I63: 3.020776523 | J63: 0 | K63: 0 | M63: 0 | N63: =J63*L63 -> 0 | O63: 3.020776523 | P63: 0 | Q63: 483.3242437 | R63: 0
B64: Salaried Labor | D64: 1 | F64: Acre | G64: 0 | I64: 0 | J64: 0 | K64: 0 | M64: 0 | N64: =J64*L64 -> 0 | O64: 0 | P64: =+J64-N64 -> 0 | Q64: 0 | R64: =+J64*E$7 -> 0
B65: Management Fee, Owner/Operator Labor | D65: 1 | F65: Acre | G65: 0 | I65: 0 | J65: 0 | K65: 0 | M65: 0 | N65: 0 | O65: 0 | P65: 0 | Q65: 0 | R65: 0
B66: Allocated Establishment Cost | D66: 1 | F66: Acre | G66: 0 | I66: 0 | J66: 0 | K66: 0 | M66: 0 | N66: 0 | O66: 0 | P66: 0 | Q66: 0 | R66: 0
B67: Cash Rent - Wheat Dryland | D67: 1 | F67: Acre | G67: 30 | I67: 30 | J67: 0 | K67: 0 | M67: 0 | N67: 0 | O67: 30 | P67: 0 | Q67: 4800 | R67: 0
B68: Property Taxes | D68: 1 | F68: Acre | G68: 0 | I68: 0 | J68: 0 | K68: 0 | M68: 0 | N68: 0 | O68: 0 | P68: 0 | Q68: 0 | R68: 0
B69: Whole Farm Insurance | D69: 1 | F69: Acre | G69: 0 | I69: 0 | J69: 0 | K69: 0 | M69: 0 | N69: 0 | O69: 0 | P69: 0 | Q69: 0 | R69: 0
D70: 1 | G70: 0 | I70: 0 | J70: 0 | K70: 0 | M70: 0 | N70: 0 | O70: 0 | P70: 0 | Q70: 0 | R70: 0
D71: 1 | G71: 0 | I71: 0 | J71: =E71*H71 -> 0 | K71: 0 | M71: 0 | N71: 0 | O71: 0 | P71: 0 | Q71: 0 | R71: 0
A72: Total Fixed Costs | I72: 54.63940666 | J72: =+SUM(J57:J71) -> 0 | M72: 0 | N72: =+SUM(N57:N71) -> 0 | O72: 54.63940666 | P72: =+SUM(P57:P71) -> 0 | Q72: 8742.305066 | R72: =+SUM(R57:R71) -> 0
A73: Total Specified Costs | I73: 181.2833926 | J73: =+J51+J72 -> 0 | M73: 0 | N73: =+N51+N72 -> 0 | O73: 181.2833926 | P73: =+P51+P72 -> 0 | Q73: 29005.34282 | R73: =+R51+R72 -> 0
A75: Returns Above Specified Costs | I75: -39.1833926 | J75: =+J14-J73 -> 0 | M75: 0 | N75: =+N14-N73 -> 0 | O75: -39.1833926 | P75: =+P14-P73 -> 0 | Q75: -6269.342816 | R75: =+R14-R73 -> 0
A77: Breakeven Price to Cover Total Costs | G77: 7.23916963 | H77: =IF(E10=0,"n/a",(YTotExp-(YTotExp+YTotRet-J10))/E10) -> n/a | I77: Bushel
D79: Example Breakeven Prices
B80: Example | C80: Example | D80: To Cover | G80: To Cover
B81: Yield | C81: Yield | D81: Variable | G81: Total
B82: Percent | C82: Bushel | D82: Costs | G82: Costs
B83: 0.75 | C83: 15 | D83: 6.009599063 | G83: 9.652226174
B84: 0.9 | C84: 18 | D84: 5.007999219 | G84: 8.043521811
B85: 1 | C85: 20 | D85: 4.507199297 | G85: 7.23916963
B86: 1.1 | C86: 22 | D86: 4.097453906 | G86: 6.5810633
B87: 1.25 | C87: 25 | D87: 3.605759438 | G87: 5.791335704
A89: Developed by Justin Benavidez, Assistant Professor, Texas A&M AgriLife Extension, 806-677-5600.
A91: Information presented is prepared solely as a general guide and not intended to recognize or predict the costs and returns from any one operation. Brand names are mentioned only as examples and imply no endorsement.

Sheet WheatSprinkler
A1: Projections for Planning Purposes Only -- Not to be Used without Updating
A2: 2021 Estimated Costs and Returns per Acre
A3: Continuous Wheat, Sprinkler Irrigated (NG)
A4: Enter your name for this budget in the cell above.
A5: Enter Your Values in the cells highlighed in MAROON.
E6: Your Acres | R6: Your
C7: Crop Acres | D7: 122 | L7: Your | Q7: Enterprise | R7: Enterprise
E8: Your | H8: Your | I8: Cash | J8: Your | K8: Landlord | L8: Landlord | N8: Your | P8: Your | Q8: Total | R8: Total
A9: REVENUE | D9: Quantity | E9: Quantity | F9: Units | G9: $/Unit | H9: $/Unit | I9: Total | J9: Total | K9: Share | L9: Share | M9: Landlord | N9: Landlord | O9: Tenant | P9: Tenant | Q9: (122 acres) | R9: ="(" & E7 & " acres)" -> ( acres)
B10: Wheat | D10: 50 | F10: Bushel | G10: 5.28 | I10: 264 | J10: =E10*H10 -> 0 | K10: 0 | M10: 0 | N10: =J10*L10 -> 0 | O10: 264 | P10: =+J10-N10 -> 0 | Q10: 32208 | R10: =+J10*E$7 -> 0
B11: Grazing - Wheat | D11: 136 | F11: Pound | G11: 0.5 | I11: 68 | J11: 0 | K11: 0 | M11: 0 | N11: 0 | O11: 68 | P11: =+J11-N11 -> 0 | Q11: 8296 | R11: 0
D12: 0 | G12: 0 | I12: 0 | J12: 0 | K12: 0 | M12: 0 | N12: 0 | O12: 0 | P12: 0 | Q12: 0 | R12: 0
D13: 0 | G13: 0 | I13: 0 | J13: 0 | K13: 0 | M13: 0 | N13: 0 | O13: 0 | P13: 0 | Q13: 0 | R13: 0
A14: Total Revenue | I14: 332 | J14: =SUM(J10:J13) -> 0 | M14: 0 | N14: =SUM(N10:N13) -> 0 | O14: 332 | P14: =SUM(P10:P13) -> 0 | Q14: 40504 | R14: =SUM(R10:R13) -> 0
Q15: Enterprise | R15: Enterprise
A16: VARIABLE COSTS | D16: Quantity | E16: Quantity | F16: Units | G16: $/Unit | H16: $/Unit | I16: Total | J16: Total | K16: Share | L16: Share | M16: Landlord | N16: Landlord | O16: Tenant | P16: Tenant | Q16: Total | R16: Total
A17: Production Costs
B18: Seed
C19: Seed - Wheat | D19: 1.2 | F19: Bushel | G19: 11.4780154 | I19: 13.77361848 | J19: =E19*H19 -> 0 | K19: 0 | M19: 0 | N19: =J19*L19 -> 0 | O19: 13.77361848 | P19: =+J19-N19 -> 0 | Q19: 1680.381454 | R19: =+J19*E$7 -> 0
B20: Fertilizer
C21: Fertilizer (N) - ANH3 | D21: 45 | F21: Pound | G21: 0.3 | I21: 13.5 | J21: 0 | K21: 0 | M21: 0 | N21: 0 | O21: 13.5 | P21: 0 | Q21: 1647 | R21: 0
C22: Fertilizer (P) - Liquid | D22: 25 | F22: Pound | G22: 0.49 | I22: 12.25 | J22: 0 | K22: 0 | M22: 0 | N22: 0 | O22: 12.25 | P22: 0 | Q22: 1494.5 | R22: 0
C23: Fertilizer (N) - Liquid | D23: 20 | F23: Pound | G23: 0.5 | I23: 10 | J23: 0 | K23: 0 | M23: 0 | N23: 0 | O23: 10 | P23: 0 | Q23: 1220 | R23: 0
B24: Custom
C25: Fertilizer Application - ANH3 | D25: 1 | F25: Acre | G25: 16.05140335 | I25: 16.05140335 | J25: 0 | K25: 0 | M25: 0 | N25: 0 | O25: 16.05140335 | P25: 0 | Q25: 1958.271209 | R25: 0
C26: Harvest and Haul - Wheat Irrigated | D26: 50 | F26: Bushel | G26: 0.6374580759 | I26: 31.8729038 | J26: 0 | K26: 0 | M26: 0 | N26: 0 | O26: 31.8729038 | P26: 0 | Q26: 3888.494263 | R26: 0
B27: Miscellaneous
C28: Crop Insurance Wheat Irrigated | D28: 1 | F28: Acre | G28: 36.3 | I28: 36.3 | J28: 0 | K28: 0 | M28: 0 | N28: 0 | O28: 36.3 | P28: 0 | Q28: 4428.6 | R28: 0
B29: Insecticide
C30: Insecticide and Apply Wheat | D30: 1 | F30: Acre | G30: 9.619755409 | I30: 9.619755409 | J30: 0 | K30: 0 | M30: 0 | N30: 0 | O30: 9.619755409 | P30: 0 | Q30: 1173.61016 | R30: 0
D31: 0 | G31: 0 | I31: 0 | J31: 0 | K31: 0 | M31: 0 | N31: 0 | O31: 0 | P31: 0 | Q31: 0 | R31: 0
D32: 0 | G32: 0 | I32: 0 | J32: 0 | K32: 0 | M32: 0 | N32: 0 | O32: 0 | P32: 0 | Q32: 0 | R32: 0
D33: 0 | G33: 0 | I33: 0 | J33: =E33*H33 -> 0 | K33: 0 | M33: 0 | N33: =J33*L33 -> 0 | O33: 0 | P33: =+J33-N33 -> 0 | Q33: 0 | R33: =+J33*E$7 -> 0
B34: Irrigation
C35: Energy Cost | D35: 10 | F35: AcreInch | G35: 3.35 | I35: 33.5 | J35: =E35*H35 -> 0 | K35: 0 | M35: 0 | N35: =J35*L35 -> 0 | O35: 33.5 | P35: =+J35-N35 -> 0 | Q35: 4087 | R35: =+J35*E$7 -> 0
C36: Irrigation Labor | D36: 0.96 | F36: Hour | G36: 13.65 | I36: 13.104 | J36: 0 | K36: 0 | M36: 0 | N36: 0 | O36: 13.104 | P36: 0 | Q36: 1598.688 | R36: 0
B37: Machinery Labor
C38: Tractors/Self-Propelled | D38: 0.41 | F38: Hour | G38: 13.43 | I38: 5.5063 | J38: =E38*H38 -> 0 | K38: 0 | M38: 0 | N38: =J38*L38 -> 0 | O38: 5.5063 | P38: =+J38-N38 -> 0 | Q38: 671.7686 | R38: =+J38*E$7 -> 0
C39: Other Labor | D39: 0.45 | F39: Hour | G39: 13.43 | I39: 6.0435 | J39: =E39*H39 -> 0 | K39: 0 | M39: 0 | N39: =J39*L39 -> 0 | O39: 6.0435 | P39: =+J39-N39 -> 0 | Q39: 737.307 | R39: =+J39*E$7 -> 0
B41: Diesel Fuel
C42: Pickup/General Use Equipment | D42: 1 | F42: Acre | G42: 0 | I42: 0 | J42: =E42*H42 -> 0 | K42: 0 | M42: 0 | N42: =J42*L42 -> 0 | O42: 0 | P42: =+J42-N42 -> 0 | Q42: 0 | R42: =+J42*E$7 -> 0
C43: Tractors/Self-Propelled | D43: 2.12 | F43: Gallon | G43: 2.1902 | I43: 4.643224 | J43: =E43*H43 -> 0 | K43: 0 | M43: 0 | N43: =J43*L43 -> 0 | O43: 4.643224 | P43: =+J43-N43 -> 0 | Q43: 566.473328 | R43: =+J43*E$7 -> 0
B45: Gasoline
C46: Pickup/General Use Equipment | D46: 1 | F46: Acre | G46: 5.200819672 | I46: 5.200819672 | J46: =E46*H46 -> 0 | K46: 0 | M46: 0 | N46: =J46*L46 -> 0 | O46: 5.200819672 | P46: =+J46-N46 -> 0 | Q46: 634.5 | R46: =+J46*E$7 -> 0
C47: Tractors/Self-Propelled | D47: 0 | F47: Gallon | G47: 2.538 | I47: 0 | J47: =E47*H47 -> 0 | K47: 0 | M47: 0 | N47: =J47*L47 -> 0 | O47: 0 | P47: =+J47-N47 -> 0 | Q47: 0 | R47: =+J47*E$7 -> 0
B49: Repairs & Maintenance
C50: Pickup/General Use Equipment | D50: 1 | F50: Acre | G50: 2.508196721 | I50: 2.508196721 | J50: =E50*H50 -> 0 | K50: 0 | M50: 0 | N50: =J50*L50 -> 0 | O50: 2.508196721 | P50: =+J50-N50 -> 0 | Q50: 306 | R50: =+J50*E$7 -> 0
C51: Irrigation Equipment | D51: 1 | F51: Acre | G51: 37.5 | I51: 37.5 | J51: 0 | K51: 0 | M51: 0 | N51: 0 | O51: 37.5 | P51: 0 | Q51: 4575 | R51: 0
C52: Tractors/Self-Propelled | D52: 1 | F52: Acre | G52: 3.943353209 | I52: 3.943353209 | J52: 0 | K52: 0 | M52: 0 | N52: 0 | O52: 3.943353209 | P52: 0 | Q52: 481.0890915 | R52: 0
C53: Implements | D53: 1 | F53: Acre | G53: 10.76553218 | I53: 10.76553218 | J53: 0 | K53: 0 | M53: 0 | N53: 0 | O53: 10.76553218 | P53: 0 | Q53: 1313.394926 | R53: 0
I54: 0 | J54: 0 | K54: 0 | M54: 0 | N54: 0 | O54: 0 | P54: 0 | Q54: 0 | R54: 0
I55: 0 | J55: 0 | K55: 0 | M55: 0 | N55: 0 | O55: 0 | P55: 0 | Q55: 0 | R55: 0
B56: Interest on Credit Line | G56: 0.0625 | I56: 9.756972364 | J56: =+SUM(J18:J55)/2*H56 -> 0 | M56: 0 | N56: =+SUM(N18:N55)/2*L56 -> 0 | O56: 9.756972364 | P56: =+SUM(P18:P55)/2*L56 -> 0 | Q56: 1190.350628 | R56: =+J56*E$7 -> 0
A57: Total Variable Costs | I57: 275.8395792 | J57: =SUM(J19:J56) -> 0 | M57: 0 | N57: =SUM(N19:N56) -> 0 | O57: 275.8395792 | P57: =SUM(P19:P56) -> 0 | Q57: 33652.42866 | R57: =SUM(R19:R56) -> 0
A58: Planned Returns Above Variable Costs: | I58: 56.16042081 | J58: =+J14-J57 -> 0 | M58: 0 | N58: =+N14-N57 -> 0 | O58: 56.16042081 | P58: =+P14-P57 -> 0 | Q58: 6851.571339 | R58: =+R14-R57 -> 0
B59: Breakeven Price to Cover Variable Costs | G59: 4.156791584 | H59: =IF(E10=0,"n/a",(YVarExp-(YTotExp+YTotRet-J10))/E10) -> n/a | I59: Bushel
Q60: Enterprise | R60: Enterprise
A61: FIXED COSTS | D61: Quantity | E61: Quantity | F61: Units | G61: $/Unit | H61: $/Unit | I61: Total | J61: Total | K61: Share | L61: Share | M61: Landlord | N61: Landlord | O61: Tenant | P61: Tenant | Q61: Total | R61: Total
B62: Machinery Depreciation
C63: Pickup/General Use Equipment | D63: 1 | F63: Acre | G63: 2.633606557 | I63: 2.633606557 | J63: =E63*H63 -> 0 | K63: 0 | M63: 0 | N63: =J63*L63 -> 0 | O63: 2.633606557 | P63: =+J63-N63 -> 0 | Q63: 321.3 | R63: =+J63*E$7 -> 0
C64: Irrigation Equipment | D64: 1 | F64: Acre | G64: 33.50409836 | I64: 33.50409836 | J64: 0 | K64: 0 | M64: 0 | N64: =J64*L64 -> 0 | O64: 33.50409836 | P64: 0 | Q64: 4087.5 | R64: 0
C65: Tractors/Self-Propelled | D65: 1 | F65: Acre | G65: 3.914215281 | I65: 3.914215281 | J65: 0 | K65: 0 | M65: 0 | N65: =J65*L65 -> 0 | O65: 3.914215281 | P65: 0 | Q65: 477.5342643 | R65: 0
C66: Implements | D66: 1 | F66: Acre | G66: 13.43334624 | I66: 13.43334624 | J66: 0 | K66: 0 | M66: 0 | N66: =J66*L66 -> 0 | O66: 13.43334624 | P66: 0 | Q66: 1638.868242 | R66: 0
B67: Equipment Investment
C68: Pickup/General Use Equipment | D68: 18.18442623 | F68: Dollars | G68: 0.0625 | I68: 1.136526639 | J68: =E68*H68 -> 0 | K68: 0 | M68: 0 | N68: =J68*L68 -> 0 | O68: 1.136526639 | P68: =+J68-N68 -> 0 | Q68: 138.65625 | R68: =+J68*E$7 -> 0
C69: Irrigation Equipment | D69: 470.2868852 | F69: Dollars | G69: 0.0625 | I69: 29.39293033 | J69: 0 | K69: 0 | M69: 0 | N69: =J69*L69 -> 0 | O69: 29.39293033 | P69: 0 | Q69: 3585.9375 | R69: 0
C70: Tractors/Self-Propelled | D70: 30.49299969 | F70: Dollars | G70: 0.0625 | I70: 1.905812481 | J70: 0 | K70: 0 | M70: 0 | N70: =J70*L70 -> 0 | O70: 1.905812481 | P70: 0 | Q70: 232.5091226 | R70: 0
C71: Implements | D71: 57.46487004 | F71: Dollars | G71: 0.0625 | I71: 3.591554378 | J71: 0 | K71: 0 | M71: 0 | N71: =J71*L71 -> 0 | O71: 3.591554378 | P71: 0 | Q71: 438.1696341 | R71: 0
B72: Salaried Labor | D72: 1 | F72: Acre | G72: 0 | I72: 0 | J72: 0 | K72: 0 | M72: 0 | N72: =J72*L72 -> 0 | O72: 0 | P72: =+J72-N72 -> 0 | Q72: 0 | R72: =+J72*E$7 -> 0
B73: Management Fee, Owner/Operator Labor | D73: 1 | F73: Acre | G73: 0 | I73: 0 | J73: 0 | K73: 0 | M73: 0 | N73: 0 | O73: 0 | P73: 0 | Q73: 0 | R73: 0
B74: Allocated Establishment Cost | D74: 1 | F74: Acre | G74: 0 | I74: 0 | J74: 0 | K74: 0 | M74: 0 | N74: 0 | O74: 0 | P74: 0 | Q74: 0 | R74: 0
B75: Cash Rent - Wheat Irrigated | D75: 1 | F75: Acre | G75: 76 | I75: 76 | J75: 0 | K75: 0 | M75: 0 | N75: 0 | O75: 76 | P75: 0 | Q75: 9272 | R75: 0
B76: Property Taxes | D76: 1 | F76: Acre | G76: 0 | I76: 0 | J76: 0 | K76: 0 | M76: 0 | N76: 0 | O76: 0 | P76: 0 | Q76: 0 | R76: 0
B77: Whole Farm Insurance | D77: 1 | F77: Acre | G77: 0 | I77: 0 | J77: 0 | K77: 0 | M77: 0 | N77: 0 | O77: 0 | P77: 0 | Q77: 0 | R77: 0
D78: 1 | G78: 0 | I78: 0 | J78: 0 | K78: 0 | M78: 0 | N78: 0 | O78: 0 | P78: 0 | Q78: 0 | R78: 0
D79: 1 | G79: 0 | I79: 0 | J79: =E79*H79 -> 0 | K79: 0 | M79: 0 | N79: 0 | O79: 0 | P79: 0 | Q79: 0 | R79: 0
A80: Total Fixed Costs | I80: 165.5120903 | J80: =+SUM(J63:J79) -> 0 | M80: 0 | N80: =+SUM(N63:N79) -> 0 | O80: 165.5120903 | P80: =+SUM(P63:P79) -> 0 | Q80: 20192.47501 | R80: =+SUM(R63:R79) -> 0
A81: Total Specified Costs | I81: 441.3516695 | J81: =+J57+J80 -> 0 | M81: 0 | N81: =+N57+N80 -> 0 | O81: 441.3516695 | P81: =+P57+P80 -> 0 | Q81: 53844.90367 | R81: =+R57+R80 -> 0
A83: Returns Above Specified Costs | I83: -109.3516695 | J83: =+J14-J81 -> 0 | M83: 0 | N83: =+N14-N81 -> 0 | O83: -109.3516695 | P83: =+P14-P81 -> 0 | Q83: -13340.90367 | R83: =+R14-R81 -> 0
A85: Breakeven Price to Cover Total Costs | G85: 7.467033389 | H85: =IF(E10=0,"n/a",(YTotExp-(YTotExp+YTotRet-J10))/E10) -> n/a | I85: Bushel
D87: Example Breakeven Prices
B88: Example | C88: Example | D88: To Cover | G88: To Cover
B89: Yield | C89: Yield | D89: Variable | G89: Total
B90: Percent | C90: Bushel | D90: Costs | G90: Costs
B91: 0.75 | C91: 37.5 | D91: 5.542388778 | G91: 9.956044519
B92: 0.9 | C92: 45 | D92: 4.618657315 | G92: 8.296703766
B93: 1 | C93: 50 | D93: 4.156791584 | G93: 7.467033389
B94: 1.1 | C94: 55 | D94: 3.77890144 | G94: 6.788212172
B95: 1.25 | C95: 62.5 | D95: 3.325433267 | G95: 5.973626711
A97: Developed by Justin Benavidez, Assistant Professor, Texas A&M AgriLife Extension, 806-677-5600.
A99: Information presented is prepared solely as a general guide and not intended to recognize or predict the costs and returns from any one operation. Brand names are mentioned only as examples and imply no endorsement.

Sheet TriticaleSilage
A1: Projections for Planning Purposes Only -- Not to be Used without Updating
A2: 2021 Estimated Costs and Returns per Acre
A3: Triticale Silage, Sprinkler Irrigated (NG)
A4: Enter your name for this budget in the cell above.
A5: Enter Your Values in the cells highlighed in MAROON.
E6: Your Acres | R6: Your
C7: Crop Acres | D7: 122 | L7: Your | Q7: Enterprise | R7: Enterprise
E8: Your | H8: Your | I8: Cash | J8: Your | K8: Landlord | L8: Landlord | N8: Your | P8: Your | Q8: Total | R8: Total
